Workbook

Sheet W01
B1: Score sheet info (digital summary)
B2: Mouse W01
F3: Weight | I3: Food | K3: Scoring
B4: Experimenter | C4: Day | D4: Time | E4: Age | F4: Reference | G4: Actual | H4: Percentage | I4: Offered | J4: Consumed | K4: Activity/behavior | L4: Look/posture | M4: Shit/piss | N4: Body condition | O4: Dehydration signs | P4: Total | Q4: Implant | R4: Comment
B5: SR | C5: 2016-12-12 | D5: 14:00:00 | E5: 41 | F5: 22.3 | G5: 22.1 | H5: =G5/F5 -> 0.9910313901 | K5: 0 | N5: 0 | P5: =SUM(K5:O5) -> 0
B6: SR | C6: 2016-12-13 | D6: 14:00:00 | E6: 42 | F6: 22.3 | G6: 22.9 | H6: 1.02690583 | K6: 0 | N6: 0 | P6: =SUM(K6:O6) -> 0
B7: PG | C7: 2016-12-14 | D7: 18:00:00 | E7: 43 | F7: 22.3 | G7: 21.8 | H7: 0.9775784753 | K7: 0 | N7: 0 | P7: 0
B8: PG | C8: 2016-12-15 | D8: 15:00:00 | E8: 44 | F8: 22.3 | G8: 22 | H8: 0.9865470852 | K8: 0 | N8: 1 | P8: 1 | Q8: 0 | R8: Wet fur
B9: AG,SR,PG | C9: 2016-12-16 | D9: 14:30:00 | E9: 45 | F9: 22.3 | G9: 22.8 | H9: 1.022421525 | K9: 0 | N9: 0 | P9: 0 | Q9: 0
B10: PG | C10: 2016-12-17 | D10: 14:00:00 | E10: 46 | F10: 22.3 | G10: 23 | H10: 1.031390135 | K10: 0 | N10: 0 | P10: 0 | Q10: 0
B11: PG | C11: 2016-12-18 | D11: 14:00:00 | E11: 47 | F11: 22.3 | G11: 23.6 | H11: 1.058295964 | K11: 0 | N11: 0 | P11: 0 | Q11: 0
B12: SR | C12: 2016-12-19 | D12: 14:00:00 | E12: 48 | F12: 22.3 | G12: 23.3 | H12: =G12/F12 -> 1.044843049 | K12: 0 | N12: 0 | P12: 0 | Q12: 0
B13: PG | C13: 2016-12-20 | D13: 16:00:00 | E13: 49 | F13: 22.3 | G13: 24.3 | H13: 1.089686099 | K13: 0 | N13: 0 | P13: 0 | Q13: 0
B14: AG | C14: 2016-12-21 | D14: 14:00:00 | E14: 50 | F14: 22.3 | G14: 23.8 | H14: 1.067264574 | K14: 0 | N14: 0 | P14: 0 | Q14: 0
B15: AG | C15: 2016-12-22 | D15: 13:45:00 | E15: 51 | F15: 22.3 | G15: 23.4 | H15: 1.049327354 | K15: 0 | N15: 0 | P15: 0 | Q15: 0
B16: PG | C16: 2016-12-23 | D16: 13:20:00 | E16: 52 | F16: 22.3 | G16: 24.4 | H16: 1.094170404 | K16: 0 | N16: 0 | P16: 0 | Q16: 0
C17: 2016-12-24 | E17: 53
C18: 2016-12-25 | E18: 54
C19: 2016-12-26 | E19: 55
C20: 2016-12-27 | E20: 56
C21: 2016-12-28 | E21: 57
C22: 2016-12-29 | E22: 58
C23: 2016-12-30 | E23: 59
C24: 2016-12-31 | E24: 60
C25: 2017-01-01 | E25: 61
B26: AG PG | C26: 2017-01-02 | D26: 14:00:00 | E26: 62 | F26: 24.9 | G26: 24.9 | H26: 1 | I26: 2 | J26: 2 | K26: 0 | L26: 0 | M26: 0 | N26: 0 | O26: 0 | P26: 0 | Q26: 1 | R26: bit of dirt above left eye
B27: AG PG | C27: 2017-01-03 | D27: 14:30:00 | E27: 63 | F27: 24.9 | G27: 21.8 | H27: 0.875502008 | I27: 2.7 | J27: 2.7 | K27: 0 | L27: 0 | M27: 0 | N27: 0 | O27: 0 | P27: 0 | Q27: 1 | R27: bit of dirt above left eye
B28: AG MH | C28: 2017-01-04 | D28: 14:30:00 | E28: 64 | F28: 24.9 | G28: 21.5 | H28: 0.8634538153 | I28: 3.3 | J28: 3.3 | K28: 0 | L28: 0 | M28: 0 | N28: 0 | O28: 0 | P28: 0 | Q28: 1 | R28: bit of dirt above left eye
B29: AG PG | C29: 2017-01-05 | D29: 14:00:00 | E29: 65 | F29: 24.9 | G29: 21 | H29: 0.843373494 | I29: 3.2 | J29: 3.2 | K29: 0 | L29: 0 | M29: 0 | N29: 0 | O29: 0 | P29: 0 | Q29: 1 | R29: bit of dirt above left eye
B30: AG PG | C30: 2017-01-06 | D30: 14:00:00 | E30: 66 | F30: 24.9 | G30: 21 | H30: 0.843373494 | I30: 3.7 | J30: 3.7 | K30: 0 | L30: 0 | M30: 0 | N30: 0 | O30: 0 | P30: 0 | Q30: 1 | R30: bit of dirt above left eye
B31: PG | C31: 2017-01-07 | D31: 16:00:00 | E31: 67 | F31: 24.9 | G31: 21 | H31: 0.843373494 | I31: 3.9 | J31: 3.9 | K31: 0 | L31: 0 | M31: 0 | N31: 0 | O31: 0 | P31: 0 | Q31: 1 | R31: bit of dirt above left eye
B32: AG | C32: 2017-01-08 | D32: 15:00:00 | E32: 68 | F32: 24.9 | G32: 21.4 | H32: 0.859437751 | I32: 3.5 | J32: 3.5 | K32: 0 | L32: 0 | M32: 0 | N32: 0 | O32: 0 | P32: 0 | Q32: 1 | R32: bit of dirt above left eye
B33: MH PG | C33: 2017-01-09 | D33: 15:20:00 | E33: 69 | F33: 24.9 | G33: 21.1 | H33: 0.8473895582 | I33: 3.7 | J33: 3.7 | K33: 0 | L33: 0 | M33: 0 | N33: 0 | O33: 0 | P33: 0 | Q33: 1 | R33: bit of dirt above left eye
B34: AG PG | C34: 2017-01-10 | D34: 15:20:00 | E34: 70 | F34: 24.9 | G34: 21 | H34: 0.843373494 | I34: 3.6 | J34: 3.6 | K34: 0 | L34: 0 | M34: 0 | N34: 0 | O34: 0 | P34: 0 | Q34: 1 | R34: dirt above left eye is gone, bit of blood left
B35: AG SR | C35: 2017-01-11 | D35: 14:45:00 | E35: 71 | F35: 24.9 | G35: 21.1 | H35: 0.8473895582 | I35: 3.85 | J35: 3.85 | K35: 0 | L35: 0 | M35: 0 | N35: 0 | O35: 0 | P35: 0 | Q35: 1 | R35: bit of blood left
B36: SR PG | C36: 2017-01-12 | D36: 15:30:00 | E36: 72 | F36: 24.9 | G36: 21 | H36: 0.843373494 | I36: 3.95 | J36: 3.95 | K36: 0 | L36: 0 | M36: 0 | N36: 0 | O36: 0 | P36: 0 | Q36: 0 | R36: Looks normal again
B37: MH PG | C37: 2017-01-13 | D37: 15:10:00 | E37: 73 | F37: 24.9 | G37: 21.2 | H37: 0.8514056225 | I37: 3.9 | J37: 3.9 | K37: 0 | L37: 0 | M37: 0 | N37: 0 | O37: 0 | P37: 0 | Q37: 0
B38: AG MH | C38: 2017-01-14 | D38: 14:00:00 | E38: 74 | F38: 24.9 | G38: 21.3 | H38: 0.8554216867 | I38: 4.1 | J38: 4.1 | K38: 0 | L38: 0 | M38: 0 | N38: 0 | O38: 0 | P38: 0 | Q38: 0
B39: PG SR | C39: 2017-01-15 | D39: 14:45:00 | E39: 75 | F39: 24.9 | G39: 21 | H39: 0.843373494 | I39: 4.4 | J39: 4.4 | K39: 0 | L39: 0 | M39: 0 | N39: 0 | O39: 0 | P39: 0 | Q39: 0
B40: MH SR | C40: 2017-01-16 | D40: 14:50:00 | E40: 76 | F40: 24.9 | G40: 20.9 | H40: 0.8393574297 | I40: 4.55 | J40: 4.55 | K40: 0 | L40: 0 | M40: 0 | N40: 0 | O40: 0 | P40: 0 | Q40: 0
B41: MH PG SR | C41: 2017-01-17 | D41: 17:20:00 | E41: 77 | F41: 24.9 | G41: 20.7 | H41: 0.8313253012 | I41: 5.98 | J41: 5.98 | K41: 0 | L41: 0 | M41: 0 | N41: 0 | O41: 0 | P41: 0 | Q41: 0
B42: MH PG | C42: 2017-01-18 | D42: 14:30:00 | E42: 78 | F42: 24.9 | G42: 21.9 | H42: 0.8795180723 | I42: 5.3 | J42: 5.3 | K42: 0 | L42: 0 | M42: 0 | N42: 0 | O42: 0 | P42: 0 | Q42: 0
B43: PG SR | C43: 2017-01-19 | D43: 15:03:00 | E43: 79 | F43: 24.9 | G43: 21.5 | H43: 0.8634538153 | I43: 3.5 | J43: 3.5 | K43: 0 | L43: 0 | M43: 0 | N43: 0 | O43: 0 | P43: 0 | Q43: 0
B44: AG PG SR | C44: 2017-01-20 | D44: 14:49:00 | E44: 80 | F44: 24.9 | G44: 21.6 | H44: 0.8674698795 | I44: 3.4 | J44: 3.4 | K44: 0 | L44: 0 | M44: 0 | N44: 0 | O44: 0 | P44: 0 | Q44: 0
B45: MH SR | C45: 2017-01-21 | D45: 14:15:00 | E45: 81 | F45: 24.9 | G45: 22.3 | H45: 0.8955823293 | I45: 3.3 | J45: 3.3 | K45: 0 | L45: 0 | M45: 0 | N45: 0 | O45: 0 | P45: 0 | Q45: 0
B46: MH | C46: 2017-01-22 | D46: 14:35:00 | E46: 82 | F46: 24.9 | G46: 21.8 | H46: 0.875502008 | I46: 3.3 | J46: 3.3 | K46: 0 | L46: 0 | M46: 0 | N46: 0 | O46: 0 | P46: 0 | Q46: 0
B47: AG PG | C47: 2017-01-23 | D47: 14:38:00 | E47: 83 | F47: 24.9 | G47: 21.7 | H47: 0.8714859438 | I47: 3.3 | J47: 3.3 | K47: 0 | L47: 0 | M47: 0 | N47: 0 | O47: 0 | P47: 0 | Q47: 0
B48: PG SR | C48: 2017-01-24 | D48: 15:18:00 | E48: 84 | F48: 24.9 | G48: 21.9 | H48: 0.8795180723 | I48: 3.25 | J48: 3.25 | K48: 0 | L48: 0 | M48: 0 | N48: 0 | O48: 0 | P48: 0 | Q48: 0
B49: AG SR | C49: 2017-01-25 | D49: 14:31:00 | E49: 85 | F49: 24.9 | G49: 22.2 | H49: 0.8915662651 | I49: 3.15 | J49: 3.15 | K49: 0 | L49: 0 | M49: 0 | N49: 0 | O49: 0 | P49: 0 | Q49: 0
B50: AG SR | C50: 2017-01-26 | D50: 14:37:00 | E50: 86 | F50: 24.9 | G50: 21.9 | H50: 0.8795180723 | I50: 3.1 | J50: 3.1 | K50: 0 | L50: 0 | M50: 0 | N50: 0 | O50: 0 | P50: 0 | Q50: 0
B51: MH PG | C51: 2017-01-27 | D51: 14:47:00 | E51: 87 | F51: 24.9 | G51: 21.9 | H51: 0.8795180723 | I51: 3 | J51: 3 | K51: 0 | L51: 0 | M51: 0 | N51: 0 | O51: 0 | P51: 0 | Q51: 0
B52: MH PG | C52: 2017-01-28 | D52: 14:28:00 | E52: 88 | F52: 24.9 | G52: 21.9 | H52: 0.8795180723 | I52: 2.9 | J52: 2.9 | K52: 0 | L52: 0 | M52: 0 | N52: 0 | O52: 0 | P52: 0 | Q52: 0
B53: PG | C53: 2017-01-29 | D53: 14:45:00 | E53: 89 | F53: 24.9 | G53: 21.8 | H53: 0.875502008 | I53: 2.8 | J53: 2.8 | K53: 0 | L53: 0 | M53: 0 | N53: 0 | O53: 0 | P53: 0 | Q53: 0
B54: AG PG SR | C54: 2017-01-30 | D54: 14:39:00 | E54: 90 | F54: 24.9 | G54: 21.4 | H54: 0.859437751 | I54: 2.85 | J54: 2.85 | K54: 0 | L54: 0 | M54: 0 | N54: 0 | O54: 0 | P54: 0 | Q54: 0
B55: AG PG | C55: 2017-01-31 | D55: 14:25:00 | E55: 91 | F55: 24.9 | G55: 21.5 | H55: 0.8634538153 | I55: 2.8 | J55: 2.8 | K55: 0 | L55: 0 | M55: 0 | N55: 0 | O55: 0 | P55: 0 | Q55: 0
B56: PG SR | C56: 2017-02-01 | D56: 14:51:00 | E56: 92 | F56: 24.9 | G56: 21.2 | H56: 0.8514056225 | I56: 2.85 | J56: 2.85 | K56: 0 | L56: 0 | M56: 0 | N56: 0 | O56: 0 | P56: 0 | Q56: 0
B57: AG PG | C57: 2017-02-02 | D57: 14:26:00 | E57: 93 | F57: 24.9 | G57: 21 | H57: 0.843373494 | I57: 2.85 | J57: 2.85 | K57: 0 | L57: 0 | M57: 0 | N57: 0 | O57: 0 | P57: 0 | Q57: 0
B58: PG SR | C58: 2017-02-03 | D58: 14:02:00 | E58: 94 | F58: 24.9 | G58: 20.7 | H58: 0.8313253012 | I58: 2.9 | J58: 2.9 | K58: 0 | L58: 0 | M58: 0 | N58: 0 | O58: 0 | P58: 0 | Q58: 0
B59: AG PG | C59: 2017-02-04 | D59: 14:19:00 | E59: 95 | F59: 24.9 | G59: 20.7 | H59: 0.8313253012 | I59: 2.95 | J59: 2.95 | K59: 0 | L59: 0 | M59: 0 | N59: 0 | O59: 0 | P59: 0 | Q59: 0
B60: SR | C60: 2017-02-05 | D60: 15:35:00 | E60: 96 | F60: 24.9 | G60: 20.5 | H60: 0.8232931727 | I60: 3.05 | J60: 3.05 | K60: 0 | L60: 0 | M60: 0 | N60: 0 | O60: 0 | P60: 0 | Q60: 0
B61: AG PG | C61: 2017-02-06 | D61: 14:23:00 | E61: 97 | F61: 24.9 | G61: 20.7 | H61: 0.8313253012 | I61: 3.05 | J61: 3.05 | K61: 0 | L61: 0 | M61: 0 | N61: 0 | O61: 0 | P61: 0 | Q61: 0
B62: PG SR | C62: 2017-02-07 | D62: 14:34:00 | E62: 98 | F62: 24.9 | G62: 20.6 | H62: 0.8273092369 | I62: 3.15 | J62: 3.15 | K62: 0 | L62: 0 | M62: 0 | N62: 0 | O62: 0 | P62: 0 | Q62: 0
B63: MH PG | C63: 2017-02-08 | D63: 14:33:00 | E63: 99 | F63: 24.9 | G63: 20.7 | H63: 0.8313253012 | I63: 3.15 | J63: 3.15 | K63: 0 | L63: 0 | M63: 0 | N63: 0 | O63: 0 | P63: 0 | Q63: 0
B64: AG PG | C64: 2017-02-09 | D64: 14:24:00 | E64: 100 | F64: 24.9 | G64: 20.3 | H64: 0.8152610442 | I64: 3.25 | J64: 3.25 | K64: 0 | L64: 0 | M64: 0 | N64: 0 | O64: 1 | P64: 1 | Q64: 0
B65: PG SR | C65: 2017-02-10 | D65: 14:10:00 | E65: 101 | F65: 24.9 | G65: 20.9 | H65: 0.8393574297 | I65: 3.2 | J65: 3.2 | K65: 0 | L65: 0 | M65: 0 | N65: 0 | O65: 0 | P65: 0 | Q65: 0
B66: PG SR | C66: 2017-02-11 | D66: 14:32:00 | E66: 102 | F66: 24.9 | G66: 21 | H66: 0.843373494 | I66: 3.2 | J66: 3.2 | K66: 0 | L66: 0 | M66: 0 | N66: 0 | O66: 0 | P66: 0 | Q66: 0
B67: PG SR | C67: 2017-02-12 | D67: 14:30:00 | E67: 103 | F67: 24.9 | G67: 21.3 | H67: 0.8554216867 | I67: 3.15 | J67: 3.15 | K67: 0 | L67: 0 | M67: 0 | N67: 0 | O67: 0 | P67: 0 | Q67: 0
B68: MH PG | C68: 2017-02-13 | D68: 14:25:00 | E68: 104 | F68: 24.9 | G68: 21.4 | H68: 0.859437751 | I68: 3.1 | J68: 3.1 | K68: 0 | L68: 0 | M68: 0 | N68: 0 | O68: 0 | P68: 0 | Q68: 0
B69: PG SR | C69: 2017-02-14 | D69: 14:53:00 | E69: 105 | F69: 24.9 | G69: 21.3 | H69: 0.8554216867 | I69: 3.1 | J69: 3.1 | K69: 0 | L69: 0 | M69: 0 | N69: 0 | O69: 0 | P69: 0 | Q69: 0
B70: MH PG | C70: 2017-02-15 | D70: 14:20:00 | E70: 106 | F70: 24.9 | G70: 21.4 | H70: =G70/F70 -> 0.859437751 | I70: 3.1 | J70: 3.1 | K70: 0 | L70: 0 | M70: 0 | N70: 0 | O70: 0 | P70: =SUM(K70:O70) -> 0 | Q70: 0
B71: PG SR | C71: 2017-02-16 | D71: 14:46:00 | E71: 107 | F71: 24.9 | G71: 21.7 | H71: 0.8714859438 | I71: 2.9 | J71: 2.9 | K71: 0 | L71: 0 | M71: 0 | N71: 0 | O71: 0 | P71: 0 | Q71: 0
B72: AG PG | C72: 2017-02-17 | D72: 14:47:00 | E72: 108 | F72: 24.9 | G72: 21.6 | H72: 0.8674698795 | I72: 2.8 | J72: 2.8 | K72: 0 | L72: 0 | M72: 0 | N72: 0 | O72: 0 | P72: 0 | Q72: 0
B73: PG SR | C73: 2017-02-18 | D73: 14:39:00 | E73: 109 | F73: 24.9 | G73: 21.5 | H73: 0.8634538153 | I73: 2.8 | J73: 2.8 | K73: 0 | L73: 0 | M73: 0 | N73: 0 | O73: 0 | P73: 0 | Q73: 0
B74: MH | C74: 2017-02-19 | D74: 14:28:00 | E74: 110 | F74: 24.9 | G74: 21.2 | H74: 0.8514056225 | I74: 2.85 | J74: 2.85 | K74: 0 | L74: 0 | M74: 0 | N74: 0 | O74: 0 | P74: 0 | Q74: 0
B75: PG SR | C75: 2017-02-20 | D75: 14:52:00 | E75: 111 | F75: 24.9 | G75: 21.2 | H75: 0.8514056225 | I75: 2.85 | J75: 2.85 | K75: 0 | L75: 0 | M75: 0 | N75: 0 | O75: 0 | P75: 0 | Q75: 0
B76: AG PG | C76: 2017-02-21 | D76: 14:50:00 | E76: 112 | F76: 24.9 | G76: 21.5 | H76: 0.8634538153 | I76: 2.8 | J76: 2.8 | K76: 0 | L76: 0 | M76: 0 | N76: 0 | O76: 0 | P76: 0 | Q76: 0
B77: PG MH | C77: 2017-02-22 | D77: 14:30:00 | E77: 113 | F77: 24.9 | G77: 21.5 | H77: 0.8634538153 | I77: 2.75 | J77: 2.75 | K77: 0 | L77: 0 | M77: 0 | N77: 0 | O77: 0 | P77: 0 | Q77: 0
B78: AG PG | C78: 2017-02-23 | D78: 14:28:00 | E78: 114 | F78: 24.9 | G78: 20.6 | H78: 0.8273092369 | I78: 3.1 | J78: 3.1 | K78: 0 | L78: 0 | M78: 0 | N78: 0 | O78: 0 | P78: 0 | Q78: 0
B79: MH PG | C79: 2017-02-24 | D79: 14:18:00 | E79: 115 | F79: 24.9 | G79: 21.5 | H79: 0.8634538153 | I79: 2.75 | J79: 2.75 | K79: 0 | L79: 0 | M79: 0 | N79: 0 | O79: 0 | P79: 0 | Q79: 0
B80: AG PG | C80: 2017-02-25 | D80: 14:19:00 | E80: 116 | F80: 24.9 | G80: 21.1 | H80: 0.8473895582 | I80: 2.85 | J80: 2.85 | K80: 0 | L80: 0 | M80: 0 | N80: 0 | O80: 0 | P80: 0 | Q80: 0
B81: AG | C81: 2017-02-26 | D81: 15:22:00 | E81: 117 | F81: 24.9 | G81: 21.2 | H81: 0.8514056225 | I81: 2.85 | J81: 2.85 | K81: 0 | L81: 0 | M81: 0 | N81: 0 | O81: 0 | P81: 0 | Q81: 0
B82: MH PG | C82: 2017-02-27 | D82: 14:24:00 | E82: 118 | F82: 24.9 | G82: 21 | H82: 0.843373494 | I82: 2.9 | J82: 2.9 | K82: 0 | L82: 0 | M82: 0 | N82: 0 | O82: 0 | P82: 0 | Q82: 0
B83: AG PG | C83: 2017-02-28 | D83: 14:29:00 | E83: 119 | F83: 24.9 | G83: 21.4 | H83: 0.859437751 | I83: 2.85 | J83: 2.85 | K83: 0 | L83: 0 | M83: 0 | N83: 0 | O83: 0 | P83: 0 | Q83: 0
B84: MH PG | C84: 2017-03-01 | D84: 14:22:00 | E84: 120 | F84: 24.9 | G84: 20.5 | H84: =G84/F84 -> 0.8232931727 | I84: 3 | J84: 3 | K84: 0 | L84: 0 | M84: 0 | N84: 0 | O84: 0 | P84: =SUM(K84:O84) -> 0 | Q84: 0
B85: AG PG | C85: 2017-03-02 | D85: 14:33:00 | E85: 121 | F85: 24.9 | G85: 21.1 | H85: 0.8473895582 | I85: 2.9 | J85: 2.9 | K85: 0 | L85: 0 | M85: 0 | N85: 0 | O85: 0 | P85: 0 | Q85: 0
B86: PG SR | C86: 2017-03-03 | D86: 14:41:00 | E86: 122 | F86: 24.9 | G86: 21.1 | H86: 0.8473895582 | I86: 2.9 | J86: 2.9 | K86: 0 | L86: 0 | M86: 0 | N86: 0 | O86: 0 | P86: 0 | Q86: 0
B87: PG | C87: 2017-03-04 | D87: 17:06:00 | E87: 123 | F87: 24.9 | G87: 20.7 | H87: 0.8313253012 | I87: 3 | J87: 3 | K87: 0 | L87: 0 | M87: 0 | N87: 0 | O87: 0 | P87: 0 | Q87: 0
B88: SR | C88: 2017-03-05 | D88: 17:11:00 | E88: 124 | F88: 24.9 | G88: 20.9 | H88: 0.8393574297 | I88: 3 | J88: 3 | K88: 0 | L88: 0 | M88: 0 | N88: 0 | O88: 0 | P88: 0 | Q88: 0
B89: PG SR | C89: 2017-03-06 | D89: 14:40:00 | E89: 125 | F89: 24.9 | G89: 21.3 | H89: 0.8554216867 | I89: 2.9 | J89: 2.9 | K89: 0 | L89: 0 | M89: 0 | N89: 0 | O89: 0 | P89: 0 | Q89: 0
B90: PG SR | C90: 2017-03-07 | D90: 14:59:00 | E90: 126 | F90: 24.9 | G90: 21.7 | H90: 0.8714859438 | I90: ad lib | J90: ad lib | K90: 0 | L90: 0 | M90: 0 | N90: 0 | O90: 0 | P90: 0 | Q90: 0
B91: PG SR | C91: 2017-03-08 | D91: 16:00:00 | E91: 127 | F91: 24.9 | G91: 26.6 | H91: 1.068273092 | K91: 0 | L91: 0 | M91: 0 | N91: 0 | O91: 0 | P91: 0 | Q91: 0
B92: PG SR | C92: 2017-03-09 | D92: 14:43:00 | E92: 128 | F92: 24.9 | G92: 26.9 | H92: 1.080321285 | K92: 0 | L92: 0 | M92: 0 | N92: 0 | O92: 0 | P92: 0 | Q92: 0
B93: PG SR | C93: 2017-03-10 | D93: 14:11:00 | E93: 129 | F93: 24.9 | G93: 28.1 | H93: 1.128514056 | K93: 0 | L93: 0 | M93: 0 | N93: 0 | O93: 0 | P93: 0 | Q93: 0
C94: 2017-03-11 | E94: 130
C95: 2017-03-12 | E95: 131
B96: AG | C96: 2017-03-13 | D96: 15:00:00 | E96: 132 | F96: 24.9 | G96: 27.4 | H96: =G96/F96 -> 1.100401606 | K96: 0 | L96: 0 | M96: 0 | N96: 0 | O96: 0 | P96: 0 | Q96: 0
C97: 2017-03-14 | E97: 133
B98: MH PG | C98: 2017-03-15 | D98: 14:45:00 | E98: 134 | F98: 24.9 | G98: 27.4 | H98: 1.100401606 | K98: 0 | L98: 0 | M98: 0 | N98: 0 | O98: 0 | P98: =SUM(K98:O98) -> 0 | Q98: 0
C99: 2017-03-16 | E99: 135
C100: 2017-03-17 | E100: 136 | F100: 24.9 | H100: =G100/F100 -> 0 | P100: =SUM(K100:O100) -> 0

Sheet W02
B1: Score sheet info (digital summary)
B2: Mouse W02
F3: Weight | I3: Water | K3: Scoring
B4: Experimenter | C4: Day | D4: Time | E4: Age | F4: Reference | G4: Actual | H4: Percentage | I4: Offered | J4: Consumed | K4: Activity/behavior | L4: Look/posture | M4: Shit/piss | N4: Body condition | O4: Dehydration signs | P4: Total | Q4: Implant | R4: Comment
B5: SR | C5: 2016-12-12 | D5: 14:00:00 | E5: 41 | F5: 22.5 | G5: 23 | H5: =G5/F5 -> 1.022222222 | K5: 0 | N5: 0 | P5: =SUM(K5:O5) -> 0
B6: SR | C6: 2016-12-13 | D6: 14:00:00 | E6: 42 | F6: 22.5 | G6: 23 | H6: =G6/F6 -> 1.022222222 | K6: 0 | N6: 0 | P6: =SUM(K6:O6) -> 0
B7: PG | C7: 2016-12-14 | D7: 18:00:00 | E7: 43 | F7: 22.5 | G7: 21.6 | H7: 0.96 | K7: 0 | N7: 0 | P7: 0
B8: PG | C8: 2016-12-15 | D8: 15:00:00 | E8: 44 | F8: 22.5 | G8: 21.7 | H8: 0.9644444444 | K8: 0 | N8: 1 | P8: 1 | Q8: 0 | R8: Wet fur
B9: AG,SR,PG | C9: 2016-12-16 | D9: 14:30:00 | E9: 45 | F9: 22.5 | G9: 22.9 | H9: 1.017777778 | K9: 0 | N9: 0 | P9: 0 | Q9: 0
B10: PG | C10: 2016-12-17 | D10: 14:00:00 | E10: 46 | F10: 22.5 | G10: 23.1 | H10: 1.026666667 | K10: 0 | N10: 0 | P10: 0 | Q10: 0
B11: PG | C11: 2016-12-18 | D11: 14:00:00 | E11: 47 | F11: 22.5 | G11: 23.5 | H11: 1.044444444 | K11: 0 | N11: 0 | P11: 0 | Q11: 0
B12: SR | C12: 2016-12-19 | D12: 14:00:00 | E12: 48 | F12: 22.5 | G12: 24.1 | H12: 1.071111111 | K12: 0 | N12: 0 | P12: 0 | Q12: 0
B13: PG | C13: 2016-12-20 | D13: 16:00:00 | E13: 49 | F13: 22.5 | G13: 24.4 | H13: 1.084444444 | K13: 0 | N13: 0 | P13: 0 | Q13: 0
B14: AG | C14: 2016-12-21 | D14: 14:00:00 | E14: 50 | F14: 22.5 | G14: 24.6 | H14: 1.093333333 | K14: 0 | N14: 0 | P14: 0 | Q14: 0
B15: AG | C15: 2016-12-22 | D15: 13:45:00 | E15: 51 | F15: 22.5 | G15: 24.4 | H15: 1.084444444 | K15: 0 | N15: 0 | P15: 0 | Q15: 0
B16: PG | C16: 2016-12-23 | D16: 13:20:00 | E16: 52 | F16: 22.5 | G16: 24.9 | H16: 1.106666667 | K16: 0 | N16: 0 | P16: 0 | Q16: 0
C17: 2016-12-24 | E17: 53
C18: 2016-12-25 | E18: 54
C19: 2016-12-26 | E19: 55
C20: 2016-12-27 | E20: 56
C21: 2016-12-28 | E21: 57
C22: 2016-12-29 | E22: 58
C23: 2016-12-30 | E23: 59
C24: 2016-12-31 | E24: 60
C25: 2017-01-01 | E25: 61
B26: AG PG | C26: 2017-01-02 | D26: 14:00:00 | E26: 62 | F26: 25.7 | G26: 25.7 | H26: 1 | I26: 1.57 | J26: 1.57 | K26: 0 | L26: 0 | M26: 0 | N26: 0 | O26: 0 | P26: 0 | Q26: 0
B27: AG PG | C27: 2017-01-03 | D27: 14:30:00 | E27: 63 | F27: 25.7 | G27: 23.2 | H27: 0.9027237354 | I27: 1.57 | J27: 1.57 | K27: 0 | L27: 0 | M27: 0 | N27: 0 | O27: 0 | P27: 0 | Q27: 0
B28: AG MH | C28: 2017-01-04 | D28: 14:30:00 | E28: 64 | F28: 25.7 | G28: 22.9 | H28: 0.8910505837 | I28: 1.5 | J28: 1.5 | K28: 0 | L28: 0 | M28: 0 | N28: 0 | O28: 0 | P28: 0 | Q28: 0
B29: AG PG | C29: 2017-01-05 | D29: 14:00:00 | E29: 65 | F29: 25.7 | G29: 22.4 | H29: 0.8715953307 | I29: 1.5 | J29: 1.5 | K29: 0 | L29: 0 | M29: 0 | N29: 0 | O29: 0 | P29: 0 | Q29: 0
B30: AG PG | C30: 2017-01-06 | D30: 14:00:00 | E30: 66 | F30: 25.7 | G30: 22 | H30: 0.8560311284 | I30: 1.57 | J30: 1.57 | K30: 0 | L30: 0 | M30: 0 | N30: 0 | O30: 0 | P30: 0 | Q30: 0
B31: PG | C31: 2017-01-07 | D31: 16:00:00 | E31: 67 | F31: 25.7 | G31: 22.1 | H31: 0.859922179 | I31: 1.57 | J31: 1.57 | K31: 0 | L31: 0 | M31: 0 | N31: 0 | O31: 0 | P31: 0 | Q31: 0
B32: ag | C32: 2017-01-08 | D32: 15:00:00 | E32: 68 | F32: 25.7 | G32: 22 | H32: 0.8560311284 | I32: 1.6 | J32: 1.6 | K32: 0 | L32: 0 | M32: 0 | N32: 0 | O32: 0 | P32: 0 | Q32: 0
B33: MH PG | C33: 2017-01-09 | D33: 14:50:00 | E33: 69 | F33: 25.7 | G33: 22.6 | H33: 0.8793774319 | I33: 1.57 | J33: 1.57 | K33: 0 | L33: 0 | M33: 0 | N33: 0 | O33: 0 | P33: 0 | Q33: 0
B34: AG PG | C34: 2017-01-10 | D34: 14:30:00 | E34: 70 | F34: 25.7 | G34: 22.9 | H34: 0.8910505837 | I34: 1.4 | J34: 1.4 | K34: 0 | L34: 0 | M34: 0 | N34: 0 | O34: 0 | P34: 0 | Q34: 0
B35: AG SR | C35: 2017-01-11 | D35: 14:56:00 | E35: 71 | F35: 25.7 | G35: 22.9 | H35: 0.8910505837 | I35: 1.3 | J35: 1.3 | K35: 0 | L35: 0 | M35: 0 | N35: 0 | O35: 0 | P35: 0 | Q35: 0
B36: SR PG | C36: 2017-01-12 | D36: 14:50:00 | E36: 72 | F36: 25.7 | G36: 22.6 | H36: 0.8793774319 | I36: 1.4 | J36: 1.4 | K36: 0 | L36: 0 | M36: 0 | N36: 0 | O36: 0 | P36: 0 | Q36: 0
B37: MH PG | C37: 2017-01-13 | D37: 14:35:00 | E37: 73 | F37: 25.7 | G37: 23 | H37: 0.8949416342 | I37: 1.3 | J37: 1.3 | K37: 0 | L37: 0 | M37: 0 | N37: 0 | O37: 0 | P37: 0 | Q37: 0
B38: AG MH | C38: 2017-01-14 | D38: 14:00:00 | E38: 74 | F38: 25.7 | G38: 22.8 | H38: 0.8871595331 | I38: 1.3 | J38: 1.3 | K38: 0 | L38: 0 | M38: 0 | N38: 0 | O38: 0 | P38: 0 | Q38: 0
B39: PG SR | C39: 2017-01-15 | D39: 14:20:00 | E39: 75 | F39: 25.7 | G39: 22.8 | H39: 0.8871595331 | I39: 1.3 | J39: 1.3 | K39: 0 | L39: 0 | M39: 0 | N39: 0 | O39: 0 | P39: 0 | Q39: 0
B40: MH SR | C40: 2017-01-16 | D40: 14:20:00 | E40: 76 | F40: 25.7 | G40: 22.7 | H40: 0.8832684825 | I40: 1.3 | J40: 1.3 | K40: 0 | L40: 0 | M40: 0 | N40: 0 | O40: 0 | P40: 0 | Q40: 0
B41: MH PG SR | C41: 2017-01-17 | D41: 17:20:00 | E41: 77 | F41: 25.7 | G41: 22.5 | H41: 0.8754863813 | I41: 1.31 | J41: 1.31 | K41: 0 | L41: 0 | M41: 0 | N41: 0 | O41: 0 | P41: =SUM(K41:O41) -> 0 | Q41: 0
B42: MH PG | C42: 2017-01-18 | D42: 14:40:00 | E42: 78 | F42: 25.7 | G42: 22.5 | H42: 0.8754863813 | I42: 1.25 | J42: 1.25 | K42: 0 | L42: 0 | M42: 0 | N42: 0 | O42: 0 | P42: =SUM(K42:O42) -> 0 | Q42: 0
B43: PG SR | C43: 2017-01-19 | D43: 15:04:00 | E43: 79 | F43: 25.7 | G43: 22.4 | H43: 0.8715953307 | I43: 1.2 | J43: 1.2 | K43: 0 | L43: 0 | M43: 0 | N43: 0 | O43: 0 | P43: 0 | Q43: 0
B44: AG PG SR | C44: 2017-01-20 | D44: 14:54:00 | E44: 80 | F44: 25.7 | G44: 22.4 | H44: 0.8715953307 | I44: 1.1 | J44: 1.1 | K44: 0 | L44: 0 | M44: 0 | N44: 0 | O44: 0 | P44: 0 | Q44: 0
B45: MH SR | C45: 2017-01-21 | D45: 14:20:00 | E45: 81 | F45: 25.7 | G45: 22.1 | H45: 0.859922179 | I45: 1.1 | J45: 1.1 | K45: 0 | L45: 0 | M45: 0 | N45: 0 | O45: 0 | P45: 0 | Q45: 0
B46: MH | C46: 2017-01-22 | D46: 14:05:00 | E46: 82 | F46: 25.7 | G46: 22 | H46: 0.8560311284 | I46: 1.1 | J46: 1.1 | K46: 0 | L46: 0 | M46: 0 | N46: 0 | O46: 0 | P46: 0 | Q46: 0
B47: AG PG | C47: 2017-01-23 | D47: 14:39:00 | E47: 83 | F47: 25.7 | G47: 21.8 | H47: 0.8482490272 | I47: 1.2 | J47: 1.2 | K47: 0 | L47: 0 | M47: 0 | N47: 0 | O47: 0 | P47: 0 | Q47: 0
B48: PG SR | C48: 2017-01-24 | D48: 15:24:00 | E48: 84 | F48: 25.7 | G48: 21.6 | H48: 0.8404669261 | I48: 1.25 | J48: 1.25 | K48: 0 | L48: 0 | M48: 0 | N48: 0 | O48: 1 | P48: 1 | Q48: 0
B49: AG SR | C49: 2017-01-25 | D49: 14:34:00 | E49: 85 | F49: 25.7 | G49: 21.6 | H49: 0.8404669261 | I49: 1.35 | J49: 1.35 | K49: 0 | L49: 0 | M49: 0 | N49: 0 | O49: 1 | P49: 0 | Q49: 0
B50: AG SR | C50: 2017-01-26 | D50: 14:37:00 | E50: 86 | F50: 25.7 | G50: 21.6 | H50: 0.8404669261 | I50: 1.4 | J50: 1.4 | K50: 0 | L50: 0 | M50: 0 | N50: 0 | O50: 0 | P50: 0 | Q50: 0
B51: MH PG | C51: 2017-01-27 | D51: 14:50:00 | E51: 87 | F51: 25.7 | G51: 21.9 | H51: 0.8521400778 | I51: 1.35 | J51: 1.35 | K51: 0 | L51: 0 | M51: 0 | N51: 0 | O51: 1 | P51: 1 | Q51: 1 | R51: Little rim with blood crust visible
B52: MH PG | C52: 2017-01-28 | D52: 15:00:00 | E52: 88 | F52: 25.7 | G52: 21.6 | H52: 0.8404669261 | I52: 1.4 | J52: 1.4 | K52: 0 | L52: 0 | M52: 0 | N52: 0 | O52: 0 | P52: 0 | Q52: 1 | R52: Little rim with blood crust visible
B53: PG | C53: 2017-01-29 | D53: 14:45:00 | E53: 89 | F53: 25.7 | G53: 21.5 | H53: 0.8365758755 | I53: 1.4 | J53: 1.4 | K53: 0 | L53: 0 | M53: 0 | N53: 0 | O53: 0 | P53: 0 | Q53: 1 | R53: Little rim with blood crust visible
B54: AG PG SR | C54: 2017-01-30 | D54: 14:40:00 | E54: 90 | F54: 25.7 | G54: 21.9 | H54: 0.8521400778 | I54: 1.4 | J54: 1.4 | K54: 0 | L54: 0 | M54: 0 | N54: 0 | O54: 0 | P54: 0 | Q54: 1 | R54: Little rim with blood crust visible
B55: AG PG | C55: 2017-01-31 | D55: 14:27:00 | E55: 91 | F55: 25.7 | G55: 21.8 | H55: 0.8482490272 | I55: 1.4 | J55: 1.4 | K55: 0 | L55: 0 | M55: 0 | N55: 0 | O55: 0 | P55: 0 | Q55: 1 | R55: Little rim with blood crust visible
B56: PG SR | C56: 2017-02-01 | D56: 14:55:00 | E56: 92 | F56: 25.7 | G56: 21.6 | H56: 0.8404669261 | I56: 1.68 | J56: 1.68 | K56: 0 | L56: 0 | M56: 0 | N56: 0 | O56: 0 | P56: 0 | Q56: 1 | R56: Little rim with blood crust visible
B57: AG PG | C57: 2017-02-02 | D57: 14:27:00 | E57: 93 | F57: 25.7 | G57: 21.7 | H57: 0.8443579767 | I57: 1.4 | J57: 1.4 | K57: 0 | L57: 0 | M57: 0 | N57: 0 | O57: 0 | P57: 0 | Q57: 1 | R57: Little rim with blood crust visible
B58: PG SR | C58: 2017-02-03 | D58: 14:03:00 | E58: 94 | F58: 25.7 | G58: 21.6 | H58: 0.8404669261 | I58: 1.45 | J58: 1.45 | K58: 0 | L58: 0 | M58: 0 | N58: 0 | O58: 0 | P58: 0 | Q58: 0
B59: AG PG | C59: 2017-02-04 | D59: 14:20:00 | E59: 95 | F59: 25.7 | G59: 21.6 | H59: 0.8404669261 | I59: 1.45 | J59: 1.45 | K59: 0 | L59: 0 | M59: 0 | N59: 0 | O59: 0 | P59: 0 | Q59: 0
B60: SR | C60: 2017-02-05 | D60: 15:36:00 | E60: 96 | F60: 25.7 | G60: 21.8 | H60: 0.8482490272 | I60: 1.45 | J60: 1.45 | K60: 0 | L60: 0 | M60: 0 | N60: 0 | O60: 0 | P60: 0 | Q60: 0
B61: AG PG | C61: 2017-02-06 | D61: 14:25:00 | E61: 97 | F61: 25.7 | G61: 22.2 | H61: 0.8638132296 | I61: 1.4 | J61: 1.4 | K61: 0 | L61: 0 | M61: 0 | N61: 0 | O61: 0 | P61: 0 | Q61: 1 | R61: Little rim with blood crust visible
B62: PG SR | C62: 2017-02-07 | D62: 14:37:00 | E62: 98 | F62: 25.7 | G62: 22.3 | H62: 0.8677042802 | I62: 1.35 | J62: 1.35 | K62: 0 | L62: 0 | M62: 0 | N62: 0 | O62: 0 | P62: 0 | Q62: 1 | R62: Little rim with blood crust visible
B63: MH PG | C63: 2017-02-08 | D63: 14:33:00 | E63: 99 | F63: 25.7 | G63: 22.1 | H63: 0.859922179 | I63: 1.35 | J63: 1.35 | K63: 0 | L63: 0 | M63: 0 | N63: 0 | O63: 0 | P63: 0 | Q63: 1 | R63: Little rim with blood crust visible
B64: AG PG | C64: 2017-02-09 | D64: 14:25:00 | E64: 100 | F64: 25.7 | G64: 21.9 | H64: 0.8521400778 | I64: 1.35 | J64: 1.35 | K64: 0 | L64: 0 | M64: 0 | N64: 0 | O64: 0 | P64: 0 | Q64: 1 | R64: Little rim with blood crust visible
B65: PG SR | C65: 2017-02-10 | D65: 14:11:00 | E65: 101 | F65: 25.7 | G65: 21.6 | H65: 0.8404669261 | I65: 1.4 | J65: 1.4 | K65: 0 | L65: 1 | M65: 0 | N65: 0 | O65: 0 | P65: 1 | Q65: 1 | R65: Little rim with blood crust visible
B66: PG SR | C66: 2017-02-11 | D66: 14:34:00 | E66: 102 | F66: 25.7 | G66: 21.4 | H66: 0.8326848249 | I66: 1.5 | J66: 1.5 | K66: 0 | L66: 0 | M66: 0 | N66: 0 | O66: 1 | P66: 1 | Q66: 1 | R66: Little rim with blood crust visible
B67: PG SR | C67: 2017-02-12 | D67: 14:31:00 | E67: 103 | F67: 25.7 | G67: 21.2 | H67: 0.8249027237 | I67: 1.6 | J67: 1.6 | K67: 0 | L67: 1 | M67: 0 | N67: 0 | O67: 0 | P67: 1 | Q67: 1 | R67: Little rim with blood crust visible
B68: MH PG | C68: 2017-02-13 | D68: 14:25:00 | E68: 104 | F68: 25.7 | G68: 21.2 | H68: 0.8249027237 | I68: 1.8 | J68: 1.8 | K68: 0 | L68: 0 | M68: 0 | N68: 0 | O68: 1 | P68: 1 | Q68: 1 | R68: Little rim with blood crust visible
B69: PG SR | C69: 2017-02-14 | D69: 14:54:00 | E69: 105 | F69: 25.7 | G69: 21.4 | H69: 0.8326848249 | I69: 1.95 | J69: 1.95 | K69: 0 | L69: 1 | M69: 0 | N69: 0 | O69: 0 | P69: 1 | Q69: 1 | R69: Little rim with blood crust visible
B70: MH PG | C70: 2017-02-15 | D70: 14:23:00 | E70: 106 | F70: 25.7 | G70: 21.6 | H70: =G70/F70 -> 0.8404669261 | I70: 1.95 | J70: 1.95 | K70: 0 | L70: 1 | M70: 0 | N70: 0 | O70: 0 | P70: =SUM(K70:O70) -> 1 | Q70: 1 | R70: Little rim with blood crust visible
B71: PG SR | C71: 2017-02-16 | D71: 14:46:00 | E71: 107 | F71: 25.7 | G71: 22.1 | H71: 0.859922179 | I71: 1.9 | J71: 1.9 | K71: 0 | L71: 0 | M71: 0 | N71: 0 | O71: 0 | P71: 0 | Q71: 1 | R71: Little rim with blood crust visible
B72: AG PG | C72: 2017-02-17 | D72: 14:48:00 | E72: 108 | F72: 25.7 | G72: 22.3 | H72: 0.8677042802 | I72: 1.85 | J72: 1.85 | K72: 0 | L72: 1 | M72: 0 | N72: 0 | O72: 0 | P72: 1 | Q72: 1 | R72: Little rim with blood crust visible
B73: PG SR | C73: 2017-02-18 | D73: 14:40:00 | E73: 109 | F73: 25.7 | G73: 22.3 | H73: 0.8677042802 | I73: 1.8 | J73: 1.8 | K73: 0 | L73: 0 | M73: 0 | N73: 0 | O73: 0 | P73: 0 | Q73: 1 | R73: Little rim with blood crust visible
B74: MH | C74: 2017-02-19 | D74: 15:50:00 | E74: 110 | F74: 25.7 | G74: 22.4 | H74: 0.8715953307 | I74: 1.7 | J74: 1.7 | K74: 0 | L74: 1 | M74: 0 | N74: 0 | O74: 0 | P74: 1 | Q74: 1 | R74: Little rim with blood crust visible
B75: PG SR | C75: 2017-02-20 | D75: 14:54:00 | E75: 111 | F75: 25.7 | G75: 22.9 | H75: 0.8910505837 | I75: 1.6 | J75: 1.6 | K75: 0 | L75: 0 | M75: 0 | N75: 0 | O75: 1 | P75: 1 | Q75: 1 | R75: Right eye was closed, reopened it by brushing lightly with saline. Used a little histoacryl to fix skin to implant.
B76: AG PG | C76: 2017-02-21 | D76: 14:51:00 | E76: 112 | F76: 25.7 | G76: 22.8 | H76: 0.8871595331 | I76: 1.55 | J76: 1.55 | K76: 0 | L76: 0 | M76: 0 | N76: 0 | O76: 0 | P76: 0 | Q76: 1 | R76: Little rim with blood crust visible
B77: PG MH | C77: 2017-02-22 | D77: 14:33:00 | E77: 113 | F77: 25.7 | G77: 22.9 | H77: 0.8910505837 | I77: 1.45 | J77: 1.45 | K77: 0 | L77: 0 | M77: 0 | N77: 0 | O77: 1 | P77: 1 | Q77: 1 | R77: Little rim with blood crust visible
B78: AG PG | C78: 2017-02-23 | D78: 14:27:00 | E78: 114 | F78: 25.7 | G78: 22.6 | H78: 0.8793774319 | I78: 1.45 | J78: 1.45 | K78: 0 | L78: 0 | M78: 0 | N78: 0 | O78: 1 | P78: 1 | Q78: 1 | R78: Little rim with blood crust visible
B79: MH PG | C79: 2017-02-24 | D79: 14:20:00 | E79: 115 | F79: 25.7 | G79: 22.5 | H79: 0.8754863813 | I79: 1.4 | J79: 1.4 | K79: 0 | L79: 0 | M79: 0 | N79: 0 | O79: 1 | P79: 1 | Q79: 1 | R79: Little rim with blood crust visible
B80: AG PG | C80: 2017-02-25 | D80: 14:20:00 | E80: 116 | F80: 25.7 | G80: 22.4 | H80: 0.8715953307 | I80: 1.32 | J80: 1.32 | K80: 0 | L80: 0 | M80: 0 | N80: 0 | O80: 1 | P80: 1 | Q80: 1 | R80: Little rim with blood crust visible
B81: AG | C81: 2017-02-26 | D81: 15:40:00 | E81: 117 | F81: 25.7 | G81: 22 | H81: 0.8560311284 | I81: 1.35 | J81: 1.35 | K81: 0 | L81: 0 | M81: 0 | N81: 0 | O81: 1 | P81: 1 | Q81: 1 | R81: Little rim with blood crust visible
B82: MH PG | C82: 2017-02-27 | D82: 14:25:00 | E82: 118 | F82: 25.7 | G82: 22.4 | H82: 0.8715953307 | I82: 1.3 | J82: 1.3 | K82: 0 | L82: 0 | M82: 0 | N82: 0 | O82: 1 | P82: 1 | Q82: 1 | R82: Little rim with blood crust visible
B83: AG PG | C83: 2017-02-28 | D83: 14:30:00 | E83: 119 | F83: 25.7 | G83: 22.2 | H83: 0.8638132296 | I83: 1.55 | J83: 1.55 | K83: 0 | L83: 0 | M83: 0 | N83: 0 | O83: 1 | P83: 1 | Q83: 1 | R83: Little rim with blood crust visible
B84: MH PG | C84: 2017-03-01 | D84: 14:25:00 | E84: 120 | F84: 25.7 | G84: 22 | H84: =G84/F84 -> 0.8560311284 | I84: 1.47 | J84: 1.47 | K84: 0 | L84: 0 | M84: 0 | N84: 0 | O84: 1 | P84: =SUM(K84:O84) -> 1 | Q84: 1 | R84: Little rim with blood crust visible
B85: AG PG | C85: 2017-03-02 | D85: 14:34:00 | E85: 121 | F85: 25.7 | G85: 21.7 | H85: 0.8443579767 | I85: 1.44 | J85: 1.44 | K85: 0 | L85: 0 | M85: 0 | N85: 0 | O85: 1 | P85: 1 | Q85: 1 | R85: Little rim with blood crust visible
B86: PG SR | C86: 2017-03-03 | D86: 14:42:00 | E86: 122 | F86: 25.7 | G86: 21.7 | H86: 0.8443579767 | I86: 1.45 | J86: 1.45 | K86: 0 | L86: 0 | M86: 0 | N86: 0 | O86: 1 | P86: 1 | Q86: 1 | R86: Little rim with blood crust visible
B87: PG | C87: 2017-03-04 | D87: 17:08:00 | E87: 123 | F87: 25.7 | G87: 21.5 | H87: 0.8365758755 | I87: 1.5 | J87: 1.5 | K87: 0 | L87: 0 | M87: 0 | N87: 0 | O87: 1 | P87: 1 | Q87: 1 | R87: Little rim with blood crust visible
B88: SR | C88: 2017-03-05 | D88: 17:13:00 | E88: 124 | F88: 25.7 | G88: 21.9 | H88: 0.8521400778 | I88: 1.45 | J88: 1.45 | K88: 0 | L88: 0 | M88: 0 | N88: 0 | O88: 1 | P88: 1 | Q88: 1 | R88: Little rim with blood crust visible
B89: PG SR | C89: 2017-03-06 | D89: 14:55:00 | E89: 125 | F89: 25.7 | G89: 22.4 | H89: 0.8715953307 | I89: 1.2 | J89: 1.2 | K89: 0 | L89: 1 | M89: 0 | N89: 0 | O89: 0 | P89: 1 | Q89: 1 | R89: Little rim with blood crust visible
B90: PG SR | C90: 2017-03-07 | D90: 15:00:00 | E90: 126 | F90: 25.7 | G90: 21.9 | H90: 0.8521400778 | I90: 1.45 | J90: 1.45 | K90: 0 | L90: 1 | M90: 0 | N90: 0 | O90: 0 | P90: 1 | Q90: 1 | R90: Little rim with blood crust visible
B91: PG SR | C91: 2017-03-08 | D91: 16:06:00 | E91: 127 | F91: 25.7 | G91: 22.2 | H91: 0.8638132296 | I91: 1.99 | J91: 1.99 | K91: 0 | L91: 1 | M91: 0 | N91: 0 | O91: 0 | P91: 1 | Q91: 1 | R91: Little rim with blood crust visible
B92: PG SR | C92: 2017-03-09 | D92: 14:44:00 | E92: 128 | F92: 25.7 | G92: 21.9 | H92: 0.8521400778 | I92: ad lib | J92: ad lib | K92: 0 | L92: 1 | M92: 0 | N92: 0 | O92: 0 | P92: 1 | Q92: 1 | R92: Little rim with blood crust visible
B93: PG SR | C93: 2017-03-10 | D93: 14:12:00 | E93: 129 | F93: 25.7 | G93: 26.2 | H93: 1.019455253 | K93: 0 | L93: 0 | M93: 0 | N93: 0 | O93: 0 | P93: 0 | Q93: 1 | R93: Little rim with blood crust visible
C94: 2017-03-11 | E94: 130
C95: 2017-03-12 | E95: 131
B96: AG | C96: 2017-03-13 | D96: 15:00:00 | E96: 132 | F96: 25.7 | G96: 27.8 | H96: =G96/F96 -> 1.081712062 | K96: 0 | L96: 0 | M96: 0 | N96: 0 | O96: 0 | P96: 0 | Q96: 1 | R96: Little rim with blood crust visible
C97: 2017-03-14 | E97: 133
B98: MH PG | C98: 2017-03-15 | D98: 14:47:00 | E98: 134 | F98: 25.7 | G98: 28 | H98: 1.089494163 | K98: 0 | L98: 0 | M98: 0 | N98: 0 | O98: 0 | P98: =SUM(K98:O98) -> 0 | Q98: 1 | R98: Little rim with blood crust visible
C99: 2017-03-16 | E99: 135
C100: 2017-03-17 | E100: 136 | F100: 25.7 | H100: =G100/F100 -> 0 | P100: =SUM(K100:O100) -> 0

Sheet W03
B1: Score sheet info (digital summary)
B2: Mouse W03
F3: Weight | I3: Food | K3: Scoring
B4: Experimenter | C4: Day | D4: Time | E4: Age | F4: Reference | G4: Actual | H4: Percentage | I4: Offered | J4: Consumed | K4: Activity/behavior | L4: Look/posture | M4: Shit/piss | N4: Body condition | O4: Dehydration signs | P4: Total | Q4: Implant | R4: Comment
B5: SR | C5: 2016-12-12 | D5: 14:00:00 | E5: 41 | F5: 23 | G5: 22.9 | H5: =G5/F5 -> 0.9956521739 | K5: 0 | N5: 0 | P5: =SUM(K5:O5) -> 0
B6: SR | C6: 2016-12-13 | D6: 14:00:00 | E6: 42 | F6: 23 | G6: 23.5 | H6: =G6/F6 -> 1.02173913 | K6: 0 | N6: 0 | P6: =SUM(K6:O6) -> 0
B7: PG | C7: 2016-12-14 | D7: 18:00:00 | E7: 43 | F7: 23 | G7: 22.7 | H7: 0.9869565217 | K7: 0 | N7: 0 | P7: 0
B8: PG | C8: 2016-12-15 | D8: 15:00:00 | E8: 44 | F8: 23 | G8: 20.8 | H8: 0.9043478261 | K8: 0 | N8: 1 | P8: 1 | Q8: 0 | R8: Wet fur
B9: AG,SR,PG | C9: 2016-12-16 | D9: 14:30:00 | E9: 45 | F9: 23 | G9: 22.1 | H9: 0.9608695652 | K9: 0 | N9: 0 | P9: 0 | Q9: 0
B10: PG | C10: 2016-12-17 | D10: 14:00:00 | E10: 46 | F10: 23 | G10: 23.1 | H10: 1.004347826 | K10: 0 | N10: 0 | P10: 0 | Q10: 0
B11: PG | C11: 2016-12-18 | D11: 14:00:00 | E11: 47 | F11: 23 | G11: 23.5 | H11: 1.02173913 | K11: 0 | N11: 0 | P11: 0 | Q11: 0
B12: SR | C12: 2016-12-19 | D12: 14:00:00 | E12: 48 | F12: 23 | G12: 23.4 | H12: 1.017391304 | K12: 0 | N12: 0 | P12: 0 | Q12: 0
B13: PG | C13: 2016-12-20 | D13: 16:00:00 | E13: 49 | F13: 23 | G13: 23.8 | H13: 1.034782609 | K13: 0 | N13: 0 | P13: 0 | Q13: 0
B14: AG | C14: 2016-12-21 | D14: 14:00:00 | E14: 50 | F14: 23 | G14: 24.1 | H14: 1.047826087 | K14: 0 | N14: 0 | P14: 0 | Q14: 0
B15: AG | C15: 2016-12-22 | D15: 13:45:00 | E15: 51 | F15: 23 | G15: 23.5 | H15: 1.02173913 | K15: 0 | N15: 0 | P15: 0 | Q15: 0
B16: PG | C16: 2016-12-23 | D16: 13:20:00 | E16: 52 | F16: 23 | G16: 23.8 | H16: 1.034782609 | K16: 0 | N16: 0 | P16: 0 | Q16: 0
C17: 2016-12-24 | E17: 53
C18: 2016-12-25 | E18: 54
C19: 2016-12-26 | E19: 55
C20: 2016-12-27 | E20: 56
C21: 2016-12-28 | E21: 57
C22: 2016-12-29 | E22: 58
C23: 2016-12-30 | E23: 59
C24: 2016-12-31 | E24: 60
C25: 2017-01-01 | E25: 61
B26: AG PG | C26: 2017-01-02 | D26: 14:00:00 | E26: 62 | F26: 24.6 | G26: 24.6 | H26: 1 | I26: 2 | J26: 2 | K26: 0 | L26: 0 | M26: 0 | N26: 0 | O26: 0 | P26: 0 | Q26: 0
B27: AG PG | C27: 2017-01-03 | D27: 14:30:00 | E27: 63 | F27: 24.6 | G27: 21.3 | H27: 0.8658536585 | I27: 3 | J27: 3 | K27: 0 | L27: 0 | M27: 0 | N27: 0 | O27: 0 | P27: 0 | Q27: 0
B28: AG MH | C28: 2017-01-04 | D28: 14:30:00 | E28: 64 | F28: 24.6 | G28: 20.9 | H28: 0.8495934959 | I28: 3.1 | J28: 3.1 | K28: 0 | L28: 0 | M28: 0 | N28: 0 | O28: 0 | P28: 0 | Q28: 1 | R28: bit of dirt above left eye
B29: AG PG | C29: 2017-01-05 | D29: 14:00:00 | E29: 65 | F29: 24.6 | G29: 20.9 | H29: 0.8495934959 | I29: 3.4 | J29: 3.4 | K29: 0 | L29: 0 | M29: 0 | N29: 0 | O29: 0 | P29: 0 | Q29: 1 | R29: bit of dirt above left eye
B30: AG PG | C30: 2017-01-06 | D30: 14:00:00 | E30: 66 | F30: 24.6 | G30: 20.9 | H30: 0.8495934959 | I30: 3.5 | J30: 3.5 | K30: 0 | L30: 0 | M30: 0 | N30: 0 | O30: 0 | P30: 0 | Q30: 1 | R30: bit of dirt above left eye
B31: PG | C31: 2017-01-07 | D31: 16:00:00 | E31: 67 | F31: 24.6 | G31: 20.2 | H31: 0.8211382114 | I31: 4.3 | J31: 4.3 | K31: 0 | L31: 0 | M31: 0 | N31: 0 | O31: 0 | P31: 0 | Q31: 1 | R31: bit of dirt above left eye
B32: AG | C32: 2017-01-08 | D32: 15:00:00 | E32: 68 | F32: 24.6 | G32: 20.9 | H32: 0.8495934959 | I32: 3 | J32: 3 | K32: 0 | L32: 0 | M32: 0 | N32: 0 | O32: 0 | P32: 0 | Q32: 1 | R32: bit of dirt above left eye
B33: MH PG | C33: 2017-01-09 | D33: 15:10:00 | E33: 69 | F33: 24.6 | G33: 20.6 | H33: 0.837398374 | I33: 3.7 | J33: 3.7 | K33: 0 | L33: 0 | M33: 0 | N33: 0 | O33: 0 | P33: 0 | Q33: 1 | R33: bit of dirt above left eye
B34: AG PG | C34: 2017-01-10 | D34: 15:00:00 | E34: 70 | F34: 24.6 | G34: 20.8 | H34: 0.8455284553 | I34: 3.64 | J34: 3.64 | K34: 0 | L34: 0 | M34: 0 | N34: 0 | O34: 0 | P34: 0 | Q34: 1 | R34: bit of dirt above left eye
B35: AG SR | C35: 2017-01-11 | D35: 14:45:00 | E35: 71 | F35: 24.6 | G35: 20.7 | H35: 0.8414634146 | I35: 3.9 | J35: 3.9 | K35: 0 | L35: 0 | M35: 0 | N35: 0 | O35: 0 | P35: 0 | Q35: 1 | R35: bit of dirt above left eye
B36: SR PG | C36: 2017-01-12 | D36: 15:20:00 | E36: 72 | F36: 24.6 | G36: 20.9 | H36: 0.8495934959 | I36: 3.68 | J36: 3.68 | K36: 0 | L36: 0 | M36: 0 | N36: 0 | O36: 0 | P36: 0 | Q36: 1 | R36: bit of dirt above left eye
B37: MH PG | C37: 2017-01-13 | D37: 15:15:00 | E37: 73 | F37: 24.6 | G37: 20.7 | H37: 0.8414634146 | I37: 3.8 | J37: 3.8 | K37: 0 | L37: 0 | M37: 0 | N37: 0 | O37: 0 | P37: 0 | Q37: 1 | R37: bit of dirt above left eye
B38: AG MH | C38: 2017-01-14 | D38: 14:00:00 | E38: 74 | F38: 24.6 | G38: 20.3 | H38: 0.825203252 | I38: 4.9 | J38: 4.9 | K38: 0 | L38: 0 | M38: 0 | N38: 0 | O38: 0 | P38: 0 | Q38: 1 | R38: bit of dirt above left eye
B39: PG SR | C39: 2017-01-15 | D39: 14:45:00 | E39: 75 | F39: 24.6 | G39: 20.9 | H39: 0.8495934959 | I39: 4.9 | J39: 4.9 | K39: 0 | L39: 0 | M39: 0 | N39: 0 | O39: 0 | P39: 0 | Q39: 1 | R39: bit of dirt above left eye
B40: MH SR | C40: 2017-01-16 | D40: 15:05:00 | E40: 76 | F40: 24.6 | G40: 20.8 | H40: 0.8455284553 | I40: 5.1 | J40: 5.1 | K40: 0 | L40: 0 | M40: 0 | N40: 0 | O40: 0 | P40: 0 | Q40: 1 | R40: bit of dirt above left eye
B41: MH PG SR | C41: 2017-01-17 | D41: 17:29:00 | E41: 77 | F41: 24.6 | G41: 20.8 | H41: 0.8455284553 | I41: 6.1 | J41: 6.1 | K41: 0 | L41: 0 | M41: 0 | N41: 0 | O41: 0 | P41: 0 | Q41: 1 | R41: bit of dirt above left eye
B42: MH PG | C42: 2017-01-18 | D42: 14:40:00 | E42: 78 | F42: 24.6 | G42: 21.5 | H42: 0.8739837398 | I42: 5.08 | J42: 5.08 | K42: 0 | L42: 0 | M42: 0 | N42: 0 | O42: 0 | P42: 0 | Q42: 1 | R42: bit of dirt above left eye
B43: PG SR | C43: 2017-01-19 | D43: 15:05:00 | E43: 79 | F43: 24.6 | G43: 21.3 | H43: 0.8658536585 | I43: 3.4 | J43: 3.4 | K43: 0 | L43: 0 | M43: 0 | N43: 0 | O43: 0 | P43: 0 | Q43: 1 | R43: bit of dirt above left eye
B44: AG PG SR | C44: 2017-01-20 | D44: 14:58:00 | E44: 80 | F44: 24.6 | G44: 21 | H44: 0.8536585366 | I44: 3.5 | J44: 3.5 | K44: 0 | L44: 0 | M44: 0 | N44: 0 | O44: 0 | P44: 0 | Q44: 1 | R44: bit of dirt above left eye
B45: MH SR | C45: 2017-01-21 | D45: 14:38:00 | E45: 81 | F45: 24.6 | G45: 21.2 | H45: 0.8617886179 | I45: 3.4 | J45: 3.4 | K45: 0 | L45: 0 | M45: 0 | N45: 0 | O45: 0 | P45: 0 | Q45: 1 | R45: bit of dirt above left eye
B46: MH | C46: 2017-01-22 | D46: 14:45:00 | E46: 82 | F46: 24.6 | G46: 21.1 | H46: 0.8577235772 | I46: 3.4 | J46: 3.4 | K46: 0 | L46: 0 | M46: 0 | N46: 0 | O46: 0 | P46: 0 | Q46: 1 | R46: bit of dirt above left eye
B47: AG PG | C47: 2017-01-23 | D47: 14:40:00 | E47: 83 | F47: 24.6 | G47: 21.3 | H47: 0.8658536585 | I47: 3.4 | J47: 3.4 | K47: 0 | L47: 0 | M47: 0 | N47: 0 | O47: 1 | P47: 1 | Q47: 1 | R47: bit of dirt above left eye
B48: PG SR | C48: 2017-01-24 | D48: 15:25:00 | E48: 84 | F48: 24.6 | G48: 21 | H48: 0.8536585366 | I48: 3.4 | J48: 3.4 | K48: 0 | L48: 0 | M48: 0 | N48: 0 | O48: 0 | P48: 0 | Q48: 1 | R48: bit of dirt above left eye
B49: AG SR | C49: 2017-01-25 | D49: 14:39:00 | E49: 85 | F49: 24.6 | G49: 21.2 | H49: 0.8617886179 | I49: 3.4 | J49: 3.4 | K49: 0 | L49: 0 | M49: 0 | N49: 0 | O49: 0 | P49: 0 | Q49: 1 | R49: bit of dirt above left eye
B50: AG SR | C50: 2017-01-26 | D50: 14:41:00 | E50: 86 | F50: 24.6 | G50: 21.3 | H50: 0.8658536585 | I50: 3.4 | J50: 3.4 | K50: 0 | L50: 0 | M50: 0 | N50: 0 | O50: 0 | P50: 0 | Q50: 1 | R50: bit of dirt above left eye
B51: MH PG | C51: 2017-01-27 | D51: 14:56:00 | E51: 87 | F51: 24.6 | G51: 21.2 | H51: 0.8617886179 | I51: 3.4 | J51: 3.4 | K51: 0 | L51: 0 | M51: 0 | N51: 0 | O51: 0 | P51: 0 | Q51: 1 | R51: bit of dirt above left eye
B52: MH PG | C52: 2017-01-28 | D52: 14:58:00 | E52: 88 | F52: 24.6 | G52: 21.5 | H52: 0.8739837398 | I52: 3.3 | J52: 3.3 | K52: 0 | L52: 0 | M52: 0 | N52: 0 | O52: 0 | P52: 0 | Q52: 1 | R52: bit of dirt above left eye
B53: PG | C53: 2017-01-29 | D53: 14:50:00 | E53: 89 | F53: 24.6 | G53: 21.5 | H53: 0.8739837398 | I53: 3.2 | J53: 3.2 | K53: 0 | L53: 0 | M53: 0 | N53: 0 | O53: 0 | P53: 0 | Q53: 1 | R53: bit of dirt above left eye
B54: AG PG SR | C54: 2017-01-30 | D54: 14:42:00 | E54: 90 | F54: 24.6 | G54: 21.1 | H54: 0.8577235772 | I54: 3.3 | J54: 3.3 | K54: 0 | L54: 0 | M54: 0 | N54: 0 | O54: 0 | P54: 0 | Q54: 1 | R54: bit of dirt above left eye
B55: AG PG | C55: 2017-01-31 | D55: 14:26:00 | E55: 91 | F55: 24.6 | G55: 21.5 | H55: 0.8739837398 | I55: 3.2 | J55: 3.2 | K55: 0 | L55: 0 | M55: 0 | N55: 0 | O55: 0 | P55: 0 | Q55: 1 | R55: bit of dirt above left eye
B56: PG SR | C56: 2017-02-01 | D56: 14:53:00 | E56: 92 | F56: 24.6 | G56: 21.1 | H56: 0.8577235772 | I56: 3.25 | J56: 3.25 | K56: 0 | L56: 0 | M56: 0 | N56: 0 | O56: 0 | P56: 0 | Q56: 1 | R56: bit of dirt above left eye
B57: AG PG | C57: 2017-02-02 | D57: 14:29:00 | E57: 93 | F57: 24.6 | G57: 21 | H57: 0.8536585366 | I57: 3.25 | J57: 3.25 | K57: 0 | L57: 0 | M57: 0 | N57: 0 | O57: 0 | P57: 0 | Q57: 1 | R57: bit of dirt above left eye
B58: PG SR | C58: 2017-02-03 | D58: 14:04:00 | E58: 94 | F58: 24.6 | G58: 21.2 | H58: 0.8617886179 | I58: 3.2 | J58: 3.2 | K58: 0 | L58: 0 | M58: 0 | N58: 0 | O58: 1 | P58: 1 | Q58: 1 | R58: bit of dirt above left eye
B59: AG PG | C59: 2017-02-04 | D59: 14:21:00 | E59: 95 | F59: 24.6 | G59: 21 | H59: 0.8536585366 | I59: 3.2 | J59: 3.2 | K59: 0 | L59: 0 | M59: 0 | N59: 0 | O59: 0 | P59: 0 | Q59: 1 | R59: bit of dirt above left eye
B60: SR | C60: 2017-02-05 | D60: 15:37:00 | E60: 96 | F60: 24.6 | G60: 21.1 | H60: 0.8577235772 | I60: 3.2 | J60: 3.2 | K60: 0 | L60: 0 | M60: 0 | N60: 0 | O60: 0 | P60: 0 | Q60: 1 | R60: bit of dirt above left eye
B61: AG PG | C61: 2017-02-06 | D61: 14:26:00 | E61: 97 | F61: 24.6 | G61: 21.1 | H61: 0.8577235772 | I61: 3.2 | J61: 3.2 | K61: 0 | L61: 0 | M61: 0 | N61: 0 | O61: 0 | P61: 0 | Q61: 1 | R61: bit of dirt above left eye
B62: PG SR | C62: 2017-02-07 | D62: 14:39:00 | E62: 98 | F62: 24.6 | G62: 21 | H62: 0.8536585366 | I62: 3.2 | J62: 3.2 | K62: 0 | L62: 0 | M62: 0 | N62: 0 | O62: 0 | P62: 0 | Q62: 1 | R62: bit of dirt above left eye
B63: MH PG | C63: 2017-02-08 | D63: 14:36:00 | E63: 99 | F63: 24.6 | G63: 20.9 | H63: 0.8495934959 | I63: 3.2 | J63: 3.2 | K63: 0 | L63: 0 | M63: 0 | N63: 0 | O63: 0 | P63: 0 | Q63: 1 | R63: bit of dirt above left eye
B64: AG PG | C64: 2017-02-09 | D64: 14:38:00 | E64: 100 | F64: 24.6 | G64: 21 | H64: 0.8536585366 | I64: 3.2 | J64: 3.2 | K64: 0 | L64: 0 | M64: 0 | N64: 0 | O64: 0 | P64: 0 | Q64: 1 | R64: bit of dirt above left eye
B65: PG SR | C65: 2017-02-10 | D65: 14:12:00 | E65: 101 | F65: 24.6 | G65: 20.8 | H65: 0.8455284553 | I65: 3.2 | J65: 3.2 | K65: 0 | L65: 0 | M65: 0 | N65: 0 | O65: 0 | P65: 0 | Q65: 1 | R65: bit of dirt above left eye
B66: PG SR | C66: 2017-02-11 | D66: 14:34:00 | E66: 102 | F66: 24.6 | G66: 20.8 | H66: 0.8455284553 | I66: 3.2 | J66: 3.2 | K66: 0 | L66: 0 | M66: 0 | N66: 0 | O66: 0 | P66: 0 | Q66: 1 | R66: bit of dirt above left eye
B67: PG SR | C67: 2017-02-12 | D67: 14:32:00 | E67: 103 | F67: 24.6 | G67: 20.9 | H67: 0.8495934959 | I67: 3.2 | J67: 3.2 | K67: 0 | L67: 0 | M67: 0 | N67: 0 | O67: 0 | P67: 0 | Q67: 1 | R67: bit of dirt above left eye
B68: MH PG | C68: 2017-02-13 | D68: 14:27:00 | E68: 104 | F68: 24.6 | G68: 21.1 | H68: 0.8577235772 | I68: 3.2 | J68: 3.2 | K68: 0 | L68: 0 | M68: 0 | N68: 0 | O68: 0 | P68: 0 | Q68: 1 | R68: bit of dirt above left eye
B69: PG SR | C69: 2017-02-14 | D69: 14:56:00 | E69: 105 | F69: 24.6 | G69: 20.9 | H69: 0.8495934959 | I69: 3.2 | J69: 3.2 | K69: 0 | L69: 0 | M69: 0 | N69: 0 | O69: 1 | P69: 1 | Q69: 1 | R69: bit of dirt above left eye
B70: MH PG | C70: 2017-02-15 | D70: 14:25:00 | E70: 106 | F70: 24.6 | G70: 20.9 | H70: =G70/F70 -> 0.8495934959 | I70: 3.2 | J70: 3.2 | K70: 0 | L70: 0 | M70: 0 | N70: 0 | O70: 0 | P70: =SUM(K70:O70) -> 0 | Q70: 1 | R70: bit of dirt above left eye
B71: PG SR | C71: 2017-02-16 | D71: 14:48:00 | E71: 107 | F71: 24.6 | G71: 20.9 | H71: 0.8495934959 | I71: 3.2 | J71: 3.2 | K71: 0 | L71: 0 | M71: 0 | N71: 0 | O71: 0 | P71: 0 | Q71: 1 | R71: bit of dirt above left eye
B72: AG PG | C72: 2017-02-17 | D72: 14:49:00 | E72: 108 | F72: 24.6 | G72: 21 | H72: 0.8536585366 | I72: 3.2 | J72: 3.2 | K72: 0 | L72: 0 | M72: 0 | N72: 0 | O72: 0 | P72: 0 | Q72: 1 | R72: bit of dirt above left eye
B73: PG SR | C73: 2017-02-18 | D73: 14:41:00 | E73: 109 | F73: 24.6 | G73: 21 | H73: 0.8536585366 | I73: 3.2 | J73: 3.2 | K73: 0 | L73: 0 | M73: 0 | N73: 0 | O73: 0 | P73: 0 | Q73: 1 | R73: bit of dirt above left eye
B74: MH | C74: 2017-02-19 | D74: 16:34:00 | E74: 110 | F74: 24.6 | G74: 20.5 | H74: 0.8333333333 | I74: 3.3 | J74: 3.3 | K74: 0 | L74: 0 | M74: 0 | N74: 0 | O74: 0 | P74: 0 | Q74: 1 | R74: bit of dirt above left eye
B75: PG SR | C75: 2017-02-20 | D75: 14:55:00 | E75: 111 | F75: 24.6 | G75: 20.6 | H75: 0.837398374 | I75: 3.4 | J75: 3.4 | K75: 0 | L75: 0 | M75: 0 | N75: 0 | O75: 0 | P75: 0 | Q75: 1 | R75: bit of dirt above left eye
B76: AG PG | C76: 2017-02-21 | D76: 14:53:00 | E76: 112 | F76: 24.6 | G76: 20.8 | H76: 0.8455284553 | I76: 3.4 | J76: 3.4 | K76: 0 | L76: 0 | M76: 0 | N76: 0 | O76: 0 | P76: 0 | Q76: 1 | R76: bit of dirt above left eye
B77: PG MH | C77: 2017-02-22 | D77: 14:35:00 | E77: 113 | F77: 24.6 | G77: 20.9 | H77: 0.8495934959 | I77: 3.4 | J77: 3.4 | K77: 0 | L77: 1 | M77: 0 | N77: 0 | O77: 0 | P77: 1 | Q77: 1 | R77: bit of dirt above left eye
B78: AG PG | C78: 2017-02-23 | D78: 14:30:00 | E78: 114 | F78: 24.6 | G78: 20.8 | H78: 0.8455284553 | I78: 3.4 | J78: 3.4 | K78: 0 | L78: 0 | M78: 0 | N78: 0 | O78: 0 | P78: 0 | Q78: 1 | R78: bit of dirt above left eye
B79: MH PG | C79: 2017-02-24 | D79: 14:22:00 | E79: 115 | F79: 24.6 | G79: 21.4 | H79: 0.8699186992 | I79: 3.3 | J79: 3.3 | K79: 0 | L79: 0 | M79: 0 | N79: 0 | O79: 0 | P79: 0 | Q79: 1 | R79: bit of dirt above left eye
B80: AG PG | C80: 2017-02-25 | D80: 14:21:00 | E80: 116 | F80: 24.6 | G80: 20.8 | H80: 0.8455284553 | I80: 3.4 | J80: 3.4 | K80: 0 | L80: 0 | M80: 0 | N80: 0 | O80: 0 | P80: 0 | Q80: 1 | R80: bit of dirt above left eye
B81: AG | C81: 2017-02-26 | D81: 15:23:00 | E81: 117 | F81: 24.6 | G81: 20.9 | H81: 0.8495934959 | I81: 3.4 | J81: 3.4 | K81: 0 | L81: 0 | M81: 0 | N81: 0 | O81: 0 | P81: 0 | Q81: 1 | R81: bit of dirt above left eye
B82: MH PG | C82: 2017-02-27 | D82: 14:27:00 | E82: 118 | F82: 24.6 | G82: 21 | H82: 0.8536585366 | I82: 3.35 | J82: 3.35 | K82: 0 | L82: 0 | M82: 0 | N82: 0 | O82: 0 | P82: 0 | Q82: 1 | R82: bit of dirt above left eye
B83: AG PG | C83: 2017-02-28 | D83: 14:31:00 | E83: 119 | F83: 24.6 | G83: 21.1 | H83: 0.8577235772 | I83: 3.3 | J83: 3.3 | K83: 0 | L83: 0 | M83: 0 | N83: 0 | O83: 0 | P83: 0 | Q83: 1 | R83: bit of dirt above left eye
B84: MH PG | C84: 2017-03-01 | D84: 14:27:00 | E84: 120 | F84: 24.6 | G84: 21 | H84: =G84/F84 -> 0.8536585366 | I84: 3.3 | J84: 3.3 | K84: 0 | L84: 0 | M84: 0 | N84: 0 | O84: 0 | P84: =SUM(K84:O84) -> 0 | Q84: 1 | R84: bit of dirt above left eye
B85: AG PG | C85: 2017-03-02 | D85: 14:35:00 | E85: 121 | F85: 24.6 | G85: 20.7 | H85: 0.8414634146 | I85: 3.35 | J85: 3.35 | K85: 0 | L85: 0 | M85: 0 | N85: 0 | O85: 0 | P85: 0 | Q85: 1 | R85: bit of dirt above left eye
B86: PG SR | C86: 2017-03-03 | D86: 14:44:00 | E86: 122 | F86: 24.6 | G86: 20.8 | H86: 0.8455284553 | I86: 3.35 | J86: 3.35 | K86: 0 | L86: 0 | M86: 0 | N86: 0 | O86: 0 | P86: 0 | Q86: 1 | R86: bit of dirt above left eye
B87: PG | C87: 2017-03-04 | D87: 17:10:00 | E87: 123 | F87: 24.6 | G87: 20.3 | H87: 0.825203252 | I87: 3.5 | J87: 3.5 | K87: 0 | L87: 0 | M87: 0 | N87: 0 | O87: 0 | P87: 0 | Q87: 1 | R87: bit of dirt above left eye
B88: SR | C88: 2017-03-05 | D88: 17:16:00 | E88: 124 | F88: 24.6 | G88: 20.4 | H88: 0.8292682927 | I88: 3.5 | J88: 3.5 | K88: 0 | L88: 0 | M88: 0 | N88: 0 | O88: 0 | P88: 0 | Q88: 1 | R88: bit of dirt above left eye
B89: PG SR | C89: 2017-03-06 | D89: 15:27:00 | E89: 125 | F89: 24.6 | G89: 20.5 | H89: 0.8333333333 | I89: 3.5 | J89: 3.5 | K89: 0 | L89: 0 | M89: 0 | N89: 0 | O89: 0 | P89: 0 | Q89: 1 | R89: bit of dirt above left eye
B90: PG SR | C90: 2017-03-07 | D90: 15:01:00 | E90: 126 | F90: 24.6 | G90: 20.9 | H90: 0.8495934959 | I90: ad lib | J90: ad lib | K90: 0 | L90: 0 | M90: 0 | N90: 0 | O90: 0 | P90: 0 | Q90: 1 | R90: bit of dirt above left eye
B91: PG SR | C91: 2017-03-08 | D91: 16:00:00 | E91: 127 | F91: 24.6 | G91: 25.4 | H91: 1.032520325 | K91: 0 | L91: 0 | M91: 0 | N91: 0 | O91: 0 | P91: 0 | Q91: 1 | R91: bit of dirt above left eye
B92: PG SR | C92: 2017-03-09 | D92: 14:46:00 | E92: 128 | F92: 24.6 | G92: 27 | H92: 1.097560976 | K92: 0 | L92: 0 | M92: 0 | N92: 0 | O92: 0 | P92: 0 | Q92: 0
B93: PG SR | C93: 2017-03-10 | D93: 14:13:00 | E93: 129 | F93: 24.6 | G93: 27.8 | H93: 1.130081301 | K93: 0 | L93: 0 | M93: 0 | N93: 0 | O93: 0 | P93: 0 | Q93: 0
C94: 2017-03-11 | E94: 130
C95: 2017-03-12 | E95: 131
B96: AG | C96: 2017-03-13 | D96: 15:00:00 | E96: 132 | F96: 24.6 | G96: 28 | H96: =G96/F96 -> 1.138211382 | K96: 0 | L96: 0 | M96: 0 | N96: 0 | O96: 0 | P96: 0 | Q96: 0
C97: 2017-03-14 | E97: 133
B98: MH PG | C98: 2017-03-15 | D98: 14:48:00 | E98: 134 | F98: 24.6 | G98: 27.4 | H98: 1.113821138 | K98: 0 | L98: 0 | M98: 0 | N98: 0 | O98: 0 | P98: =SUM(K98:O98) -> 0 | Q98: 0
C99: 2017-03-16 | E99: 135
C100: 2017-03-17 | E100: 136 | F100: 24.6 | H100: =G100/F100 -> 0 | P100: =SUM(K100:O100) -> 0

Sheet W04
B1: Score sheet info (digital summary)
B2: Mouse W04
F3: Weight | I3: Water | K3: Scoring
B4: Experimenter | C4: Day | D4: Time | E4: Age | F4: Reference | G4: Actual | H4: Percentage | I4: Offered | J4: Consumed | K4: Activity/behavior | L4: Look/posture | M4: Shit/piss | N4: Body condition | O4: Dehydration signs | P4: Total | Q4: Implant | R4: Comment
B5: SR | C5: 2016-12-12 | D5: 14:00:00 | E5: 41 | F5: 21 | G5: 20.8 | H5: =G5/F5 -> 0.9904761905 | K5: 0 | N5: 0 | P5: =SUM(K5:O5) -> 0
B6: SR | C6: 2016-12-13 | D6: 14:00:00 | E6: 42 | F6: 21 | G6: 21.6 | H6: =G6/F6 -> 1.028571429 | K6: 0 | N6: 0 | P6: =SUM(K6:O6) -> 0
B7: PG | C7: 2016-12-14 | D7: 18:00:00 | E7: 43 | F7: 21 | G7: 20.7 | H7: 0.9857142857 | K7: 0 | N7: 0 | P7: 0
B8: PG | C8: 2016-12-15 | D8: 15:00:00 | E8: 44 | F8: 21 | G8: 19.3 | H8: 0.919047619 | K8: 0 | N8: 1 | P8: 1 | Q8: 0 | R8: Wet fur
B9: AG,SR,PG | C9: 2016-12-16 | D9: 14:30:00 | E9: 45 | F9: 21 | G9: 20.6 | H9: 0.980952381 | K9: 0 | N9: 0 | P9: 0 | Q9: 0
B10: PG | C10: 2016-12-17 | D10: 14:00:00 | E10: 46 | F10: 21 | G10: 19.8 | H10: 0.9428571429 | K10: 0 | N10: 0 | P10: 0 | Q10: 0
B11: PG | C11: 2016-12-18 | D11: 14:00:00 | E11: 47 | F11: 21 | G11: 21.5 | H11: 1.023809524 | K11: 0 | N11: 0 | P11: 0 | Q11: 0
B12: SR | C12: 2016-12-19 | D12: 14:00:00 | E12: 48 | F12: 21 | G12: 22.8 | H12: 1.085714286 | K12: 0 | N12: 0 | P12: 0 | Q12: 0
B13: PG | C13: 2016-12-20 | D13: 16:00:00 | E13: 49 | F13: 21 | G13: 23 | H13: 1.095238095 | K13: 0 | N13: 0 | P13: 0 | Q13: 0
B14: AG | C14: 2016-12-21 | D14: 14:00:00 | E14: 50 | F14: 21 | G14: 23.4 | H14: 1.114285714 | K14: 0 | N14: 0 | P14: 0 | Q14: 0
B15: AG | C15: 2016-12-22 | D15: 13:45:00 | E15: 51 | F15: 21 | G15: 23.2 | H15: 1.104761905 | K15: 0 | N15: 0 | P15: 0 | Q15: 0
B16: PG | C16: 2016-12-23 | D16: 13:20:00 | E16: 52 | F16: 21 | G16: 23.2 | H16: 1.104761905 | K16: 0 | N16: 0 | P16: 0 | Q16: 0
C17: 2016-12-24 | E17: 53
C18: 2016-12-25 | E18: 54
C19: 2016-12-26 | E19: 55
C20: 2016-12-27 | E20: 56
C21: 2016-12-28 | E21: 57
C22: 2016-12-29 | E22: 58
C23: 2016-12-30 | E23: 59
C24: 2016-12-31 | E24: 60
C25: 2017-01-01 | E25: 61
B26: AG PG | C26: 2017-01-02 | D26: 14:00:00 | E26: 62 | F26: 26.2 | G26: 26.2 | H26: 1 | I26: 1.57 | J26: 1.57 | K26: 0 | L26: 0 | M26: 0 | N26: 0 | O26: 0 | P26: 0 | Q26: 0
B27: AG PG | C27: 2017-01-03 | D27: 14:30:00 | E27: 63 | F27: 26.2 | G27: 22.3 | H27: 0.8511450382 | I27: 2.2 | J27: 2.2 | K27: 0 | L27: 0 | M27: 0 | N27: 0 | O27: 0 | P27: 0 | Q27: 0
B28: AG MH | C28: 2017-01-04 | D28: 14:30:00 | E28: 64 | F28: 26.2 | G28: 21.3 | H28: 0.8129770992 | I28: 2.4 | J28: 2.4 | K28: 0 | L28: 0 | M28: 0 | N28: 0 | O28: 0 | P28: 0 | Q28: 0
B29: AG PG | C29: 2017-01-05 | D29: 14:00:00 | E29: 65 | F29: 26.2 | G29: 21 | H29: 0.8015267176 | I29: 2.85 | J29: 2.85 | K29: 0 | L29: 0 | M29: 0 | N29: 0 | O29: 0 | P29: 0 | Q29: 0
B30: AG PG | C30: 2017-01-06 | D30: 14:00:00 | E30: 66 | F30: 26.2 | G30: 21.7 | H30: 0.8282442748 | I30: 2.8 | J30: 2.8 | K30: 0 | L30: 0 | M30: 0 | N30: 0 | O30: 0 | P30: 0 | Q30: 0
B31: PG | C31: 2017-01-07 | D31: 16:00:00 | E31: 67 | F31: 26.2 | G31: 21.7 | H31: 0.8282442748 | I31: 3 | J31: 3 | K31: 0 | L31: 0 | M31: 0 | N31: 0 | O31: 0 | P31: 0 | Q31: 0
B32: AG | C32: 2017-01-08 | D32: 15:00:00 | E32: 68 | F32: 26.2 | G32: 22.2 | H32: 0.8473282443 | I32: 2.3 | J32: 2.3 | K32: 0 | L32: 0 | M32: 0 | N32: 0 | O32: 0 | P32: 0 | Q32: 0
B33: MH PG | C33: 2017-01-09 | D33: 14:50:00 | E33: 69 | F33: 26.2 | G33: 21.7 | H33: 0.8282442748 | I33: 2.57 | J33: 2.57 | K33: 0 | L33: 0 | M33: 0 | N33: 0 | O33: 0 | P33: 0 | Q33: 0
B34: AG PG | C34: 2017-01-10 | D34: 14:30:00 | E34: 70 | F34: 26.2 | G34: 22 | H34: 0.8396946565 | I34: 3 | J34: 3 | K34: 0 | L34: 0 | M34: 0 | N34: 0 | O34: 0 | P34: 0 | Q34: 0
B35: AG SR | C35: 2017-01-11 | D35: 14:45:00 | E35: 71 | F35: 26.2 | G35: 21.9 | H35: 0.8358778626 | I35: 3.5 | J35: 3.5 | K35: 0 | L35: 0 | M35: 0 | N35: 0 | O35: 0 | P35: 0 | Q35: 0
B36: SR PG | C36: 2017-01-12 | D36: 15:50:00 | E36: 72 | F36: 26.2 | G36: 22.4 | H36: 0.8549618321 | I36: 2.8 | J36: 2.8 | K36: 0 | L36: 0 | M36: 0 | N36: 0 | O36: 0 | P36: 0 | Q36: 0
B37: MH PG | C37: 2017-01-13 | D37: 14:55:00 | E37: 73 | F37: 26.2 | G37: 22.4 | H37: 0.8549618321 | I37: 2.8 | J37: 2.8 | K37: 0 | L37: 0 | M37: 0 | N37: 0 | O37: 0 | P37: 0 | Q37: 0
B38: AG MH | C38: 2017-01-14 | D38: 14:00:00 | E38: 74 | F38: 26.2 | G38: 22.8 | H38: 0.8702290076 | I38: 2.8 | J38: 2.8 | K38: 0 | L38: 0 | M38: 0 | N38: 0 | O38: 0 | P38: 0 | Q38: 0
B39: PG SR | C39: 2017-01-15 | D39: 14:20:00 | E39: 75 | F39: 26.2 | G39: 22.7 | H39: 0.8664122137 | I39: 2.8 | J39: 2.8 | K39: 0 | L39: 0 | M39: 0 | N39: 0 | O39: 0 | P39: 0 | Q39: 0
B40: MH SR | C40: 2017-01-16 | D40: 14:05:00 | E40: 76 | F40: 26.2 | G40: 22.5 | H40: 0.858778626 | I40: 2.8 | J40: 2.8 | K40: 0 | L40: 0 | M40: 0 | N40: 0 | O40: 0 | P40: 0 | Q40: 0
B41: MH PG SR | C41: 2017-01-17 | D41: 17:30:00 | E41: 77 | F41: 26.2 | G41: 22.2 | H41: 0.8473282443 | I41: 2.8 | J41: 2.8 | K41: 0 | L41: 0 | M41: 0 | N41: 0 | O41: 0 | P41: 0 | Q41: 0
B42: MH PG | C42: 2017-01-18 | D42: 14:45:00 | E42: 78 | F42: 26.2 | G42: 22.7 | H42: 0.8664122137 | I42: 2.7 | J42: 2.7 | K42: 0 | L42: 0 | M42: 0 | N42: 0 | O42: 0 | P42: 0 | Q42: 0
B43: PG SR | C43: 2017-01-19 | D43: 15:06:00 | E43: 79 | F43: 26.2 | G43: 22.7 | H43: 0.8664122137 | I43: 2.5 | J43: 2.5 | K43: 0 | L43: 0 | M43: 0 | N43: 0 | O43: 0 | P43: 0 | Q43: 0
B44: AG PG SR | C44: 2017-01-20 | D44: 15:01:00 | E44: 80 | F44: 26.2 | G44: 21.3 | H44: 0.8129770992 | I44: 2.8 | J44: 2.8 | K44: 0 | L44: 0 | M44: 0 | N44: 0 | O44: 0 | P44: 0 | Q44: 0
B45: MH SR | C45: 2017-01-21 | D45: 14:40:00 | E45: 81 | F45: 26.2 | G45: 22.3 | H45: 0.8511450382 | I45: 2.7 | J45: 2.7 | K45: 0 | L45: 0 | M45: 0 | N45: 0 | O45: 0 | P45: 0 | Q45: 0
B46: MH | C46: 2017-01-22 | D46: 14:10:00 | E46: 82 | F46: 26.2 | G46: 22.2 | H46: 0.8473282443 | I46: 2.7 | J46: 2.7 | K46: 0 | L46: 0 | M46: 0 | N46: 0 | O46: 0 | P46: 0 | Q46: 0
B47: AG PG | C47: 2017-01-23 | D47: 14:43:00 | E47: 83 | F47: 26.2 | G47: 22.3 | H47: 0.8511450382 | I47: 1.53 | J47: 1.53 | K47: 0 | L47: 0 | M47: 0 | N47: 0 | O47: 0 | P47: 0 | Q47: 0
B48: PG SR | C48: 2017-01-24 | D48: 15:28:00 | E48: 84 | F48: 26.2 | G48: 21.3 | H48: 0.8129770992 | I48: 3 | J48: 3 | K48: 0 | L48: 0 | M48: 0 | N48: 0 | O48: 0 | P48: 0 | Q48: 0
B49: AG SR | C49: 2017-01-25 | D49: 14:44:00 | E49: 85 | F49: 26.2 | G49: 22.2 | H49: 0.8473282443 | I49: 2.8 | J49: 2.8 | K49: 0 | L49: 0 | M49: 0 | N49: 0 | O49: 0 | P49: 0 | Q49: 0
B50: AG SR | C50: 2017-01-26 | D50: 14:44:00 | E50: 86 | F50: 26.2 | G50: 22.6 | H50: 0.8625954198 | I50: 2.7 | J50: 2.7 | K50: 0 | L50: 0 | M50: 0 | N50: 0 | O50: 0 | P50: 0 | Q50: 0
B51: MH PG | C51: 2017-01-27 | D51: 15:02:00 | E51: 87 | F51: 26.2 | G51: 22.7 | H51: 0.8664122137 | I51: 2.6 | J51: 2.6 | K51: 0 | L51: 0 | M51: 0 | N51: 0 | O51: 0 | P51: 0 | Q51: 0
B52: MH PG | C52: 2017-01-28 | D52: 15:02:00 | E52: 88 | F52: 26.2 | G52: 22.4 | H52: 0.8549618321 | I52: 2.65 | J52: 2.5 | K52: 0 | L52: 0 | M52: 0 | N52: 0 | O52: 0 | P52: 0 | Q52: 0
B53: PG | C53: 2017-01-29 | D53: 14:50:00 | E53: 89 | F53: 26.2 | G53: 23 | H53: 0.8778625954 | I53: 2.65 | J53: 2.65 | K53: 0 | L53: 0 | M53: 0 | N53: 0 | O53: 0 | P53: 0 | Q53: 0
B54: AG PG SR | C54: 2017-01-30 | D54: 14:44:00 | E54: 90 | F54: 26.2 | G54: 22.5 | H54: 0.858778626 | I54: 2.55 | J54: 2.55 | K54: 0 | L54: 0 | M54: 0 | N54: 0 | O54: 0 | P54: 0 | Q54: 0
B55: AG PG | C55: 2017-01-31 | D55: 14:29:00 | E55: 91 | F55: 26.2 | G55: 22.7 | H55: 0.8664122137 | I55: 2.5 | J55: 2.5 | K55: 0 | L55: 0 | M55: 0 | N55: 0 | O55: 0 | P55: 0 | Q55: 0
B56: PG SR | C56: 2017-02-01 | D56: 14:57:00 | E56: 92 | F56: 26.2 | G56: 22.8 | H56: 0.8702290076 | I56: 2.4 | J56: 2.4 | K56: 0 | L56: 0 | M56: 0 | N56: 0 | O56: 0 | P56: 0 | Q56: 0
B57: AG PG | C57: 2017-02-02 | D57: 14:30:00 | E57: 93 | F57: 26.2 | G57: 22.5 | H57: 0.858778626 | I57: 2.4 | J57: 2.4 | K57: 0 | L57: 0 | M57: 0 | N57: 0 | O57: 0 | P57: 0 | Q57: 0
B58: PG SR | C58: 2017-02-03 | D58: 14:05:00 | E58: 94 | F58: 26.2 | G58: 22.9 | H58: 0.8740458015 | I58: 2.3 | J58: 2.3 | K58: 0 | L58: 0 | M58: 0 | N58: 0 | O58: 1 | P58: 1 | Q58: 0
B59: AG PG | C59: 2017-02-04 | D59: 14:22:00 | E59: 95 | F59: 26.2 | G59: 23 | H59: 0.8778625954 | I59: 2.2 | J59: 2.2 | K59: 0 | L59: 0 | M59: 0 | N59: 0 | O59: 0 | P59: 0 | Q59: 0
B60: SR | C60: 2017-02-05 | D60: 15:37:00 | E60: 96 | F60: 26.2 | G60: 22.9 | H60: 0.8740458015 | I60: 2.15 | J60: 2.15 | K60: 0 | L60: 0 | M60: 0 | N60: 0 | O60: 0 | P60: 0 | Q60: 0
B61: AG PG | C61: 2017-02-06 | D61: 14:27:00 | E61: 97 | F61: 26.2 | G61: 22.7 | H61: 0.8664122137 | I61: 2.1 | J61: 2.1 | K61: 0 | L61: 0 | M61: 0 | N61: 0 | O61: 0 | P61: 0 | Q61: 0
B62: PG SR | C62: 2017-02-07 | D62: 14:40:00 | E62: 98 | F62: 26.2 | G62: 22.6 | H62: 0.8625954198 | I62: 2.1 | J62: 2.1 | K62: 0 | L62: 0 | M62: 0 | N62: 0 | O62: 0 | P62: 0 | Q62: 0
B63: MH PG | C63: 2017-02-08 | D63: 14:38:00 | E63: 99 | F63: 26.2 | G63: 22.1 | H63: 0.8435114504 | I63: 2.2 | J63: 2.2 | K63: 0 | L63: 0 | M63: 0 | N63: 0 | O63: 0 | P63: 0 | Q63: 0
B64: AG PG | C64: 2017-02-09 | D64: 14:28:00 | E64: 100 | F64: 26.2 | G64: 22.1 | H64: 0.8435114504 | I64: 2.2 | J64: 2.2 | K64: 0 | L64: 0 | M64: 0 | N64: 0 | O64: 0 | P64: 0 | Q64: 0
B65: PG SR | C65: 2017-02-10 | D65: 14:14:00 | E65: 101 | F65: 26.2 | G65: 22.5 | H65: 0.858778626 | I65: 2.15 | J65: 2.15 | K65: 0 | L65: 0 | M65: 0 | N65: 0 | O65: 0 | P65: 0 | Q65: 0
B66: PG SR | C66: 2017-02-11 | D66: 14:36:00 | E66: 102 | F66: 26.2 | G66: 22.4 | H66: 0.8549618321 | I66: 2.15 | J66: 2.15 | K66: 0 | L66: 0 | M66: 0 | N66: 0 | O66: 0 | P66: 0 | Q66: 0
B67: PG SR | C67: 2017-02-12 | D67: 14:33:00 | E67: 103 | F67: 26.2 | G67: 22.5 | H67: 0.858778626 | I67: 2.1 | J67: 2.1 | K67: 0 | L67: 0 | M67: 0 | N67: 0 | O67: 0 | P67: 0 | Q67: 0
B68: MH PG | C68: 2017-02-13 | D68: 14:28:00 | E68: 104 | F68: 26.2 | G68: 22.4 | H68: 0.8549618321 | I68: 2.1 | J68: 2.1 | K68: 0 | L68: 0 | M68: 0 | N68: 0 | O68: 0 | P68: 0 | Q68: 0
B69: PG SR | C69: 2017-02-14 | D69: 14:58:00 | E69: 105 | F69: 26.2 | G69: 21.9 | H69: 0.8358778626 | I69: 2.3 | J69: 2.4 | K69: 0 | L69: 0 | M69: 0 | N69: 0 | O69: 1 | P69: 1 | Q69: 0
B70: MH PG | C70: 2017-02-15 | D70: 14:27:00 | E70: 106 | F70: 26.2 | G70: 21.9 | H70: =G70/F70 -> 0.8358778626 | I70: 2.4 | J70: 2.4 | K70: 0 | L70: 0 | M70: 0 | N70: 0 | O70: 0 | P70: =SUM(K70:O70) -> 0 | Q70: 0
B71: PG SR | C71: 2017-02-16 | D71: 14:49:00 | E71: 107 | F71: 26.2 | G71: 22.3 | H71: 0.8511450382 | I71: 2.3 | J71: 2.3 | K71: 0 | L71: 0 | M71: 0 | N71: 0 | O71: 0 | P71: 0 | Q71: 0
B72: AG PG | C72: 2017-02-17 | D72: 14:50:00 | E72: 108 | F72: 26.2 | G72: 22.3 | H72: 0.8511450382 | I72: 2.3 | J72: 2.3 | K72: 0 | L72: 0 | M72: 0 | N72: 0 | O72: 0 | P72: 0 | Q72: 0
B73: PG SR | C73: 2017-02-18 | D73: 14:42:00 | E73: 109 | F73: 26.2 | G73: 22 | H73: 0.8396946565 | I73: 2.4 | J73: 2.4 | K73: 0 | L73: 0 | M73: 0 | N73: 0 | O73: 1 | P73: 1 | Q73: 0
B74: MH | C74: 2017-02-19 | D74: 15:55:00 | E74: 110 | F74: 26.2 | G74: 21.8 | H74: 0.8320610687 | I74: 2.5 | J74: 2.5 | K74: 0 | L74: 0 | M74: 0 | N74: 0 | O74: 0 | P74: 0 | Q74: 0
B75: PG SR | C75: 2017-02-20 | D75: 14:57:00 | E75: 111 | F75: 26.2 | G75: 22.2 | H75: 0.8473282443 | I75: 2.45 | J75: 2.45 | K75: 0 | L75: 0 | M75: 0 | N75: 0 | O75: 1 | P75: 1 | Q75: 0
B76: AG PG | C76: 2017-02-21 | D76: 14:54:00 | E76: 112 | F76: 26.2 | G76: 22.3 | H76: 0.8511450382 | I76: 2.45 | J76: 2.45 | K76: 0 | L76: 0 | M76: 0 | N76: 0 | O76: 0 | P76: 0 | Q76: 0
B77: PG MH | C77: 2017-02-22 | D77: 14:32:00 | E77: 113 | F77: 26.2 | G77: 22.3 | H77: 0.8511450382 | I77: 2.45 | J77: 2.45 | K77: 0 | L77: 0 | M77: 0 | N77: 0 | O77: 0 | P77: 0 | Q77: 0
B78: AG PG | C78: 2017-02-23 | D78: 14:31:00 | E78: 114 | F78: 26.2 | G78: 22.1 | H78: 0.8435114504 | I78: 2.45 | J78: 2.45 | K78: 0 | L78: 0 | M78: 0 | N78: 0 | O78: 0 | P78: 0 | Q78: 0
B79: MH PG | C79: 2017-02-24 | D79: 14:24:00 | E79: 115 | F79: 26.2 | G79: 22.1 | H79: 0.8435114504 | I79: 2.45 | J79: 2.45 | K79: 0 | L79: 0 | M79: 0 | N79: 0 | O79: 1 | P79: 1 | Q79: 0
B80: AG PG | C80: 2017-02-25 | D80: 14:22:00 | E80: 116 | F80: 26.2 | G80: 22.1 | H80: 0.8435114504 | I80: 2.45 | J80: 2.45 | K80: 0 | L80: 0 | M80: 0 | N80: 0 | O80: 0 | P80: 0 | Q80: 0
B81: AG | C81: 2017-02-26 | D81: 15:43:00 | E81: 117 | F81: 26.2 | G81: 22 | H81: 0.8396946565 | I81: 2.5 | J81: 2.5 | K81: 0 | L81: 0 | M81: 0 | N81: 0 | O81: 1 | P81: 1 | Q81: 0
B82: MH PG | C82: 2017-02-27 | D82: 14:28:00 | E82: 118 | F82: 26.2 | G82: 22.8 | H82: 0.8702290076 | I82: 2.4 | J82: 2.4 | K82: 0 | L82: 0 | M82: 0 | N82: 0 | O82: 0 | P82: 0 | Q82: 0
B83: AG PG | C83: 2017-02-28 | D83: 14:32:00 | E83: 119 | F83: 26.2 | G83: 22 | H83: 0.8396946565 | I83: 2.45 | J83: 2.45 | K83: 0 | L83: 0 | M83: 0 | N83: 0 | O83: 0 | P83: 0 | Q83: 0
B84: MH PG | C84: 2017-03-01 | D84: 14:28:00 | E84: 120 | F84: 26.2 | G84: 23.2 | H84: =G84/F84 -> 0.8854961832 | I84: 2.3 | J84: 2.3 | K84: 0 | L84: 0 | M84: 0 | N84: 0 | O84: 0 | P84: =SUM(K84:O84) -> 0 | Q84: 0
B85: AG PG | C85: 2017-03-02 | D85: 14:36:00 | E85: 121 | F85: 26.2 | G85: 23.1 | H85: 0.8816793893 | I85: 2.3 | J85: 2.3 | K85: 0 | L85: 0 | M85: 0 | N85: 0 | O85: 0 | P85: 0 | Q85: 0
B86: PG SR | C86: 2017-03-03 | D86: 14:45:00 | E86: 122 | F86: 26.2 | G86: 22.8 | H86: 0.8702290076 | I86: 2.3 | J86: 2.3 | K86: 0 | L86: 0 | M86: 0 | N86: 0 | O86: 0 | P86: 0 | Q86: 0
B87: PG | C87: 2017-03-04 | D87: 17:10:00 | E87: 123 | F87: 26.2 | G87: 22.6 | H87: 0.8625954198 | I87: 2.3 | J87: 2.3 | K87: 0 | L87: 0 | M87: 0 | N87: 0 | O87: 0 | P87: 0 | Q87: 0
B88: SR | C88: 2017-03-05 | D88: 17:18:00 | E88: 124 | F88: 26.2 | G88: 23.1 | H88: 0.8816793893 | I88: 2.2 | J88: 2.2 | K88: 0 | L88: 0 | M88: 0 | N88: 0 | O88: 0 | P88: 0 | Q88: 0
B89: PG SR | C89: 2017-03-06 | D89: 14:55:00 | E89: 125 | F89: 26.2 | G89: 23 | H89: 0.8778625954 | I89: 2.1 | J89: 2.1 | K89: 0 | L89: 0 | M89: 0 | N89: 0 | O89: 0 | P89: 0 | Q89: 0
B90: PG SR | C90: 2017-03-07 | D90: 15:04:00 | E90: 126 | F90: 26.2 | G90: 23.2 | H90: 0.8854961832 | I90: 1.8 | J90: 1.8 | K90: 0 | L90: 0 | M90: 0 | N90: 0 | O90: 0 | P90: 0 | Q90: 0
B91: PG SR | C91: 2017-03-08 | D91: 16:06:00 | E91: 127 | F91: 26.2 | G91: 22.4 | H91: 0.8549618321 | I91: 2 | J91: 2 | K91: 0 | L91: 0 | M91: 0 | N91: 0 | O91: 0 | P91: 0 | Q91: 0
B92: PG SR | C92: 2017-03-09 | D92: 14:48:00 | E92: 128 | F92: 26.2 | G92: 22.6 | H92: 0.8625954198 | I92: ad lib | J92: ad lib | K92: 0 | L92: 0 | M92: 0 | N92: 0 | O92: 0 | P92: 0 | Q92: 0
B93: PG SR | C93: 2017-03-10 | D93: 14:13:00 | E93: 129 | F93: 26.2 | G93: 24.6 | H93: 0.9389312977 | K93: 0 | L93: 0 | M93: 0 | N93: 0 | O93: 0 | P93: 0 | Q93: 0
C94: 2017-03-11 | E94: 130
C95: 2017-03-12 | E95: 131
B96: AG | C96: 2017-03-13 | D96: 15:00:00 | E96: 132 | F96: 26.2 | G96: 27 | H96: =G96/F96 -> 1.030534351 | K96: 0 | L96: 0 | M96: 0 | N96: 0 | O96: 0 | P96: 0 | Q96: 0
C97: 2017-03-14 | E97: 133
B98: MH PG | C98: 2017-03-15 | D98: 14:50:00 | E98: 134 | F98: 26.2 | G98: 27.2 | H98: 1.038167939 | K98: 0 | L98: 0 | M98: 0 | N98: 0 | O98: 0 | P98: =SUM(K98:O98) -> 0 | Q98: 0
C99: 2017-03-16 | E99: 135
C100: 2017-03-17 | E100: 136 | F100: 26.2 | H100: =G100/F100 -> 0 | P100: =SUM(K100:O100) -> 0

Sheet W05
B1: Score sheet info (digital summary)
B2: Mouse W05
F3: Weight | I3: Food | K3: Scoring
B4: Experimenter | C4: Day | D4: Time | E4: Age | F4: Reference | G4: Actual | H4: Percentage | I4: Offered | J4: Consumed | K4: Activity/behavior | L4: Look/posture | M4: Shit/piss | N4: Body condition | O4: Dehydration signs | P4: Total | Q4: Implant | R4: Comment
B5: SR | C5: 2016-12-12 | D5: 14:00:00 | E5: 41 | F5: 22.3 | G5: 22.2 | H5: =G5/F5 -> 0.9955156951 | K5: 0 | N5: 0 | P5: =SUM(K5:O5) -> 0
B6: SR | C6: 2016-12-13 | D6: 14:00:00 | E6: 42 | F6: 22.3 | G6: 22.7 | H6: =G6/F6 -> 1.01793722 | K6: 0 | N6: 0 | P6: =SUM(K6:O6) -> 0
B7: PG | C7: 2016-12-14 | D7: 18:00:00 | E7: 43 | F7: 22.3 | G7: 22.1 | H7: 0.9910313901 | K7: 0 | N7: 0 | P7: 0
B8: PG | C8: 2016-12-15 | D8: 15:00:00 | E8: 44 | F8: 22.3 | G8: 21.3 | H8: 0.9551569507 | K8: 0 | N8: 1 | P8: 1 | Q8: 0 | R8: Wet fur
B9: AG,SR,PG | C9: 2016-12-16 | D9: 14:30:00 | E9: 45 | F9: 22.3 | G9: 21.5 | H9: 0.9641255605 | K9: 0 | N9: 0 | P9: 0 | Q9: 0
B10: PG | C10: 2016-12-17 | D10: 14:00:00 | E10: 46 | F10: 22.3 | G10: 22.6 | H10: 1.013452915 | K10: 0 | N10: 0 | P10: 0 | Q10: 0
B11: PG | C11: 2016-12-18 | D11: 14:00:00 | E11: 47 | F11: 22.3 | G11: 23.1 | H11: 1.035874439 | K11: 0 | N11: 0 | P11: 0 | Q11: 0
B12: SR | C12: 2016-12-19 | D12: 14:00:00 | E12: 48 | F12: 22.3 | G12: 24.2 | H12: 1.085201794 | K12: 0 | N12: 0 | P12: 0 | Q12: 0
B13: PG | C13: 2016-12-20 | D13: 16:00:00 | E13: 49 | F13: 22.3 | G13: 24.1 | H13: 1.080717489 | K13: 0 | N13: 0 | P13: 0 | Q13: 0
B14: AG | C14: 2016-12-21 | D14: 14:00:00 | E14: 50 | F14: 22.3 | G14: 24.6 | H14: 1.103139013 | K14: 0 | N14: 0 | P14: 0 | Q14: 0
B15: AG | C15: 2016-12-22 | D15: 13:45:00 | E15: 51 | F15: 22.3 | G15: 22.9 | H15: 1.02690583 | K15: 0 | N15: 0 | P15: 0 | Q15: 0 | R15: lost some weight but behavior and body look fine
B16: PG | C16: 2016-12-23 | D16: 13:20:00 | E16: 52 | F16: 22.3 | G16: 21.8 | H16: 0.9775784753 | K16: 1 | N16: 0 | P16: 1 | Q16: 0 | R16: Lost more weight … looks fine .. Strange
B17: PG | C17: 2016-12-24 | D17: 12:00:00 | E17: 53 | F17: 22.3 | G17: 24.1 | H17: 1.080717489 | K17: 0 | N17: 0 | P17: 0
C18: 2016-12-25 | E18: 54
C19: 2016-12-26 | E19: 55
C20: 2016-12-27 | E20: 56
C21: 2016-12-28 | E21: 57
C22: 2016-12-29 | E22: 58
C23: 2016-12-30 | E23: 59
C24: 2016-12-31 | E24: 60
C25: 2017-01-01 | E25: 61
B26: AG PG | C26: 2017-01-02 | D26: 14:00:00 | E26: 62 | F26: 25.9 | G26: 25.9 | H26: 1 | I26: 2 | J26: 2 | K26: 0 | L26: 0 | M26: 0 | N26: 0 | O26: 0 | P26: 0 | Q26: 0
B27: AG PG | C27: 2017-01-03 | D27: 14:30:00 | E27: 63 | F27: 25.9 | G27: 22.5 | H27: 0.8687258687 | I27: 3 | J27: 3 | K27: 0 | L27: 0 | M27: 0 | N27: 0 | O27: 0 | P27: 0 | Q27: 0
B28: AG MH | C28: 2017-01-04 | D28: 14:30:00 | E28: 64 | F28: 25.9 | G28: 22.4 | H28: 0.8648648649 | I28: 2.8 | J28: 2.8 | K28: 0 | L28: 0 | M28: 0 | N28: 0 | O28: 0 | P28: 0 | Q28: 0
B29: AG PG | C29: 2017-01-05 | D29: 14:00:00 | E29: 65 | F29: 25.9 | G29: 21.6 | H29: 0.833976834 | I29: 3.5 | J29: 3.5 | K29: 0 | L29: 0 | M29: 0 | N29: 0 | O29: 0 | P29: 0 | Q29: 0
B30: AG PG | C30: 2017-01-06 | D30: 14:00:00 | E30: 66 | F30: 25.9 | G30: 22 | H30: 0.8494208494 | I30: 3.8 | J30: 3.8 | K30: 0 | L30: 0 | M30: 0 | N30: 0 | O30: 0 | P30: 0 | Q30: 0
B31: PG | C31: 2017-01-07 | D31: 16:00:00 | E31: 67 | F31: 25.9 | G31: 21.6 | H31: 0.833976834 | I31: 4 | J31: 4 | K31: 0 | L31: 0 | M31: 0 | N31: 0 | O31: 0 | P31: 0 | Q31: 0
B32: AG | C32: 2017-01-08 | D32: 15:00:00 | E32: 68 | F32: 25.9 | G32: 22.6 | H32: 0.8725868726 | I32: 3 | J32: 3 | K32: 0 | L32: 0 | M32: 0 | N32: 0 | O32: 0 | P32: 0 | Q32: 0
B33: MH PG | C33: 2017-01-09 | D33: 15:20:00 | E33: 69 | F33: 25.9 | G33: 21.9 | H33: 0.8455598456 | I33: 3.7 | J33: 3.7 | K33: 0 | L33: 0 | M33: 0 | N33: 0 | O33: 0 | P33: 0 | Q33: 0
B34: AG PG | C34: 2017-01-10 | D34: 14:30:00 | E34: 70 | F34: 25.9 | G34: 22.3 | H34: 0.861003861 | I34: 3.66 | J34: 3.66 | K34: 0 | L34: 0 | M34: 0 | N34: 0 | O34: 0 | P34: 0 | Q34: 0
B35: AG SR | C35: 2017-01-11 | D35: 14:45:00 | E35: 71 | F35: 25.9 | G35: 22 | H35: 0.8494208494 | I35: 3.75 | J35: 3.75 | K35: 0 | L35: 0 | M35: 0 | N35: 0 | O35: 0 | P35: 0 | Q35: 0
B36: SR PG | C36: 2017-01-12 | D36: 15:00:00 | E36: 72 | F36: 25.9 | G36: 22 | H36: 0.8494208494 | I36: 3.75 | J36: 3.75 | K36: 0 | L36: 0 | M36: 0 | N36: 0 | O36: 0 | P36: 0 | Q36: 0
B37: MH PG | C37: 2017-01-13 | D37: 15:25:00 | E37: 73 | F37: 25.9 | G37: 22.5 | H37: 0.8687258687 | I37: 3.5 | J37: 3.5 | K37: 0 | L37: 0 | M37: 0 | N37: 0 | O37: 0 | P37: 0 | Q37: 0
B38: AG MH | C38: 2017-01-14 | D38: 14:30:00 | E38: 74 | F38: 25.9 | G38: 22 | H38: 0.8494208494 | I38: 4.1 | J38: 4.1 | K38: 0 | L38: 0 | M38: 0 | N38: 0 | O38: 0 | P38: 0 | Q38: 0
B39: PG SR | C39: 2017-01-15 | D39: 15:00:00 | E39: 75 | F39: 25.9 | G39: 22.2 | H39: 0.8571428571 | I39: 4.2 | J39: 4.2 | K39: 0 | L39: 0 | M39: 0 | N39: 0 | O39: 0 | P39: 0 | Q39: 0
B40: MH SR | C40: 2017-01-16 | D40: 14:30:00 | E40: 76 | F40: 25.9 | G40: 22.1 | H40: 0.8532818533 | I40: 4.3 | J40: 4.3 | K40: 0 | L40: 0 | M40: 0 | N40: 0 | O40: 0 | P40: 0 | Q40: 0
B41: MH PG SR | C41: 2017-01-17 | D41: 17:55:00 | E41: 77 | F41: 25.9 | G41: 21.9 | H41: 0.8455598456 | I41: 4.5 | J41: 4.5 | K41: 0 | L41: 0 | M41: 0 | N41: 0 | O41: 0 | P41: 0 | Q41: 0
B42: MH PG | C42: 2017-01-18 | D42: 15:50:00 | E42: 78 | F42: 25.9 | G42: 22 | H42: 0.8494208494 | I42: 5.23 | J42: 5.23 | K42: 0 | L42: 0 | M42: 0 | N42: 0 | O42: 0 | P42: 0 | Q42: 0
B43: PG SR | C43: 2017-01-19 | D43: 15:40:00 | E43: 79 | F43: 25.9 | G43: 21.6 | H43: 0.833976834 | I43: 3.1 | J43: 3.1 | K43: 0 | L43: 0 | M43: 0 | N43: 0 | O43: 0 | P43: 0 | Q43: 0
B44: AG PG SR | C44: 2017-01-20 | D44: 15:27:00 | E44: 80 | F44: 25.9 | G44: 22.1 | H44: 0.8532818533 | I44: 3 | J44: 3 | K44: 0 | L44: 0 | M44: 0 | N44: 0 | O44: 0 | P44: 0 | Q44: 0
B45: MH SR | C45: 2017-01-21 | D45: 15:10:00 | E45: 81 | F45: 25.9 | G45: 21.8 | H45: 0.8416988417 | I45: 3.09 | J45: 3.09 | K45: 0 | L45: 0 | M45: 0 | N45: 0 | O45: 0 | P45: 0 | Q45: 0
B46: MH | C46: 2017-01-22 | D46: 14:48:00 | E46: 82 | F46: 25.9 | G46: 21.8 | H46: 0.8416988417 | I46: 3.1 | J46: 3.1 | K46: 0 | L46: 0 | M46: 0 | N46: 0 | O46: 0 | P46: 0 | Q46: 0
B47: AG PG | C47: 2017-01-23 | D47: 15:14:00 | E47: 83 | F47: 25.9 | G47: 21.8 | H47: 0.8416988417 | I47: 3.2 | J47: 3.2 | K47: 0 | L47: 0 | M47: 0 | N47: 0 | O47: 0 | P47: 0 | Q47: 0
B48: PG SR | C48: 2017-01-24 | D48: 16:01:00 | E48: 84 | F48: 25.9 | G48: 21.8 | H48: 0.8416988417 | I48: 3.25 | J48: 3.25 | K48: 0 | L48: 0 | M48: 0 | N48: 0 | O48: 0 | P48: 0 | Q48: 0
B49: AG SR | C49: 2017-01-25 | D49: 15:09:00 | E49: 85 | F49: 25.9 | G49: 22.2 | H49: 0.8571428571 | I49: 3.2 | J49: 3.2 | K49: 0 | L49: 0 | M49: 0 | N49: 0 | O49: 0 | P49: 0 | Q49: 0
B50: AG SR | C50: 2017-01-26 | D50: 15:13:00 | E50: 86 | F50: 25.9 | G50: 22 | H50: 0.8494208494 | I50: 3.25 | J50: 3.25 | K50: 0 | L50: 0 | M50: 0 | N50: 0 | O50: 0 | P50: 0 | Q50: 0
B51: MH PG | C51: 2017-01-27 | D51: 15:30:00 | E51: 87 | F51: 25.9 | G51: 22.2 | H51: 0.8571428571 | I51: 3.25 | J51: 3.25 | K51: 0 | L51: 0 | M51: 0 | N51: 0 | O51: 0 | P51: 0 | Q51: 0
B52: MH PG | C52: 2017-01-28 | D52: 15:20:00 | E52: 88 | F52: 25.9 | G52: 22.3 | H52: 0.861003861 | I52: 3.2 | J52: 3.2 | K52: 0 | L52: 0 | M52: 0 | N52: 0 | O52: 0 | P52: 0 | Q52: 0
B53: PG | C53: 2017-01-29 | D53: 14:55:00 | E53: 89 | F53: 25.9 | G53: 22.7 | H53: 0.8764478764 | I53: 3.1 | J53: 3.1 | K53: 0 | L53: 0 | M53: 0 | N53: 0 | O53: 0 | P53: 0 | Q53: 0
B54: AG SR PG | C54: 2017-01-30 | D54: 15:32:00 | E54: 90 | F54: 25.9 | G54: 22.2 | H54: 0.8571428571 | I54: 3.15 | J54: 3.15 | K54: 0 | L54: 0 | M54: 0 | N54: 0 | O54: 0 | P54: 0 | Q54: 0
B55: AG PG | C55: 2017-01-31 | D55: 15:12:00 | E55: 91 | F55: 25.9 | G55: 23 | H55: 0.888030888 | I55: 3.05 | J55: 3.05 | K55: 0 | L55: 0 | M55: 0 | N55: 0 | O55: 0 | P55: 0 | Q55: 0
B56: PG SR | C56: 2017-02-01 | D56: 15:40:00 | E56: 92 | F56: 25.9 | G56: 22.7 | H56: 0.8764478764 | I56: 3.05 | J56: 3.05 | K56: 0 | L56: 0 | M56: 0 | N56: 0 | O56: 0 | P56: 0 | Q56: 0
B57: AG PG | C57: 2017-02-02 | D57: 15:17:00 | E57: 93 | F57: 25.9 | G57: 22.6 | H57: 0.8725868726 | I57: 3 | J57: 3 | K57: 0 | L57: 0 | M57: 0 | N57: 0 | O57: 0 | P57: 0 | Q57: 0
B58: PG SR | C58: 2017-02-03 | D58: 14:47:00 | E58: 94 | F58: 25.9 | G58: 22.7 | H58: 0.8764478764 | I58: 2.9 | J58: 2.9 | K58: 0 | L58: 0 | M58: 0 | N58: 0 | O58: 0 | P58: 0 | Q58: 0
B59: AG PG | C59: 2017-02-04 | D59: 15:10:00 | E59: 95 | F59: 25.9 | G59: 22.6 | H59: 0.8725868726 | I59: 2.8 | J59: 2.8 | K59: 0 | L59: 0 | M59: 0 | N59: 0 | O59: 0 | P59: 0 | Q59: 0
B60: SR | C60: 2017-02-05 | D60: 15:39:00 | E60: 96 | F60: 25.9 | G60: 22 | H60: 0.8494208494 | I60: 2.9 | J60: 2.9 | K60: 0 | L60: 0 | M60: 0 | N60: 0 | O60: 0 | P60: 0 | Q60: 0
B61: AG PG | C61: 2017-02-06 | D61: 15:10:00 | E61: 97 | F61: 25.9 | G61: 21.9 | H61: 0.8455598456 | I61: 2.95 | J61: 2.95 | K61: 0 | L61: 0 | M61: 0 | N61: 0 | O61: 0 | P61: 0 | Q61: 0
B62: PG SR | C62: 2017-02-07 | D62: 15:25:00 | E62: 98 | F62: 25.9 | G62: 21.7 | H62: 0.8378378378 | I62: 3.05 | J62: 3.05 | K62: 0 | L62: 0 | M62: 0 | N62: 0 | O62: 0 | P62: 0 | Q62: 0
B63: MH PG | C63: 2017-02-08 | D63: 15:20:00 | E63: 99 | F63: 25.9 | G63: 21.8 | H63: 0.8416988417 | I63: 3.05 | J63: 3.05 | K63: 0 | L63: 0 | M63: 0 | N63: 0 | O63: 0 | P63: 0 | Q63: 0
B64: AG PG | C64: 2017-02-09 | D64: 15:11:00 | E64: 100 | F64: 25.9 | G64: 21.7 | H64: 0.8378378378 | I64: 3.1 | J64: 3.1 | K64: 0 | L64: 0 | M64: 0 | N64: 0 | O64: 0 | P64: 0 | Q64: 0
B65: PG SR | C65: 2017-02-10 | D65: 14:51:00 | E65: 101 | F65: 25.9 | G65: 22.1 | H65: 0.8532818533 | I65: 3.05 | J65: 3.05 | K65: 0 | L65: 0 | M65: 0 | N65: 0 | O65: 0 | P65: 0 | Q65: 0
B66: PG SR | C66: 2017-02-11 | D66: 15:18:00 | E66: 102 | F66: 25.9 | G66: 22.4 | H66: 0.8648648649 | I66: 3 | J66: 3 | K66: 0 | L66: 0 | M66: 0 | N66: 0 | O66: 0 | P66: 0 | Q66: 0
B67: PG SR | C67: 2017-02-12 | D67: 15:17:00 | E67: 103 | F67: 25.9 | G67: 22.3 | H67: 0.861003861 | I67: 3 | J67: 3 | K67: 0 | L67: 0 | M67: 0 | N67: 0 | O67: 1 | P67: 1 | Q67: 0
B68: MH PG | C68: 2017-02-13 | D68: 15:03:00 | E68: 104 | F68: 25.9 | G68: 22.3 | H68: 0.861003861 | I68: 2.95 | J68: 2.95 | K68: 0 | L68: 0 | M68: 0 | N68: 0 | O68: 0 | P68: 0 | Q68: 0
B69: PG SR | C69: 2017-02-14 | D69: 15:26:00 | E69: 105 | F69: 25.9 | G69: 22 | H69: 0.8494208494 | I69: 3 | J69: 3 | K69: 0 | L69: 0 | M69: 0 | N69: 0 | O69: 0 | P69: 0 | Q69: 0
B70: MH PG | C70: 2017-02-15 | D70: 15:19:00 | E70: 106 | F70: 25.9 | G70: 21.9 | H70: =G70/F70 -> 0.8455598456 | I70: 3.05 | J70: 3.05 | K70: 0 | L70: 0 | M70: 0 | N70: 0 | O70: 0 | P70: 0 | Q70: 0
B71: PG SR | C71: 2017-02-16 | D71: 15:32:00 | E71: 107 | F71: 25.9 | G71: 22 | H71: 0.8494208494 | I71: 3.05 | J71: 3.05 | K71: 0 | L71: 0 | M71: 0 | N71: 0 | O71: 0 | P71: 0 | Q71: 0
B72: AG PG | C72: 2017-02-17 | D72: 15:36:00 | E72: 108 | F72: 25.9 | G72: 22.3 | H72: 0.861003861 | I72: 3 | J72: 3 | K72: 0 | L72: 0 | M72: 0 | N72: 0 | O72: 0 | P72: 0 | Q72: 0
B73: PG SR | C73: 2017-02-18 | D73: 15:24:00 | E73: 109 | F73: 25.9 | G73: 22.2 | H73: 0.8571428571 | I73: 3 | J73: 3 | K73: 0 | L73: 0 | M73: 0 | N73: 0 | O73: 0 | P73: =SUM(K73:O73) -> 0 | Q73: 0
B74: MH | C74: 2017-02-19 | D74: 16:40:00 | E74: 110 | F74: 25.9 | G74: 22.1 | H74: 0.8532818533 | I74: 3 | J74: 3 | K74: 0 | L74: 0 | M74: 0 | N74: 0 | O74: 0 | P74: 0 | Q74: 0
B75: PG SR | C75: 2017-02-20 | D75: 15:38:00 | E75: 111 | F75: 25.9 | G75: 22.3 | H75: 0.861003861 | I75: 2.9 | J75: 2.9 | K75: 0 | L75: 0 | M75: 0 | N75: 0 | O75: 0 | P75: 0 | Q75: 0
B76: AG PG | C76: 2017-02-21 | D76: 15:37:00 | E76: 112 | F76: 25.9 | G76: 22.2 | H76: 0.8571428571 | I76: 2.9 | J76: 2.9 | K76: 0 | L76: 0 | M76: 0 | N76: 0 | O76: 0 | P76: 0 | Q76: 0
B77: PG MH | C77: 2017-02-22 | D77: 15:23:00 | E77: 113 | F77: 25.9 | G77: 22.5 | H77: 0.8687258687 | I77: 2.8 | J77: 2.8 | K77: 0 | L77: 0 | M77: 0 | N77: 0 | O77: 0 | P77: 0 | Q77: 0
B78: AG PG | C78: 2017-02-23 | D78: 15:17:00 | E78: 114 | F78: 25.9 | G78: 22.1 | H78: 0.8532818533 | I78: 2.85 | J78: 2.85 | K78: 0 | L78: 0 | M78: 0 | N78: 0 | O78: 0 | P78: 0 | Q78: 0
B79: MH PG | C79: 2017-02-24 | D79: 15:13:00 | E79: 115 | F79: 25.9 | G79: 22.2 | H79: 0.8571428571 | I79: 2.8 | J79: 2.8 | K79: 0 | L79: 0 | M79: 0 | N79: 0 | O79: 0 | P79: 0 | Q79: 0
B80: AG PG | C80: 2017-02-25 | D80: 15:06:00 | E80: 116 | F80: 25.9 | G80: 22.2 | H80: 0.8571428571 | I80: 2.75 | J80: 2.75 | K80: 0 | L80: 0 | M80: 0 | N80: 0 | O80: 0 | P80: 0 | Q80: 0
B81: AG | C81: 2017-02-26 | D81: 15:26:00 | E81: 117 | F81: 25.9 | G81: 22 | H81: 0.8494208494 | I81: 2.75 | J81: 2.75 | K81: 0 | L81: 0 | M81: 0 | N81: 0 | O81: 0 | P81: 0 | Q81: 0
B82: MH PG | C82: 2017-02-27 | D82: 15:12:00 | E82: 118 | F82: 25.9 | G82: 21.8 | H82: 0.8416988417 | I82: 2.8 | J82: 2.8 | K82: 0 | L82: 0 | M82: 0 | N82: 0 | O82: 0 | P82: 0 | Q82: 0
B83: AG PG | C83: 2017-02-28 | D83: 15:16:00 | E83: 119 | F83: 25.9 | G83: 21.6 | H83: 0.833976834 | I83: 2.9 | J83: 2.9 | K83: 0 | L83: 0 | M83: 0 | N83: 0 | O83: 0 | P83: 0 | Q83: 0
B84: MH PG | C84: 2017-03-01 | D84: 15:19:00 | E84: 120 | F84: 25.9 | G84: 21.8 | H84: =G84/F84 -> 0.8416988417 | I84: 2.9 | J84: 2.9 | K84: 0 | L84: 0 | M84: 0 | N84: 0 | O84: 0 | P84: =SUM(K84:O84) -> 0 | Q84: 0
B85: AG PG | C85: 2017-03-02 | D85: 15:22:00 | E85: 121 | F85: 25.9 | G85: 21.8 | H85: 0.8416988417 | I85: 2.9 | J85: 2.9 | K85: 0 | L85: 0 | M85: 0 | N85: 0 | O85: 0 | P85: 0 | Q85: 0
B86: PG SR | C86: 2017-03-03 | D86: 15:28:00 | E86: 122 | F86: 25.9 | G86: 22 | H86: 0.8494208494 | I86: 2.85 | J86: 2.85 | K86: 0 | L86: 0 | M86: 0 | N86: 0 | O86: 0 | P86: 0 | Q86: 0
B87: PG | C87: 2017-03-04 | D87: 17:12:00 | E87: 123 | F87: 25.9 | G87: 21.8 | H87: 0.8416988417 | I87: 2.9 | J87: 2.9 | K87: 0 | L87: 0 | M87: 0 | N87: 0 | O87: 0 | P87: 0 | Q87: 0
B88: SR | C88: 2017-03-05 | D88: 17:20:00 | E88: 124 | F88: 25.9 | G88: 21.8 | H88: 0.8416988417 | I88: 2.9 | J88: 2.9 | K88: 0 | L88: 0 | M88: 0 | N88: 0 | O88: 0 | P88: 0 | Q88: 1 | R88: bit of dried blood above eye
B89: PG SR | C89: 2017-03-06 | D89: 14:42:00 | E89: 125 | F89: 25.9 | G89: 22.2 | H89: 0.8571428571 | I89: 2.85 | J89: 2.85 | K89: 0 | L89: 0 | M89: 0 | N89: 0 | O89: 0 | P89: 0 | Q89: 1 | R89: bit of dried blood above eye
B90: PG SR | C90: 2017-03-07 | D90: 15:50:00 | E90: 126 | F90: 25.9 | G90: 22 | H90: 0.8494208494 | I90: ad lib | J90: ad lib | K90: 0 | L90: 0 | M90: 0 | N90: 0 | O90: 0 | P90: 0 | Q90: 1 | R90: bit of dried blood above eye
B91: PG SR | C91: 2017-03-08 | D91: 16:01:00 | E91: 127 | F91: 25.9 | G91: 26.2 | H91: 1.011583012 | K91: 0 | L91: 0 | M91: 0 | N91: 0 | O91: 0 | P91: 0 | Q91: 1 | R91: bit of dried blood above eye
B92: PG SR | C92: 2017-03-09 | D92: 16:07:00 | E92: 128 | F92: 25.9 | G92: 27.3 | H92: 1.054054054 | K92: 0 | L92: 0 | M92: 0 | N92: 0 | O92: 0 | P92: 0 | Q92: 0
B93: PG SR | C93: 2017-03-10 | D93: 14:13:00 | E93: 129 | F93: 25.9 | G93: 27.1 | H93: 1.046332046 | K93: 0 | L93: 0 | M93: 0 | N93: 0 | O93: 0 | P93: 0 | Q93: 1 | R93: bit of dried blood above eye
C94: 2017-03-11 | E94: 130
C95: 2017-03-12 | E95: 131
B96: AG | C96: 2017-03-13 | D96: 15:00:00 | E96: 132 | F96: 25.9 | G96: 27.5 | H96: =G96/F96 -> 1.061776062 | K96: 0 | L96: 0 | M96: 0 | N96: 0 | O96: 0 | P96: 0 | Q96: 1 | R96: bit of dried blood above eye
C97: 2017-03-14 | E97: 133
B98: MH PG | C98: 2017-03-15 | D98: 14:50:00 | E98: 134 | F98: 25.9 | G98: 27.7 | H98: 1.069498069 | K98: 0 | L98: 0 | M98: 0 | N98: 0 | O98: 0 | P98: =SUM(K98:O98) -> 0 | Q98: 1 | R98: bit of dried blood above eye
C99: 2017-03-16 | E99: 135
C100: 2017-03-17 | E100: 136 | F100: 25.9 | H100: =G100/F100 -> 0 | P100: =SUM(K100:O100) -> 0

Sheet W06
B1: Score sheet info (digital summary)
B2: Mouse W06
F3: Weight | I3: Water | K3: Scoring
B4: Experimenter | C4: Day | D4: Time | E4: Age | F4: Reference | G4: Actual | H4: Percentage | I4: Offered | J4: Consumed | K4: Activity/behavior | L4: Look/posture | M4: Shit/piss | N4: Body condition | O4: Dehydration signs | P4: Total | Q4: Implant | R4: Comment
B5: SR | C5: 2016-12-12 | D5: 14:00:00 | E5: 41 | F5: 22.2 | G5: 22.2 | H5: =G5/F5 -> 1 | K5: 0 | N5: 0 | P5: =SUM(K5:O5) -> 0
B6: SR | C6: 2016-12-13 | D6: 14:00:00 | E6: 42 | F6: 22.2 | G6: 22.7 | H6: =G6/F6 -> 1.022522523 | K6: 0 | N6: 0 | P6: =SUM(K6:O6) -> 0
B7: PG | C7: 2016-12-14 | D7: 18:00:00 | E7: 43 | F7: 22.2 | G7: 21.7 | H7: 0.9774774775 | K7: 0 | N7: 0 | P7: 0
B8: PG | C8: 2016-12-15 | D8: 15:00:00 | E8: 44 | F8: 22.2 | G8: 20.7 | H8: 0.9324324324 | K8: 0 | N8: 1 | P8: 1 | Q8: 0 | R8: Wet fur
B9: AG,SR,PG | C9: 2016-12-16 | D9: 14:30:00 | E9: 45 | F9: 22.2 | G9: 21.5 | H9: 0.9684684685 | K9: 0 | N9: 0 | P9: 0 | Q9: 0
B10: PG | C10: 2016-12-17 | D10: 14:00:00 | E10: 46 | F10: 22.2 | G10: 21.6 | H10: 0.972972973 | K10: 0 | N10: 0 | P10: 0 | Q10: 0
B11: PG | C11: 2016-12-18 | D11: 14:00:00 | E11: 47 | F11: 22.2 | G11: 21.8 | H11: 0.981981982 | K11: 1 | N11: 0 | P11: 1 | Q11: 0 | R11: Bald spot next to right eye, little bit dried blood, evidence of scratching?
B12: SR | C12: 2016-12-19 | D12: 14:00:00 | E12: 48 | F12: 22.2 | G12: 22.2 | H12: 1 | K12: 1 | N12: 0 | P12: 1 | Q12: 0 | R12: Bald spot next to right eye, something on eye lid?
B13: PG | C13: 2016-12-20 | D13: 16:00:00 | E13: 49 | F13: 22.2 | G13: 23.8 | H13: 1.072072072 | K13: 0 | N13: 0 | P13: 0 | Q13: 0 | R13: Still bald spot, but hair is growing back
B14: AG | C14: 2016-12-21 | D14: 14:00:00 | E14: 50 | F14: 22.2 | G14: 23 | H14: 1.036036036 | K14: 0 | N14: 0 | P14: 0 | Q14: 0 | R14: bald spot looks fine
B15: AG | C15: 2016-12-22 | D15: 13:45:00 | E15: 51 | F15: 22.2 | G15: 22.8 | H15: 1.027027027 | K15: 0 | N15: 0 | P15: 0 | Q15: 0 | R15: bald spot looks fine
B16: PG | C16: 2016-12-23 | D16: 13:20:00 | E16: 52 | F16: 22.2 | G16: 23.3 | H16: 1.04954955 | K16: 0 | N16: 0 | P16: 0 | Q16: 0
C17: 2016-12-24 | E17: 53
C18: 2016-12-25 | E18: 54
C19: 2016-12-26 | E19: 55
C20: 2016-12-27 | E20: 56
C21: 2016-12-28 | E21: 57
C22: 2016-12-29 | E22: 58
C23: 2016-12-30 | E23: 59
C24: 2016-12-31 | E24: 60
C25: 2017-01-01 | E25: 61
B26: AG PG | C26: 2017-01-02 | D26: 14:00:00 | E26: 62 | F26: 24.9 | G26: 24.9 | H26: 1 | I26: 1.57 | J26: 1.57 | K26: 0 | L26: 0 | M26: 0 | N26: 0 | O26: 0 | P26: 0 | Q26: 0 | R26: bald spot gone
B27: AG PG | C27: 2017-01-03 | D27: 14:30:00 | E27: 63 | F27: 24.9 | G27: 22.6 | H27: 0.9076305221 | I27: 1.57 | J27: 1.57 | K27: 0 | L27: 0 | M27: 0 | N27: 0 | O27: 0 | P27: 0 | Q27: 0
B28: AG MH | C28: 2017-01-04 | D28: 14:30:00 | E28: 64 | F28: 24.9 | G28: 22.2 | H28: 0.8915662651 | I28: 1.5 | J28: 1.5 | K28: 0 | L28: 0 | M28: 0 | N28: 0 | O28: 0 | P28: 0 | Q28: 0
B29: AG PG | C29: 2017-01-05 | D29: 14:00:00 | E29: 65 | F29: 24.9 | G29: 21.8 | H29: 0.875502008 | I29: 1.57 | J29: 1.57 | K29: 0 | L29: 0 | M29: 0 | N29: 0 | O29: 0 | P29: 0 | Q29: 0
B30: AG PG | C30: 2017-01-06 | D30: 14:00:00 | E30: 66 | F30: 24.9 | G30: 21.4 | H30: 0.859437751 | I30: 1.57 | J30: 1.57 | K30: 0 | L30: 0 | M30: 0 | N30: 0 | O30: 0 | P30: 0 | Q30: 0
B31: PG | C31: 2017-01-07 | D31: 16:00:00 | E31: 67 | F31: 24.9 | G31: 21.5 | H31: 0.8634538153 | I31: 1.57 | J31: 1.57 | K31: 0 | L31: 0 | M31: 0 | N31: 0 | O31: 0 | P31: 0 | Q31: 0
B32: AG | C32: 2017-01-08 | D32: 15:00:00 | E32: 68 | F32: 24.9 | G32: 21.5 | H32: 0.8634538153 | I32: 1.57 | J32: 1.57 | K32: 0 | L32: 0 | M32: 0 | N32: 0 | O32: 0 | P32: 0 | Q32: 0
B33: MH PG | C33: 2017-01-09 | D33: 14:30:00 | E33: 69 | F33: 24.9 | G33: 21.8 | H33: 0.875502008 | I33: 1.57 | J33: 1.57 | K33: 0 | L33: 0 | M33: 0 | N33: 0 | O33: 0 | P33: 0 | Q33: 0
B34: AG PG | C34: 2017-01-10 | D34: 14:50:00 | E34: 70 | F34: 24.9 | G34: 21.6 | H34: 0.8674698795 | I34: 1.6 | J34: 1.6 | K34: 0 | L34: 0 | M34: 0 | N34: 0 | O34: 0 | P34: 0 | Q34: 0
B35: AG SR | C35: 2017-01-11 | D35: 14:45:00 | E35: 71 | F35: 24.9 | G35: 21.8 | H35: 0.875502008 | I35: 1.4 | J35: 1.4 | K35: 0 | L35: 0 | M35: 0 | N35: 0 | O35: 0 | P35: 0 | Q35: 0
B36: SR PG | C36: 2017-01-12 | D36: 14:45:00 | E36: 72 | F36: 24.9 | G36: 21.6 | H36: 0.8674698795 | I36: 1.45 | J36: 1.45 | K36: 0 | L36: 0 | M36: 0 | N36: 0 | O36: 0 | P36: 0 | Q36: 0
B37: MH PG | C37: 2017-01-13 | D37: 14:55:00 | E37: 73 | F37: 24.9 | G37: 21.6 | H37: 0.8674698795 | I37: 1.4 | J37: 1.4 | K37: 0 | L37: 0 | M37: 0 | N37: 0 | O37: 0 | P37: 0 | Q37: 0
B38: AG MH | C38: 2017-01-14 | D38: 14:00:00 | E38: 74 | F38: 24.9 | G38: 21.5 | H38: 0.8634538153 | I38: 1.3 | J38: 1.3 | K38: 0 | L38: 0 | M38: 0 | N38: 0 | O38: 0 | P38: 0 | Q38: 0
B39: PG SR | C39: 2017-01-15 | D39: 14:25:00 | E39: 75 | F39: 24.9 | G39: 21.5 | H39: 0.8634538153 | I39: 1.3 | J39: 1.3 | K39: 0 | L39: 0 | M39: 0 | N39: 0 | O39: 0 | P39: 0 | Q39: 0
B40: MH SR | C40: 2017-01-16 | D40: 14:15:00 | E40: 76 | F40: 24.9 | G40: 21.2 | H40: 0.8514056225 | I40: 1.4 | J40: 1.4 | K40: 0 | L40: 0 | M40: 0 | N40: 0 | O40: 0 | P40: 0 | Q40: 0
B41: MH PG SR | C41: 2017-01-17 | D41: 18:06:00 | E41: 77 | F41: 24.9 | G41: 21.2 | H41: 0.8514056225 | I41: 1.4 | J41: 1.4 | K41: 0 | L41: 0 | M41: 0 | N41: 0 | O41: 0 | P41: 0 | Q41: 0
B42: MH PG | C42: 2017-01-18 | D42: 16:00:00 | E42: 78 | F42: 24.9 | G42: 21.2 | H42: 0.8514056225 | I42: 1.4 | J42: 1.4 | K42: 0 | L42: 0 | M42: 0 | N42: 0 | O42: 0 | P42: 0 | Q42: 0
B43: PG SR | C43: 2017-01-19 | D43: 15:42:00 | E43: 79 | F43: 24.9 | G43: 21.4 | H43: 0.859437751 | I43: 1.3 | J43: 1.3 | K43: 0 | L43: 0 | M43: 0 | N43: 0 | O43: 0 | P43: 0 | Q43: 0
B44: AG PG SR | C44: 2017-01-20 | D44: 15:32:00 | E44: 80 | F44: 24.9 | G44: 20.7 | H44: 0.8313253012 | I44: 1.4 | J44: 1.4 | K44: 0 | L44: 0 | M44: 0 | N44: 0 | O44: 0 | P44: 0 | Q44: 0
B45: MH SR | C45: 2017-01-21 | D45: 15:11:00 | E45: 81 | F45: 24.9 | G45: 21.3 | H45: 0.8554216867 | I45: 1.35 | J45: 1.35 | K45: 0 | L45: 0 | M45: 0 | N45: 0 | O45: 0 | P45: 0 | Q45: 0
B46: MH | C46: 2017-01-22 | D46: 14:15:00 | E46: 82 | F46: 24.9 | G46: 21.5 | H46: 0.8634538153 | I46: 1.3 | J46: 1.3 | K46: 0 | L46: 0 | M46: 0 | N46: 0 | O46: 0 | P46: 0 | Q46: 0
B47: AG PG | C47: 2017-01-23 | D47: 15:19:00 | E47: 83 | F47: 24.9 | G47: 21.5 | H47: 0.8634538153 | I47: 1.3 | J47: 1.3 | K47: 0 | L47: 0 | M47: 0 | N47: 0 | O47: 1 | P47: 1 | Q47: 0
B48: PG SR | C48: 2017-01-24 | D48: 16:05:00 | E48: 84 | F48: 24.9 | G48: 21.5 | H48: 0.8634538153 | I48: 1.25 | J48: 1.25 | K48: 0 | L48: 0 | M48: 0 | N48: 0 | O48: 1 | P48: 1 | Q48: 0
B49: AG SR | C49: 2017-01-25 | D49: 15:13:00 | E49: 85 | F49: 24.9 | G49: 21.8 | H49: 0.875502008 | I49: 1.2 | J49: 1.25 | K49: 0 | L49: 0 | M49: 0 | N49: 0 | O49: 0 | P49: 0 | Q49: 0
B50: AG SR | C50: 2017-01-26 | D50: 15:21:00 | E50: 86 | F50: 24.9 | G50: 21.7 | H50: 0.8714859438 | I50: 1.15 | J50: 1.15 | K50: 0 | L50: 0 | M50: 0 | N50: 0 | O50: 0 | P50: 0 | Q50: 0
B51: MH PG | C51: 2017-01-27 | D51: 15:33:00 | E51: 87 | F51: 24.9 | G51: 21.5 | H51: 0.8634538153 | I51: 1.1 | J51: 1.1 | K51: 0 | L51: 0 | M51: 0 | N51: 0 | O51: 1 | P51: 1 | Q51: 0
B52: MH PG | C52: 2017-01-28 | D52: 15:18:00 | E52: 88 | F52: 24.9 | G52: 21 | H52: 0.843373494 | I52: 1.2 | J52: 1.2 | K52: 0 | L52: 0 | M52: 0 | N52: 0 | O52: 0 | P52: 0 | Q52: 0
B53: PG | C53: 2017-01-29 | D53: 14:55:00 | E53: 89 | F53: 24.9 | G53: 20.6 | H53: 0.8273092369 | I53: 1.3 | J53: 1.3 | K53: 0 | L53: 0 | M53: 0 | N53: 0 | O53: 1 | P53: 1 | Q53: 0
B54: AG SR PG | C54: 2017-01-30 | D54: 15:23:00 | E54: 90 | F54: 24.9 | G54: 20.6 | H54: 0.8273092369 | I54: 1.4 | J54: 1.4 | K54: 0 | L54: 1 | M54: 0 | N54: 0 | O54: 0 | P54: 1 | Q54: 0
B55: AG PG | C55: 2017-01-31 | D55: 15:04:00 | E55: 91 | F55: 24.9 | G55: 20.3 | H55: 0.8152610442 | I55: 1.6 | J55: 1.6 | K55: 0 | L55: 1 | M55: 0 | N55: 0 | O55: 0 | P55: 1 | Q55: 0
B56: PG SR | C56: 2017-02-01 | D56: 15:34:00 | E56: 92 | F56: 24.9 | G56: 19.9 | H56: 0.7991967871 | I56: 2.38 | J56: 2.38 | K56: 0 | L56: 1 | M56: 0 | N56: 0 | O56: 1 | P56: 2 | Q56: 0
B57: AG PG | C57: 2017-02-02 | D57: 15:16:00 | E57: 93 | F57: 24.9 | G57: 20.3 | H57: 0.8152610442 | I57: 0.89 | J57: 0.89 | K57: 0 | L57: 1 | M57: 0 | N57: 0 | O57: 0 | P57: 0 | Q57: 0
B58: PG SR | C58: 2017-02-03 | D58: 14:49:00 | E58: 94 | F58: 24.9 | G58: 19.5 | H58: 0.7831325301 | I58: 3 | J58: 3 | K58: 0 | L58: 1 | M58: 0 | N58: 0 | O58: 1 | P58: 2 | Q58: 0
B59: AG PG | C59: 2017-02-04 | D59: 15:08:00 | E59: 95 | F59: 24.9 | G59: 20 | H59: 0.8032128514 | I59: 3 | J59: 3 | K59: 0 | L59: 1 | M59: 0 | N59: 0 | O59: 1 | P59: 2 | Q59: 0
B60: SR | C60: 2017-02-05 | D60: 15:43:00 | E60: 96 | F60: 24.9 | G60: 20.3 | H60: 0.8152610442 | I60: 3 | J60: 3 | K60: 0 | L60: 1 | M60: 0 | N60: 0 | O60: 1 | P60: 2 | Q60: 0
B61: AG PG | C61: 2017-02-06 | D61: 15:12:00 | E61: 97 | F61: 24.9 | G61: 21 | H61: 0.843373494 | I61: 1.8 | J61: 1.8 | K61: 0 | L61: 0 | M61: 0 | N61: 0 | O61: 1 | P61: 1 | Q61: 0
B62: PG SR | C62: 2017-02-07 | D62: 15:28:00 | E62: 98 | F62: 24.9 | G62: 20.3 | H62: 0.8152610442 | I62: 2.4 | J62: 2.4 | K62: 0 | L62: 1 | M62: 0 | N62: 0 | O62: 0 | P62: 1 | Q62: 0
B63: MH PG | C63: 2017-02-08 | D63: 15:20:00 | E63: 99 | F63: 24.9 | G63: 20.5 | H63: 0.8232931727 | I63: 2.4 | J63: 2.4 | K63: 0 | L63: 0 | M63: 0 | N63: 0 | O63: 1 | P63: 1 | Q63: 0
B64: AG PG | C64: 2017-02-09 | D64: 15:13:00 | E64: 100 | F64: 24.9 | G64: 20.4 | H64: 0.8192771084 | I64: 2.6 | J64: 2.6 | K64: 0 | L64: 0 | M64: 0 | N64: 0 | O64: 0 | P64: 0 | Q64: 0
B65: PG SR | C65: 2017-02-10 | D65: 14:53:00 | E65: 101 | F65: 24.9 | G65: 20.4 | H65: 0.8192771084 | I65: 2.8 | J65: 2.8 | K65: 0 | L65: 0 | M65: 0 | N65: 0 | O65: 0 | P65: 0 | Q65: 0
B66: PG SR | C66: 2017-02-11 | D66: 15:22:00 | E66: 102 | F66: 24.9 | G66: 20.3 | H66: 0.8152610442 | I66: 3 | J66: 3 | K66: 0 | L66: 0 | M66: 0 | N66: 0 | O66: 0 | P66: 0 | Q66: 0
B67: PG SR | C67: 2017-02-12 | D67: 15:18:00 | E67: 103 | F67: 24.9 | G67: 20.3 | H67: 0.8152610442 | I67: 3.1 | J67: 3.1 | K67: 0 | L67: 0 | M67: 0 | N67: 0 | O67: 1 | P67: 1 | Q67: 0
B68: MH PG | C68: 2017-02-13 | D68: 15:06:00 | E68: 104 | F68: 24.9 | G68: 20.7 | H68: 0.8313253012 | I68: 3.1 | J68: 3.1 | K68: 0 | L68: 1 | M68: 0 | N68: 0 | O68: 1 | P68: 2 | Q68: 0
B69: PG SR | C69: 2017-02-14 | D69: 15:27:00 | E69: 105 | F69: 24.9 | G69: 20.9 | H69: 0.8393574297 | I69: 3.2 | J69: 3.2 | K69: 0 | L69: 0 | M69: 0 | N69: 0 | O69: 1 | P69: 1 | Q69: 0
B70: MH PG | C70: 2017-02-15 | D70: 15:24:00 | E70: 106 | F70: 24.9 | G70: 20.9 | H70: =G70/F70 -> 0.8393574297 | I70: 3.3 | J70: 3.3 | K70: 0 | L70: 0 | M70: 0 | N70: 0 | O70: 0 | P70: =SUM(K70:O70) -> 0 | Q70: 0
B71: PG SR | C71: 2017-02-16 | D71: 15:34:00 | E71: 107 | F71: 24.9 | G71: 20.7 | H71: 0.8313253012 | I71: 3.5 | J71: 3.5 | K71: 0 | L71: 0 | M71: 0 | N71: 0 | O71: 1 | P71: 1 | Q71: 0
B72: AG PG | C72: 2017-02-17 | D72: 15:37:00 | E72: 108 | F72: 24.9 | G72: 20.7 | H72: 0.8313253012 | I72: 3.7 | J72: 3.7 | K72: 0 | L72: 0 | M72: 0 | N72: 0 | O72: 0 | P72: 0 | Q72: 0
B73: PG SR | C73: 2017-02-18 | D73: 15:26:00 | E73: 109 | F73: 24.9 | G73: 21.3 | H73: 0.8554216867 | I73: 3.6 | J73: 3.6 | K73: 0 | L73: 0 | M73: 0 | N73: 0 | O73: 0 | P73: 0 | Q73: 0
B74: MH | C74: 2017-02-19 | D74: 16:05:00 | E74: 110 | F74: 24.9 | G74: 21.2 | H74: 0.8514056225 | I74: 3.65 | J74: 3.65 | K74: 0 | L74: 0 | M74: 0 | N74: 0 | O74: 0 | P74: 0 | Q74: 0
B75: PG SR | C75: 2017-02-20 | D75: 15:42:00 | E75: 111 | F75: 24.9 | G75: 21 | H75: 0.843373494 | I75: 3.7 | J75: 3.7 | K75: 0 | L75: 0 | M75: 0 | N75: 0 | O75: 1 | P75: 1 | Q75: 0
B76: AG PG | C76: 2017-02-21 | D76: 15:39:00 | E76: 112 | F76: 24.9 | G76: 21.3 | H76: 0.8554216867 | I76: 3.65 | J76: 3.65 | K76: 0 | L76: 0 | M76: 0 | N76: 0 | O76: 1 | P76: 1 | Q76: 0
B77: PG MH | C77: 2017-02-22 | D77: 15:25:00 | E77: 113 | F77: 24.9 | G77: 21.9 | H77: 0.8795180723 | I77: 3.55 | J77: 3.55 | K77: 0 | L77: 0 | M77: 0 | N77: 0 | O77: 1 | P77: 1 | Q77: 0
B78: AG PG | C78: 2017-02-23 | D78: 15:18:00 | E78: 114 | F78: 24.9 | G78: 21.7 | H78: 0.8714859438 | I78: 3.45 | J78: 3.45 | K78: 0 | L78: 0 | M78: 0 | N78: 0 | O78: 1 | P78: 1 | Q78: 0
B79: MH PG | C79: 2017-02-24 | D79: 15:15:00 | E79: 115 | F79: 24.9 | G79: 21.7 | H79: 0.8714859438 | I79: 3.3 | J79: 3.3 | K79: 0 | L79: 0 | M79: 0 | N79: 0 | O79: 0 | P79: 0 | Q79: 0
B80: AG PG | C80: 2017-02-25 | D80: 15:07:00 | E80: 116 | F80: 24.9 | G80: 21.7 | H80: 0.8714859438 | I80: 3.1 | J80: 3.1 | K80: 0 | L80: 0 | M80: 0 | N80: 0 | O80: 0 | P80: 0 | Q80: 0
B81: AG | C81: 2017-02-26 | D81: 15:45:00 | E81: 117 | F81: 24.9 | G81: 20.9 | H81: 0.8393574297 | I81: 3.2 | J81: 3.2 | K81: 0 | L81: 0 | M81: 0 | N81: 0 | O81: 1 | P81: 1 | Q81: 0
B82: MH PG | C82: 2017-02-27 | D82: 15:14:00 | E82: 118 | F82: 24.9 | G82: 21 | H82: 0.843373494 | I82: 3.2 | J82: 3.2 | K82: 0 | L82: 0 | M82: 0 | N82: 0 | O82: 1 | P82: 1 | Q82: 0
B83: AG PG | C83: 2017-02-28 | D83: 15:18:00 | E83: 119 | F83: 24.9 | G83: 20.8 | H83: 0.8353413655 | I83: 3.3 | J83: 3.3 | K83: 0 | L83: 0 | M83: 0 | N83: 0 | O83: 1 | P83: 1 | Q83: 0
B84: MH PG | C84: 2017-03-01 | D84: 15:20:00 | E84: 120 | F84: 24.9 | G84: 20.4 | H84: =G84/F84 -> 0.8192771084 | I84: 3.6 | J84: 3.6 | K84: 0 | L84: 0 | M84: 0 | N84: 0 | O84: 1 | P84: =SUM(K84:O84) -> 1 | Q84: 0
B85: AG PG | C85: 2017-03-02 | D85: 15:23:00 | E85: 121 | F85: 24.9 | G85: 20.3 | H85: 0.8152610442 | I85: 3.8 | J85: 3.8 | K85: 0 | L85: 0 | M85: 0 | N85: 0 | O85: 1 | P85: 1 | Q85: 0
B86: PG SR | C86: 2017-03-03 | D86: 15:29:00 | E86: 122 | F86: 24.9 | G86: 20.6 | H86: 0.8273092369 | I86: 3.8 | J86: 3.8 | K86: 0 | L86: 0 | M86: 0 | N86: 0 | O86: 0 | P86: 0 | Q86: 0
B87: PG | C87: 2017-03-04 | D87: 17:15:00 | E87: 123 | F87: 24.9 | G87: 20.9 | H87: 0.8393574297 | I87: 3.8 | J87: 3.8 | K87: 0 | L87: 0 | M87: 0 | N87: 0 | O87: 1 | P87: 1 | Q87: 0
B88: SR | C88: 2017-03-05 | D88: 17:26:00 | E88: 124 | F88: 24.9 | G88: 20.8 | H88: 0.8353413655 | I88: 3.8 | J88: 3.8 | K88: 0 | L88: 0 | M88: 0 | N88: 0 | O88: 0 | P88: 0 | Q88: 0
B89: PG SR | C89: 2017-03-06 | D89: 16:00:00 | E89: 125 | F89: 24.9 | G89: 21.4 | H89: 0.859437751 | I89: 3.7 | J89: 3.7 | K89: 0 | L89: 0 | M89: 0 | N89: 0 | O89: 1 | P89: 1 | Q89: 0
B90: PG SR | C90: 2017-03-07 | D90: 15:51:00 | E90: 126 | F90: 24.9 | G90: 21.4 | H90: 0.859437751 | I90: 3.6 | J90: 3.6 | K90: 0 | L90: 0 | M90: 0 | N90: 0 | O90: 1 | P90: 1 | Q90: 0
B91: PG SR | C91: 2017-03-08 | D91: 16:07:00 | E91: 127 | F91: 24.9 | G91: 20.8 | H91: 0.8353413655 | I91: 3.7 | J91: 3.7 | K91: 0 | L91: 0 | M91: 0 | N91: 0 | O91: 1 | P91: 1 | Q91: 0
B92: PG SR | C92: 2017-03-09 | D92: 16:09:00 | E92: 128 | F92: 24.9 | G92: 21.5 | H92: 0.8634538153 | I92: ad lib | J92: ad lib | K92: 0 | L92: 0 | M92: 0 | N92: 0 | O92: 0 | P92: 0 | Q92: 0
B93: PG SR | C93: 2017-03-10 | D93: 14:14:00 | E93: 129 | F93: 24.9 | G93: 24.1 | H93: 0.9678714859 | K93: 0 | L93: 0 | M93: 0 | N93: 0 | O93: 0 | P93: 0 | Q93: 0
C94: 2017-03-11 | E94: 130 | P94: =SUM(K94:O94) -> 0
C95: 2017-03-12 | E95: 131 | P95: 0
B96: AG | C96: 2017-03-13 | D96: 15:00:00 | E96: 132 | F96: 24.9 | G96: 25.8 | H96: =G96/F96 -> 1.036144578 | K96: 0 | L96: 0 | M96: 0 | N96: 0 | O96: 0 | P96: 0 | Q96: 0
C97: 2017-03-14 | E97: 133 | P97: 0
B98: MH PG | C98: 2017-03-15 | D98: 14:51:00 | E98: 134 | F98: 24.9 | G98: 25.8 | H98: 1.036144578 | K98: 0 | L98: 0 | M98: 0 | N98: 0 | O98: 0 | P98: 0 | Q98: 0
C99: 2017-03-16 | E99: 135 | P99: =SUM(K99:O99) -> 0
C100: 2017-03-17 | E100: 136 | F100: 24.9 | H100: =G100/F100 -> 0 | P100: 0

Sheet W07
B1: Score sheet info (digital summary)
B2: Mouse W07
F3: Weight | I3: Food | K3: Scoring
B4: Experimenter | C4: Day | D4: Time | E4: Age | F4: Reference | G4: Actual | H4: Percentage | I4: Offered | J4: Consumed | K4: Activity/behavior | L4: Look/posture | M4: Shit/piss | N4: Body condition | O4: Dehydration signs | P4: Total | Q4: Implant | R4: Comment
B5: SR | C5: 2016-12-12 | D5: 14:00:00 | E5: 41 | F5: 22 | G5: 21.3 | H5: =G5/F5 -> 0.9681818182 | K5: 0 | N5: 0 | P5: =SUM(K5:O5) -> 0
B6: SR | C6: 2016-12-13 | D6: 14:00:00 | E6: 42 | F6: 22 | G6: 22.4 | H6: =G6/F6 -> 1.018181818 | K6: 0 | N6: 0 | P6: =SUM(K6:O6) -> 0
B7: PG | C7: 2016-12-14 | D7: 18:00:00 | E7: 43 | F7: 22 | G7: 22.9 | H7: 1.040909091 | K7: 0 | N7: 0 | P7: 0
B8: PG | C8: 2016-12-15 | D8: 15:00:00 | E8: 44 | F8: 22 | G8: 21.5 | H8: 0.9772727273 | K8: 0 | N8: 0 | P8: 0
B9: AG,SR,PG | C9: 2016-12-16 | D9: 14:30:00 | E9: 45 | F9: 22 | G9: 20.8 | H9: 0.9454545455 | K9: 0 | N9: 1 | P9: 1 | Q9: 0 | R9: Wet fur
B10: PG | C10: 2016-12-17 | D10: 14:00:00 | E10: 46 | F10: 22 | G10: 21.7 | H10: 0.9863636364 | K10: 0 | N10: 0 | P10: 0 | Q10: 0
B11: PG | C11: 2016-12-18 | D11: 14:00:00 | E11: 47 | F11: 22 | G11: 22.3 | H11: 1.013636364 | K11: 0 | N11: 0 | P11: 0 | Q11: 0
B12: SR | C12: 2016-12-19 | D12: 14:00:00 | E12: 48 | F12: 22 | G12: 23.1 | H12: 1.05 | K12: 0 | N12: 0 | P12: 0 | Q12: 0
B13: PG | C13: 2016-12-20 | D13: 16:00:00 | E13: 49 | F13: 22 | G13: 22.7 | H13: 1.031818182 | K13: 0 | N13: 0 | P13: 0 | Q13: 0
B14: AG | C14: 2016-12-21 | D14: 14:00:00 | E14: 50 | F14: 22 | G14: 23.1 | H14: 1.05 | K14: 0 | N14: 0 | P14: 0 | Q14: 0
B15: AG | C15: 2016-12-22 | D15: 13:45:00 | E15: 51 | F15: 22 | G15: 22.7 | H15: 1.031818182 | K15: 0 | N15: 0 | P15: 0 | Q15: 0
B16: PG | C16: 2016-12-23 | D16: 13:20:00 | E16: 52 | F16: 22 | G16: 22.9 | H16: 1.040909091 | K16: 0 | N16: 0 | P16: 0 | Q16: 0
C17: 2016-12-24 | E17: 53
C18: 2016-12-25 | E18: 54
C19: 2016-12-26 | E19: 55
C20: 2016-12-27 | E20: 56
C21: 2016-12-28 | E21: 57
C22: 2016-12-29 | E22: 58
C23: 2016-12-30 | E23: 59
C24: 2016-12-31 | E24: 60
C25: 2017-01-01 | E25: 61
B26: AG PG | C26: 2017-01-02 | D26: 14:00:00 | E26: 62 | F26: 23.3 | G26: 23.3 | H26: 1 | I26: 2 | J26: 2 | K26: 0 | L26: 0 | M26: 0 | N26: 0 | O26: 0 | P26: 0 | Q26: 0
B27: AG PG | C27: 2017-01-03 | D27: 14:30:00 | E27: 63 | F27: 23.3 | G27: 21 | H27: 0.9012875536 | I27: 2.2 | J27: 2.2 | K27: 0 | L27: 0 | M27: 0 | N27: 0 | O27: 0 | P27: 0 | Q27: 0
B28: AG MH | C28: 2017-01-04 | D28: 14:30:00 | E28: 64 | F28: 23.3 | G28: 20.4 | H28: 0.8755364807 | I28: 2.7 | J28: 2.7 | K28: 0 | L28: 0 | M28: 0 | N28: 0 | O28: 0 | P28: 0 | Q28: 0
B29: AG PG | C29: 2017-01-05 | D29: 14:00:00 | E29: 65 | F29: 23.3 | G29: 19.9 | H29: 0.8540772532 | I29: 3.3 | J29: 3.3 | K29: 0 | L29: 1 | M29: 0 | N29: 0 | O29: 0 | P29: 1 | Q29: 0 | R29: Looks a bit thin
B30: AG PG | C30: 2017-01-06 | D30: 14:00:00 | E30: 66 | F30: 23.3 | G30: 20 | H30: 0.8583690987 | I30: 3.1 | J30: 3.1 | K30: 0 | L30: 0 | M30: 0 | N30: 0 | O30: 0 | P30: 0 | Q30: 0
B31: PG | C31: 2017-01-07 | D31: 16:00:00 | E31: 67 | F31: 23.3 | G31: 19.5 | H31: 0.8369098712 | I31: 3.65 | J31: 3.65 | K31: 0 | L31: 0 | M31: 0 | N31: 0 | O31: 0 | P31: 0 | Q31: 0
B32: AG | C32: 2017-01-08 | D32: 15:00:00 | E32: 68 | F32: 23.3 | G32: 20.6 | H32: 0.8841201717 | I32: 3 | J32: 3 | K32: 0 | L32: 0 | M32: 0 | N32: 0 | O32: 0 | P32: 0 | Q32: 0
B33: MH PG | C33: 2017-01-09 | D33: 15:00:00 | E33: 69 | F33: 23.3 | G33: 19.8 | H33: 0.8497854077 | I33: 3.65 | J33: 3.65 | K33: 0 | L33: 0 | M33: 0 | N33: 0 | O33: 0 | P33: 0 | Q33: 0
B34: AG PG | C34: 2017-01-10 | D34: 14:50:00 | E34: 70 | F34: 23.3 | G34: 20.2 | H34: 0.8669527897 | I34: 3.4 | J34: 3.4 | K34: 0 | L34: 0 | M34: 0 | N34: 0 | O34: 0 | P34: 0 | Q34: 0
B35: AG SR | C35: 2017-01-11 | D35: 14:45:00 | E35: 71 | F35: 23.3 | G35: 19.9 | H35: 0.8540772532 | I35: 3.95 | J35: 3.95 | K35: 0 | L35: 0 | M35: 0 | N35: 0 | O35: 0 | P35: 0 | Q35: 0
B36: SR PG | C36: 2017-01-12 | D36: 15:30:00 | E36: 72 | F36: 23.3 | G36: 20 | H36: 0.8583690987 | I36: 3.93 | J36: 3.93 | K36: 0 | L36: 0 | M36: 0 | N36: 0 | O36: 0 | P36: 0 | Q36: 0
B37: MH PG | C37: 2017-01-13 | D37: 15:25:00 | E37: 73 | F37: 23.3 | G37: 20.3 | H37: 0.8712446352 | I37: 3.8 | J37: 3.8 | K37: 0 | L37: 0 | M37: 0 | N37: 0 | O37: 0 | P37: 0 | Q37: 0
B38: AG MH | C38: 2017-01-14 | D38: 14:30:00 | E38: 74 | F38: 23.3 | G38: 20.1 | H38: 0.8626609442 | I38: 4 | J38: 4 | K38: 0 | L38: 0 | M38: 0 | N38: 0 | O38: 0 | P38: 0 | Q38: 0
B39: PG SR | C39: 2017-01-15 | D39: 15:00:00 | E39: 75 | F39: 23.3 | G39: 20.1 | H39: 0.8626609442 | I39: 4.25 | J39: 4.25 | K39: 0 | L39: 0 | M39: 0 | N39: 0 | O39: 0 | P39: 0 | Q39: 0
B40: MH SR | C40: 2017-01-16 | D40: 15:05:00 | E40: 76 | F40: 23.3 | G40: 19.6 | H40: 0.8412017167 | I40: 4.4 | J40: 4.4 | K40: 0 | L40: 0 | M40: 0 | N40: 0 | O40: 0 | P40: 0 | Q40: 0
B41: MH PG SR | C41: 2017-01-17 | D41: 18:12:00 | E41: 77 | F41: 23.3 | G41: 19.5 | H41: 0.8369098712 | I41: 5.23 | J41: 5.23 | K41: 0 | L41: 0 | M41: 0 | N41: 0 | O41: 0 | P41: 0 | Q41: 0
B42: MH PG | C42: 2017-01-18 | D42: 16:10:00 | E42: 78 | F42: 23.3 | G42: 20.3 | H42: 0.8712446352 | I42: 4.74 | J42: 4.74 | K42: 0 | L42: 0 | M42: 0 | N42: 0 | O42: 0 | P42: 0 | Q42: 0
B43: PG SR | C43: 2017-01-19 | D43: 15:44:00 | E43: 79 | F43: 23.3 | G43: 20 | H43: 0.8583690987 | I43: 3.3 | J43: 3.3 | K43: 0 | L43: 0 | M43: 0 | N43: 0 | O43: 0 | P43: 0 | Q43: 0
B44: AG PG SR | C44: 2017-01-20 | D44: 15:35:00 | E44: 80 | F44: 23.3 | G44: 20.3 | H44: 0.8712446352 | I44: 3.2 | J44: 3.2 | K44: 0 | L44: 0 | M44: 0 | N44: 0 | O44: 0 | P44: 0 | Q44: 0
B45: MH SR | C45: 2017-01-21 | D45: 15:14:00 | E45: 81 | F45: 23.3 | G45: 20.1 | H45: 0.8626609442 | I45: 3.2 | J45: 3.2 | K45: 0 | L45: 0 | M45: 0 | N45: 0 | O45: 0 | P45: 0 | Q45: 0
B46: MH | C46: 2017-01-22 | D46: 14:53:00 | E46: 82 | F46: 23.3 | G46: 20.5 | H46: 0.8798283262 | I46: 3.13 | J46: 3.13 | K46: 0 | L46: 0 | M46: 0 | N46: 0 | O46: 0 | P46: 0 | Q46: 0
B47: AG PG | C47: 2017-01-23 | D47: 15:19:00 | E47: 83 | F47: 23.3 | G47: 20.2 | H47: 0.8669527897 | I47: 3.2 | J47: 3.2 | K47: 0 | L47: 0 | M47: 0 | N47: 0 | O47: 0 | P47: 0 | Q47: 0
B48: PG SR | C48: 2017-01-24 | D48: 16:07:00 | E48: 84 | F48: 23.3 | G48: 20.1 | H48: 0.8626609442 | I48: 3.1 | J48: 3.1 | K48: 0 | L48: 0 | M48: 0 | N48: 0 | O48: 0 | P48: 0 | Q48: 0
B49: AG SR | C49: 2017-01-25 | D49: 15:17:00 | E49: 85 | F49: 23.3 | G49: 20.5 | H49: 0.8798283262 | I49: 3 | J49: 3 | K49: 0 | L49: 0 | M49: 0 | N49: 0 | O49: 0 | P49: 0 | Q49: 0
B50: AG SR | C50: 2017-01-26 | D50: 15:21:00 | E50: 86 | F50: 23.3 | G50: 20.1 | H50: 0.8626609442 | I50: 3 | J50: 3 | K50: 0 | L50: 0 | M50: 0 | N50: 0 | O50: 0 | P50: 0 | Q50: 0
B51: MH PG | C51: 2017-01-27 | D51: 15:46:00 | E51: 87 | F51: 23.3 | G51: 20.1 | H51: 0.8626609442 | I51: 2.8 | J51: 2.8 | K51: 0 | L51: 0 | M51: 0 | N51: 0 | O51: 0 | P51: 0 | Q51: 0
B52: MH PG | C52: 2017-01-28 | D52: 15:43:00 | E52: 88 | F52: 23.3 | G52: 20.4 | H52: 0.8755364807 | I52: 2.7 | J52: 2.7 | K52: 0 | L52: 0 | M52: 0 | N52: 0 | O52: 1 | P52: 1 | Q52: 0
B53: PG | C53: 2017-01-29 | D53: 15:00:00 | E53: 89 | F53: 23.3 | G53: 20.2 | H53: 0.8669527897 | I53: 2.7 | J53: 2.7 | K53: 0 | L53: 0 | M53: 0 | N53: 0 | O53: 0 | P53: 0 | Q53: 0
B54: AG SR PG | C54: 2017-01-30 | D54: 15:31:00 | E54: 90 | F54: 23.3 | G54: 19.7 | H54: 0.8454935622 | I54: 2.75 | J54: 2.75 | K54: 0 | L54: 0 | M54: 0 | N54: 0 | O54: 0 | P54: 0 | Q54: 0
B55: AG PG | C55: 2017-01-31 | D55: 15:14:00 | E55: 91 | F55: 23.3 | G55: 20.3 | H55: 0.8712446352 | I55: 2.65 | J55: 2.65 | K55: 0 | L55: 0 | M55: 0 | N55: 0 | O55: 0 | P55: 0 | Q55: 0
B56: PG SR | C56: 2017-02-01 | D56: 15:42:00 | E56: 92 | F56: 23.3 | G56: 20 | H56: 0.8583690987 | I56: 2.7 | J56: 2.7 | K56: 0 | L56: 0 | M56: 0 | N56: 0 | O56: 0 | P56: 0 | Q56: 0
B57: AG PG | C57: 2017-02-02 | D57: 15:17:00 | E57: 93 | F57: 23.3 | G57: 20.2 | H57: 0.8669527897 | I57: 2.65 | J57: 2.65 | K57: 0 | L57: 0 | M57: 0 | N57: 0 | O57: 0 | P57: 0 | Q57: 1 | R57: rim of dirt above right eye
B58: PG SR | C58: 2017-02-03 | D58: 14:48:00 | E58: 94 | F58: 23.3 | G58: 20.5 | H58: 0.8798283262 | I58: 2.55 | J58: 2.55 | K58: 0 | L58: 0 | M58: 0 | N58: 0 | O58: 0 | P58: 0 | Q58: 1 | R58: rim of dirt above right eye
B59: AG PG | C59: 2017-02-04 | D59: 15:10:00 | E59: 95 | F59: 23.3 | G59: 20.1 | H59: 0.8626609442 | I59: 2.55 | J59: 2.55 | K59: 0 | L59: 0 | M59: 0 | N59: 0 | O59: 0 | P59: 0 | Q59: 1 | R59: rim of dirt above right eye
B60: SR | C60: 2017-02-05 | D60: 15:44:00 | E60: 96 | F60: 23.3 | G60: 19.7 | H60: 0.8454935622 | I60: 2.6 | J60: 2.6 | K60: 0 | L60: 0 | M60: 0 | N60: 0 | O60: 1 | P60: 1 | Q60: 1 | R60: rim of dirt above right eye
B61: AG PG | C61: 2017-02-06 | D61: 15:14:00 | E61: 97 | F61: 23.3 | G61: 19.8 | H61: 0.8497854077 | I61: 2.55 | J61: 2.55 | K61: 0 | L61: 0 | M61: 0 | N61: 0 | O61: 0 | P61: 0 | Q61: 1 | R61: rim of dirt above right eye
B62: PG SR | C62: 2017-02-07 | D62: 15:30:00 | E62: 98 | F62: 23.3 | G62: 20.1 | H62: 0.8626609442 | I62: 2.5 | J62: 2.4 | K62: 0 | L62: 0 | M62: 0 | N62: 0 | O62: 0 | P62: 0 | Q62: 1 | R62: rim of dirt above right eye
B63: MH PG | C63: 2017-02-08 | D63: 15:23:00 | E63: 99 | F63: 23.3 | G63: 20.3 | H63: 0.8712446352 | I63: 2.4 | J63: 2.4 | K63: 0 | L63: 0 | M63: 0 | N63: 0 | O63: 0 | P63: 0 | Q63: 1 | R63: rim of dirt above right eye
B64: AG PG | C64: 2017-02-09 | D64: 15:15:00 | E64: 100 | F64: 23.3 | G64: 19.9 | H64: 0.8540772532 | I64: 2.45 | J64: 2.45 | K64: 0 | L64: 0 | M64: 0 | N64: 0 | O64: 0 | P64: 0 | Q64: 1 | R64: rim of dirt above right eye
B65: PG SR | C65: 2017-02-10 | D65: 14:52:00 | E65: 101 | F65: 23.3 | G65: 20 | H65: 0.8583690987 | I65: 2.4 | J65: 2.4 | K65: 0 | L65: 0 | M65: 0 | N65: 0 | O65: 0 | P65: 0 | Q65: 0
B66: PG SR | C66: 2017-02-11 | D66: 15:24:00 | E66: 102 | F66: 23.3 | G66: 19.8 | H66: 0.8497854077 | I66: 2.45 | J66: 2.45 | K66: 0 | L66: 0 | M66: 0 | N66: 0 | O66: 0 | P66: 0 | Q66: 1 | R66: rim of dirt above right eye
B67: PG SR | C67: 2017-02-12 | D67: 15:20:00 | E67: 103 | F67: 23.3 | G67: 19.9 | H67: 0.8540772532 | I67: 2.4 | J67: 2.4 | K67: 0 | L67: 0 | M67: 0 | N67: 0 | O67: 0 | P67: 0 | Q67: 1 | R67: rim of dirt above right eye
B68: MH PG | C68: 2017-02-13 | D68: 15:07:00 | E68: 104 | F68: 23.3 | G68: 19.8 | H68: 0.8497854077 | I68: 2.45 | J68: 2.45 | K68: 0 | L68: 0 | M68: 0 | N68: 0 | O68: 0 | P68: 0 | Q68: 1 | R68: rim of dirt above right eye
B69: PG SR | C69: 2017-02-14 | D69: 15:29:00 | E69: 105 | F69: 23.3 | G69: 19.9 | H69: 0.8540772532 | I69: 2.4 | J69: 2.4 | K69: 0 | L69: 0 | M69: 0 | N69: 0 | O69: 0 | P69: 0 | Q69: 1 | R69: rim of dirt above right eye
B70: MH PG | C70: 2017-02-15 | D70: 15:23:00 | E70: 106 | F70: 23.3 | G70: 19.9 | H70: =G70/F70 -> 0.8540772532 | I70: 2.4 | J70: 2.4 | K70: 0 | L70: 0 | M70: 0 | N70: 0 | O70: 0 | P70: =SUM(K70:O70) -> 0 | Q70: 1 | R70: rim of dirt above right eye
B71: PG SR | C71: 2017-02-16 | D71: 15:37:00 | E71: 107 | F71: 23.3 | G71: 19.6 | H71: 0.8412017167 | I71: 2.45 | J71: 2.45 | K71: 0 | L71: 0 | M71: 0 | N71: 0 | O71: 0 | P71: 0 | Q71: 1 | R71: rim of dirt above right eye
B72: AG PG | C72: 2017-02-17 | D72: 15:40:00 | E72: 108 | F72: 23.3 | G72: 19.8 | H72: 0.8497854077 | I72: 2.45 | J72: 2.45 | K72: 0 | L72: 0 | M72: 0 | N72: 0 | O72: 0 | P72: 0 | Q72: 1 | R72: rim of dirt above right eye
B73: PG SR | C73: 2017-02-18 | D73: 15:28:00 | E73: 109 | F73: 23.3 | G73: 19.8 | H73: 0.8497854077 | I73: 2.45 | J73: 2.45 | K73: 0 | L73: 0 | M73: 0 | N73: 0 | O73: 0 | P73: 0 | Q73: 0
B74: MH | C74: 2017-02-19 | D74: 16:45:00 | E74: 110 | F74: 23.3 | G74: 19.6 | H74: 0.8412017167 | I74: 2.5 | J74: 2.5 | K74: 0 | L74: 0 | M74: 0 | N74: 0 | O74: 0 | P74: 0 | Q74: 0
B75: PG SR | C75: 2017-02-20 | D75: 15:45:00 | E75: 111 | F75: 23.3 | G75: 19.7 | H75: 0.8454935622 | I75: 2.5 | J75: 2.5 | K75: 0 | L75: 0 | M75: 0 | N75: 0 | O75: 0 | P75: 0 | Q75: 1 | R75: rim of dirt above right eye
B76: AG PG | C76: 2017-02-21 | D76: 15:42:00 | E76: 112 | F76: 23.3 | G76: 20 | H76: 0.8583690987 | I76: 2.45 | J76: 2.45 | K76: 0 | L76: 0 | M76: 0 | N76: 0 | O76: 0 | P76: 0 | Q76: 1 | R76: rim of dirt above right eye
B77: PG MH | C77: 2017-02-22 | D77: 15:26:00 | E77: 113 | F77: 23.3 | G77: 19.9 | H77: 0.8540772532 | I77: 2.45 | J77: 2.45 | K77: 0 | L77: 0 | M77: 0 | N77: 0 | O77: 0 | P77: 0 | Q77: 0
B78: AG PG | C78: 2017-02-23 | D78: 15:20:00 | E78: 114 | F78: 23.3 | G78: 18.8 | H78: 0.8068669528 | I78: 2.85 | J78: 2.85 | K78: 0 | L78: 0 | M78: 0 | N78: 0 | O78: 1 | P78: 1 | Q78: 0
B79: MH PG | C79: 2017-02-24 | D79: 15:16:00 | E79: 115 | F79: 23.3 | G79: 20 | H79: 0.8583690987 | I79: 2.45 | J79: 2.45 | K79: 0 | L79: 0 | M79: 0 | N79: 0 | O79: 0 | P79: 0 | Q79: 0
B80: AG PG | C80: 2017-02-25 | D80: 15:09:00 | E80: 116 | F80: 23.3 | G80: 19.6 | H80: 0.8412017167 | I80: 2.5 | J80: 2.5 | K80: 0 | L80: 0 | M80: 0 | N80: 0 | O80: 0 | P80: 0 | Q80: 0
B81: AG | C81: 2017-02-26 | D81: 15:29:00 | E81: 117 | F81: 23.3 | G81: 19.6 | H81: 0.8412017167 | I81: 2.55 | J81: 2.55 | K81: 0 | L81: 0 | M81: 0 | N81: 0 | O81: 0 | P81: 0 | Q81: 0
B82: MH PG | C82: 2017-02-27 | D82: 15:16:00 | E82: 118 | F82: 23.3 | G82: 19.4 | H82: 0.8326180258 | I82: 2.65 | J82: 2.65 | K82: 0 | L82: 0 | M82: 0 | N82: 0 | O82: 0 | P82: 0 | Q82: 0
B83: AG PG | C83: 2017-02-28 | D83: 15:19:00 | E83: 119 | F83: 23.3 | G83: 20 | H83: 0.8583690987 | I83: 2.6 | J83: 2.6 | K83: 0 | L83: 0 | M83: 0 | N83: 0 | O83: 0 | P83: 0 | Q83: 0
B84: MH PG | C84: 2017-03-01 | D84: 15:22:00 | E84: 120 | F84: 23.3 | G84: 19.7 | H84: =G84/F84 -> 0.8454935622 | I84: 2.65 | J84: 2.65 | K84: 0 | L84: 0 | M84: 0 | N84: 0 | O84: 0 | P84: =SUM(K84:O84) -> 0 | Q84: 0
B85: AG PG | C85: 2017-03-02 | D85: 15:25:00 | E85: 121 | F85: 23.3 | G85: 20.2 | H85: 0.8669527897 | I85: 2.6 | J85: 2.6 | K85: 0 | L85: 0 | M85: 0 | N85: 0 | O85: 0 | P85: 0 | Q85: 0
B86: PG SR | C86: 2017-03-03 | D86: 15:31:00 | E86: 122 | F86: 23.3 | G86: 20.1 | H86: 0.8626609442 | I86: 2.6 | J86: 2.6 | K86: 0 | L86: 0 | M86: 0 | N86: 0 | O86: 0 | P86: 0 | Q86: 0
B87: PG | C87: 2017-03-04 | D87: 17:17:00 | E87: 123 | F87: 23.3 | G87: 19.8 | H87: 0.8497854077 | I87: 2.6 | J87: 2.6 | K87: 0 | L87: 0 | M87: 0 | N87: 0 | O87: 0 | P87: 0 | Q87: 0
B88: SR | C88: 2017-03-05 | D88: 17:28:00 | E88: 124 | F88: 23.3 | G88: 19.7 | H88: 0.8454935622 | I88: 2.65 | J88: 2.65 | K88: 0 | L88: 0 | M88: 0 | N88: 0 | O88: 0 | P88: 0 | Q88: 0
B89: PG SR | C89: 2017-03-06 | D89: 15:31:00 | E89: 125 | F89: 23.3 | G89: 20.2 | H89: 0.8669527897 | I89: 2.55 | J89: 2.55 | K89: 0 | L89: 0 | M89: 0 | N89: 0 | O89: 0 | P89: 0 | Q89: 0
B90: PG SR | C90: 2017-03-07 | D90: 15:52:00 | E90: 126 | F90: 23.3 | G90: 20.2 | H90: 0.8669527897 | I90: ad lib | J90: ad lib | K90: 0 | L90: 0 | M90: 0 | N90: 0 | O90: 0 | P90: 0 | Q90: 0
B91: PG SR | C91: 2017-03-08 | D91: 16:01:00 | E91: 127 | F91: 23.3 | G91: 24.8 | H91: 1.064377682 | K91: 0 | L91: 0 | M91: 0 | N91: 0 | O91: 0 | P91: 0 | Q91: 0
B92: PG SR | C92: 2017-03-09 | D92: 16:12:00 | E92: 128 | F92: 23.3 | G92: 25.1 | H92: 1.077253219 | K92: 0 | L92: 0 | M92: 0 | N92: 0 | O92: 0 | P92: 0 | Q92: 0
B93: PG SR | C93: 2017-03-10 | D93: 14:15:00 | E93: 129 | F93: 23.3 | G93: 25.9 | H93: 1.111587983 | K93: 0 | L93: 0 | M93: 0 | N93: 0 | O93: 0 | P93: 0 | Q93: 0
C94: 2017-03-11 | E94: 130
C95: 2017-03-12 | E95: 131
B96: AG | C96: 2017-03-13 | D96: 15:00:00 | E96: 132 | F96: 23.3 | G96: 26.8 | H96: =G96/F96 -> 1.150214592 | K96: 0 | L96: 0 | M96: 0 | N96: 0 | O96: 0 | P96: 0 | Q96: 0
C97: 2017-03-14 | E97: 133
B98: MH PG | C98: 2017-03-15 | D98: 14:52:00 | E98: 134 | F98: 23.3 | G98: 26.6 | H98: 1.141630901 | K98: 0 | L98: 0 | M98: 0 | N98: 0 | O98: 0 | P98: =SUM(K98:O98) -> 0 | Q98: 0
C99: 2017-03-16 | E99: 135
C100: 2017-03-17 | E100: 136 | F100: 23.3 | H100: =G100/F100 -> 0 | P100: =SUM(K100:O100) -> 0

Sheet W08
B1: Score sheet info (digital summary)
B2: Mouse W08
F3: Weight | I3: Water | K3: Scoring
B4: Experimenter | C4: Day | D4: Time | E4: Age | F4: Reference | G4: Actual | H4: Percentage | I4: Offered | J4: Consumed | K4: Activity/behavior | L4: Look/posture | M4: Shit/piss | N4: Body condition | O4: Dehydration signs | P4: Total | Q4: Implant | R4: Comment
B5: SR | C5: 2016-12-12 | D5: 14:00:00 | E5: 41 | F5: 21.9 | G5: 21.5 | H5: =G5/F5 -> 0.9817351598 | K5: 0 | N5: 0 | P5: =SUM(K5:O5) -> 0
B6: SR | C6: 2016-12-13 | D6: 14:00:00 | E6: 42 | F6: 21.9 | G6: 22.1 | H6: =G6/F6 -> 1.00913242 | K6: 0 | N6: 0 | P6: =SUM(K6:O6) -> 0
B7: PG | C7: 2016-12-14 | D7: 18:00:00 | E7: 43 | F7: 21.9 | G7: 22.8 | H7: 1.04109589 | K7: 0 | N7: 0 | P7: 0
B8: PG | C8: 2016-12-15 | D8: 15:00:00 | E8: 44 | F8: 21.9 | G8: 21.2 | H8: 0.9680365297 | K8: 0 | N8: 0 | P8: 0
B9: AG,SR,PG | C9: 2016-12-16 | D9: 14:30:00 | E9: 45 | F9: 21.9 | G9: 19.6 | H9: 0.8949771689 | K9: 0 | N9: 1 | P9: 1 | Q9: 0 | R9: Wet fur
B10: PG | C10: 2016-12-17 | D10: 14:00:00 | E10: 46 | F10: 21.9 | G10: 21.6 | H10: 0.9863013699 | K10: 0 | N10: 0 | P10: 0 | Q10: 0
B11: PG | C11: 2016-12-18 | D11: 14:00:00 | E11: 47 | F11: 21.9 | G11: 22.8 | H11: 1.04109589 | K11: 0 | N11: 0 | P11: 0 | Q11: 0
B12: SR | C12: 2016-12-19 | D12: 14:00:00 | E12: 48 | F12: 21.9 | G12: 23.4 | H12: 1.068493151 | K12: 0 | N12: 0 | P12: 0 | Q12: 0
B13: PG | C13: 2016-12-20 | D13: 16:00:00 | E13: 49 | F13: 21.9 | G13: 24.1 | H13: 1.100456621 | K13: 0 | N13: 0 | P13: 0 | Q13: 0
B14: AG | C14: 2016-12-21 | D14: 14:00:00 | E14: 50 | F14: 21.9 | G14: 24.1 | H14: 1.100456621 | K14: 0 | N14: 0 | P14: 0 | Q14: 0
B15: AG | C15: 2016-12-22 | D15: 13:45:00 | E15: 51 | F15: 21.9 | G15: 24.1 | H15: 1.100456621 | K15: 0 | N15: 0 | P15: 0 | Q15: 0
B16: PG | C16: 2016-12-23 | D16: 13:20:00 | E16: 52 | F16: 21.9 | G16: 23.7 | H16: 1.082191781 | K16: 0 | N16: 0 | P16: 0 | Q16: 0
C17: 2016-12-24 | E17: 53
C18: 2016-12-25 | E18: 54
C19: 2016-12-26 | E19: 55
C20: 2016-12-27 | E20: 56
C21: 2016-12-28 | E21: 57
C22: 2016-12-29 | E22: 58
C23: 2016-12-30 | E23: 59
C24: 2016-12-31 | E24: 60
C25: 2017-01-01 | E25: 61
B26: AG PG | C26: 2017-01-02 | D26: 14:00:00 | E26: 62 | F26: 25.7 | G26: 25.7 | H26: 1 | I26: 1.57 | J26: 1.57 | K26: 0 | L26: 0 | M26: 0 | N26: 0 | O26: 0 | P26: 0 | Q26: 0
B27: AG PG | C27: 2017-01-03 | D27: 14:30:00 | E27: 63 | F27: 25.7 | G27: 23.2 | H27: 0.9027237354 | I27: 1.57 | J27: 1.57 | K27: 0 | L27: 0 | M27: 0 | N27: 0 | O27: 0 | P27: 0 | Q27: 0
B28: AG MH | C28: 2017-01-04 | D28: 14:30:00 | E28: 64 | F28: 25.7 | G28: 22.9 | H28: 0.8910505837 | I28: 1.5 | J28: 1.5 | K28: 0 | L28: 0 | M28: 0 | N28: 0 | O28: 0 | P28: 0 | Q28: 0
B29: AG PG | C29: 2017-01-05 | D29: 14:00:00 | E29: 65 | F29: 25.7 | G29: 22.1 | H29: 0.859922179 | I29: 1.57 | J29: 1.57 | K29: 0 | L29: 0 | M29: 0 | N29: 0 | O29: 0 | P29: 0 | Q29: 0
B30: AG PG | C30: 2017-01-06 | D30: 14:00:00 | E30: 66 | F30: 25.7 | G30: 22.2 | H30: 0.8638132296 | I30: 1.57 | J30: 1.57 | K30: 0 | L30: 0 | M30: 0 | N30: 0 | O30: 0 | P30: 0 | Q30: 0
B31: PG | C31: 2017-01-07 | D31: 16:00:00 | E31: 67 | F31: 25.7 | G31: 22 | H31: 0.8560311284 | I31: 1.57 | J31: 1.57 | K31: 0 | L31: 0 | M31: 0 | N31: 0 | O31: 0 | P31: 0 | Q31: 0
B32: AG | C32: 2017-01-08 | D32: 15:00:00 | E32: 68 | F32: 25.7 | G32: 21.9 | H32: 0.8521400778 | I32: 1.57 | J32: 1.57 | K32: 0 | L32: 0 | M32: 0 | N32: 0 | O32: 0 | P32: 0 | Q32: 0
B33: MH PG | C33: 2017-01-09 | D33: 14:40:00 | E33: 69 | F33: 25.7 | G33: 21.9 | H33: 0.8521400778 | I33: 1.57 | J33: 1.57 | K33: 0 | L33: 0 | M33: 0 | N33: 0 | O33: 0 | P33: 0 | Q33: 0
B34: AG PG | C34: 2017-01-10 | D34: 14:40:00 | E34: 70 | F34: 25.7 | G34: 22.1 | H34: 0.859922179 | I34: 1.5 | J34: 1.5 | K34: 0 | L34: 0 | M34: 0 | N34: 0 | O34: 0 | P34: 0 | Q34: 0
B35: AG SR | C35: 2017-01-11 | D35: 14:45:00 | E35: 71 | F35: 25.7 | G35: 22.1 | H35: 0.859922179 | I35: 1.5 | J35: 1.5 | K35: 0 | L35: 0 | M35: 0 | N35: 0 | O35: 0 | P35: 0 | Q35: 0
B36: SR PG | C36: 2017-01-12 | D36: 14:45:00 | E36: 72 | F36: 25.7 | G36: 22.1 | H36: 0.859922179 | I36: 1.5 | J36: 1.5 | K36: 0 | L36: 0 | M36: 0 | N36: 0 | O36: 0 | P36: 0 | Q36: 0
B37: MH PG | C37: 2017-01-13 | D37: 14:45:00 | E37: 73 | F37: 25.7 | G37: 22.1 | H37: 0.859922179 | I37: 1.45 | J37: 1.45 | K37: 0 | L37: 0 | M37: 0 | N37: 0 | O37: 0 | P37: 0 | Q37: 0
B38: AG MH | C38: 2017-01-14 | D38: 14:30:00 | E38: 74 | F38: 25.7 | G38: 22 | H38: 0.8560311284 | I38: 1.55 | J38: 1.55 | K38: 0 | L38: 0 | M38: 0 | N38: 0 | O38: 0 | P38: 0 | Q38: 0
B39: PG SR | C39: 2017-01-15 | D39: 14:25:00 | E39: 75 | F39: 25.7 | G39: 22.2 | H39: 0.8638132296 | I39: 1.45 | J39: 1.45 | K39: 0 | L39: 0 | M39: 0 | N39: 0 | O39: 0 | P39: 0 | Q39: 0
B40: MH SR | C40: 2017-01-16 | D40: 14:20:00 | E40: 76 | F40: 25.7 | G40: 22.2 | H40: 0.8638132296 | I40: 1.45 | J40: 1.45 | K40: 0 | L40: 0 | M40: 0 | N40: 0 | O40: 0 | P40: 0 | Q40: 0
B41: MH PG SR | C41: 2017-01-17 | D41: 18:18:00 | E41: 77 | F41: 25.7 | G41: 22.1 | H41: 0.859922179 | I41: 1.45 | J41: 1.45 | K41: 0 | L41: 0 | M41: 0 | N41: 0 | O41: 0 | P41: 0 | Q41: 0
B42: MH PG | C42: 2017-01-18 | D42: 16:15:00 | E42: 78 | F42: 25.7 | G42: 22.1 | H42: 0.859922179 | I42: 1.4 | J42: 1.4 | K42: 0 | L42: 0 | M42: 0 | N42: 0 | O42: 0 | P42: 0 | Q42: 0
B43: PG SR | C43: 2017-01-19 | D43: 15:46:00 | E43: 79 | F43: 25.7 | G43: 22.3 | H43: 0.8677042802 | I43: 1.3 | J43: 1.3 | K43: 0 | L43: 0 | M43: 0 | N43: 0 | O43: 0 | P43: 0 | Q43: 0
B44: AG PG SR | C44: 2017-01-20 | D44: 15:39:00 | E44: 80 | F44: 25.7 | G44: 21.9 | H44: 0.8521400778 | I44: 1.35 | J44: 1.35 | K44: 0 | L44: 0 | M44: 0 | N44: 0 | O44: 0 | P44: 0 | Q44: 0
B45: MH SR | C45: 2017-01-21 | D45: 15:17:00 | E45: 81 | F45: 25.7 | G45: 22.8 | H45: 0.8871595331 | I45: 1.3 | J45: 1.3 | K45: 0 | L45: 0 | M45: 0 | N45: 0 | O45: 0 | P45: 0 | Q45: 0
B46: MH | C46: 2017-01-22 | D46: 14:20:00 | E46: 82 | F46: 25.7 | G46: 22.7 | H46: 0.8832684825 | I46: 1.25 | J46: 1.25 | K46: 0 | L46: 0 | M46: 0 | N46: 0 | O46: 0 | P46: 0 | Q46: 0
B47: AG PG | C47: 2017-01-23 | D47: 15:21:00 | E47: 83 | F47: 25.7 | G47: 22.6 | H47: 0.8793774319 | I47: 1.25 | J47: 1.25 | K47: 0 | L47: 0 | M47: 0 | N47: 0 | O47: 0 | P47: 0 | Q47: 0
B48: PG SR | C48: 2017-01-24 | D48: 16:09:00 | E48: 84 | F48: 25.7 | G48: 22.4 | H48: 0.8715953307 | I48: 1.25 | J48: 1.25 | K48: 0 | L48: 0 | M48: 0 | N48: 0 | O48: 0 | P48: 0 | Q48: 0
B49: AG SR | C49: 2017-01-25 | D49: 15:21:00 | E49: 85 | F49: 25.7 | G49: 22.3 | H49: 0.8677042802 | I49: 1.25 | J49: 1.25 | K49: 0 | L49: 0 | M49: 0 | N49: 0 | O49: 0 | P49: 0 | Q49: 0
B50: AG SR | C50: 2017-01-26 | D50: 15:22:00 | E50: 86 | F50: 25.7 | G50: 22.4 | H50: 0.8715953307 | I50: 1.2 | J50: 1.2 | K50: 0 | L50: 0 | M50: 0 | N50: 0 | O50: 0 | P50: 0 | Q50: 0
B51: MH PG | C51: 2017-01-27 | D51: 15:40:00 | E51: 87 | F51: 25.7 | G51: 22.4 | H51: 0.8715953307 | I51: 1.15 | J51: 1.15 | K51: 0 | L51: 0 | M51: 0 | N51: 0 | O51: 1 | P51: 1 | Q51: 0
B52: MH PG | C52: 2017-01-28 | D52: 15:40:00 | E52: 88 | F52: 25.7 | G52: 22 | H52: 0.8560311284 | I52: 1.2 | J52: 1.2 | K52: 0 | L52: 0 | M52: 0 | N52: 0 | O52: 0 | P52: 0 | Q52: 0
B53: PG | C53: 2017-01-29 | D53: 15:00:00 | E53: 89 | F53: 25.7 | G53: 21.8 | H53: 0.8482490272 | I53: 1.25 | J53: 1.25 | K53: 0 | L53: 0 | M53: 0 | N53: 0 | O53: 0 | P53: 0 | Q53: 0
B54: AG SR PG | C54: 2017-01-30 | D54: 15:25:00 | E54: 90 | F54: 25.7 | G54: 22.3 | H54: 0.8677042802 | I54: 1.73 | J54: 1.73 | K54: 0 | L54: 0 | M54: 0 | N54: 0 | O54: 1 | P54: 1 | Q54: 0
B55: AG PG | C55: 2017-01-31 | D55: 15:06:00 | E55: 91 | F55: 25.7 | G55: 22.3 | H55: 0.8677042802 | I55: 1.23 | J55: 1.23 | K55: 0 | L55: 0 | M55: 0 | N55: 0 | O55: 1 | P55: 1 | Q55: 0
B56: PG SR | C56: 2017-02-01 | D56: 15:37:00 | E56: 92 | F56: 25.7 | G56: 22.1 | H56: 0.859922179 | I56: 1.62 | J56: 1.62 | K56: 0 | L56: 0 | M56: 0 | N56: 0 | O56: 1 | P56: 1 | Q56: 0
B57: AG PG | C57: 2017-02-02 | D57: 15:18:00 | E57: 93 | F57: 25.7 | G57: 22 | H57: 0.8560311284 | I57: 3 | J57: 3 | K57: 0 | L57: 0 | M57: 0 | N57: 0 | O57: 1 | P57: 0 | Q57: 0
B58: PG SR | C58: 2017-02-03 | D58: 15:41:00 | E58: 94 | F58: 25.7 | G58: 23.6 | H58: 0.9182879377 | I58: 1.15 | J58: 1.15 | K58: 0 | L58: 0 | M58: 0 | N58: 0 | O58: 0 | P58: 0 | Q58: 0
B59: AG PG | C59: 2017-02-04 | D59: 15:12:00 | E59: 95 | F59: 25.7 | G59: 23 | H59: 0.8949416342 | I59: 1.1 | J59: 1.1 | K59: 0 | L59: 0 | M59: 0 | N59: 0 | O59: 0 | P59: 0 | Q59: 0
B60: SR | C60: 2017-02-05 | D60: 15:45:00 | E60: 96 | F60: 25.7 | G60: 22.8 | H60: 0.8871595331 | I60: 1.1 | J60: 1.1 | K60: 0 | L60: 0 | M60: 0 | N60: 0 | O60: 0 | P60: 0 | Q60: 0
B61: AG PG | C61: 2017-02-06 | D61: 15:15:00 | E61: 97 | F61: 25.7 | G61: 22.8 | H61: 0.8871595331 | I61: 1 | J61: 1 | K61: 0 | L61: 0 | M61: 0 | N61: 0 | O61: 0 | P61: 0 | Q61: 0
B62: PG SR | C62: 2017-02-07 | D62: 15:31:00 | E62: 98 | F62: 25.7 | G62: 22.4 | H62: 0.8715953307 | I62: 1.17 | J62: 1.3 | K62: 0 | L62: 0 | M62: 0 | N62: 0 | O62: 0 | P62: 0 | Q62: 0
B63: MH PG | C63: 2017-02-08 | D63: 15:24:00 | E63: 99 | F63: 25.7 | G63: 21.9 | H63: 0.8521400778 | I63: 1.3 | J63: 1.3 | K63: 0 | L63: 0 | M63: 0 | N63: 0 | O63: 0 | P63: 0 | Q63: 0
B64: AG PG | C64: 2017-02-09 | D64: 15:16:00 | E64: 100 | F64: 25.7 | G64: 22.1 | H64: 0.859922179 | I64: 1.25 | J64: 1.25 | K64: 0 | L64: 0 | M64: 0 | N64: 0 | O64: 0 | P64: 0 | Q64: 0
B65: PG SR | C65: 2017-02-10 | D65: 14:53:00 | E65: 101 | F65: 25.7 | G65: 21.4 | H65: 0.8326848249 | I65: 1.3 | J65: 1.3 | K65: 0 | L65: 0 | M65: 0 | N65: 0 | O65: 0 | P65: 0 | Q65: 0
B66: PG SR | C66: 2017-02-11 | D66: 15:26:00 | E66: 102 | F66: 25.7 | G66: 21.2 | H66: 0.8249027237 | I66: 1.44 | J66: 1.44 | K66: 0 | L66: 0 | M66: 0 | N66: 0 | O66: 0 | P66: 0 | Q66: 0
B67: PG SR | C67: 2017-02-12 | D67: 15:21:00 | E67: 103 | F67: 25.7 | G67: 21.2 | H67: 0.8249027237 | I67: 1.51 | J67: 1.51 | K67: 0 | L67: 0 | M67: 0 | N67: 0 | O67: 0 | P67: 0 | Q67: 0
B68: MH PG | C68: 2017-02-13 | D68: 15:08:00 | E68: 104 | F68: 25.7 | G68: 21.1 | H68: 0.8210116732 | I68: 1.7 | J68: 1.7 | K68: 0 | L68: 1 | M68: 0 | N68: 0 | O68: 0 | P68: 1 | Q68: 0
B69: PG SR | C69: 2017-02-14 | D69: 15:30:00 | E69: 105 | F69: 25.7 | G69: 21.4 | H69: 0.8326848249 | I69: 1.8 | J69: 1.8 | K69: 0 | L69: 0 | M69: 0 | N69: 0 | O69: 1 | P69: 1 | Q69: 0
B70: MH PG | C70: 2017-02-15 | D70: 15:25:00 | E70: 106 | F70: 25.7 | G70: 21.6 | H70: =G70/F70 -> 0.8404669261 | I70: 1.8 | J70: 1.8 | K70: 0 | L70: 0 | M70: 0 | N70: 0 | O70: 0 | P70: =SUM(K70:O70) -> 0 | Q70: 0
B71: PG SR | C71: 2017-02-16 | D71: 15:38:00 | E71: 107 | F71: 25.7 | G71: 21.9 | H71: 0.8521400778 | I71: 1.75 | J71: 1.75 | K71: 0 | L71: 0 | M71: 0 | N71: 0 | O71: 1 | P71: 1 | Q71: 0
B72: AG PG | C72: 2017-02-17 | D72: 15:40:00 | E72: 108 | F72: 25.7 | G72: 22.1 | H72: 0.859922179 | I72: 1.7 | J72: 1.7 | K72: 0 | L72: 0 | M72: 0 | N72: 0 | O72: 0 | P72: 0 | Q72: 0
B73: PG SR | C73: 2017-02-18 | D73: 15:30:00 | E73: 109 | F73: 25.7 | G73: 22.3 | H73: 0.8677042802 | I73: 1.6 | J73: 1.6 | K73: 0 | L73: 0 | M73: 0 | N73: 0 | O73: 0 | P73: 0 | Q73: 0
B74: MH | C74: 2017-02-19 | D74: 16:10:00 | E74: 110 | F74: 25.7 | G74: 22.3 | H74: 0.8677042802 | I74: 1.5 | J74: 1.5 | K74: 0 | L74: 0 | M74: 0 | N74: 0 | O74: 1 | P74: 1 | Q74: 0
B75: PG SR | C75: 2017-02-20 | D75: 15:49:00 | E75: 111 | F75: 25.7 | G75: 22.8 | H75: 0.8871595331 | I75: 1.4 | J75: 1.4 | K75: 0 | L75: 0 | M75: 0 | N75: 0 | O75: 1 | P75: 1 | Q75: 0
B76: AG PG | C76: 2017-02-21 | D76: 15:53:00 | E76: 112 | F76: 25.7 | G76: 22.4 | H76: 0.8715953307 | I76: 1.47 | J76: 1.47 | K76: 0 | L76: 0 | M76: 0 | N76: 0 | O76: 0 | P76: 0 | Q76: 0
B77: PG MH | C77: 2017-02-22 | D77: 15:28:00 | E77: 113 | F77: 25.7 | G77: 22.2 | H77: 0.8638132296 | I77: 1.8 | J77: 1.8 | K77: 0 | L77: 0 | M77: 0 | N77: 0 | O77: 1 | P77: 1 | Q77: 0
B78: AG PG | C78: 2017-02-23 | D78: 15:22:00 | E78: 114 | F78: 25.7 | G78: 22.1 | H78: 0.859922179 | I78: 1.49 | J78: 1.49 | K78: 0 | L78: 0 | M78: 0 | N78: 0 | O78: 1 | P78: 1 | Q78: 0
B79: MH PG | C79: 2017-02-24 | D79: 15:17:00 | E79: 115 | F79: 25.7 | G79: 22 | H79: 0.8560311284 | I79: 1.48 | J79: 1.48 | K79: 0 | L79: 0 | M79: 0 | N79: 0 | O79: 0 | P79: 0 | Q79: 0
B80: AG PG | C80: 2017-02-25 | D80: 15:10:00 | E80: 116 | F80: 25.7 | G80: 22 | H80: 0.8560311284 | I80: 1.54 | J80: 1.54 | K80: 0 | L80: 0 | M80: 0 | N80: 0 | O80: 0 | P80: 0 | Q80: 0
B81: AG | C81: 2017-02-26 | D81: 15:50:00 | E81: 117 | F81: 25.7 | G81: 22.1 | H81: 0.859922179 | I81: 1.45 | J81: 1.45 | K81: 0 | L81: 0 | M81: 0 | N81: 0 | O81: 0 | P81: 0 | Q81: 0
B82: MH PG | C82: 2017-02-27 | D82: 15:18:00 | E82: 118 | F82: 25.7 | G82: 22.6 | H82: 0.8793774319 | I82: 1.73 | J82: 1.73 | K82: 0 | L82: 0 | M82: 0 | N82: 0 | O82: 0 | P82: 0 | Q82: 0
B83: AG PG | C83: 2017-02-28 | D83: 15:21:00 | E83: 119 | F83: 25.7 | G83: 22.5 | H83: 0.8754863813 | I83: 1.4 | J83: 1.4 | K83: 0 | L83: 0 | M83: 0 | N83: 0 | O83: 0 | P83: 0 | Q83: 0
B84: MH PG | C84: 2017-03-01 | D84: 15:23:00 | E84: 120 | F84: 25.7 | G84: 22.3 | H84: =G84/F84 -> 0.8677042802 | I84: 1.64 | J84: 1.64 | K84: 0 | L84: 0 | M84: 0 | N84: 0 | O84: 0 | P84: =SUM(K84:O84) -> 0 | Q84: 0
B85: AG PG | C85: 2017-03-02 | D85: 15:26:00 | E85: 121 | F85: 25.7 | G85: 22.3 | H85: 0.8677042802 | I85: 1.76 | J85: 1.76 | K85: 0 | L85: 0 | M85: 0 | N85: 0 | O85: 0 | P85: 0 | Q85: 0
B86: PG SR | C86: 2017-03-03 | D86: 15:33:00 | E86: 122 | F86: 25.7 | G86: 22.3 | H86: 0.8677042802 | I86: 1.59 | J86: 1.59 | K86: 0 | L86: 0 | M86: 0 | N86: 0 | O86: 0 | P86: 0 | Q86: 0
B87: PG | C87: 2017-03-04 | D87: 17:18:00 | E87: 123 | F87: 25.7 | G87: 22.3 | H87: 0.8677042802 | I87: 1.4 | J87: 1.4 | K87: 0 | L87: 0 | M87: 0 | N87: 0 | O87: 0 | P87: 0 | Q87: 0
B88: SR | C88: 2017-03-05 | D88: 17:30:00 | E88: 124 | F88: 25.7 | G88: 22.7 | H88: 0.8832684825 | I88: 1.3 | J88: 1.3 | K88: 0 | L88: 0 | M88: 0 | N88: 0 | O88: 1 | P88: 1 | Q88: 0
B89: PG SR | C89: 2017-03-06 | D89: 16:01:00 | E89: 125 | F89: 25.7 | G89: 23 | H89: 0.8949416342 | I89: 1 | J89: 1 | K89: 0 | L89: 1 | M89: 0 | N89: 0 | O89: 0 | P89: 1 | Q89: 0
B90: PG SR | C90: 2017-03-07 | D90: 15:54:00 | E90: 126 | F90: 25.7 | G90: 22.4 | H90: 0.8715953307 | I90: 1.51 | J90: 1.51 | K90: 0 | L90: 0 | M90: 0 | N90: 0 | O90: 0 | P90: 0 | Q90: 0
B91: PG SR | C91: 2017-03-08 | D91: 16:08:00 | E91: 127 | F91: 25.7 | G91: 22.2 | H91: 0.8638132296 | I91: 1.5 | J91: 1.5 | K91: 0 | L91: 1 | M91: 0 | N91: 0 | O91: 0 | P91: 1 | Q91: 0
B92: PG SR | C92: 2017-03-09 | D92: 16:13:00 | E92: 128 | F92: 25.7 | G92: 22.4 | H92: 0.8715953307 | I92: ad lib | J92: ad lib | K92: 0 | L92: 0 | M92: 0 | N92: 0 | O92: 0 | P92: 0 | Q92: 0
B93: PG SR | C93: 2017-03-10 | D93: 14:15:00 | E93: 129 | F93: 25.7 | G93: 26.6 | H93: 1.035019455 | K93: 0 | L93: 0 | M93: 0 | N93: 0 | O93: 0 | P93: 0 | Q93: 0
C94: 2017-03-11 | E94: 130
C95: 2017-03-12 | E95: 131
B96: AG | C96: 2017-03-13 | D96: 15:00:00 | E96: 132 | F96: 25.7 | G96: 27.4 | H96: =G96/F96 -> 1.06614786 | K96: 0 | L96: 0 | M96: 0 | N96: 0 | O96: 0 | P96: 0 | Q96: 0
C97: 2017-03-14 | E97: 133
B98: MH PG | C98: 2017-03-15 | D98: 14:53:00 | E98: 134 | F98: 25.7 | G98: 27.7 | H98: 1.077821012 | K98: 0 | L98: 0 | M98: 0 | N98: 0 | O98: 0 | P98: =SUM(K98:O98) -> 0 | Q98: 0
C99: 2017-03-16 | E99: 135
C100: 2017-03-17 | E100: 136 | F100: 25.7 | H100: =G100/F100 -> 0 | P100: =SUM(K100:O100) -> 0

Sheet W09
B1: Score sheet info (digital summary)
B2: Mouse W09
F3: Weight | I3: Food | K3: Scoring
B4: Experimenter | C4: Day | D4: Time | E4: Age | F4: Reference | G4: Actual | H4: Percentage | I4: Offered | J4: Consumed | K4: Activity/behavior | L4: Look/posture | M4: Shit/piss | N4: Body condition | O4: Dehydration signs | P4: Total | Q4: Implant | R4: Comment
B5: SR | C5: 2016-12-12 | D5: 14:00:00 | E5: 41 | F5: 21.9 | G5: 22.2 | H5: =G5/F5 -> 1.01369863 | K5: 0 | N5: 0 | P5: =SUM(K5:O5) -> 0
B6: SR | C6: 2016-12-13 | D6: 14:00:00 | E6: 42 | F6: 21.9 | G6: 22.1 | H6: =G6/F6 -> 1.00913242 | K6: 0 | N6: 0 | P6: =SUM(K6:O6) -> 0
B7: PG | C7: 2016-12-14 | D7: 18:00:00 | E7: 43 | F7: 21.9 | G7: 22.2 | H7: 1.01369863 | K7: 0 | N7: 0 | P7: 0
B8: PG | C8: 2016-12-15 | D8: 15:00:00 | E8: 44 | F8: 21.9 | G8: 21.1 | H8: 0.9634703196 | K8: 0 | N8: 0 | P8: 0
B9: AG,SR,PG | C9: 2016-12-16 | D9: 14:30:00 | E9: 45 | F9: 21.9 | G9: 20 | H9: 0.9132420091 | K9: 0 | N9: 1 | P9: 1 | Q9: 0 | R9: Wet fur
B10: PG | C10: 2016-12-17 | D10: 14:00:00 | E10: 46 | F10: 21.9 | G10: 21.7 | H10: 0.9908675799 | K10: 0 | N10: 0 | P10: 0 | Q10: 0
B11: PG | C11: 2016-12-18 | D11: 14:00:00 | E11: 47 | F11: 21.9 | G11: 22.2 | H11: 1.01369863 | K11: 0 | N11: 0 | P11: 0 | Q11: 0
B12: SR | C12: 2016-12-19 | D12: 14:00:00 | E12: 48 | F12: 21.9 | G12: 22.8 | H12: 1.04109589 | K12: 0 | N12: 0 | P12: 0 | Q12: 0
B13: PG | C13: 2016-12-20 | D13: 16:00:00 | E13: 49 | F13: 21.9 | G13: 23.5 | H13: 1.073059361 | K13: 0 | N13: 0 | P13: 0 | Q13: 0
B14: AG | C14: 2016-12-21 | D14: 14:00:00 | E14: 50 | F14: 21.9 | G14: 23.5 | H14: 1.073059361 | K14: 0 | N14: 0 | P14: 0 | Q14: 0
B15: AG | C15: 2016-12-22 | D15: 13:45:00 | E15: 51 | F15: 21.9 | G15: 23.5 | H15: 1.073059361 | K15: 0 | N15: 0 | P15: 0 | Q15: 0
B16: PG | C16: 2016-12-23 | D16: 13:20:00 | E16: 52 | F16: 21.9 | G16: 23.2 | H16: 1.059360731 | K16: 0 | N16: 0 | P16: 0 | Q16: 0
C17: 2016-12-24 | E17: 53
C18: 2016-12-25 | E18: 54
C19: 2016-12-26 | E19: 55
C20: 2016-12-27 | E20: 56
C21: 2016-12-28 | E21: 57
C22: 2016-12-29 | E22: 58
C23: 2016-12-30 | E23: 59
C24: 2016-12-31 | E24: 60
C25: 2017-01-01 | E25: 61
B26: AG PG | C26: 2017-01-02 | D26: 14:00:00 | E26: 62 | F26: 25.7 | G26: 25.7 | H26: 1 | I26: 2 | J26: 2 | K26: 0 | L26: 0 | M26: 0 | N26: 0 | O26: 0 | P26: 0 | Q26: 0
B27: AG PG | C27: 2017-01-03 | D27: 14:30:00 | E27: 63 | F27: 25.7 | G27: 22 | H27: 0.8560311284 | I27: 2.9 | J27: 2.9 | K27: 0 | L27: 0 | M27: 0 | N27: 0 | O27: 0 | P27: 0 | Q27: 0
B28: AG MH | C28: 2017-01-04 | D28: 14:30:00 | E28: 64 | F28: 25.7 | G28: 22.3 | H28: 0.8677042802 | I28: 2.6 | J28: 2.6 | K28: 0 | L28: 0 | M28: 0 | N28: 0 | O28: 0 | P28: 0 | Q28: 0
B29: AG PG | C29: 2017-01-05 | D29: 14:00:00 | E29: 65 | F29: 25.7 | G29: 21.1 | H29: 0.8210116732 | I29: 3.4 | J29: 3.4 | K29: 0 | L29: 0 | M29: 0 | N29: 0 | O29: 0 | P29: 0 | Q29: 0
B30: AG PG | C30: 2017-01-06 | D30: 14:00:00 | E30: 66 | F30: 25.7 | G30: 21.7 | H30: 0.8443579767 | I30: 3.545 | J30: 3.55 | K30: 0 | L30: 0 | M30: 0 | N30: 0 | O30: 0 | P30: 0 | Q30: 0
B31: PG | C31: 2017-01-07 | D31: 16:00:00 | E31: 67 | F31: 25.7 | G31: 21.6 | H31: 0.8404669261 | I31: 3.75 | J31: 3.75 | K31: 0 | L31: 0 | M31: 0 | N31: 0 | O31: 0 | P31: 0 | Q31: 0
B32: AG | C32: 2017-01-08 | D32: 15:00:00 | E32: 68 | F32: 25.7 | G32: 22.6 | H32: 0.8793774319 | I32: 2.7 | J32: 2.7 | K32: 0 | L32: 0 | M32: 0 | N32: 0 | O32: 0 | P32: 0 | Q32: 0
B33: MH PG | C33: 2017-01-09 | D33: 15:00:00 | E33: 69 | F33: 25.7 | G33: 21.7 | H33: 0.8443579767 | I33: 3.3 | J33: 3.3 | K33: 0 | L33: 0 | M33: 0 | N33: 0 | O33: 0 | P33: 0 | Q33: 0
B34: AG PG | C34: 2017-01-10 | D34: 15:00:00 | E34: 70 | F34: 25.7 | G34: 21.9 | H34: 0.8521400778 | I34: 3.1 | J34: 3.1 | K34: 0 | L34: 0 | M34: 0 | N34: 0 | O34: 0 | P34: 0 | Q34: 0
B35: AG SR | C35: 2017-01-11 | D35: 14:45:00 | E35: 71 | F35: 25.7 | G35: 21.7 | H35: 0.8443579767 | I35: 3.45 | J35: 3.45 | K35: 0 | L35: 0 | M35: 0 | N35: 0 | O35: 0 | P35: 0 | Q35: 0
B36: SR PG | C36: 2017-01-12 | D36: 15:20:00 | E36: 72 | F36: 25.7 | G36: 22 | H36: 0.8560311284 | I36: 3.2 | J36: 3.2 | K36: 0 | L36: 0 | M36: 0 | N36: 0 | O36: 0 | P36: 0 | Q36: 0
B37: MH PG | C37: 2017-01-13 | D37: 15:00:00 | E37: 73 | F37: 25.7 | G37: 21.8 | H37: 0.8482490272 | I37: 3.3 | J37: 3.3 | K37: 0 | L37: 0 | M37: 0 | N37: 0 | O37: 0 | P37: 0 | Q37: 0
B38: AG MH | C38: 2017-01-14 | D38: 14:30:00 | E38: 74 | F38: 25.7 | G38: 21.5 | H38: 0.8365758755 | I38: 4.25 | J38: 4.25 | K38: 0 | L38: 0 | M38: 0 | N38: 0 | O38: 0 | P38: 0 | Q38: 0
B39: PG SR | C39: 2017-01-15 | D39: 15:15:00 | E39: 75 | F39: 25.7 | G39: 22 | H39: 0.8560311284 | I39: 4.5 | J39: 4.5 | K39: 0 | L39: 0 | M39: 0 | N39: 0 | O39: 0 | P39: 0 | Q39: 0
B40: MH SR | C40: 2017-01-16 | D40: 14:45:00 | E40: 76 | F40: 25.7 | G40: 21.9 | H40: 0.8521400778 | I40: 4.5 | J40: 4.5 | K40: 0 | L40: 0 | M40: 0 | N40: 0 | O40: 1 | P40: 1 | Q40: 0
B41: MH PG SR | C41: 2017-01-17 | D41: 18:35:00 | E41: 77 | F41: 25.7 | G41: 21.1 | H41: 0.8210116732 | I41: 4.94 | J41: 4.94 | K41: 0 | L41: 0 | M41: 0 | N41: 0 | O41: 0 | P41: 0 | Q41: 0
B42: MH PG | C42: 2017-01-18 | D42: 16:33:00 | E42: 78 | F42: 25.7 | G42: 23.2 | H42: 0.9027237354 | I42: 3.86 | J42: 3.86 | K42: 0 | L42: 0 | M42: 0 | N42: 0 | O42: 0 | P42: 0 | Q42: 0
B43: PG SR | C43: 2017-01-19 | D43: 16:16:00 | E43: 79 | F43: 25.7 | G43: 22.7 | H43: 0.8832684825 | I43: 3.5 | J43: 3.5 | K43: 0 | L43: 0 | M43: 0 | N43: 0 | O43: 0 | P43: 0 | Q43: 0
B44: AG PG SR | C44: 2017-01-20 | D44: 16:04:00 | E44: 80 | F44: 25.7 | G44: 23 | H44: 0.8949416342 | I44: 3.4 | J44: 3.4 | K44: 0 | L44: 0 | M44: 0 | N44: 0 | O44: 0 | P44: 0 | Q44: 0
B45: MH SR | C45: 2017-01-21 | D45: 15:44:00 | E45: 81 | F45: 25.7 | G45: 23 | H45: 0.8949416342 | I45: 3.3 | J45: 3.3 | K45: 0 | L45: 0 | M45: 0 | N45: 0 | O45: 0 | P45: 0 | Q45: 0
B46: MH | C46: 2017-01-22 | D46: 14:57:00 | E46: 82 | F46: 25.7 | G46: 23.3 | H46: 0.906614786 | I46: 3.15 | J46: 3.15 | K46: 0 | L46: 0 | M46: 0 | N46: 0 | O46: 0 | P46: 0 | Q46: 0
B47: AG MH | C47: 2017-01-23 | D47: 15:51:00 | E47: 83 | F47: 25.7 | G47: 23.1 | H47: 0.8988326848 | I47: 3.15 | J47: 3.15 | K47: 0 | L47: 0 | M47: 0 | N47: 0 | O47: 0 | P47: 0 | Q47: 0
B48: PG SR | C48: 2017-01-24 | D48: 16:40:00 | E48: 84 | F48: 25.7 | G48: 23.2 | H48: 0.9027237354 | I48: 3 | J48: 3 | K48: 0 | L48: 0 | M48: 0 | N48: 0 | O48: 0 | P48: 0 | Q48: 0
B49: AG SR | C49: 2017-01-25 | D49: 15:45:00 | E49: 85 | F49: 25.7 | G49: 23.1 | H49: 0.8988326848 | I49: 3 | J49: 2.9 | K49: 0 | L49: 0 | M49: 0 | N49: 0 | O49: 0 | P49: 0 | Q49: 0
B50: AG SR | C50: 2017-01-26 | D50: 15:53:00 | E50: 86 | F50: 25.7 | G50: 23 | H50: 0.8949416342 | I50: 2.9 | J50: 2.9 | K50: 0 | L50: 0 | M50: 0 | N50: 0 | O50: 0 | P50: 0 | Q50: 0
B51: MH PG | C51: 2017-01-27 | D51: 16:21:00 | E51: 87 | F51: 25.7 | G51: 22.4 | H51: 0.8715953307 | I51: 2.9 | J51: 2.9 | K51: 0 | L51: 0 | M51: 0 | N51: 0 | O51: 0 | P51: 0 | Q51: 0
B52: MH PG | C52: 2017-01-28 | D52: 16:22:00 | E52: 88 | F52: 25.7 | G52: 22.4 | H52: 0.8715953307 | I52: 2.8 | J52: 2.8 | K52: 0 | L52: 0 | M52: 0 | N52: 0 | O52: 0 | P52: 0 | Q52: 1 | R52: Bit of crust near left eye
B53: PG | C53: 2017-01-29 | D53: 15:00:00 | E53: 89 | F53: 25.7 | G53: 22.8 | H53: 0.8871595331 | I53: 2.7 | J53: 2.7 | K53: 0 | L53: 0 | M53: 0 | N53: 0 | O53: 0 | P53: 0 | Q53: 1 | R53: Bit of crust near left eye
B54: AG SR PG | C54: 2017-01-30 | D54: 16:21:00 | E54: 90 | F54: 25.7 | G54: 22.1 | H54: 0.859922179 | I54: 2.7 | J54: 2.7 | K54: 0 | L54: 0 | M54: 0 | N54: 0 | O54: 0 | P54: 0 | Q54: 1 | R54: Bit of crust near left eye
B55: AG PG | C55: 2017-01-31 | D55: 15:59:00 | E55: 91 | F55: 25.7 | G55: 22.4 | H55: 0.8715953307 | I55: 2.65 | J55: 2.65 | K55: 0 | L55: 0 | M55: 0 | N55: 0 | O55: 0 | P55: 0 | Q55: 1 | R55: Bit of crust near left eye
B56: PG SR | C56: 2017-02-01 | D56: 16:28:00 | E56: 92 | F56: 25.7 | G56: 21.9 | H56: 0.8521400778 | I56: 2.7 | J56: 2.7 | K56: 0 | L56: 0 | M56: 0 | N56: 0 | O56: 0 | P56: 0 | Q56: 1 | R56: Bit of crust near left eye
B57: AG PG | C57: 2017-02-02 | D57: 16:08:00 | E57: 93 | F57: 25.7 | G57: 21.4 | H57: 0.8326848249 | I57: 2.8 | J57: 2.8 | K57: 0 | L57: 0 | M57: 0 | N57: 0 | O57: 0 | P57: 0 | Q57: 1 | R57: Bit of crust near left eye
B58: SR PG | C58: 2017-02-03 | D58: 15:37:00 | E58: 94 | F58: 25.7 | G58: 21.5 | H58: 0.8365758755 | I58: 2.9 | J58: 2.9 | K58: 0 | L58: 0 | M58: 0 | N58: 0 | O58: 0 | P58: 0 | Q58: 1 | R58: Bit of crust near left eye
B59: AG PG | C59: 2017-02-04 | D59: 15:54:00 | E59: 95 | F59: 25.7 | G59: 21.6 | H59: 0.8404669261 | I59: 2.9 | J59: 2.9 | K59: 0 | L59: 0 | M59: 0 | N59: 0 | O59: 0 | P59: 0 | Q59: 1 | R59: Bit of crust near left eye
B60: SR | C60: 2017-02-05 | D60: 15:46:00 | E60: 96 | F60: 25.7 | G60: 21.3 | H60: 0.8287937743 | I60: 3 | J60: 3 | K60: 0 | L60: 0 | M60: 0 | N60: 0 | O60: 0 | P60: 0 | Q60: 1 | R60: Bit of crust near left eye
B61: AG PG | C61: 2017-02-06 | D61: 15:57:00 | E61: 97 | F61: 25.7 | G61: 21.1 | H61: 0.8210116732 | I61: 3.1 | J61: 3.1 | K61: 0 | L61: 0 | M61: 0 | N61: 0 | O61: 0 | P61: 0 | Q61: 1 | R61: Bit of crust near left eye
B62: PG SR | C62: 2017-02-07 | D62: 16:15:00 | E62: 98 | F62: 25.7 | G62: 21.9 | H62: 0.8521400778 | I62: 3.05 | J62: 3.05 | K62: 0 | L62: 0 | M62: 0 | N62: 0 | O62: 1 | P62: 1 | Q62: 1 | R62: Bit of crust near left eye
B63: MH PG | C63: 2017-02-08 | D63: 16:04:00 | E63: 99 | F63: 25.7 | G63: 21.7 | H63: 0.8443579767 | I63: 3.08 | J63: 3.08 | K63: 0 | L63: 0 | M63: 0 | N63: 0 | O63: 0 | P63: 0 | Q63: 1 | R63: Bit of crust near left eye
B64: AG PG | C64: 2017-02-09 | D64: 15:59:00 | E64: 100 | F64: 25.7 | G64: 21.8 | H64: 0.8482490272 | I64: 3.08 | J64: 3.08 | K64: 0 | L64: 0 | M64: 0 | N64: 0 | O64: 0 | P64: 0 | Q64: 1 | R64: Bit of crust near left eye
B65: PG SR | C65: 2017-02-10 | D65: 15:43:00 | E65: 101 | F65: 25.7 | G65: 22 | H65: 0.8560311284 | I65: 3.05 | J65: 3.05 | K65: 0 | L65: 0 | M65: 0 | N65: 0 | O65: 0 | P65: 0 | Q65: 1 | R65: Bit of crust near left eye
B66: PG SR | C66: 2017-02-11 | D66: 16:09:00 | E66: 102 | F66: 25.7 | G66: 22.1 | H66: 0.859922179 | I66: 3 | J66: 3 | K66: 0 | L66: 0 | M66: 0 | N66: 0 | O66: 0 | P66: 0 | Q66: 1 | R66: Bit of crust near left eye
B67: PG SR | C67: 2017-02-12 | D67: 16:05:00 | E67: 103 | F67: 25.7 | G67: 22.1 | H67: 0.859922179 | I67: 2.95 | J67: 2.95 | K67: 0 | L67: 0 | M67: 0 | N67: 0 | O67: 0 | P67: 0 | Q67: 1 | R67: Bit of crust near left eye
B68: MH PG | C68: 2017-02-13 | D68: 15:56:00 | E68: 104 | F68: 25.7 | G68: 22.1 | H68: 0.859922179 | I68: 2.9 | J68: 2.9 | K68: 0 | L68: 0 | M68: 0 | N68: 0 | O68: 0 | P68: 0 | Q68: 1 | R68: Bit of crust near left eye
B69: PG SR | C69: 2017-02-14 | D69: 16:07:00 | E69: 105 | F69: 25.7 | G69: 22.2 | H69: 0.8638132296 | I69: 2.85 | J69: 2.85 | K69: 0 | L69: 0 | M69: 0 | N69: 0 | O69: 1 | P69: 1 | Q69: 1 | R69: Bit of crust near left eye
B70: MH PG | C70: 2017-02-15 | D70: 16:04:00 | E70: 106 | F70: 25.7 | G70: 22.3 | H70: =G70/F70 -> 0.8677042802 | I70: 2.75 | J70: 2.75 | K70: 0 | L70: 0 | M70: 0 | N70: 0 | O70: 0 | P70: =SUM(K70:O70) -> 0 | Q70: 1 | R70: Bit of crust near left eye
B71: PG SR | C71: 2017-02-16 | D71: 16:18:00 | E71: 107 | F71: 25.7 | G71: 22.2 | H71: 0.8638132296 | I71: 2.75 | J71: 2.75 | K71: 0 | L71: 0 | M71: 0 | N71: 0 | O71: 0 | P71: 0 | Q71: 1 | R71: Bit of crust near left eye
B72: AG PG | C72: 2017-02-17 | D72: 16:23:00 | E72: 108 | F72: 25.7 | G72: 21.9 | H72: 0.8521400778 | I72: 2.75 | J72: 2.75 | K72: 0 | L72: 0 | M72: 0 | N72: 0 | O72: 0 | P72: 0 | Q72: 1 | R72: Bit of crust near left eye
B73: PG SR | C73: 2017-02-18 | D73: 16:12:00 | E73: 109 | F73: 25.7 | G73: 22.2 | H73: 0.8638132296 | I73: 2.7 | J73: 2.7 | K73: 0 | L73: 0 | M73: 0 | N73: 0 | O73: 0 | P73: 0 | Q73: 1 | R73: Bit of crust near left eye
B74: MH | C74: 2017-02-19 | D74: 16:48:00 | E74: 110 | F74: 25.7 | G74: 21.7 | H74: 0.8443579767 | I74: 2.75 | J74: 2.75 | K74: 0 | L74: 0 | M74: 0 | N74: 0 | O74: 0 | P74: 0 | Q74: 1 | R74: Bit of crust near left eye
B75: PG SR | C75: 2017-02-20 | D75: 16:26:00 | E75: 111 | F75: 25.7 | G75: 21.8 | H75: 0.8482490272 | I75: 2.75 | J75: 2.75 | K75: 0 | L75: 0 | M75: 0 | N75: 0 | O75: 0 | P75: 0 | Q75: 1 | R75: Bit of crust near left eye
B76: AG PG | C76: 2017-02-21 | D76: 16:24:00 | E76: 112 | F76: 25.7 | G76: 22 | H76: 0.8560311284 | I76: 2.75 | J76: 2.75 | K76: 0 | L76: 0 | M76: 0 | N76: 0 | O76: 0 | P76: 0 | Q76: 1 | R76: Bit of crust near left eye
B77: PG MH | C77: 2017-02-22 | D77: 16:14:00 | E77: 113 | F77: 25.7 | G77: 21.9 | H77: 0.8521400778 | I77: 2.75 | J77: 2.75 | K77: 0 | L77: 0 | M77: 0 | N77: 0 | O77: 0 | P77: 0 | Q77: 1 | R77: Bit of crust near left eye
B78: AG PG | C78: 2017-02-23 | D78: 16:05:00 | E78: 114 | F78: 25.7 | G78: 21.8 | H78: 0.8482490272 | I78: 2.8 | J78: 2.8 | K78: 0 | L78: 0 | M78: 0 | N78: 0 | O78: 0 | P78: 0 | Q78: 1 | R78: Bit of crust near left eye
B79: MH PG | C79: 2017-02-24 | D79: 15:55:00 | E79: 115 | F79: 25.7 | G79: 21.9 | H79: 0.8521400778 | I79: 2.75 | J79: 2.75 | K79: 0 | L79: 0 | M79: 0 | N79: 0 | O79: 0 | P79: 0 | Q79: 1 | R79: Bit of crust near left eye
B80: AG PG | C80: 2017-02-25 | D80: 15:53:00 | E80: 116 | F80: 25.7 | G80: 21.6 | H80: 0.8404669261 | I80: 2.8 | J80: 2.8 | K80: 0 | L80: 0 | M80: 0 | N80: 0 | O80: 0 | P80: 0 | Q80: 1 | R80: Bit of crust near left eye
B81: AG | C81: 2017-02-26 | D81: 15:33:00 | E81: 117 | F81: 25.7 | G81: 21.6 | H81: 0.8404669261 | I81: 2.85 | J81: 2.85 | K81: 0 | L81: 0 | M81: 0 | N81: 0 | O81: 0 | P81: 0 | Q81: 1 | R81: Bit of crust near left eye
B82: MH PG | C82: 2017-02-27 | D82: 15:12:00 | E82: 118 | F82: 25.7 | G82: 21.8 | H82: 0.8482490272 | I82: 2.8 | J82: 2.8 | K82: 0 | L82: 0 | M82: 0 | N82: 0 | O82: 0 | P82: 0 | Q82: 1 | R82: Bit of crust near left eye
B83: AG PG | C83: 2017-02-28 | D83: 16:05:00 | E83: 119 | F83: 25.7 | G83: 21.9 | H83: 0.8521400778 | I83: 2.8 | J83: 2.8 | K83: 0 | L83: 0 | M83: 0 | N83: 0 | O83: 0 | P83: 0 | Q83: 1 | R83: Bit of crust near left eye
B84: MH PG | C84: 2017-03-01 | D84: 16:12:00 | E84: 120 | F84: 25.7 | G84: 21.3 | H84: =G84/F84 -> 0.8287937743 | I84: 3 | J84: 3 | K84: 0 | L84: 0 | M84: 0 | N84: 0 | O84: 0 | P84: =SUM(K84:O84) -> 0 | Q84: 1 | R84: Bit of crust near left eye
B85: AG PG | C85: 2017-03-02 | D85: 16:10:00 | E85: 121 | F85: 25.7 | G85: 21.8 | H85: 0.8482490272 | I85: 2.9 | J85: 2.9 | K85: 0 | L85: 0 | M85: 0 | N85: 0 | O85: 0 | P85: 0 | Q85: 1 | R85: Bit of crust near left eye
B86: PG SR | C86: 2017-03-03 | D86: 16:19:00 | E86: 122 | F86: 25.7 | G86: 21.7 | H86: 0.8443579767 | I86: 2.9 | J86: 2.9 | K86: 0 | L86: 0 | M86: 0 | N86: 0 | O86: 0 | P86: 0 | Q86: 1 | R86: Bit of crust near left eye
B87: PG | C87: 2017-03-04 | D87: 17:21:00 | E87: 123 | F87: 25.7 | G87: 21.3 | H87: 0.8287937743 | I87: 3.1 | J87: 3.1 | K87: 0 | L87: 0 | M87: 0 | N87: 0 | O87: 0 | P87: 0 | Q87: 1 | R87: Bit of crust near left eye
B88: SR | C88: 2017-03-05 | D88: 17:32:00 | E88: 124 | F88: 25.7 | G88: 21.5 | H88: 0.8365758755 | I88: 3.1 | J88: 3.1 | K88: 0 | L88: 0 | M88: 0 | N88: 0 | O88: 0 | P88: 0 | Q88: 1 | R88: Bit of crust near left eye
B89: PG SR | C89: 2017-03-06 | D89: 17:34:00 | E89: 125 | F89: 25.7 | G89: 21.7 | H89: 0.8443579767 | I89: 3.05 | J89: 3.05 | K89: 0 | L89: 0 | M89: 0 | N89: 0 | O89: 0 | P89: 0 | Q89: 1 | R89: Bit of crust near left eye
B90: PG SR | C90: 2017-03-07 | D90: 16:36:00 | E90: 126 | F90: 25.7 | G90: 22.6 | H90: 0.8793774319 | I90: ad lib | J90: ad lib | K90: 0 | L90: 0 | M90: 0 | N90: 0 | O90: 0 | P90: 0 | Q90: 1 | R90: Bit of crust near left eye
B91: PG SR | C91: 2017-03-08 | D91: 16:02:00 | E91: 127 | F91: 25.7 | G91: 27.1 | H91: 1.054474708 | K91: 0 | L91: 0 | M91: 0 | N91: 0 | O91: 0 | P91: 0 | Q91: 1 | R91: Bit of crust near left eye
B92: PG SR | C92: 2017-03-09 | D92: 17:30:00 | E92: 128 | F92: 25.7 | G92: 27.5 | H92: 1.070038911 | K92: 0 | L92: 0 | M92: 0 | N92: 0 | O92: 0 | P92: 0 | Q92: 1 | R92: Bit of crust near left eye
B93: PG SR | C93: 2017-03-10 | D93: 14:16:00 | E93: 129 | F93: 25.7 | G93: 27.7 | H93: 1.077821012 | K93: 0 | L93: 0 | M93: 0 | N93: 0 | O93: 0 | P93: 0 | Q93: 1 | R93: Bit of crust near left eye
C94: 2017-03-11 | E94: 130
C95: 2017-03-12 | E95: 131
B96: AG | C96: 2017-03-13 | D96: 15:00:00 | E96: 132 | F96: 25.7 | G96: 27.7 | H96: =G96/F96 -> 1.077821012 | K96: 0 | L96: 0 | M96: 0 | N96: 0 | O96: 0 | P96: =SUM(K96:O96) -> 0 | Q96: 0
C97: 2017-03-14 | E97: 133
B98: MH PG | C98: 2017-03-15 | D98: 14:54:00 | E98: 134 | F98: 25.7 | G98: 27.6 | H98: 1.073929961 | K98: 0 | L98: 0 | M98: 0 | N98: 0 | O98: 0 | P98: 0 | Q98: 0
C99: 2017-03-16 | E99: 135
C100: 2017-03-17 | E100: 136 | F100: 25.7 | H100: =G100/F100 -> 0 | P100: =SUM(K100:O100) -> 0

Sheet W10
B1: Score sheet info (digital summary)
B2: Mouse W10
F3: Weight | I3: Water | K3: Scoring
B4: Experimenter | C4: Day | D4: Time | E4: Age | F4: Reference | G4: Actual | H4: Percentage | I4: Offered | J4: Consumed | K4: Activity/behavior | L4: Look/posture | M4: Shit/piss | N4: Body condition | O4: Dehydration signs | P4: Total | Q4: Implant | R4: Comment
B5: SR | C5: 2016-12-12 | D5: 14:00:00 | E5: 41 | F5: 22 | G5: 21.1 | H5: =G5/F5 -> 0.9590909091 | K5: 0 | N5: 0 | P5: =SUM(K5:O5) -> 0
B6: SR | C6: 2016-12-13 | D6: 14:00:00 | E6: 42 | F6: 22 | G6: 22.3 | H6: =G6/F6 -> 1.013636364 | K6: 0 | N6: 0 | P6: =SUM(K6:O6) -> 0
B7: PG | C7: 2016-12-14 | D7: 18:00:00 | E7: 43 | F7: 22 | G7: 22.6 | H7: 1.027272727 | K7: 0 | N7: 0 | P7: 0
B8: PG | C8: 2016-12-15 | D8: 15:00:00 | E8: 44 | F8: 22 | G8: 21.9 | H8: 0.9954545455 | K8: 0 | N8: 0 | P8: 0
B9: AG,SR,PG | C9: 2016-12-16 | D9: 14:30:00 | E9: 45 | F9: 22 | G9: 20.9 | H9: 0.95 | K9: 0 | N9: 1 | P9: 1 | Q9: 0 | R9: Wet fur
B10: PG | C10: 2016-12-17 | D10: 14:00:00 | E10: 46 | F10: 22 | G10: 21.9 | H10: 0.9954545455 | K10: 0 | N10: 0 | P10: 0 | Q10: 0
B11: PG | C11: 2016-12-18 | D11: 14:00:00 | E11: 47 | F11: 22 | G11: 22.7 | H11: 1.031818182 | K11: 0 | N11: 0 | P11: 0 | Q11: 0
B12: SR | C12: 2016-12-19 | D12: 14:00:00 | E12: 48 | F12: 22 | G12: 23.3 | H12: 1.059090909 | K12: 0 | N12: 0 | P12: 0 | Q12: 0
B13: PG | C13: 2016-12-20 | D13: 16:00:00 | E13: 49 | F13: 22 | G13: 23.8 | H13: 1.081818182 | K13: 0 | N13: 0 | P13: 0 | Q13: 0
B14: AG | C14: 2016-12-21 | D14: 14:00:00 | E14: 50 | F14: 22 | G14: 23.2 | H14: 1.054545455 | K14: 1 | N14: 0 | P14: 1 | Q14: 0 | R14: bald spot on back, no blood, rest fur normal
B15: AG | C15: 2016-12-22 | D15: 13:45:00 | E15: 51 | F15: 22 | G15: 23.4 | H15: 1.063636364 | K15: 0 | N15: 0 | P15: 0 | Q15: 0 | R15: bald spot looks fine
B16: PG | C16: 2016-12-23 | D16: 13:20:00 | E16: 52 | F16: 22 | G16: 23.6 | H16: 1.072727273 | K16: 0 | N16: 0 | P16: 0 | Q16: 0
C17: 2016-12-24 | E17: 53
C18: 2016-12-25 | E18: 54
C19: 2016-12-26 | E19: 55
C20: 2016-12-27 | E20: 56
C21: 2016-12-28 | E21: 57
C22: 2016-12-29 | E22: 58
C23: 2016-12-30 | E23: 59
C24: 2016-12-31 | E24: 60
C25: 2017-01-01 | E25: 61
B26: AG PG | C26: 2017-01-02 | D26: 14:00:00 | E26: 62 | F26: 25.1 | G26: 25.1 | H26: 1 | I26: 1.57 | J26: 1.57 | K26: 0 | L26: 0 | M26: 0 | N26: 0 | O26: 0 | P26: 0 | Q26: 0 | R26: bald spot is gone
B27: AG PG | C27: 2017-01-03 | D27: 14:30:00 | E27: 63 | F27: 25.1 | G27: 23 | H27: 0.9163346614 | I27: 1.57 | J27: 1.57 | K27: 0 | L27: 0 | M27: 0 | N27: 0 | O27: 0 | P27: 0 | Q27: 0
B28: AH MH | C28: 2017-01-04 | D28: 14:30:00 | E28: 64 | F28: 25.1 | G28: 22.8 | H28: 0.9083665339 | I28: 1.5 | J28: 1.5 | K28: 0 | L28: 0 | M28: 0 | N28: 0 | O28: 0 | P28: 0 | Q28: 0
B29: AG PG | C29: 2017-01-05 | D29: 14:00:00 | E29: 65 | F29: 25.1 | G29: 22.5 | H29: 0.8964143426 | I29: 1.57 | J29: 1.57 | K29: 0 | L29: 0 | M29: 0 | N29: 0 | O29: 0 | P29: 0 | Q29: 0
B30: AG PG | C30: 2017-01-06 | D30: 14:00:00 | E30: 66 | F30: 25.1 | G30: 22.1 | H30: 0.8804780876 | I30: 1.57 | J30: 1.57 | K30: 0 | L30: 0 | M30: 0 | N30: 0 | O30: 0 | P30: 0 | Q30: 0
B31: PG | C31: 2017-01-07 | D31: 16:00:00 | E31: 67 | F31: 25.1 | G31: 22.2 | H31: 0.8844621514 | I31: 1.57 | J31: 1.57 | K31: 0 | L31: 0 | M31: 0 | N31: 0 | O31: 0 | P31: 0 | Q31: 0
B32: AG | C32: 2017-01-08 | D32: 15:00:00 | E32: 68 | F32: 25.1 | G32: 22 | H32: 0.8764940239 | I32: 1.57 | J32: 1.57 | K32: 0 | L32: 0 | M32: 0 | N32: 0 | O32: 0 | P32: 0 | Q32: 0
B33: MH PG | C33: 2017-01-09 | D33: 14:30:00 | E33: 69 | F33: 25.1 | G33: 22.1 | H33: 0.8804780876 | I33: 1.57 | J33: 1.57 | K33: 0 | L33: 0 | M33: 0 | N33: 0 | O33: 0 | P33: 0 | Q33: 0
B34: AG PG | C34: 2017-01-10 | D34: 14:40:00 | E34: 70 | F34: 25.1 | G34: 22.1 | H34: 0.8804780876 | I34: 1.4 | J34: 1.4 | K34: 0 | L34: 0 | M34: 0 | N34: 0 | O34: 0 | P34: =SUM(K34:O34) -> 0 | Q34: 0
B35: AG SR | C35: 2017-01-11 | D35: 14:45:00 | E35: 71 | F35: 25.1 | G35: 22 | H35: 0.8764940239 | I35: 1.4 | J35: 1.4 | K35: 0 | L35: 0 | M35: 0 | N35: 0 | O35: 0 | P35: 0 | Q35: 0
B36: SR PG | C36: 2017-01-12 | D36: 14:30:00 | E36: 72 | F36: 25.1 | G36: 21.7 | H36: 0.8645418327 | I36: 1.45 | J36: 1.45 | K36: 0 | L36: 0 | M36: 0 | N36: 0 | O36: 0 | P36: 0 | Q36: 0
B37: MH PG | C37: 2017-01-13 | D37: 14:45:00 | E37: 73 | F37: 25.1 | G37: 21.5 | H37: 0.8565737052 | I37: 1.5 | J37: 1.5 | K37: 0 | L37: 0 | M37: 0 | N37: 0 | O37: 0 | P37: 0 | Q37: 0
B38: AG MH | C38: 2017-01-14 | D38: 14:00:00 | E38: 74 | F38: 25.1 | G38: 21.6 | H38: 0.8605577689 | I38: 1.5 | J38: 1.5 | K38: 0 | L38: 0 | M38: 0 | N38: 0 | O38: 0 | P38: 0 | Q38: 0
B39: PG SR | C39: 2017-01-15 | D39: 14:35:00 | E39: 75 | F39: 25.1 | G39: 21.3 | H39: 0.8486055777 | I39: 1.55 | J39: 1.55 | K39: 0 | L39: 0 | M39: 0 | N39: 0 | O39: 0 | P39: 0 | Q39: 0
B40: MH SR | C40: 2017-01-16 | D40: 14:15:00 | E40: 76 | F40: 25.1 | G40: 21.3 | H40: 0.8486055777 | I40: 1.55 | J40: 1.55 | K40: 0 | L40: 0 | M40: 0 | N40: 0 | O40: 1 | P40: 1 | Q40: 0
B41: MH PG SR | C41: 2017-01-17 | D41: 18:44:00 | E41: 77 | F41: 25.1 | G41: 21.2 | H41: 0.8446215139 | I41: 1.6 | J41: 1.6 | K41: 0 | L41: 0 | M41: 0 | N41: 0 | O41: 0 | P41: 0 | Q41: 0
B42: MH PG | C42: 2017-01-18 | D42: 16:40:00 | E42: 78 | F42: 25.1 | G42: 21.3 | H42: 0.8486055777 | I42: 1.6 | J42: 1.6 | K42: 0 | L42: 0 | M42: 0 | N42: 0 | O42: 0 | P42: 0 | Q42: 0
B43: PG SR | C43: 2017-01-19 | D43: 16:19:00 | E43: 79 | F43: 25.1 | G43: 21.3 | H43: 0.8486055777 | I43: 1.6 | J43: 1.6 | K43: 0 | L43: 0 | M43: 0 | N43: 0 | O43: 0 | P43: 0 | Q43: 0
B44: AG PG SR | C44: 2017-01-20 | D44: 16:09:00 | E44: 80 | F44: 25.1 | G44: 21.4 | H44: 0.8525896414 | I44: 1.6 | J44: 1.6 | K44: 0 | L44: 0 | M44: 0 | N44: 0 | O44: 0 | P44: 0 | Q44: 0
B45: MH SR | C45: 2017-01-21 | D45: 15:51:00 | E45: 81 | F45: 25.1 | G45: 21.2 | H45: 0.8446215139 | I45: 1.6 | J45: 1.6 | K45: 0 | L45: 0 | M45: 0 | N45: 0 | O45: 0 | P45: 0 | Q45: 0
B46: MH | C46: 2017-01-22 | D46: 14:25:00 | E46: 82 | F46: 25.1 | G46: 21.4 | H46: 0.8525896414 | I46: 1.6 | J46: 1.6 | K46: 0 | L46: 0 | M46: 0 | N46: 0 | O46: 0 | P46: 0 | Q46: 0
B47: AG PG | C47: 2017-01-23 | D47: 15:57:00 | E47: 83 | F47: 25.1 | G47: 21.3 | H47: 0.8486055777 | I47: 1.6 | J47: 1.6 | K47: 0 | L47: 0 | M47: 0 | N47: 0 | O47: 1 | P47: 0 | Q47: 0
B48: PG SR | C48: 2017-01-24 | D48: 16:45:00 | E48: 84 | F48: 25.1 | G48: 21.3 | H48: 0.8486055777 | I48: 1.6 | J48: 1.6 | K48: 0 | L48: 0 | M48: 0 | N48: 0 | O48: 1 | P48: 1 | Q48: 0
B49: AG SR | C49: 2017-01-25 | D49: 15:49:00 | E49: 85 | F49: 25.1 | G49: 21.5 | H49: 0.8565737052 | I49: 1.6 | J49: 1.6 | K49: 0 | L49: 0 | M49: 0 | N49: 0 | O49: 0 | P49: 0 | Q49: 0
B50: AG SR | C50: 2017-01-26 | D50: 15:53:00 | E50: 86 | F50: 25.1 | G50: 21.3 | H50: =G50/F50 -> 0.8486055777 | I50: 1.6 | J50: 1.6 | K50: 0 | L50: 0 | M50: 0 | N50: 0 | O50: 0 | P50: 0 | Q50: 0
B51: MH PG | C51: 2017-01-27 | D51: 16:11:00 | E51: 87 | F51: 25.1 | G51: 21.6 | H51: =G51/F51 -> 0.8605577689 | I51: 1.5 | J51: 1.6 | K51: 0 | L51: 0 | M51: 0 | N51: 0 | O51: 1 | P51: 1 | Q51: 0
B52: MH PG | C52: 2017-01-28 | D52: 16:13:00 | E52: 88 | F52: 25.1 | G52: 21.5 | H52: =G52/F52 -> 0.8565737052 | I52: 1.5 | J52: 1.5 | K52: 0 | L52: 0 | M52: 0 | N52: 0 | O52: 0 | P52: 0 | Q52: 0
B53: PG | C53: 2017-01-29 | D53: 15:00:00 | E53: 89 | F53: 25.1 | G53: 21.6 | H53: 0.8605577689 | I53: 1.45 | J53: 1.45 | K53: 0 | L53: 0 | M53: 0 | N53: 0 | O53: 0 | P53: 0 | Q53: 0
B54: AG PG SR | C54: 2017-01-30 | D54: 16:00:00 | E54: 90 | F54: 25.1 | G54: 21.9 | H54: 0.8725099602 | I54: 1.4 | J54: 1.4 | K54: 0 | L54: 0 | M54: 0 | N54: 0 | O54: 1 | P54: 1 | Q54: 0
B55: AG PG | C55: 2017-01-31 | D55: 15:41:00 | E55: 91 | F55: 25.1 | G55: 21.8 | H55: 0.8685258964 | I55: 1.4 | J55: 1.4 | K55: 0 | L55: 0 | M55: 0 | N55: 0 | O55: 0 | P55: 0 | Q55: 0
B56: PG SR | C56: 2017-02-01 | D56: 16:14:00 | E56: 92 | F56: 25.1 | G56: 21.6 | H56: 0.8605577689 | I56: 1.4 | J56: 1.4 | K56: 0 | L56: 0 | M56: 0 | N56: 0 | O56: 1 | P56: 1 | Q56: 0
B57: AG PG | C57: 2017-02-02 | D57: 16:03:00 | E57: 93 | F57: 25.1 | G57: 21.4 | H57: 0.8525896414 | I57: 1.4 | J57: 1.4 | K57: 0 | L57: 0 | M57: 0 | N57: 0 | O57: 1 | P57: 1 | Q57: 0
B58: SR PG | C58: 2017-02-03 | D58: 15:38:00 | E58: 94 | F58: 25.1 | G58: 21.5 | H58: 0.8565737052 | I58: 1.45 | J58: 1.45 | K58: 0 | L58: 0 | M58: 0 | N58: 0 | O58: 0 | P58: 0 | Q58: 0
B59: AG PG | C59: 2017-02-04 | D59: 15:56:00 | E59: 95 | F59: 25.1 | G59: 21 | H59: 0.8366533865 | I59: 1.45 | J59: 1.45 | K59: 0 | L59: 0 | M59: 0 | N59: 1 | O59: 0 | P59: 1 | Q59: 0
B60: SR | C60: 2017-02-05 | D60: 15:48:00 | E60: 96 | F60: 25.1 | G60: 21.2 | H60: 0.8446215139 | I60: 1.45 | J60: 1.45 | K60: 0 | L60: 0 | M60: 0 | N60: 0 | O60: 0 | P60: 0 | Q60: 0
B61: AG PG | C61: 2017-02-06 | D61: 15:59:00 | E61: 97 | F61: 25.1 | G61: 21.7 | H61: 0.8645418327 | I61: 1.4 | J61: 1.4 | K61: 0 | L61: 0 | M61: 0 | N61: 0 | O61: 0 | P61: 0 | Q61: 0
B62: PG SR | C62: 2017-02-07 | D62: 16:16:00 | E62: 98 | F62: 25.1 | G62: 21.4 | H62: 0.8525896414 | I62: 1.42 | J62: 1.42 | K62: 0 | L62: 0 | M62: 0 | N62: 0 | O62: 0 | P62: 0 | Q62: 0
B63: MH PG | C63: 2017-02-08 | D63: 16:05:00 | E63: 99 | F63: 25.1 | G63: 21.2 | H63: 0.8446215139 | I63: 1.45 | J63: 1.45 | K63: 0 | L63: 0 | M63: 0 | N63: 0 | O63: 0 | P63: 0 | Q63: 0
B64: AG PG | C64: 2017-02-09 | D64: 16:00:00 | E64: 100 | F64: 25.1 | G64: 21.1 | H64: 0.8406374502 | I64: 1.48 | J64: 1.48 | K64: 0 | L64: 0 | M64: 0 | N64: 0 | O64: 0 | P64: 0 | Q64: 0
B65: PG SR | C65: 2017-02-10 | D65: 15:44:00 | E65: 101 | F65: 25.1 | G65: 21.1 | H65: 0.8406374502 | I65: 1.48 | J65: 1.48 | K65: 0 | L65: 0 | M65: 0 | N65: 0 | O65: 0 | P65: 0 | Q65: 0
B66: PG SR | C66: 2017-02-11 | D66: 16:10:00 | E66: 102 | F66: 25.1 | G66: 20.7 | H66: 0.8247011952 | I66: 1.55 | J66: 1.55 | K66: 0 | L66: 0 | M66: 0 | N66: 0 | O66: 0 | P66: 0 | Q66: 0
B67: PG SR | C67: 2017-02-12 | D67: 16:05:00 | E67: 103 | F67: 25.1 | G67: 20.7 | H67: 0.8247011952 | I67: 1.6 | J67: 1.6 | K67: 0 | L67: 0 | M67: 0 | N67: 0 | O67: 0 | P67: 0 | Q67: 0
B68: MH PG | C68: 2017-02-13 | D68: 15:57:00 | E68: 104 | F68: 25.1 | G68: 20.5 | H68: 0.8167330677 | I68: 1.8 | J68: 1.8 | K68: 0 | L68: 1 | M68: 0 | N68: 0 | O68: 0 | P68: 1 | Q68: 0
B69: PG SR | C69: 2017-02-14 | D69: 16:09:00 | E69: 105 | F69: 25.1 | G69: 20.8 | H69: 0.828685259 | I69: 1.85 | J69: 1.85 | K69: 0 | L69: 1 | M69: 0 | N69: 0 | O69: 0 | P69: 1 | Q69: 0
B70: MH PG | C70: 2017-02-15 | D70: 16:06:00 | E70: 106 | F70: 25.1 | G70: 20.9 | H70: =G70/F70 -> 0.8326693227 | I70: 1.95 | J70: 1.95 | K70: 0 | L70: 1 | M70: 0 | N70: 0 | O70: 0 | P70: =SUM(K70:O70) -> 1 | Q70: 0
B71: PG SR | C71: 2017-02-16 | D71: 16:21:00 | E71: 107 | F71: 25.1 | G71: 21 | H71: 0.8366533865 | I71: 2 | J71: 2 | K71: 0 | L71: 1 | M71: 0 | N71: 0 | O71: 0 | P71: 1 | Q71: 0
B72: AG PG | C72: 2017-02-17 | D72: 16:26:00 | E72: 108 | F72: 25.1 | G72: 20.9 | H72: 0.8326693227 | I72: 2.1 | J72: 2.1 | K72: 0 | L72: 1 | M72: 0 | N72: 0 | O72: 0 | P72: 1 | Q72: 0
B73: PG SR | C73: 2017-02-18 | D73: 16:13:00 | E73: 109 | F73: 25.1 | G73: 21.1 | H73: 0.8406374502 | I73: 2.1 | J73: 2.1 | K73: 0 | L73: 0 | M73: 0 | N73: 0 | O73: 1 | P73: 1 | Q73: 0
B74: MH | C74: 2017-02-19 | D74: 16:14:00 | E74: 110 | F74: 25.1 | G74: 21.2 | H74: 0.8446215139 | I74: 2.1 | J74: 2.1 | K74: 0 | L74: 1 | M74: 0 | N74: 0 | O74: 0 | P74: 1 | Q74: 0
B75: PG SR | C75: 2017-02-20 | D75: 16:30:00 | E75: 111 | F75: 25.1 | G75: 22.2 | H75: 0.8844621514 | I75: 1.95 | J75: 1.95 | K75: 0 | L75: 0 | M75: 0 | N75: 0 | O75: 1 | P75: 1 | Q75: 0
B76: AG PG | C76: 2017-02-21 | D76: 16:25:00 | E76: 112 | F76: 25.1 | G76: 22.2 | H76: 0.8844621514 | I76: 1.9 | J76: 1.9 | K76: 0 | L76: 1 | M76: 0 | N76: 0 | O76: 0 | P76: 1 | Q76: 0
B77: PG MH | C77: 2017-02-22 | D77: 16:14:00 | E77: 113 | F77: 25.1 | G77: 22.2 | H77: 0.8844621514 | I77: 1.8 | J77: 1.8 | K77: 0 | L77: 0 | M77: 0 | N77: 0 | O77: 1 | P77: 1 | Q77: 0
B78: AG PG | C78: 2017-02-23 | D78: 16:06:00 | E78: 114 | F78: 25.1 | G78: 22 | H78: 0.8764940239 | I78: 1.75 | J78: 1.75 | K78: 0 | L78: 0 | M78: 0 | N78: 0 | O78: 1 | P78: 1 | Q78: 0
B79: MH PG | C79: 2017-02-24 | D79: 15:57:00 | E79: 115 | F79: 25.1 | G79: 22 | H79: 0.8764940239 | I79: 1.65 | J79: 1.65 | K79: 0 | L79: 0 | M79: 0 | N79: 0 | O79: 1 | P79: 1 | Q79: 0
B80: AG PG | C80: 2017-02-25 | D80: 15:54:00 | E80: 116 | F80: 25.1 | G80: 21.7 | H80: 0.8645418327 | I80: 1.67 | J80: 1.67 | K80: 0 | L80: 0 | M80: 0 | N80: 0 | O80: 1 | P80: 1 | Q80: 0
B81: AG | C81: 2017-02-26 | D81: 15:52:00 | E81: 117 | F81: 25.1 | G81: 21.7 | H81: 0.8645418327 | I81: 1.6 | J81: 1.6 | K81: 0 | L81: 0 | M81: 0 | N81: 0 | O81: 1 | P81: 1 | Q81: 0
B82: MH PG | C82: 2017-02-27 | D82: 15:59:00 | E82: 118 | F82: 25.1 | G82: 22.3 | H82: 0.8884462151 | I82: 1.44 | J82: 1.44 | K82: 0 | L82: 0 | M82: 0 | N82: 0 | O82: 0 | P82: 0 | Q82: 0
B83: AG PG | C83: 2017-02-28 | D83: 16:06:00 | E83: 119 | F83: 25.1 | G83: 22.1 | H83: 0.8804780876 | I83: 1.87 | J83: 1.87 | K83: 0 | L83: 0 | M83: 0 | N83: 0 | O83: 0 | P83: 0 | Q83: 0
B84: MH PG | C84: 2017-03-01 | D84: 16:14:00 | E84: 120 | F84: 25.1 | G84: 22.1 | H84: =G84/F84 -> 0.8804780876 | I84: 1.6 | J84: 1.6 | K84: 0 | L84: 0 | M84: 0 | N84: 0 | O84: 0 | P84: =SUM(K84:O84) -> 0 | Q84: 0
B85: AG PG | C85: 2017-03-02 | D85: 16:11:00 | E85: 121 | F85: 25.1 | G85: 22 | H85: 0.8764940239 | I85: 1.47 | J85: 1.47 | K85: 0 | L85: 0 | M85: 0 | N85: 0 | O85: 0 | P85: 0 | Q85: 0
B86: PG SR | C86: 2017-03-03 | D86: 16:20:00 | E86: 122 | F86: 25.1 | G86: 22 | H86: 0.8764940239 | I86: 1.58 | J86: 1.58 | K86: 0 | L86: 0 | M86: 0 | N86: 0 | O86: 1 | P86: 1 | Q86: 0
B87: PG | C87: 2017-03-04 | D87: 17:23:00 | E87: 123 | F87: 25.1 | G87: 21.8 | H87: 0.8685258964 | I87: 1.5 | J87: 1.5 | K87: 0 | L87: 0 | M87: 0 | N87: 0 | O87: 1 | P87: 1 | Q87: 0
B88: SR | C88: 2017-03-05 | D88: 17:35:00 | E88: 124 | F88: 25.1 | G88: 22 | H88: 0.8764940239 | I88: 1.4 | J88: 1.4 | K88: 0 | L88: 0 | M88: 0 | N88: 0 | O88: 1 | P88: 1 | Q88: 0
B89: PG SR | C89: 2017-03-06 | D89: 17:08:00 | E89: 125 | F89: 25.1 | G89: 22.1 | H89: 0.8804780876 | I89: 1.2 | J89: 1.2 | K89: 0 | L89: 0 | M89: 0 | N89: 0 | O89: 0 | P89: 0 | Q89: 0
B90: PG SR | C90: 2017-03-07 | D90: 16:39:00 | E90: 126 | F90: 25.1 | G90: 21 | H90: 0.8366533865 | I90: 1.38 | J90: 1.38 | K90: 0 | L90: 0 | M90: 0 | N90: 0 | O90: 0 | P90: 0 | Q90: 0
B91: PG SR | C91: 2017-03-08 | D91: 16:08:00 | E91: 127 | F91: 25.1 | G91: 21.4 | H91: 0.8525896414 | I91: 1.3 | J91: 1.3 | K91: 0 | L91: 0 | M91: 0 | N91: 0 | O91: 0 | P91: 0 | Q91: 0
B92: PG SR | C92: 2017-03-09 | D92: 17:33:00 | E92: 128 | F92: 25.1 | G92: 21.4 | H92: 0.8525896414 | I92: ad lib | J92: ad lib | K92: 0 | L92: 0 | M92: 0 | N92: 0 | O92: 1 | P92: 1 | Q92: 0
B93: PG SR | C93: 2017-03-10 | D93: 14:17:00 | E93: 129 | F93: 25.1 | G93: 26 | H93: 1.035856574 | K93: 0 | L93: 0 | M93: 0 | N93: 0 | O93: 0 | P93: 0 | Q93: 0
C94: 2017-03-11 | E94: 130
C95: 2017-03-12 | E95: 131
B96: AG | C96: 2017-03-13 | D96: 15:00:00 | E96: 132 | F96: 25.1 | G96: 27 | H96: =G96/F96 -> 1.075697211 | K96: 0 | L96: 0 | M96: 0 | N96: 0 | O96: 1 | P96: =SUM(K96:O96) -> 1 | Q96: 0
C97: 2017-03-14 | E97: 133
B98: MH PG | C98: 2017-03-15 | D98: 14:55:00 | E98: 134 | F98: 25.1 | G98: 26.9 | H98: 1.071713147 | K98: 0 | L98: 0 | M98: 0 | N98: 0 | O98: 0 | P98: 0 | Q98: 0
C99: 2017-03-16 | E99: 135
C100: 2017-03-17 | E100: 136 | F100: 25.1 | H100: =G100/F100 -> 0 | P100: =SUM(K100:O100) -> 0

Sheet W11
B1: Score sheet info (digital summary)
B2: Mouse W11
F3: Weight | I3: Food | K3: Scoring
B4: Experimenter | C4: Day | D4: Time | E4: Age | F4: Reference | G4: Actual | H4: Percentage | I4: Offered | J4: Consumed | K4: Activity/behavior | L4: Look/posture | M4: Shit/piss | N4: Body condition | O4: Dehydration signs | P4: Total | Q4: Implant | R4: Comment
B5: SR | C5: 2016-12-12 | D5: 14:00:00 | E5: 41 | F5: 22.3 | G5: 21.8 | H5: =G5/F5 -> 0.9775784753 | K5: 0 | N5: 0 | P5: =SUM(K5:O5) -> 0
B6: SR | C6: 2016-12-13 | D6: 14:00:00 | E6: 42 | F6: 22.3 | G6: 22.5 | H6: =G6/F6 -> 1.00896861 | K6: 0 | N6: 0 | P6: =SUM(K6:O6) -> 0
B7: PG | C7: 2016-12-14 | D7: 18:00:00 | E7: 43 | F7: 22.3 | G7: 22.4 | H7: 1.004484305 | K7: 0 | N7: 0 | P7: 0
B8: PG | C8: 2016-12-15 | D8: 15:00:00 | E8: 44 | F8: 22.3 | G8: 22.3 | H8: 1 | K8: 0 | N8: 0 | P8: 0
B9: AG,SR,PG | C9: 2016-12-16 | D9: 14:30:00 | E9: 45 | F9: 22.3 | G9: 20.9 | H9: 0.9372197309 | K9: 0 | N9: 1 | P9: 1 | Q9: 0 | R9: Wet fur
B10: PG | C10: 2016-12-17 | D10: 14:00:00 | E10: 46 | F10: 22.3 | G10: 21.5 | H10: 0.9641255605 | K10: 0 | N10: 0 | P10: 0 | Q10: 0
B11: PG | C11: 2016-12-18 | D11: 14:00:00 | E11: 47 | F11: 22.3 | G11: 22.3 | H11: 1 | K11: 0 | N11: 0 | P11: 0 | Q11: 0
B12: SR | C12: 2016-12-19 | D12: 14:00:00 | E12: 48 | F12: 22.3 | G12: 23 | H12: 1.031390135 | K12: 0 | N12: 0 | P12: 0 | Q12: 0
B13: PG | C13: 2016-12-20 | D13: 16:00:00 | E13: 49 | F13: 22.3 | G13: 23 | H13: 1.031390135 | K13: 0 | N13: 0 | P13: 0 | Q13: 0
B14: AG | C14: 2016-12-21 | D14: 14:00:00 | E14: 50 | F14: 22.3 | G14: 23 | H14: 1.031390135 | K14: 0 | N14: 0 | P14: 0 | Q14: 0
B15: AG | C15: 2016-12-22 | D15: 13:45:00 | E15: 51 | F15: 22.3 | G15: 22.6 | H15: 1.013452915 | K15: 0 | N15: 0 | P15: 0 | Q15: 0
B16: PG | C16: 2016-12-23 | D16: 13:20:00 | E16: 52 | F16: 22.3 | G16: 23.2 | H16: 1.040358744 | K16: 0 | N16: 0 | P16: 0 | Q16: 0
C17: 2016-12-24 | E17: 53
C18: 2016-12-25 | E18: 54
C19: 2016-12-26 | E19: 55
C20: 2016-12-27 | E20: 56
C21: 2016-12-28 | E21: 57
C22: 2016-12-29 | E22: 58
C23: 2016-12-30 | E23: 59
C24: 2016-12-31 | E24: 60
C25: 2017-01-01 | E25: 61
B26: AG PG | C26: 2017-01-02 | D26: 14:00:00 | E26: 62 | F26: 25 | G26: 25 | H26: 1 | I26: 2 | J26: 2 | K26: 0 | L26: 0 | M26: 0 | N26: 0 | O26: 0 | P26: 0 | Q26: 1 | R26: bit of dirt above left eye
B27: AG PG | C27: 2017-01-03 | D27: 14:30:00 | E27: 63 | F27: 25 | G27: 21.6 | H27: 0.864 | I27: 3 | J27: 3 | K27: 0 | L27: 0 | M27: 0 | N27: 0 | O27: 0 | P27: 0 | Q27: 1 | R27: bit of dirt above left eye
B28: AG MH | C28: 2017-01-04 | D28: 14:30:00 | E28: 64 | F28: 25 | G28: 21.6 | H28: 0.864 | I28: 2.5 | J28: 2.5 | K28: 0 | L28: 0 | M28: 0 | N28: 0 | O28: 0 | P28: 0 | Q28: 1 | R28: bit of dirt above left eye
B29: AG PG | C29: 2017-01-05 | D29: 14:00:00 | E29: 65 | F29: 25 | G29: 20.3 | H29: 0.812 | I29: 3.2 | J29: 3.2 | K29: 0 | L29: 0 | M29: 0 | N29: 0 | O29: 0 | P29: 0 | Q29: 1 | R29: bit of dirt above left eye
B30: ag pg | C30: 2017-01-06 | D30: 14:00:00 | E30: 66 | F30: 25 | G30: 20.2 | H30: 0.808 | I30: 4.2 | J30: 4.2 | K30: 0 | L30: 0 | M30: 0 | N30: 0 | O30: 0 | P30: 0 | Q30: 1 | R30: bit of dirt above left eye
B31: PG | C31: 2017-01-07 | D31: 16:00:00 | E31: 67 | F31: 25 | G31: 20.6 | H31: 0.824 | I31: 4.4 | J31: 4.4 | K31: 0 | L31: 0 | M31: 0 | N31: 0 | O31: 0 | P31: 0 | Q31: 1 | R31: bit of dirt above left eye
B32: AG | C32: 2017-01-08 | D32: 15:00:00 | E32: 68 | F32: 25 | G32: 21.4 | H32: 0.856 | I32: 3 | J32: 3 | K32: 0 | L32: 0 | M32: 0 | N32: 0 | O32: 0 | P32: 0 | Q32: 1 | R32: bit of dirt above left eye
B33: MH PG | C33: 2017-01-09 | D33: 15:10:00 | E33: 69 | F33: 25 | G33: 20.5 | H33: 0.82 | I33: 4.1 | J33: 4.1 | K33: 0 | L33: 0 | M33: 0 | N33: 0 | O33: 0 | P33: 0 | Q33: 1 | R33: bit of dirt above left eye
B34: AG PG | C34: 2017-01-10 | D34: 15:10:00 | E34: 70 | F34: 25 | G34: 20.7 | H34: 0.828 | I34: 3.95 | J34: 3.95 | K34: 0 | L34: 0 | M34: 0 | N34: 0 | O34: 0 | P34: =SUM(K34:O34) -> 0 | Q34: 1 | R34: bit of dirt above left eye
B35: AG SR | C35: 2017-01-11 | D35: 14:45:00 | E35: 71 | F35: 25 | G35: 21.1 | H35: 0.844 | I35: 4 | J35: 4 | K35: 0 | L35: 0 | M35: 0 | N35: 0 | O35: 0 | P35: 0 | Q35: 1 | R35: bit of dirt above left eye
B36: SR PG | C36: 2017-01-12 | D36: 15:00:00 | E36: 72 | F36: 25 | G36: 21.2 | H36: 0.848 | I36: 3.93 | J36: 3.93 | K36: 0 | L36: 0 | M36: 0 | N36: 0 | O36: 0 | P36: 0 | Q36: 1 | R36: bit of dirt above left eye
B37: MH PG | C37: 2017-01-13 | D37: 15:00:00 | E37: 73 | F37: 25 | G37: 21.4 | H37: 0.856 | I37: 3.8 | J37: 3.8 | K37: 0 | L37: 0 | M37: 0 | N37: 0 | O37: 0 | P37: 0 | Q37: 1 | R37: bit of dirt above left eye
B38: AG MH | C38: 2017-01-14 | D38: 14:30:00 | E38: 74 | F38: 25 | G38: 20.9 | H38: 0.836 | I38: 4.5 | J38: 4.5 | K38: 0 | L38: 0 | M38: 0 | N38: 0 | O38: 0 | P38: 0 | Q38: 1 | R38: bit of dirt above left eye
B39: PG SR | C39: 2017-01-15 | D39: 15:15:00 | E39: 75 | F39: 25 | G39: 21.4 | H39: 0.856 | I39: 4.8 | J39: 4.8 | K39: 0 | L39: 0 | M39: 0 | N39: 0 | O39: 0 | P39: 0 | Q39: 1 | R39: bit of dirt above left eye
B40: MH SR | C40: 2017-01-16 | D40: 14:30:00 | E40: 76 | F40: 25 | G40: 21.3 | H40: 0.852 | I40: 4.8 | J40: 4.8 | K40: 0 | L40: 0 | M40: 0 | N40: 0 | O40: 0 | P40: 0 | Q40: 1 | R40: bit of dirt above left eye
B41: MH PG SR | C41: 2017-01-17 | D41: 18:53:00 | E41: 77 | F41: 25 | G41: 20.6 | H41: 0.824 | I41: 5.35 | J41: 5.35 | K41: 0 | L41: 0 | M41: 0 | N41: 0 | O41: 0 | P41: 0 | Q41: 1 | R41: bit of dirt above left eye
B42: MH PG | C42: 2017-01-18 | D42: 16:45:00 | E42: 78 | F42: 25 | G42: 21.8 | H42: 0.872 | I42: 5.84 | J42: 5.84 | K42: 0 | L42: 0 | M42: 0 | N42: 0 | O42: 0 | P42: 0 | Q42: 1 | R42: bit of dirt above left eye
B43: PG SR | C43: 2017-01-19 | D43: 16:22:00 | E43: 79 | F43: 25 | G43: 21.4 | H43: 0.856 | I43: 3.4 | J43: 3.4 | K43: 0 | L43: 0 | M43: 0 | N43: 0 | O43: 0 | P43: 0 | Q43: 1 | R43: bit of dirt above left eye
B44: AG PG SR | C44: 2017-01-20 | D44: 16:12:00 | E44: 80 | F44: 25 | G44: 21.4 | H44: 0.856 | I44: 3.4 | J44: 3.4 | K44: 0 | L44: 0 | M44: 0 | N44: 0 | O44: 0 | P44: 0 | Q44: 1 | R44: bit of dirt above left eye
B45: MH SR | C45: 2017-01-21 | D45: 15:54:00 | E45: 81 | F45: 25 | G45: 21.3 | H45: 0.852 | I45: 3.4 | J45: 3.4 | K45: 0 | L45: 0 | M45: 0 | N45: 0 | O45: 0 | P45: 0 | Q45: 1 | R45: bit of dirt above left eye
B46: MH | C46: 2017-01-22 | D46: 15:01:00 | E46: 82 | F46: 25 | G46: 22 | H46: 0.88 | I46: 3.3 | J46: 3.3 | K46: 0 | L46: 0 | M46: 0 | N46: 0 | O46: 0 | P46: 0 | Q46: 1 | R46: bit of dirt above left eye
B47: AG PG | C47: 2017-01-23 | D47: 15:57:00 | E47: 83 | F47: 25 | G47: 21 | H47: 0.84 | I47: 3.5 | J47: 3.5 | K47: 0 | L47: 0 | M47: 0 | N47: 0 | O47: 0 | P47: 0 | Q47: 1 | R47: dirt above both eyes
B48: PG SR | C48: 2017-01-24 | D48: 16:48:00 | E48: 84 | F48: 25 | G48: 21.3 | H48: 0.852 | I48: 3.4 | J48: 3.4 | K48: 0 | L48: 0 | M48: 0 | N48: 0 | O48: 0 | P48: 0 | Q48: 1 | R48: dirt above both eyes
B49: AG SR | C49: 2017-01-25 | D49: 15:53:00 | E49: 85 | F49: 25 | G49: 21.6 | H49: 0.864 | I49: 3.35 | J49: 3.35 | K49: 0 | L49: 0 | M49: 0 | N49: 0 | O49: 0 | P49: 0 | Q49: 1 | R49: dirt above both eyes
B50: AG SR | C50: 2017-01-26 | D50: 15:59:00 | E50: 86 | F50: 25 | G50: 21.7 | H50: 0.868 | I50: 3.3 | J50: 3.3 | K50: 0 | L50: 0 | M50: 0 | N50: 0 | O50: 0 | P50: 0 | Q50: 1 | R50: dirt above both eyes
B51: MH PG | C51: 2017-01-27 | D51: 16:33:00 | E51: 87 | F51: 25 | G51: 21.1 | H51: 0.844 | I51: 3.35 | J51: 3.35 | K51: 0 | L51: 0 | M51: 0 | N51: 0 | O51: 0 | P51: 0 | Q51: 1 | R51: dirt above both eyes
B52: MH PG | C52: 2017-01-28 | D52: 16:26:00 | E52: 88 | F52: 25 | G52: 21.4 | H52: 0.856 | I52: 3.3 | J52: 3.3 | K52: 0 | L52: 0 | M52: 0 | N52: 0 | O52: 0 | P52: 0 | Q52: 1 | R52: dirt above both eyes
B53: PG | C53: 2017-01-29 | D53: 15:05:00 | E53: 89 | F53: 25 | G53: 21.5 | H53: 0.86 | I53: 3.2 | J53: 3.2 | K53: 0 | L53: 0 | M53: 0 | N53: 0 | O53: 0 | P53: 0 | Q53: 1 | R53: dirt above both eyes
B54: AG SR PG | C54: 2017-01-30 | D54: 16:08:00 | E54: 90 | F54: 25 | G54: 20.9 | H54: 0.836 | I54: 3.3 | J54: 3.3 | K54: 0 | L54: 0 | M54: 0 | N54: 0 | O54: 0 | P54: 0 | Q54: 1 | R54: dirt above both eyes
B55: AG PG | C55: 2017-01-31 | D55: 16:01:00 | E55: 91 | F55: 25 | G55: 21.6 | H55: 0.864 | I55: 3.25 | J55: 3.25 | K55: 0 | L55: 0 | M55: 0 | N55: 0 | O55: 0 | P55: 0 | Q55: 1 | R55: dirt above both eyes
B56: PG SR | C56: 2017-02-01 | D56: 16:32:00 | E56: 92 | F56: 25 | G56: 21.1 | H56: 0.844 | I56: 3.25 | J56: 3.25 | K56: 0 | L56: 0 | M56: 0 | N56: 0 | O56: 0 | P56: 0 | Q56: 1 | R56: dirt above both eyes
B57: AG PG | C57: 2017-02-02 | D57: 16:04:00 | E57: 93 | F57: 25 | G57: 20.8 | H57: 0.832 | I57: 3.3 | J57: 3.3 | K57: 0 | L57: 0 | M57: 0 | N57: 0 | O57: 0 | P57: 0 | Q57: 1 | R57: dirt above both eyes
B58: SR PG | C58: 2017-02-03 | D58: 15:39:00 | E58: 94 | F58: 25 | G58: 20.9 | H58: 0.836 | I58: 3.35 | J58: 3.35 | K58: 0 | L58: 0 | M58: 0 | N58: 0 | O58: 0 | P58: 0 | Q58: 1 | R58: dirt above both eyes
B59: AG PG | C59: 2017-02-04 | D59: 15:56:00 | E59: 95 | F59: 25 | G59: 21 | H59: 0.84 | I59: 3.35 | J59: 3.35 | K59: 0 | L59: 0 | M59: 0 | N59: 0 | O59: 0 | P59: 0 | Q59: 1 | R59: dirt above both eyes
B60: SR | C60: 2017-02-05 | D60: 15:50:00 | E60: 96 | F60: 25 | G60: 21.3 | H60: 0.852 | I60: 3.3 | J60: 3.3 | K60: 0 | L60: 0 | M60: 0 | N60: 0 | O60: 0 | P60: 0 | Q60: 1 | R60: dirt above both eyes
B61: AG PG | C61: 2017-02-06 | D61: 16:01:00 | E61: 97 | F61: 25 | G61: 21 | H61: 0.84 | I61: 3.35 | J61: 3.35 | K61: 0 | L61: 0 | M61: 0 | N61: 0 | O61: 0 | P61: 0 | Q61: 1 | R61: dirt above both eyes
B62: PG SR | C62: 2017-02-07 | D62: 16:17:00 | E62: 98 | F62: 25 | G62: 21.4 | H62: 0.856 | I62: 3.3 | J62: 3.3 | K62: 0 | L62: 0 | M62: 0 | N62: 0 | O62: 0 | P62: 0 | Q62: 1 | R62: dirt above both eyes
B63: MH PG | C63: 2017-02-08 | D63: 16:06:00 | E63: 99 | F63: 25 | G63: 22.2 | H63: 0.888 | I63: 3.2 | J63: 3.2 | K63: 0 | L63: 0 | M63: 0 | N63: 0 | O63: 0 | P63: 0 | Q63: 1 | R63: dirt above both eyes
B64: AG PG | C64: 2017-02-09 | D64: 16:03:00 | E64: 100 | F64: 25 | G64: 21.8 | H64: 0.872 | I64: 3.2 | J64: 3.2 | K64: 0 | L64: 0 | M64: 0 | N64: 0 | O64: 0 | P64: 0 | Q64: 1 | R64: dirt above both eyes
B65: PG SR | C65: 2017-02-10 | D65: 15:46:00 | E65: 101 | F65: 25 | G65: 22 | H65: 0.88 | I65: 3.1 | J65: 3.1 | K65: 0 | L65: 0 | M65: 0 | N65: 0 | O65: 0 | P65: 0 | Q65: 1 | R65: dirt above both eyes
B66: PG SR | C66: 2017-02-11 | D66: 16:12:00 | E66: 102 | F66: 25 | G66: 22 | H66: 0.88 | I66: 3 | J66: 3 | K66: 0 | L66: 0 | M66: 0 | N66: 0 | O66: 0 | P66: 0 | Q66: 1 | R66: dirt above both eyes
B67: PG SR | C67: 2017-02-12 | D67: 16:08:00 | E67: 103 | F67: 25 | G67: 22.1 | H67: 0.884 | I67: 2.9 | J67: 2.9 | K67: 0 | L67: 0 | M67: 0 | N67: 0 | O67: 0 | P67: 0 | Q67: 1 | R67: dirt above both eyes
B68: MH PG | C68: 2017-02-13 | D68: 15:58:00 | E68: 104 | F68: 25 | G68: 22.1 | H68: 0.884 | I68: 2.7 | J68: 2.7 | K68: 0 | L68: 0 | M68: 0 | N68: 0 | O68: 0 | P68: 0 | Q68: 1 | R68: dirt above both eyes
B69: PG SR | C69: 2017-02-14 | D69: 16:10:00 | E69: 105 | F69: 25 | G69: 21.8 | H69: 0.872 | I69: 2.7 | J69: 2.7 | K69: 0 | L69: 0 | M69: 0 | N69: 0 | O69: 0 | P69: 0 | Q69: 1 | R69: dirt above both eyes
B70: MH PG | C70: 2017-02-15 | D70: 16:08:00 | E70: 106 | F70: 25 | G70: 21.9 | H70: =G70/F70 -> 0.876 | I70: 2.55 | J70: 2.55 | K70: 0 | L70: 0 | M70: 0 | N70: 0 | O70: 0 | P70: =SUM(K70:O70) -> 0 | Q70: 1 | R70: dirt above both eyes
B71: PG SR | C71: 2017-02-16 | D71: 16:23:00 | E71: 107 | F71: 25 | G71: 21.2 | H71: 0.848 | I71: 2.7 | J71: 2.7 | K71: 0 | L71: 0 | M71: 0 | N71: 0 | O71: 0 | P71: 0 | Q71: 1 | R71: dirt above both eyes
B72: AG PG | C72: 2017-02-17 | D72: 16:28:00 | E72: 108 | F72: 25 | G72: 20.7 | H72: 0.828 | I72: 2.9 | J72: 2.9 | K72: 0 | L72: 0 | M72: 0 | N72: 0 | O72: 0 | P72: 0 | Q72: 1 | R72: dirt above both eyes
B73: PG SR | C73: 2017-02-18 | D73: 16:16:00 | E73: 109 | F73: 25 | G73: 21.4 | H73: 0.856 | I73: 2.8 | J73: 2.8 | K73: 0 | L73: 0 | M73: 0 | N73: 0 | O73: 0 | P73: 0 | Q73: 1 | R73: dirt above both eyes
B74: MH | C74: 2017-02-19 | D74: 16:52:00 | E74: 110 | F74: 25 | G74: 21 | H74: 0.84 | I74: 2.85 | J74: 2.85 | K74: 0 | L74: 0 | M74: 0 | N74: 0 | O74: 0 | P74: 0 | Q74: 1 | R74: dirt above both eyes
B75: PG SR | C75: 2017-02-20 | D75: 16:33:00 | E75: 111 | F75: 25 | G75: 20.1 | H75: 0.804 | I75: 3.2 | J75: 3.2 | K75: 0 | L75: 0 | M75: 0 | N75: 0 | O75: 0 | P75: 0 | Q75: 1 | R75: dirt above both eyes
B76: AG PG | C76: 2017-02-21 | D76: 16:29:00 | E76: 112 | F76: 25 | G76: 21.4 | H76: 0.856 | I76: 2.9 | J76: 2.9 | K76: 0 | L76: 0 | M76: 0 | N76: 0 | O76: 0 | P76: 0 | Q76: 1 | R76: dirt above both eyes
B77: PG MH | C77: 2017-02-22 | D77: 16:15:00 | E77: 113 | F77: 25 | G77: 21.1 | H77: 0.844 | I77: 3 | J77: 3 | K77: 0 | L77: 0 | M77: 0 | N77: 0 | O77: 0 | P77: 0 | Q77: 1 | R77: dirt above both eyes
B78: AG PG | C78: 2017-02-23 | D78: 16:08:00 | E78: 114 | F78: 25 | G78: 21 | H78: 0.84 | I78: 3.05 | J78: 3.05 | K78: 0 | L78: 0 | M78: 0 | N78: 0 | O78: 0 | P78: 0 | Q78: 1 | R78: dirt above both eyes
B79: MH PG | C79: 2017-02-24 | D79: 15:58:00 | E79: 115 | F79: 25 | G79: 21 | H79: 0.84 | I79: 3.1 | J79: 3.1 | K79: 0 | L79: 0 | M79: 0 | N79: 0 | O79: 0 | P79: 0 | Q79: 1 | R79: dirt above both eyes
B80: AG PG | C80: 2017-02-25 | D80: 15:56:00 | E80: 116 | F80: 25 | G80: 21 | H80: 0.84 | I80: 3.1 | J80: 3.1 | K80: 0 | L80: 0 | M80: 0 | N80: 0 | O80: 0 | P80: 0 | Q80: 1 | R80: dirt above both eyes
B81: AG | C81: 2017-02-26 | D81: 15:35:00 | E81: 117 | F81: 25 | G81: 21.3 | H81: 0.852 | I81: 3.1 | J81: 3.1 | K81: 0 | L81: 0 | M81: 0 | N81: 0 | O81: 0 | P81: 0 | Q81: 1 | R81: dirt above both eyes
B82: MH PG | C82: 2017-02-27 | D82: 16:02:00 | E82: 118 | F82: 25 | G82: 20.8 | H82: 0.832 | I82: 3.2 | J82: 3.2 | K82: 0 | L82: 0 | M82: 0 | N82: 0 | O82: 0 | P82: 0 | Q82: 1 | R82: dirt above both eyes
B83: AG PG | C83: 2017-02-28 | D83: 16:07:00 | E83: 119 | F83: 25 | G83: 21 | H83: 0.84 | I83: 3.2 | J83: 3.2 | K83: 0 | L83: 0 | M83: 0 | N83: 0 | O83: 1 | P83: 1 | Q83: 1 | R83: dirt above both eyes
B84: MH PG | C84: 2017-03-01 | D84: 16:15:00 | E84: 120 | F84: 25 | G84: 21.4 | H84: =G84/F84 -> 0.856 | I84: 3.1 | J84: 3.1 | K84: 0 | L84: 0 | M84: 0 | N84: 0 | O84: 0 | P84: =SUM(K84:O84) -> 0 | Q84: 1 | R84: dirt above both eyes
B85: AG PG | C85: 2017-03-02 | D85: 16:13:00 | E85: 121 | F85: 25 | G85: 21.3 | H85: 0.852 | I85: 3.1 | J85: 3.1 | K85: 0 | L85: 0 | M85: 0 | N85: 0 | O85: 1 | P85: 1 | Q85: 1 | R85: dirt above both eyes
B86: PG SR | C86: 2017-03-03 | D86: 16:22:00 | E86: 122 | F86: 25 | G86: 21.4 | H86: 0.856 | I86: 3.1 | J86: 3.1 | K86: 0 | L86: 0 | M86: 0 | N86: 0 | O86: 0 | P86: 0 | Q86: 1 | R86: dirt above both eyes
B87: PG | C87: 2017-03-04 | D87: 17:25:00 | E87: 123 | F87: 25 | G87: 20.7 | H87: 0.828 | I87: 3.3 | J87: 3.3 | K87: 0 | L87: 0 | M87: 0 | N87: 0 | O87: 0 | P87: 0 | Q87: 1 | R87: dirt above both eyes
B88: SR | C88: 2017-03-05 | D88: 17:38:00 | E88: 124 | F88: 25 | G88: 20.8 | H88: 0.832 | I88: 3.3 | J88: 3.3 | K88: 0 | L88: 0 | M88: 0 | N88: 0 | O88: 0 | P88: 0 | Q88: 1 | R88: dirt above both eyes
B89: PG SR | C89: 2017-03-06 | D89: 17:35:00 | E89: 125 | F89: 25 | G89: 20.7 | H89: 0.828 | I89: 3.4 | J89: 3.4 | K89: 0 | L89: 0 | M89: 0 | N89: 0 | O89: 0 | P89: 0 | Q89: 1 | R89: dirt above both eyes
B90: PG SR | C90: 2017-03-07 | D90: 16:41:00 | E90: 126 | F90: 25 | G90: 22 | H90: 0.88 | I90: ad lib | J90: ad lib | K90: 0 | L90: 0 | M90: 0 | N90: 0 | O90: 0 | P90: 0 | Q90: 1 | R90: dirt above both eyes
B91: PG SR | C91: 2017-03-08 | D91: 16:03:00 | E91: 127 | F91: 25 | G91: 27.9 | H91: 1.116 | K91: 0 | L91: 0 | M91: 0 | N91: 0 | O91: 0 | P91: 0 | Q91: 1 | R91: dirt above both eyes
B92: PG SR | C92: 2017-03-09 | D92: 17:34:00 | E92: 128 | F92: 25 | G92: 27.8 | H92: 1.112 | K92: 0 | L92: 0 | M92: 0 | N92: 0 | O92: 0 | P92: 0 | Q92: 1 | R92: dirt above both eyes
B93: PG SR | C93: 2017-03-10 | D93: 14:17:00 | E93: 129 | F93: 25 | G93: 28.6 | H93: 1.144 | K93: 0 | L93: 0 | M93: 0 | N93: 0 | O93: 0 | P93: 0 | Q93: 1 | R93: dirt above both eyes
C94: 2017-03-11 | E94: 130
C95: 2017-03-12 | E95: 131
B96: AG | C96: 2017-03-13 | D96: 15:00:00 | E96: 132 | F96: 25 | G96: 28.3 | H96: =G96/F96 -> 1.132 | K96: 0 | L96: 0 | M96: 0 | N96: 0 | O96: 0 | P96: =SUM(K96:O96) -> 0 | Q96: 1 | R96: dirt above both eyes
C97: 2017-03-14 | E97: 133
B98: MH PG | C98: 2017-03-15 | D98: 14:55:00 | E98: 134 | F98: 25 | G98: 28.5 | H98: 1.14 | K98: 0 | L98: 0 | M98: 0 | N98: 0 | O98: 0 | P98: 0 | Q98: 1 | R98: dirt above both eyes
C99: 2017-03-16 | E99: 135
C100: 2017-03-17 | E100: 136 | F100: 25 | H100: =G100/F100 -> 0 | P100: =SUM(K100:O100) -> 0

Sheet W12
B1: Score sheet info (digital summary)
B2: Mouse W12
F3: Weight | I3: Water | K3: Scoring
B4: Experimenter | C4: Day | D4: Time | E4: Age | F4: Reference | G4: Actual | H4: Percentage | I4: Offered | J4: Consumed | K4: Activity/behavior | L4: Look/posture | M4: Shit/piss | N4: Body condition | O4: Dehydration signs | P4: Total | Q4: Implant | R4: Comment
B5: SR | C5: 2016-12-12 | D5: 14:00:00 | E5: 41 | F5: 21.7 | G5: 21.7 | H5: =G5/F5 -> 1 | K5: 0 | N5: 0 | P5: =SUM(K5:O5) -> 0
B6: SR | C6: 2016-12-13 | D6: 14:00:00 | E6: 42 | F6: 21.7 | G6: 21.8 | H6: 1.004608295 | K6: 0 | N6: 0 | P6: 0
B7: PG | C7: 2016-12-14 | D7: 18:00:00 | E7: 43 | F7: 21.7 | G7: 22.1 | H7: 1.01843318 | K7: 0 | N7: 0 | P7: 0
B8: PG | C8: 2016-12-15 | D8: 15:00:00 | E8: 44 | F8: 21.7 | G8: 21.3 | H8: 0.9815668203 | K8: 0 | N8: 0 | P8: 0
B9: AG,SR,PG | C9: 2016-12-16 | D9: 14:30:00 | E9: 45 | F9: 21.7 | G9: 20.2 | H9: 0.930875576 | K9: 0 | N9: 1 | P9: 1 | Q9: 0 | R9: Wet fur
B10: PG | C10: 2016-12-17 | D10: 14:00:00 | E10: 46 | F10: 21.7 | G10: 19.9 | H10: 0.9170506912 | K10: 0 | N10: 1 | P10: =SUM(K10:O10) -> 1 | Q10: 0 | R10: Bit wet fur in the neck
B11: PG | C11: 2016-12-18 | D11: 14:00:00 | E11: 47 | F11: 21.7 | G11: 20.8 | H11: 0.9585253456 | K11: 0 | N11: 0 | P11: 0 | Q11: 0
B12: SR | C12: 2016-12-19 | D12: 14:00:00 | E12: 48 | F12: 21.7 | G12: 21.9 | H12: 1.00921659 | K12: 0 | N12: 1 | P12: 1 | Q12: 0 | R12: Bit wet fur in the neck
B13: PG | C13: 2016-12-20 | D13: 16:00:00 | E13: 49 | F13: 21.7 | G13: 22.3 | H13: 1.02764977 | K13: 0 | N13: 0 | P13: 0 | Q13: 0 | R13: Looks good
B14: AG | C14: 2016-12-21 | D14: 14:00:00 | E14: 50 | F14: 21.7 | G14: 22.6 | H14: 1.041474654 | K14: 0 | N14: 0 | P14: 0 | Q14: 0
B15: AG | C15: 2016-12-22 | D15: 13:45:00 | E15: 51 | F15: 21.7 | G15: 23.1 | H15: 1.064516129 | K15: 0 | N15: 0 | P15: 0 | Q15: 0
B16: PG | C16: 2016-12-23 | D16: 13:20:00 | E16: 52 | F16: 21.7 | G16: 22.8 | H16: 1.050691244 | K16: 0 | N16: 0 | P16: 0 | Q16: 0
C17: 2016-12-24 | E17: 53
C18: 2016-12-25 | E18: 54
C19: 2016-12-26 | E19: 55
C20: 2016-12-27 | E20: 56
C21: 2016-12-28 | E21: 57
C22: 2016-12-29 | E22: 58
C23: 2016-12-30 | E23: 59
C24: 2016-12-31 | E24: 60
C25: 2017-01-01 | E25: 61
B26: AG PG | C26: 2017-01-02 | D26: 14:00:00 | E26: 62 | F26: 25.3 | G26: 25.3 | H26: 1 | I26: 1.57 | J26: 1.57 | K26: 0 | L26: 0 | M26: 0 | N26: 0 | O26: 0 | P26: 0 | Q26: 1 | R26: bit of dirt above left eye
B27: AG PG | C27: 2017-01-03 | D27: 14:30:00 | E27: 63 | F27: 25.3 | G27: 23.5 | H27: 0.9288537549 | I27: 1.57 | J27: 1.57 | K27: 0 | L27: 0 | M27: 0 | N27: 0 | O27: 0 | P27: 0 | Q27: 1 | R27: bit of dirt above left eye
B28: AG MH | C28: 2017-01-04 | D28: 14:30:00 | E28: 64 | F28: 25.3 | G28: 22.4 | H28: 0.8853754941 | I28: 1.4 | J28: 1.4 | K28: 0 | L28: 1 | M28: 0 | N28: 0 | O28: 0 | P28: 1 | Q28: 1 | R28: bit of dirt above left eye
B29: AG PG | C29: 2017-01-05 | D29: 14:00:00 | E29: 65 | F29: 25.3 | G29: 21.7 | H29: 0.8577075099 | I29: 1.5 | J29: 1.5 | K29: 0 | L29: 0 | M29: 0 | N29: 0 | O29: 0 | P29: 0 | Q29: 1 | R29: bit of dirt above left eye
B30: AG PG | C30: 2017-01-06 | D30: 14:00:00 | E30: 66 | F30: 25.3 | G30: 21 | H30: 0.8300395257 | I30: 2.3 | J30: 2.3 | K30: 0 | L30: 0 | M30: 0 | N30: 0 | O30: 0 | P30: 0 | Q30: 0
B31: PG | C31: 2017-01-07 | D31: 16:00:00 | E31: 67 | F31: 25.3 | G31: 21.6 | H31: 0.8537549407 | I31: 1.57 | J31: 1.57 | K31: 0 | L31: 0 | M31: 0 | N31: 0 | O31: 0 | P31: 0 | Q31: 0
B32: AG | C32: 2017-01-08 | D32: 15:00:00 | E32: 68 | F32: 25.3 | G32: 21.9 | H32: 0.8656126482 | I32: 1.57 | J32: 1.57 | K32: 0 | L32: 0 | M32: 0 | N32: 0 | O32: 0 | P32: 0 | Q32: 0
B33: MH PG | C33: 2017-01-09 | D33: 14:40:00 | E33: 69 | F33: 25.3 | G33: 21.9 | H33: 0.8656126482 | I33: 1.57 | J33: 1.57 | K33: 0 | L33: 0 | M33: 0 | N33: 0 | O33: 0 | P33: 0 | Q33: 0
B34: AG PG | C34: 2017-01-10 | D34: 14:30:00 | E34: 70 | F34: 25.3 | G34: 21.8 | H34: 0.8616600791 | I34: 1.55 | J34: 1.55 | K34: 0 | L34: 0 | M34: 0 | N34: 0 | O34: 0 | P34: 0 | Q34: 0
B35: AG SR | C35: 2017-01-11 | D35: 14:45:00 | E35: 71 | F35: 25.3 | G35: 21.8 | H35: 0.8616600791 | I35: 1.57 | J35: 1.57 | K35: 0 | L35: 0 | M35: 0 | N35: 0 | O35: 0 | P35: 0 | Q35: 0
B36: SR PG | C36: 2017-01-12 | D36: 14:30:00 | E36: 72 | F36: 25.3 | G36: 21.8 | H36: 0.8616600791 | I36: 1.5 | J36: 1.5 | K36: 0 | L36: 0 | M36: 0 | N36: 0 | O36: 0 | P36: 0 | Q36: 0
B37: MH PG | C37: 2017-01-13 | D37: 14:35:00 | E37: 73 | F37: 25.3 | G37: 21.9 | H37: 0.8656126482 | I37: 1.45 | J37: 1.45 | K37: 0 | L37: 0 | M37: 0 | N37: 0 | O37: 0 | P37: 0 | Q37: 0
B38: AG MH | C38: 2017-01-14 | D38: 14:00:00 | E38: 74 | F38: 25.3 | G38: 21.8 | H38: 0.8616600791 | I38: 1.5 | J38: 1.5 | K38: 0 | L38: 0 | M38: 0 | N38: 0 | O38: 0 | P38: 0 | Q38: 0
B39: PG SR | C39: 2017-01-15 | D39: 14:35:00 | E39: 75 | F39: 25.3 | G39: 21.8 | H39: 0.8616600791 | I39: 1.5 | J39: 1.5 | K39: 0 | L39: 0 | M39: 0 | N39: 0 | O39: 0 | P39: 0 | Q39: 0
B40: MH SR | C40: 2017-01-16 | D40: 14:05:00 | E40: 76 | F40: 25.3 | G40: 21.9 | H40: 0.8656126482 | I40: 1.5 | J40: 1.5 | K40: 0 | L40: 0 | M40: 0 | N40: 0 | O40: 0 | P40: 0 | Q40: 0
B41: MH PG SR | C41: 2017-01-17 | D41: 18:55:00 | E41: 77 | F41: 25.3 | G41: 21.8 | H41: 0.8616600791 | I41: 1.5 | J41: 1.5 | K41: 0 | L41: 0 | M41: 0 | N41: 0 | O41: 0 | P41: 0 | Q41: 0
B42: MH PG | C42: 2017-01-18 | D42: 16:50:00 | E42: 78 | F42: 25.3 | G42: 21.8 | H42: 0.8616600791 | I42: 1.45 | J42: 1.45 | K42: 0 | L42: 0 | M42: 0 | N42: 0 | O42: 0 | P42: 0 | Q42: 0
B43: PG SR | C43: 2017-01-19 | D43: 16:24:00 | E43: 79 | F43: 25.3 | G43: 21.7 | H43: 0.8577075099 | I43: 1.4 | J43: 1.4 | K43: 0 | L43: 0 | M43: 0 | N43: 0 | O43: 0 | P43: 0 | Q43: 0
B44: AG PG SR | C44: 2017-01-20 | D44: 16:17:00 | E44: 80 | F44: 25.3 | G44: 21.7 | H44: 0.8577075099 | I44: 1.4 | J44: 1.4 | K44: 0 | L44: 0 | M44: 0 | N44: 0 | O44: 0 | P44: 0 | Q44: 0
B45: MH SR | C45: 2017-01-21 | D45: 15:58:00 | E45: 81 | F45: 25.3 | G45: 21.9 | H45: 0.8656126482 | I45: 1.35 | J45: 1.35 | K45: 0 | L45: 0 | M45: 0 | N45: 0 | O45: 0 | P45: 0 | Q45: 0
B46: MH | C46: 2017-01-22 | D46: 14:30:00 | E46: 82 | F46: 25.3 | G46: 21.8 | H46: 0.8616600791 | I46: 1.35 | J46: 1.35 | K46: 0 | L46: 0 | M46: 0 | N46: 0 | O46: 0 | P46: 0 | Q46: 0
B47: AG PG | C47: 2017-01-23 | D47: 15:59:00 | E47: 83 | F47: 25.3 | G47: 21.7 | H47: 0.8577075099 | I47: 1.35 | J47: 1.35 | K47: 0 | L47: 0 | M47: 0 | N47: 0 | O47: 0 | P47: 0 | Q47: 0
B48: PG SR | C48: 2017-01-24 | D48: 16:50:00 | E48: 84 | F48: 25.3 | G48: 21.4 | H48: 0.8458498024 | I48: 1.4 | J48: 1.4 | K48: 0 | L48: 0 | M48: 0 | N48: 0 | O48: 0 | P48: 0 | Q48: 0
B49: AG SR | C49: 2017-01-25 | D49: 15:58:00 | E49: 85 | F49: 25.3 | G49: 20.9 | H49: 0.8260869565 | I49: 1.55 | J49: 1.55 | K49: 0 | L49: 0 | M49: 0 | N49: 0 | O49: 1 | P49: 1 | Q49: 0
B50: AG SR | C50: 2017-01-26 | D50: 16:01:00 | E50: 86 | F50: 25.3 | G50: 21.3 | H50: 0.8418972332 | I50: 1.55 | J50: 1.55 | K50: 0 | L50: 0 | M50: 0 | N50: 0 | O50: 0 | P50: 0 | Q50: 0
B51: MH PG | C51: 2017-01-27 | D51: 16:18:00 | E51: 87 | F51: 25.3 | G51: 21.2 | H51: 0.837944664 | I51: 1.6 | J51: 1.6 | K51: 0 | L51: 0 | M51: 0 | N51: 0 | O51: 0 | P51: 0 | Q51: 0
B52: MH PG | C52: 2017-01-28 | D52: 16:13:00 | E52: 88 | F52: 25.3 | G52: 21.1 | H52: 0.8339920949 | I52: 1.65 | J52: 1.65 | K52: 0 | L52: 0 | M52: 0 | N52: 0 | O52: 0 | P52: 0 | Q52: 0
B53: PG | C53: 2017-01-29 | D53: 15:05:00 | E53: 89 | F53: 25.3 | G53: 21.4 | H53: 0.8458498024 | I53: 1.6 | J53: 1.6 | K53: 0 | L53: 0 | M53: 0 | N53: 0 | O53: 0 | P53: 0 | Q53: 0
B54: AG PG SR | C54: 2017-01-30 | D54: 16:02:00 | E54: 90 | F54: 25.3 | G54: 21.8 | H54: 0.8616600791 | I54: 1.55 | J54: 1.55 | K54: 0 | L54: 0 | M54: 0 | N54: 0 | O54: 1 | P54: 1 | Q54: 0
B55: AG PG | C55: 2017-01-31 | D55: 15:44:00 | E55: 91 | F55: 25.3 | G55: 21.7 | H55: 0.8577075099 | I55: 1.55 | J55: 1.55 | K55: 0 | L55: 0 | M55: 0 | N55: 0 | O55: 1 | P55: 1 | Q55: 0
B56: PG SR | C56: 2017-02-01 | D56: 16:15:00 | E56: 92 | F56: 25.3 | G56: 21.5 | H56: 0.8498023715 | I56: 1.55 | J56: 1.55 | K56: 0 | L56: 0 | M56: 0 | N56: 0 | O56: 0 | P56: 0 | Q56: 0
B57: AG PG | C57: 2017-02-02 | D57: 16:05:00 | E57: 93 | F57: 25.3 | G57: 21.5 | H57: 0.8498023715 | I57: 1.55 | J57: 1.55 | K57: 0 | L57: 0 | M57: 0 | N57: 0 | O57: 0 | P57: 0 | Q57: 0
B58: PG SR | C58: 2017-02-03 | D58: 14:53:00 | E58: 94 | F58: 25.3 | G58: 21.6 | H58: 0.8537549407 | I58: 1.55 | J58: 1.55 | K58: 0 | L58: 0 | M58: 0 | N58: 0 | O58: 0 | P58: 0 | Q58: 0
B59: AG PG | C59: 2017-02-04 | D59: 16:00:00 | E59: 95 | F59: 25.3 | G59: 22 | H59: =G59/F59 -> 0.8695652174 | I59: 1.45 | J59: 1.45 | K59: 0 | L59: 0 | M59: 0 | N59: 0 | O59: 0 | P59: 0 | Q59: 0
B60: SR | C60: 2017-02-05 | D60: 15:51:00 | E60: 96 | F60: 25.3 | G60: 22.1 | H60: 0.8735177866 | I60: 1.4 | J60: 1.4 | K60: 0 | L60: 0 | M60: 0 | N60: 0 | O60: 0 | P60: =SUM(K60:O60) -> 0 | Q60: 0
B61: AG PG | C61: 2017-02-06 | D61: 16:02:00 | E61: 97 | F61: 25.3 | G61: 22.2 | H61: 0.8774703557 | I61: 1.35 | J61: 1.35 | K61: 0 | L61: 0 | M61: 0 | N61: 0 | O61: 1 | P61: 1 | Q61: 0
B62: PG SR | C62: 2017-02-07 | D62: 16:19:00 | E62: 98 | F62: 25.3 | G62: 22 | H62: 0.8695652174 | I62: 1.3 | J62: 1.3 | K62: 0 | L62: 0 | M62: 0 | N62: 0 | O62: 0 | P62: 0 | Q62: 0
B63: MH PG | C63: 2017-02-08 | D63: 16:08:00 | E63: 99 | F63: 25.3 | G63: 21.8 | H63: 0.8616600791 | I63: 1.3 | J63: 1.3 | K63: 0 | L63: 0 | M63: 0 | N63: 0 | O63: 0 | P63: 0 | Q63: 0
B64: AG PG | C64: 2017-02-09 | D64: 16:07:00 | E64: 100 | F64: 25.3 | G64: 21.6 | H64: 0.8537549407 | I64: 1.35 | J64: 1.35 | K64: 0 | L64: 0 | M64: 0 | N64: 0 | O64: 0 | P64: 0 | Q64: 0
B65: PG SR | C65: 2017-02-10 | D65: 15:46:00 | E65: 101 | F65: 25.3 | G65: 21.6 | H65: 0.8537549407 | I65: 1.35 | J65: 1.35 | K65: 0 | L65: 0 | M65: 0 | N65: 0 | O65: 0 | P65: 0 | Q65: 0
B66: PG SR | C66: 2017-02-11 | D66: 16:13:00 | E66: 102 | F66: 25.3 | G66: 21.6 | H66: 0.8537549407 | I66: 1.35 | J66: 1.35 | K66: 0 | L66: 0 | M66: 0 | N66: 0 | O66: 0 | P66: 0 | Q66: 0
B67: PG SR | C67: 2017-02-12 | D67: 16:09:00 | E67: 103 | F67: 25.3 | G67: 21.5 | H67: 0.8498023715 | I67: 1.35 | J67: 1.35 | K67: 0 | L67: 0 | M67: 0 | N67: 0 | O67: 0 | P67: 0 | Q67: 0
B68: MH PG | C68: 2017-02-13 | D68: 15:58:00 | E68: 104 | F68: 25.3 | G68: 21.4 | H68: 0.8458498024 | I68: 1.4 | J68: 1.4 | K68: 0 | L68: 1 | M68: 0 | N68: 0 | O68: 0 | P68: 1 | Q68: 0
B69: PG SR | C69: 2017-02-14 | D69: 16:11:00 | E69: 105 | F69: 25.3 | G69: 21.3 | H69: 0.8418972332 | I69: 1.45 | J69: 1.45 | K69: 0 | L69: 0 | M69: 0 | N69: 0 | O69: 0 | P69: 0 | Q69: 0
B70: MH PG | C70: 2017-02-15 | D70: 16:10:00 | E70: 106 | F70: 25.3 | G70: 21 | H70: 0.8300395257 | I70: 1.55 | J70: 1.55 | K70: 0 | L70: 1 | M70: 0 | N70: 0 | O70: 0 | P70: 1 | Q70: 0
B71: PG SR | C71: 2017-02-16 | D71: 16:25:00 | E71: 107 | F71: 25.3 | G71: 21 | H71: 0.8300395257 | I71: 1.7 | J71: 1.7 | K71: 0 | L71: 0 | M71: 0 | N71: 0 | O71: 0 | P71: 0 | Q71: 0
B72: AG PG | C72: 2017-02-17 | D72: 16:29:00 | E72: 108 | F72: 25.3 | G72: 21 | H72: 0.8300395257 | I72: 1.85 | J72: 1.85 | K72: 0 | L72: 0 | M72: 0 | N72: 0 | O72: 0 | P72: 0 | Q72: 0
B73: PG SR | C73: 2017-02-18 | D73: 16:17:00 | E73: 109 | F73: 25.3 | G73: 21.1 | H73: 0.8339920949 | I73: 1.9 | J73: 1.9 | K73: 0 | L73: 0 | M73: 0 | N73: 0 | O73: 0 | P73: 0 | Q73: 0
B74: MH | C74: 2017-02-19 | D74: 16:20:00 | E74: 110 | F74: 25.3 | G74: 21.2 | H74: 0.837944664 | I74: 1.95 | J74: 1.95 | K74: 0 | L74: 1 | M74: 0 | N74: 0 | O74: 0 | P74: 1 | Q74: 0
B75: PG SR | C75: 2017-02-20 | D75: 16:36:00 | E75: 111 | F75: 25.3 | G75: 21.7 | H75: 0.8577075099 | I75: 1.95 | J75: 1.95 | K75: 0 | L75: 0 | M75: 0 | N75: 0 | O75: 1 | P75: 1 | Q75: 0
B76: AG PG | C76: 2017-02-21 | D76: 16:30:00 | E76: 112 | F76: 25.3 | G76: 21.8 | H76: 0.8616600791 | I76: 1.9 | J76: 1.9 | K76: 0 | L76: 1 | M76: 0 | N76: 0 | O76: 1 | P76: 2 | Q76: 0
B77: PG MH | C77: 2017-02-22 | D77: 16:16:00 | E77: 113 | F77: 25.3 | G77: 21.7 | H77: 0.8577075099 | I77: 1.9 | J77: 1.9 | K77: 0 | L77: 1 | M77: 0 | N77: 0 | O77: 1 | P77: 2 | Q77: 0
B78: AG PG | C78: 2017-02-23 | D78: 16:10:00 | E78: 114 | F78: 25.3 | G78: 21.6 | H78: 0.8537549407 | I78: 1.9 | J78: 1.9 | K78: 0 | L78: 1 | M78: 0 | N78: 0 | O78: 1 | P78: 2 | Q78: 0
B79: MH PG | C79: 2017-02-24 | D79: 16:00:00 | E79: 115 | F79: 25.3 | G79: 21.6 | H79: 0.8537549407 | I79: 1.85 | J79: 1.85 | K79: 0 | L79: 1 | M79: 0 | N79: 0 | O79: 1 | P79: 2 | Q79: 0
B80: AG PG | C80: 2017-02-25 | D80: 15:58:00 | E80: 116 | F80: 25.3 | G80: 21.4 | H80: 0.8458498024 | I80: 1.9 | J80: 1.9 | K80: 0 | L80: 0 | M80: 0 | N80: 0 | O80: 1 | P80: 1 | Q80: 0
B81: AG | C81: 2017-02-26 | D81: 15:59:00 | E81: 117 | F81: 25.3 | G81: 21.5 | H81: 0.8498023715 | I81: 1.9 | J81: 1.9 | K81: 0 | L81: 0 | M81: 0 | N81: 0 | O81: 1 | P81: 1 | Q81: 0
B82: MH PG | C82: 2017-02-27 | D82: 16:03:00 | E82: 118 | F82: 25.3 | G82: 21.4 | H82: 0.8458498024 | I82: 1.9 | J82: 1.9 | K82: 0 | L82: 0 | M82: 0 | N82: 0 | O82: 0 | P82: 0 | Q82: 0
B83: AG PG | C83: 2017-02-28 | D83: 16:09:00 | E83: 119 | F83: 25.3 | G83: 21.5 | H83: 0.8498023715 | I83: 1.9 | J83: 1.9 | K83: 0 | L83: 0 | M83: 0 | N83: 0 | O83: 1 | P83: 1 | Q83: 0
B84: MH PG | C84: 2017-03-01 | D84: 16:17:00 | E84: 120 | F84: 25.3 | G84: 21.6 | H84: =G84/F84 -> 0.8537549407 | I84: 1.85 | J84: 1.85 | K84: 0 | L84: 0 | M84: 0 | N84: 0 | O84: 1 | P84: =SUM(K84:O84) -> 1 | Q84: 0
B85: AG PG | C85: 2017-03-02 | D85: 16:14:00 | E85: 121 | F85: 25.3 | G85: 21.8 | H85: 0.8616600791 | I85: 1.8 | J85: 1.8 | K85: 0 | L85: 0 | M85: 0 | N85: 0 | O85: 0 | P85: 0 | Q85: 0
B86: PG SR | C86: 2017-03-03 | D86: 16:23:00 | E86: 122 | F86: 25.3 | G86: 21.9 | H86: 0.8656126482 | I86: 1.7 | J86: 1.7 | K86: 0 | L86: 0 | M86: 0 | N86: 0 | O86: 0 | P86: 0 | Q86: 0
B87: PG | C87: 2017-03-04 | D87: 17:27:00 | E87: 123 | F87: 25.3 | G87: 21.7 | H87: 0.8577075099 | I87: 1.7 | J87: 1.7 | K87: 0 | L87: 0 | M87: 0 | N87: 0 | O87: 1 | P87: 1 | Q87: 0
B88: SR | C88: 2017-03-05 | D88: 17:39:00 | E88: 124 | F88: 25.3 | G88: 21.7 | H88: 0.8577075099 | I88: 1.7 | J88: 1.7 | K88: 0 | L88: 0 | M88: 0 | N88: 0 | O88: 1 | P88: 1 | Q88: 0
B89: PG SR | C89: 2017-03-06 | D89: 17:06:00 | E89: 125 | F89: 25.3 | G89: 21.8 | H89: 0.8616600791 | I89: 1.6 | J89: 1.6 | K89: 0 | L89: 0 | M89: 0 | N89: 0 | O89: 1 | P89: 1 | Q89: 0
B90: PG SR | C90: 2017-03-07 | D90: 16:42:00 | E90: 126 | F90: 25.3 | G90: 21.5 | H90: 0.8498023715 | I90: 1.65 | J90: 1.65 | K90: 0 | L90: 0 | M90: 0 | N90: 0 | O90: 1 | P90: 1 | Q90: 0
B91: PG SR | C91: 2017-03-08 | D91: 16:10:00 | E91: 127 | F91: 25.3 | G91: 21.3 | H91: 0.8418972332 | I91: 2.06 | J91: 2.06 | K91: 0 | L91: 0 | M91: 0 | N91: 0 | O91: 1 | P91: 1 | Q91: 0
B92: PG SR | C92: 2017-03-09 | D92: 17:36:00 | E92: 128 | F92: 25.3 | G92: 20.5 | H92: 0.8102766798 | I92: ad lib | J92: ad lib | K92: 0 | L92: 1 | M92: 0 | N92: 0 | O92: 1 | P92: 2 | Q92: 0
B93: PG SR | C93: 2017-03-10 | D93: 14:18:00 | E93: 129 | F93: 25.3 | G93: 23.9 | H93: 0.9446640316 | K93: 0 | L93: 1 | M93: 0 | N93: 0 | O93: 1 | P93: 2 | Q93: 0
C94: 2017-03-11 | E94: 130
C95: 2017-03-12 | E95: 131
B96: AG | C96: 2017-03-13 | D96: 15:00:00 | E96: 132 | F96: 25.3 | G96: 25.6 | H96: =G96/F96 -> 1.011857708 | K96: 0 | L96: 1 | M96: 0 | N96: 0 | O96: 1 | P96: =SUM(K96:O96) -> 2 | Q96: 0
C97: 2017-03-14 | E97: 133
B98: MH PG | C98: 2017-03-15 | D98: 14:56:00 | E98: 134 | F98: 25.3 | G98: 26 | H98: 1.027667984 | K98: 0 | L98: 0 | M98: 0 | N98: 0 | O98: 0 | P98: 0 | Q98: 0
C99: 2017-03-16 | E99: 135
C100: 2017-03-17 | E100: 136 | F100: 25.3 | H100: =G100/F100 -> 0 | P100: =SUM(K100:O100) -> 0

Sheet Officer
C3: Score | D3: Score | E3: Score | F3: Score | G3: Score | H3: Score | I3: Score | J3: Score | K3: Score | L3: Score | M3: Score | N3: Score | O3: Mean | P3: Food | Q3: Water
A4: Day | B4: Age | C4: W01 | D4: W02 | E4: W03 | F4: W04 | G4: W05 | H4: W06 | I4: W07 | J4: W08 | K4: W09 | L4: W10 | M4: W11 | N4: W12 | O4: Score | P4: Score | Q4: Score
A5: 2016-12-12 | B5: 41
A6: 2016-12-13 | B6: 42
A7: 2016-12-14 | B7: 43
A8: 2016-12-15 | B8: 44
A9: 2016-12-16 | B9: 45
A10: 2016-12-17 | B10: 46
A11: 2016-12-18 | B11: 47
A12: 2016-12-19 | B12: 48
A13: 2016-12-20 | B13: 49
A14: 2016-12-21 | B14: 50
A15: 2016-12-22 | B15: 51
A16: 2016-12-23 | B16: 52
A17: 2016-12-24 | B17: 53
A18: 2016-12-25 | B18: 54
A19: 2016-12-26 | B19: 55
A20: 2016-12-27 | B20: 56
A21: 2016-12-28 | B21: 57
A22: 2016-12-29 | B22: 58
A23: 2016-12-30 | B23: 59
A24: 2016-12-31 | B24: 60
A25: 2017-01-01 | B25: 61
A26: 2017-01-02 | B26: 62
A27: 2017-01-03 | B27: 63
A28: 2017-01-04 | B28: 64
A29: 2017-01-05 | B29: 65
A30: 2017-01-06 | B30: 66
A31: 2017-01-07 | B31: 67
A32: 2017-01-08 | B32: 68
A33: 2017-01-09 | B33: 69
A34: 2017-01-10 | B34: 70
A35: 2017-01-11 | B35: 71
A36: 2017-01-12 | B36: 72
A37: 2017-01-13 | B37: 73
A38: 2017-01-14 | B38: 74
A39: 2017-01-15 | B39: 75
A40: 2017-01-16 | B40: 76 | C40: 0 | D40: 0 | E40: 0 | F40: 0 | G40: 0 | H40: 0 | I40: 0 | J40: 0 | K40: 1 | L40: 1 | M40: 0 | N40: 0 | O40: =AVERAGE(C40,D40,E40,F40,G40,H40,I40,J40,K40,L40,M40,N40) -> 0.1666666667 | P40: =AVERAGE(C40,E40,G40,I40,K40,M40) -> 0.1666666667 | Q40: =AVERAGE(D40,F40,H40,J40,L40,N40) -> 0.1666666667
A41: 2017-01-17 | B41: 77
A42: 2017-01-18 | B42: 78
A43: 2017-01-19 | B43: 79
A44: 2017-01-20 | B44: 80
A45: 2017-01-21 | B45: 81
A46: 2017-01-22 | B46: 82
A47: 2017-01-23 | B47: 83 | C47: 0 | D47: 1 | E47: 1 | F47: 0 | G47: 0 | H47: 1 | I47: 1 | J47: 1 | K47: 0 | L47: 1 | M47: 0 | N47: 0 | O47: =AVERAGE(C47,D47,E47,F47,G47,H47,I47,J47,K47,L47,M47,N47) -> 0.5 | P47: =AVERAGE(C47,E47,G47,I47,K47,M47) -> 0.3333333333 | Q47: =AVERAGE(D47,F47,H47,J47,L47,N47) -> 0.6666666667
A48: 2017-01-24 | B48: 84
A49: 2017-01-25 | B49: 85
A50: 2017-01-26 | B50: 86
A51: 2017-01-27 | B51: 87
A52: 2017-01-28 | B52: 88
A53: 2017-01-29 | B53: 89
A54: 2017-01-30 | B54: 90 | C54: 0 | D54: 0 | E54: 0 | F54: 0 | G54: 0 | H54: 0 | I54: 0 | J54: 1 | K54: 0 | L54: 1 | M54: 0 | N54: 1 | O54: =AVERAGE(C54,D54,E54,F54,G54,H54,I54,J54,K54,L54,M54,N54) -> 0.25 | P54: 0 | Q54: 0.5
A55: 2017-01-31 | B55: 91
A56: 2017-02-01 | B56: 92
A57: 2017-02-02 | B57: 93
A58: 2017-02-03 | B58: 94
A59: 2017-02-04 | B59: 95
A60: 2017-02-05 | B60: 96
A61: 2017-02-06 | B61: 97 | C61: 0 | D61: 0 | E61: 0 | F61: 0 | G61: 0 | H61: 1 | I61: 0 | J61: 0 | K61: 0 | L61: 1 | M61: 0 | N61: 1.5 | O61: 0.2916666667 | P61: 0 | Q61: 0.5833333333
A62: 2017-02-07 | B62: 98
A63: 2017-02-08 | B63: 99
A64: 2017-02-09 | B64: 100
A65: 2017-02-10 | B65: 101
A66: 2017-02-11 | B66: 102
A67: 2017-02-12 | B67: 103
A68: 2017-02-13 | B68: 104 | C68: 0 | D68: 2 | E68: 0 | F68: 0 | G68: 0 | H68: 2 | I68: 0 | J68: 1 | K68: 0 | L68: 1 | M68: 0 | N68: 2 | O68: 0.6666666667 | P68: 0 | Q68: 1.333333333
A69: 2017-02-14 | B69: 105
A70: 2017-02-15 | B70: 106
A71: 2017-02-16 | B71: 107
A72: 2017-02-17 | B72: 108
A73: 2017-02-18 | B73: 109
A74: 2017-02-19 | B74: 110
A75: 2017-02-20 | B75: 111 | C75: 0 | D75: 2 | E75: 0 | F75: 1 | G75: 0 | H75: 2 | I75: 1 | J75: 2 | K75: 1 | L75: 2 | M75: 0 | N75: 3 | O75: 1.166666667 | P75: 0.3333333333 | Q75: 2
A76: 2017-02-21 | B76: 112
A77: 2017-02-22 | B77: 113
A78: 2017-02-23 | B78: 114
A79: 2017-02-24 | B79: 115
A80: 2017-02-25 | B80: 116
A81: 2017-02-26 | B81: 117
A82: 2017-02-27 | B82: 118 | C82: 0 | D82: 1 | E82: 0 | F82: 0 | G82: 0 | H82: 1 | I82: 0 | J82: 1 | K82: 0 | L82: 0 | M82: 0 | N82: 1 | O82: 0.3333333333 | P82: 0 | Q82: 0.6666666667
A83: 2017-02-28 | B83: 119
A84: 2017-03-01 | B84: 120
A85: 2017-03-02 | B85: 121
A86: 2017-03-03 | B86: 122
A87: 2017-03-04 | B87: 123
A88: 2017-03-05 | B88: 124
A89: 2017-03-06 | B89: 125 | C89: 0 | D89: 2 | E89: 0 | F89: 0 | G89: 0 | H89: 1 | I89: 0 | J89: 1 | K89: 0 | L89: 1 | M89: 0 | N89: 2 | O89: =AVERAGE(C89,D89,E89,F89,G89,H89,I89,J89,K89,L89,M89,N89) -> 0.5833333333 | P89: =AVERAGE(C89,E89,G89,I89,K89,M89) -> 0 | Q89: =AVERAGE(D89,F89,H89,J89,L89,N89) -> 1.166666667
A90: 2017-03-07 | B90: 126
A91: 2017-03-08 | B91: 127
A92: 2017-03-09 | B92: 128
A93: 2017-03-10 | B93: 129
A94: 2017-03-11 | B94: 130
A95: 2017-03-12 | B95: 131
A96: 2017-03-13 | B96: 132 | C96: 0 | D96: 0 | E96: 0 | F96: 0 | G96: 0 | H96: 0 | I96: 0 | J96: 1 | K96: 0 | L96: 1 | M96: 0 | N96: 2 | O96: =AVERAGE(C96,D96,E96,F96,G96,H96,I96,J96,K96,L96,M96,N96) -> 0.3333333333 | P96: =AVERAGE(C96,E96,G96,I96,K96,M96) -> 0 | Q96: =AVERAGE(D96,F96,H96,J96,L96,N96) -> 0.6666666667
A97: 2017-03-14 | B97: 133
A98: 2017-03-15 | B98: 134
A99: 2017-03-16 | B99: 135
A100: 2017-03-17 | B100: 136

Sheet Temp hum
A4: Day | B4: Age | C4: Temperature | D4: Humidity
A5: 2016-12-12 | B5: 41
A6: 2016-12-13 | B6: 42
A7: 2016-12-14 | B7: 43
A8: 2016-12-15 | B8: 44
A9: 2016-12-16 | B9: 45
A10: 2016-12-17 | B10: 46
A11: 2016-12-18 | B11: 47
A12: 2016-12-19 | B12: 48
A13: 2016-12-20 | B13: 49
A14: 2016-12-21 | B14: 50
A15: 2016-12-22 | B15: 51
A16: 2016-12-23 | B16: 52
A17: 2016-12-24 | B17: 53
A18: 2016-12-25 | B18: 54
A19: 2016-12-26 | B19: 55
A20: 2016-12-27 | B20: 56
A21: 2016-12-28 | B21: 57
A22: 2016-12-29 | B22: 58
A23: 2016-12-30 | B23: 59
A24: 2016-12-31 | B24: 60
A25: 2017-01-01 | B25: 61
A26: 2017-01-02 | B26: 62
A27: 2017-01-03 | B27: 63
A28: 2017-01-04 | B28: 64
A29: 2017-01-05 | B29: 65
A30: 2017-01-06 | B30: 66
A31: 2017-01-07 | B31: 67
A32: 2017-01-08 | B32: 68
A33: 2017-01-09 | B33: 69
A34: 2017-01-10 | B34: 70
A35: 2017-01-11 | B35: 71
A36: 2017-01-12 | B36: 72
A37: 2017-01-13 | B37: 73
A38: 2017-01-14 | B38: 74
A39: 2017-01-15 | B39: 75
A40: 2017-01-16 | B40: 76
A41: 2017-01-17 | B41: 77
A42: 2017-01-18 | B42: 78
A43: 2017-01-19 | B43: 79
A44: 2017-01-20 | B44: 80
A45: 2017-01-21 | B45: 81
A46: 2017-01-22 | B46: 82
A47: 2017-01-23 | B47: 83
A48: 2017-01-24 | B48: 84
A49: 2017-01-25 | B49: 85
A50: 2017-01-26 | B50: 86
A51: 2017-01-27 | B51: 87 | C51: 20.4 | D51: 0.65
A52: 2017-01-28 | B52: 88 | C52: 20.4 | D52: 0.65
A53: 2017-01-29 | B53: 89 | C53: 20.4 | D53: 0.65
A54: 2017-01-30 | B54: 90
A55: 2017-01-31 | B55: 91 | C55: 20.5 | D55: 0.64
A56: 2017-02-01 | B56: 92 | C56: 20.5 | D56: 0.64
A57: 2017-02-02 | B57: 93 | C57: 20.4 | D57: 0.65
A58: 2017-02-03 | B58: 94 | C58: 20.4 | D58: 0.64
A59: 2017-02-04 | B59: 95 | C59: 20.4 | D59: 0.64
A60: 2017-02-05 | B60: 96
A61: 2017-02-06 | B61: 97 | C61: 20.6 | D61: 0.64
A62: 2017-02-07 | B62: 98 | C62: 21 | D62: 0.63
A63: 2017-02-08 | B63: 99 | C63: 20.7 | D63: 0.64
A64: 2017-02-09 | B64: 100 | C64: 20.5 | D64: 0.64
A65: 2017-02-10 | B65: 101 | C65: 20.5 | D65: 0.65
A66: 2017-02-11 | B66: 102 | C66: 21.8 | D66: 0.61
A67: 2017-02-12 | B67: 103 | C67: 21.7 | D67: 0.61
A68: 2017-02-13 | B68: 104 | C68: 21.7 | D68: 0.59 | E68: In cage | G68: Training room
A69: 2017-02-14 | B69: 105 | C69: 21.7 | D69: 0.6 | E69: 20.9 | F69: 62 | G69: 21.5 | H69: 38
A70: 2017-02-15 | B70: 106 | C70: 21.4 | D70: 0.62
A71: 2017-02-16 | B71: 107 | C71: 21.5 | D71: 0.61
A72: 2017-02-17 | B72: 108 | C72: 21.7 | D72: 0.6
A73: 2017-02-18 | B73: 109 | C73: 21.8 | D73: 0.6
A74: 2017-02-19 | B74: 110 | C74: 21.8 | D74: 0.6
A75: 2017-02-20 | B75: 111 | C75: 21.8 | D75: 0.6
A76: 2017-02-21 | B76: 112
A77: 2017-02-22 | B77: 113
A78: 2017-02-23 | B78: 114
A79: 2017-02-24 | B79: 115
A80: 2017-02-25 | B80: 116
A81: 2017-02-26 | B81: 117
A82: 2017-02-27 | B82: 118
A83: 2017-02-28 | B83: 119
A84: 2017-03-01 | B84: 120
A85: 2017-03-02 | B85: 121
A86: 2017-03-03 | B86: 122
A87: 2017-03-04 | B87: 123
A88: 2017-03-05 | B88: 124
A89: 2017-03-06 | B89: 125
A90: 2017-03-07 | B90: 126
A91: 2017-03-08 | B91: 127
A92: 2017-03-09 | B92: 128
A93: 2017-03-10 | B93: 129
A94: 2017-03-11 | B94: 130
A95: 2017-03-12 | B95: 131
A96: 2017-03-13 | B96: 132
A97: 2017-03-14 | B97: 133
A98: 2017-03-15 | B98: 134
A99: 2017-03-16 | B99: 135
A100: 2017-03-17 | B100: 136

Sheet Stats
C3: W01 | E3: W02 | G3: W03 | I3: W04 | K3: W05 | M3: W06 | O3: W07 | Q3: W08 | S3: W09 | U3: W10 | W3: W11 | Y3: W12 | AA3: Avg | AB3: Avg | AC3: Avg | AD3: Food | AE3: Food | AF3: Water | AG3: Water | AH3: Food | AI3: Water
A4: Day | B4: Age | C4: Score | D4: Implant | E4: Score | F4: Implant | G4: Score | H4: Implant | I4: Score | J4: Implant | K4: Score | L4: Implant | M4: Score | N4: Implant | O4: Score | P4: Implant | Q4: Score | R4: Implant | S4: Score | T4: Implant | U4: Score | V4: Implant | W4: Score | X4: Implant | Y4: Score | Z4: Implant | AA4: Score | AB4: Implant | AC4: Hesse | AD4: Score | AE4: Implant | AF4: Score | AG4: Implant | AH4: Hesse | AI4: Hesse
A5: 2016-12-12 | B5: 41 | C5: ='W01'!P5 -> 0 | D5: ='W01'!Q5 -> 0 | E5: ='W02'!P5 -> 0 | F5: ='W02'!Q5 -> 0 | G5: ='W03'!P5 -> 0 | H5: ='W03'!Q5 -> 0 | I5: ='W04'!P5 -> 0 | J5: ='W04'!Q5 -> 0 | K5: ='W05'!P5 -> 0 | L5: ='W05'!Q5 -> 0 | M5: ='W06'!P5 -> 0 | N5: ='W06'!Q5 -> 0 | O5: ='W07'!P5 -> 0 | P5: ='W07'!Q5 -> 0 | Q5: ='W08'!P5 -> 0 | R5: ='W08'!Q5 -> 0 | S5: ='W09'!P5 -> 0 | T5: ='W09'!Q5 -> 0 | U5: ='W10'!P5 -> 0 | V5: ='W10'!Q5 -> 0 | W5: ='W11'!P5 -> 0 | X5: ='W11'!Q5 -> 0 | Y5: ='W12'!P5 -> 0 | Z5: ='W12'!Q5 -> 0 | AA5: =AVERAGE(C5,E5,G5,I5,K5,M5,O5,Q5,S5,U5,W5,Y5) -> 0 | AB5: =AVERAGE(D5,F5,H5,J5,L5,N5,P5,R5,T5,V5,X5,Z5) -> 0 | AD5: =AVERAGE(C5,G5,K5,O5,S5,W5) -> 0 | AE5: =AVERAGE(D5,H5,L5,P5,T5,X5) -> 0 | AF5: =AVERAGE(E5,I5,M5,Q5,U5,Y5) -> 0 | AG5: =AVERAGE(F5,J5,N5,R5,V5,Z5) -> 0
A6: 2016-12-13 | B6: 42 | C6: ='W01'!P6 -> 0 | D6: ='W01'!Q6 -> 0 | E6: ='W02'!P6 -> 0 | F6: ='W02'!Q6 -> 0 | G6: ='W03'!P6 -> 0 | H6: ='W03'!Q6 -> 0 | I6: ='W04'!P6 -> 0 | J6: ='W04'!Q6 -> 0 | K6: ='W05'!P6 -> 0 | L6: ='W05'!Q6 -> 0 | M6: ='W06'!P6 -> 0 | N6: ='W06'!Q6 -> 0 | O6: ='W07'!P6 -> 0 | P6: ='W07'!Q6 -> 0 | Q6: ='W08'!P6 -> 0 | R6: ='W08'!Q6 -> 0 | S6: ='W09'!P6 -> 0 | T6: ='W09'!Q6 -> 0 | U6: ='W10'!P6 -> 0 | V6: ='W10'!Q6 -> 0 | W6: ='W11'!P6 -> 0 | X6: ='W11'!Q6 -> 0 | Y6: ='W12'!P6 -> 0 | Z6: ='W12'!Q6 -> 0 | AA6: =AVERAGE(C6,E6,G6,I6,K6,M6,O6,Q6,S6,U6,W6,Y6) -> 0 | AB6: =AVERAGE(D6,F6,H6,J6,L6,N6,P6,R6,T6,V6,X6,Z6) -> 0 | AD6: =AVERAGE(C6,G6,K6,O6,S6,W6) -> 0 | AE6: =AVERAGE(D6,H6,L6,P6,T6,X6) -> 0 | AF6: =AVERAGE(E6,I6,M6,Q6,U6,Y6) -> 0 | AG6: =AVERAGE(F6,J6,N6,R6,V6,Z6) -> 0
A7: 2016-12-14 | B7: 43 | C7: ='W01'!P7 -> 0 | D7: ='W01'!Q7 -> 0 | E7: ='W02'!P7 -> 0 | F7: ='W02'!Q7 -> 0 | G7: ='W03'!P7 -> 0 | H7: ='W03'!Q7 -> 0 | I7: ='W04'!P7 -> 0 | J7: ='W04'!Q7 -> 0 | K7: ='W05'!P7 -> 0 | L7: ='W05'!Q7 -> 0 | M7: ='W06'!P7 -> 0 | N7: ='W06'!Q7 -> 0 | O7: ='W07'!P7 -> 0 | P7: ='W07'!Q7 -> 0 | Q7: ='W08'!P7 -> 0 | R7: ='W08'!Q7 -> 0 | S7: ='W09'!P7 -> 0 | T7: ='W09'!Q7 -> 0 | U7: ='W10'!P7 -> 0 | V7: ='W10'!Q7 -> 0 | W7: ='W11'!P7 -> 0 | X7: ='W11'!Q7 -> 0 | Y7: ='W12'!P7 -> 0 | Z7: ='W12'!Q7 -> 0 | AA7: 0 | AB7: 0 | AD7: 0 | AE7: 0 | AF7: 0 | AG7: 0
A8: 2016-12-15 | B8: 44 | C8: ='W01'!P8 -> 1 | D8: ='W01'!Q8 -> 0 | E8: ='W02'!P8 -> 1 | F8: ='W02'!Q8 -> 0 | G8: ='W03'!P8 -> 1 | H8: ='W03'!Q8 -> 0 | I8: ='W04'!P8 -> 1 | J8: ='W04'!Q8 -> 0 | K8: ='W05'!P8 -> 1 | L8: ='W05'!Q8 -> 0 | M8: ='W06'!P8 -> 1 | N8: ='W06'!Q8 -> 0 | O8: ='W07'!P8 -> 0 | P8: ='W07'!Q8 -> 0 | Q8: ='W08'!P8 -> 0 | R8: ='W08'!Q8 -> 0 | S8: ='W09'!P8 -> 0 | T8: ='W09'!Q8 -> 0 | U8: ='W10'!P8 -> 0 | V8: ='W10'!Q8 -> 0 | W8: ='W11'!P8 -> 0 | X8: ='W11'!Q8 -> 0 | Y8: ='W12'!P8 -> 0 | Z8: ='W12'!Q8 -> 0 | AA8: 0.5 | AB8: 0 | AD8: 0.5 | AE8: 0 | AF8: 0.5 | AG8: 0
A9: 2016-12-16 | B9: 45 | C9: ='W01'!P9 -> 0 | D9: ='W01'!Q9 -> 0 | E9: ='W02'!P9 -> 0 | F9: ='W02'!Q9 -> 0 | G9: ='W03'!P9 -> 0 | H9: ='W03'!Q9 -> 0 | I9: ='W04'!P9 -> 0 | J9: ='W04'!Q9 -> 0 | K9: ='W05'!P9 -> 0 | L9: ='W05'!Q9 -> 0 | M9: ='W06'!P9 -> 0 | N9: ='W06'!Q9 -> 0 | O9: ='W07'!P9 -> 1 | P9: ='W07'!Q9 -> 0 | Q9: ='W08'!P9 -> 1 | R9: ='W08'!Q9 -> 0 | S9: ='W09'!P9 -> 1 | T9: ='W09'!Q9 -> 0 | U9: ='W10'!P9 -> 1 | V9: ='W10'!Q9 -> 0 | W9: ='W11'!P9 -> 1 | X9: ='W11'!Q9 -> 0 | Y9: ='W12'!P9 -> 1 | Z9: ='W12'!Q9 -> 0 | AA9: 0.5 | AB9: 0 | AD9: 0.5 | AE9: 0 | AF9: 0.5 | AG9: 0
A10: 2016-12-17 | B10: 46 | C10: ='W01'!P10 -> 0 | D10: ='W01'!Q10 -> 0 | E10: ='W02'!P10 -> 0 | F10: ='W02'!Q10 -> 0 | G10: ='W03'!P10 -> 0 | H10: ='W03'!Q10 -> 0 | I10: ='W04'!P10 -> 0 | J10: ='W04'!Q10 -> 0 | K10: ='W05'!P10 -> 0 | L10: ='W05'!Q10 -> 0 | M10: ='W06'!P10 -> 0 | N10: ='W06'!Q10 -> 0 | O10: ='W07'!P10 -> 0 | P10: ='W07'!Q10 -> 0 | Q10: ='W08'!P10 -> 0 | R10: ='W08'!Q10 -> 0 | S10: ='W09'!P10 -> 0 | T10: ='W09'!Q10 -> 0 | U10: ='W10'!P10 -> 0 | V10: ='W10'!Q10 -> 0 | W10: ='W11'!P10 -> 0 | X10: ='W11'!Q10 -> 0 | Y10: ='W12'!P10 -> 1 | Z10: ='W12'!Q10 -> 0 | AA10: 0.08333333333 | AB10: 0 | AD10: 0 | AE10: 0 | AF10: 0.1666666667 | AG10: 0
A11: 2016-12-18 | B11: 47 | C11: ='W01'!P11 -> 0 | D11: ='W01'!Q11 -> 0 | E11: ='W02'!P11 -> 0 | F11: ='W02'!Q11 -> 0 | G11: ='W03'!P11 -> 0 | H11: ='W03'!Q11 -> 0 | I11: ='W04'!P11 -> 0 | J11: ='W04'!Q11 -> 0 | K11: ='W05'!P11 -> 0 | L11: ='W05'!Q11 -> 0 | M11: ='W06'!P11 -> 1 | N11: ='W06'!Q11 -> 0 | O11: ='W07'!P11 -> 0 | P11: ='W07'!Q11 -> 0 | Q11: ='W08'!P11 -> 0 | R11: ='W08'!Q11 -> 0 | S11: ='W09'!P11 -> 0 | T11: ='W09'!Q11 -> 0 | U11: ='W10'!P11 -> 0 | V11: ='W10'!Q11 -> 0 | W11: ='W11'!P11 -> 0 | X11: ='W11'!Q11 -> 0 | Y11: ='W12'!P11 -> 0 | Z11: ='W12'!Q11 -> 0 | AA11: 0.08333333333 | AB11: 0 | AD11: 0 | AE11: 0 | AF11: 0.1666666667 | AG11: 0
A12: 2016-12-19 | B12: 48 | C12: ='W01'!P12 -> 0 | D12: ='W01'!Q12 -> 0 | E12: ='W02'!P12 -> 0 | F12: ='W02'!Q12 -> 0 | G12: ='W03'!P12 -> 0 | H12: ='W03'!Q12 -> 0 | I12: ='W04'!P12 -> 0 | J12: ='W04'!Q12 -> 0 | K12: ='W05'!P12 -> 0 | L12: ='W05'!Q12 -> 0 | M12: ='W06'!P12 -> 1 | N12: ='W06'!Q12 -> 0 | O12: ='W07'!P12 -> 0 | P12: ='W07'!Q12 -> 0 | Q12: ='W08'!P12 -> 0 | R12: ='W08'!Q12 -> 0 | S12: ='W09'!P12 -> 0 | T12: ='W09'!Q12 -> 0 | U12: ='W10'!P12 -> 0 | V12: ='W10'!Q12 -> 0 | W12: ='W11'!P12 -> 0 | X12: ='W11'!Q12 -> 0 | Y12: ='W12'!P12 -> 1 | Z12: ='W12'!Q12 -> 0 | AA12: 0.1666666667 | AB12: 0 | AD12: 0 | AE12: 0 | AF12: 0.3333333333 | AG12: 0
A13: 2016-12-20 | B13: 49 | C13: ='W01'!P13 -> 0 | D13: ='W01'!Q13 -> 0 | E13: ='W02'!P13 -> 0 | F13: ='W02'!Q13 -> 0 | G13: ='W03'!P13 -> 0 | H13: ='W03'!Q13 -> 0 | I13: ='W04'!P13 -> 0 | J13: ='W04'!Q13 -> 0 | K13: ='W05'!P13 -> 0 | L13: ='W05'!Q13 -> 0 | M13: ='W06'!P13 -> 0 | N13: ='W06'!Q13 -> 0 | O13: ='W07'!P13 -> 0 | P13: ='W07'!Q13 -> 0 | Q13: ='W08'!P13 -> 0 | R13: ='W08'!Q13 -> 0 | S13: ='W09'!P13 -> 0 | T13: ='W09'!Q13 -> 0 | U13: ='W10'!P13 -> 0 | V13: ='W10'!Q13 -> 0 | W13: ='W11'!P13 -> 0 | X13: ='W11'!Q13 -> 0 | Y13: ='W12'!P13 -> 0 | Z13: ='W12'!Q13 -> 0 | AA13: 0 | AB13: 0 | AD13: 0 | AE13: 0 | AF13: 0 | AG13: 0
A14: 2016-12-21 | B14: 50 | C14: ='W01'!P14 -> 0 | D14: ='W01'!Q14 -> 0 | E14: ='W02'!P14 -> 0 | F14: ='W02'!Q14 -> 0 | G14: ='W03'!P14 -> 0 | H14: ='W03'!Q14 -> 0 | I14: ='W04'!P14 -> 0 | J14: ='W04'!Q14 -> 0 | K14: ='W05'!P14 -> 0 | L14: ='W05'!Q14 -> 0 | M14: ='W06'!P14 -> 0 | N14: ='W06'!Q14 -> 0 | O14: ='W07'!P14 -> 0 | P14: ='W07'!Q14 -> 0 | Q14: ='W08'!P14 -> 0 | R14: ='W08'!Q14 -> 0 | S14: ='W09'!P14 -> 0 | T14: ='W09'!Q14 -> 0 | U14: ='W10'!P14 -> 1 | V14: ='W10'!Q14 -> 0 | W14: ='W11'!P14 -> 0 | X14: ='W11'!Q14 -> 0 | Y14: ='W12'!P14 -> 0 | Z14: ='W12'!Q14 -> 0 | AA14: 0.08333333333 | AB14: 0 | AD14: 0 | AE14: 0 | AF14: 0.1666666667 | AG14: 0
A15: 2016-12-22 | B15: 51 | C15: ='W01'!P15 -> 0 | D15: ='W01'!Q15 -> 0 | E15: ='W02'!P15 -> 0 | F15: ='W02'!Q15 -> 0 | G15: ='W03'!P15 -> 0 | H15: ='W03'!Q15 -> 0 | I15: ='W04'!P15 -> 0 | J15: ='W04'!Q15 -> 0 | K15: ='W05'!P15 -> 0 | L15: ='W05'!Q15 -> 0 | M15: ='W06'!P15 -> 0 | N15: ='W06'!Q15 -> 0 | O15: ='W07'!P15 -> 0 | P15: ='W07'!Q15 -> 0 | Q15: ='W08'!P15 -> 0 | R15: ='W08'!Q15 -> 0 | S15: ='W09'!P15 -> 0 | T15: ='W09'!Q15 -> 0 | U15: ='W10'!P15 -> 0 | V15: ='W10'!Q15 -> 0 | W15: ='W11'!P15 -> 0 | X15: ='W11'!Q15 -> 0 | Y15: ='W12'!P15 -> 0 | Z15: ='W12'!Q15 -> 0 | AA15: 0 | AB15: 0 | AD15: 0 | AE15: 0 | AF15: 0 | AG15: 0
A16: 2016-12-23 | B16: 52 | C16: ='W01'!P16 -> 0 | D16: ='W01'!Q16 -> 0 | E16: ='W02'!P16 -> 0 | F16: ='W02'!Q16 -> 0 | G16: ='W03'!P16 -> 0 | H16: ='W03'!Q16 -> 0 | I16: ='W04'!P16 -> 0 | J16: ='W04'!Q16 -> 0 | K16: ='W05'!P16 -> 1 | L16: ='W05'!Q16 -> 0 | M16: ='W06'!P16 -> 0 | N16: ='W06'!Q16 -> 0 | O16: ='W07'!P16 -> 0 | P16: ='W07'!Q16 -> 0 | Q16: ='W08'!P16 -> 0 | R16: ='W08'!Q16 -> 0 | S16: ='W09'!P16 -> 0 | T16: ='W09'!Q16 -> 0 | U16: ='W10'!P16 -> 0 | V16: ='W10'!Q16 -> 0 | W16: ='W11'!P16 -> 0 | X16: ='W11'!Q16 -> 0 | Y16: ='W12'!P16 -> 0 | Z16: ='W12'!Q16 -> 0 | AA16: 0.08333333333 | AB16: 0 | AD16: 0.1666666667 | AE16: 0 | AF16: 0 | AG16: 0
A17: 2016-12-24 | B17: 53 | C17: ='W01'!P17 -> 0 | D17: ='W01'!Q17 -> 0 | E17: ='W02'!P17 -> 0 | F17: ='W02'!Q17 -> 0 | G17: ='W03'!P17 -> 0 | H17: ='W03'!Q17 -> 0 | I17: ='W04'!P17 -> 0 | J17: ='W04'!Q17 -> 0 | K17: ='W05'!P17 -> 0 | L17: ='W05'!Q17 -> 0 | M17: ='W06'!P17 -> 0 | N17: ='W06'!Q17 -> 0 | O17: ='W07'!P17 -> 0 | P17: ='W07'!Q17 -> 0 | Q17: ='W08'!P17 -> 0 | R17: ='W08'!Q17 -> 0 | S17: ='W09'!P17 -> 0 | T17: ='W09'!Q17 -> 0 | U17: ='W10'!P17 -> 0 | V17: ='W10'!Q17 -> 0 | W17: ='W11'!P17 -> 0 | X17: ='W11'!Q17 -> 0 | Y17: ='W12'!P17 -> 0 | Z17: ='W12'!Q17 -> 0 | AA17: 0 | AB17: 0 | AD17: 0 | AE17: 0 | AF17: 0 | AG17: 0
A18: 2016-12-25 | B18: 54 | C18: ='W01'!P18 -> 0 | D18: ='W01'!Q18 -> 0 | E18: ='W02'!P18 -> 0 | F18: ='W02'!Q18 -> 0 | G18: ='W03'!P18 -> 0 | H18: ='W03'!Q18 -> 0 | I18: ='W04'!P18 -> 0 | J18: ='W04'!Q18 -> 0 | K18: ='W05'!P18 -> 0 | L18: ='W05'!Q18 -> 0 | M18: ='W06'!P18 -> 0 | N18: ='W06'!Q18 -> 0 | O18: ='W07'!P18 -> 0 | P18: ='W07'!Q18 -> 0 | Q18: ='W08'!P18 -> 0 | R18: ='W08'!Q18 -> 0 | S18: ='W09'!P18 -> 0 | T18: ='W09'!Q18 -> 0 | U18: ='W10'!P18 -> 0 | V18: ='W10'!Q18 -> 0 | W18: ='W11'!P18 -> 0 | X18: ='W11'!Q18 -> 0 | Y18: ='W12'!P18 -> 0 | Z18: ='W12'!Q18 -> 0 | AA18: 0 | AB18: 0 | AD18: 0 | AE18: 0 | AF18: 0 | AG18: 0
A19: 2016-12-26 | B19: 55 | C19: ='W01'!P19 -> 0 | D19: ='W01'!Q19 -> 0 | E19: ='W02'!P19 -> 0 | F19: ='W02'!Q19 -> 0 | G19: ='W03'!P19 -> 0 | H19: ='W03'!Q19 -> 0 | I19: ='W04'!P19 -> 0 | J19: ='W04'!Q19 -> 0 | K19: ='W05'!P19 -> 0 | L19: ='W05'!Q19 -> 0 | M19: ='W06'!P19 -> 0 | N19: ='W06'!Q19 -> 0 | O19: ='W07'!P19 -> 0 | P19: ='W07'!Q19 -> 0 | Q19: ='W08'!P19 -> 0 | R19: ='W08'!Q19 -> 0 | S19: ='W09'!P19 -> 0 | T19: ='W09'!Q19 -> 0 | U19: ='W10'!P19 -> 0 | V19: ='W10'!Q19 -> 0 | W19: ='W11'!P19 -> 0 | X19: ='W11'!Q19 -> 0 | Y19: ='W12'!P19 -> 0 | Z19: ='W12'!Q19 -> 0 | AA19: 0 | AB19: 0 | AD19: 0 | AE19: 0 | AF19: 0 | AG19: 0
A20: 2016-12-27 | B20: 56 | C20: ='W01'!P20 -> 0 | D20: ='W01'!Q20 -> 0 | E20: ='W02'!P20 -> 0 | F20: ='W02'!Q20 -> 0 | G20: ='W03'!P20 -> 0 | H20: ='W03'!Q20 -> 0 | I20: ='W04'!P20 -> 0 | J20: ='W04'!Q20 -> 0 | K20: ='W05'!P20 -> 0 | L20: ='W05'!Q20 -> 0 | M20: ='W06'!P20 -> 0 | N20: ='W06'!Q20 -> 0 | O20: ='W07'!P20 -> 0 | P20: ='W07'!Q20 -> 0 | Q20: ='W08'!P20 -> 0 | R20: ='W08'!Q20 -> 0 | S20: ='W09'!P20 -> 0 | T20: ='W09'!Q20 -> 0 | U20: ='W10'!P20 -> 0 | V20: ='W10'!Q20 -> 0 | W20: ='W11'!P20 -> 0 | X20: ='W11'!Q20 -> 0 | Y20: ='W12'!P20 -> 0 | Z20: ='W12'!Q20 -> 0 | AA20: 0 | AB20: 0 | AD20: 0 | AE20: 0 | AF20: 0 | AG20: 0
A21: 2016-12-28 | B21: 57 | C21: ='W01'!P21 -> 0 | D21: ='W01'!Q21 -> 0 | E21: ='W02'!P21 -> 0 | F21: ='W02'!Q21 -> 0 | G21: ='W03'!P21 -> 0 | H21: ='W03'!Q21 -> 0 | I21: ='W04'!P21 -> 0 | J21: ='W04'!Q21 -> 0 | K21: ='W05'!P21 -> 0 | L21: ='W05'!Q21 -> 0 | M21: ='W06'!P21 -> 0 | N21: ='W06'!Q21 -> 0 | O21: ='W07'!P21 -> 0 | P21: ='W07'!Q21 -> 0 | Q21: ='W08'!P21 -> 0 | R21: ='W08'!Q21 -> 0 | S21: ='W09'!P21 -> 0 | T21: ='W09'!Q21 -> 0 | U21: ='W10'!P21 -> 0 | V21: ='W10'!Q21 -> 0 | W21: ='W11'!P21 -> 0 | X21: ='W11'!Q21 -> 0 | Y21: ='W12'!P21 -> 0 | Z21: ='W12'!Q21 -> 0 | AA21: 0 | AB21: 0 | AD21: 0 | AE21: 0 | AF21: 0 | AG21: 0
A22: 2016-12-29 | B22: 58 | C22: ='W01'!P22 -> 0 | D22: ='W01'!Q22 -> 0 | E22: ='W02'!P22 -> 0 | F22: ='W02'!Q22 -> 0 | G22: ='W03'!P22 -> 0 | H22: ='W03'!Q22 -> 0 | I22: ='W04'!P22 -> 0 | J22: ='W04'!Q22 -> 0 | K22: ='W05'!P22 -> 0 | L22: ='W05'!Q22 -> 0 | M22: ='W06'!P22 -> 0 | N22: ='W06'!Q22 -> 0 | O22: ='W07'!P22 -> 0 | P22: ='W07'!Q22 -> 0 | Q22: ='W08'!P22 -> 0 | R22: ='W08'!Q22 -> 0 | S22: ='W09'!P22 -> 0 | T22: ='W09'!Q22 -> 0 | U22: ='W10'!P22 -> 0 | V22: ='W10'!Q22 -> 0 | W22: ='W11'!P22 -> 0 | X22: ='W11'!Q22 -> 0 | Y22: ='W12'!P22 -> 0 | Z22: ='W12'!Q22 -> 0 | AA22: 0 | AB22: 0 | AD22: 0 | AE22: 0 | AF22: 0 | AG22: 0
A23: 2016-12-30 | B23: 59 | C23: ='W01'!P23 -> 0 | D23: ='W01'!Q23 -> 0 | E23: ='W02'!P23 -> 0 | F23: ='W02'!Q23 -> 0 | G23: ='W03'!P23 -> 0 | H23: ='W03'!Q23 -> 0 | I23: ='W04'!P23 -> 0 | J23: ='W04'!Q23 -> 0 | K23: ='W05'!P23 -> 0 | L23: ='W05'!Q23 -> 0 | M23: ='W06'!P23 -> 0 | N23: ='W06'!Q23 -> 0 | O23: ='W07'!P23 -> 0 | P23: ='W07'!Q23 -> 0 | Q23: ='W08'!P23 -> 0 | R23: ='W08'!Q23 -> 0 | S23: ='W09'!P23 -> 0 | T23: ='W09'!Q23 -> 0 | U23: ='W10'!P23 -> 0 | V23: ='W10'!Q23 -> 0 | W23: ='W11'!P23 -> 0 | X23: ='W11'!Q23 -> 0 | Y23: ='W12'!P23 -> 0 | Z23: ='W12'!Q23 -> 0 | AA23: 0 | AB23: 0 | AD23: 0 | AE23: 0 | AF23: 0 | AG23: 0
A24: 2016-12-31 | B24: 60 | C24: ='W01'!P24 -> 0 | D24: ='W01'!Q24 -> 0 | E24: ='W02'!P24 -> 0 | F24: ='W02'!Q24 -> 0 | G24: ='W03'!P24 -> 0 | H24: ='W03'!Q24 -> 0 | I24: ='W04'!P24 -> 0 | J24: ='W04'!Q24 -> 0 | K24: ='W05'!P24 -> 0 | L24: ='W05'!Q24 -> 0 | M24: ='W06'!P24 -> 0 | N24: ='W06'!Q24 -> 0 | O24: ='W07'!P24 -> 0 | P24: ='W07'!Q24 -> 0 | Q24: ='W08'!P24 -> 0 | R24: ='W08'!Q24 -> 0 | S24: ='W09'!P24 -> 0 | T24: ='W09'!Q24 -> 0 | U24: ='W10'!P24 -> 0 | V24: ='W10'!Q24 -> 0 | W24: ='W11'!P24 -> 0 | X24: ='W11'!Q24 -> 0 | Y24: ='W12'!P24 -> 0 | Z24: ='W12'!Q24 -> 0 | AA24: 0 | AB24: 0 | AD24: 0 | AE24: 0 | AF24: 0 | AG24: 0
A25: 2017-01-01 | B25: 61 | C25: ='W01'!P25 -> 0 | D25: ='W01'!Q25 -> 0 | E25: ='W02'!P25 -> 0 | F25: ='W02'!Q25 -> 0 | G25: ='W03'!P25 -> 0 | H25: ='W03'!Q25 -> 0 | I25: ='W04'!P25 -> 0 | J25: ='W04'!Q25 -> 0 | K25: ='W05'!P25 -> 0 | L25: ='W05'!Q25 -> 0 | M25: ='W06'!P25 -> 0 | N25: ='W06'!Q25 -> 0 | O25: ='W07'!P25 -> 0 | P25: ='W07'!Q25 -> 0 | Q25: ='W08'!P25 -> 0 | R25: ='W08'!Q25 -> 0 | S25: ='W09'!P25 -> 0 | T25: ='W09'!Q25 -> 0 | U25: ='W10'!P25 -> 0 | V25: ='W10'!Q25 -> 0 | W25: ='W11'!P25 -> 0 | X25: ='W11'!Q25 -> 0 | Y25: ='W12'!P25 -> 0 | Z25: ='W12'!Q25 -> 0 | AA25: 0 | AB25: 0 | AD25: 0 | AE25: 0 | AF25: 0 | AG25: 0
A26: 2017-01-02 | B26: 62 | C26: ='W01'!P26 -> 0 | D26: ='W01'!Q26 -> 1 | E26: ='W02'!P26 -> 0 | F26: ='W02'!Q26 -> 0 | G26: ='W03'!P26 -> 0 | H26: ='W03'!Q26 -> 0 | I26: ='W04'!P26 -> 0 | J26: ='W04'!Q26 -> 0 | K26: ='W05'!P26 -> 0 | L26: ='W05'!Q26 -> 0 | M26: ='W06'!P26 -> 0 | N26: ='W06'!Q26 -> 0 | O26: ='W07'!P26 -> 0 | P26: ='W07'!Q26 -> 0 | Q26: ='W08'!P26 -> 0 | R26: ='W08'!Q26 -> 0 | S26: ='W09'!P26 -> 0 | T26: ='W09'!Q26 -> 0 | U26: ='W10'!P26 -> 0 | V26: ='W10'!Q26 -> 0 | W26: ='W11'!P26 -> 0 | X26: ='W11'!Q26 -> 1 | Y26: ='W12'!P26 -> 0 | Z26: ='W12'!Q26 -> 1 | AA26: 0 | AB26: 0.25 | AD26: 0 | AE26: 0.3333333333 | AF26: 0 | AG26: 0.1666666667
A27: 2017-01-03 | B27: 63 | C27: ='W01'!P27 -> 0 | D27: ='W01'!Q27 -> 1 | E27: ='W02'!P27 -> 0 | F27: ='W02'!Q27 -> 0 | G27: ='W03'!P27 -> 0 | H27: ='W03'!Q27 -> 0 | I27: ='W04'!P27 -> 0 | J27: ='W04'!Q27 -> 0 | K27: ='W05'!P27 -> 0 | L27: ='W05'!Q27 -> 0 | M27: ='W06'!P27 -> 0 | N27: ='W06'!Q27 -> 0 | O27: ='W07'!P27 -> 0 | P27: ='W07'!Q27 -> 0 | Q27: ='W08'!P27 -> 0 | R27: ='W08'!Q27 -> 0 | S27: ='W09'!P27 -> 0 | T27: ='W09'!Q27 -> 0 | U27: ='W10'!P27 -> 0 | V27: ='W10'!Q27 -> 0 | W27: ='W11'!P27 -> 0 | X27: ='W11'!Q27 -> 1 | Y27: ='W12'!P27 -> 0 | Z27: ='W12'!Q27 -> 1 | AA27: 0 | AB27: 0.25 | AD27: 0 | AE27: 0.3333333333 | AF27: 0 | AG27: 0.1666666667
A28: 2017-01-04 | B28: 64 | C28: ='W01'!P28 -> 0 | D28: ='W01'!Q28 -> 1 | E28: ='W02'!P28 -> 0 | F28: ='W02'!Q28 -> 0 | G28: ='W03'!P28 -> 0 | H28: ='W03'!Q28 -> 1 | I28: ='W04'!P28 -> 0 | J28: ='W04'!Q28 -> 0 | K28: ='W05'!P28 -> 0 | L28: ='W05'!Q28 -> 0 | M28: ='W06'!P28 -> 0 | N28: ='W06'!Q28 -> 0 | O28: ='W07'!P28 -> 0 | P28: ='W07'!Q28 -> 0 | Q28: ='W08'!P28 -> 0 | R28: ='W08'!Q28 -> 0 | S28: ='W09'!P28 -> 0 | T28: ='W09'!Q28 -> 0 | U28: ='W10'!P28 -> 0 | V28: ='W10'!Q28 -> 0 | W28: ='W11'!P28 -> 0 | X28: ='W11'!Q28 -> 1 | Y28: ='W12'!P28 -> 1 | Z28: ='W12'!Q28 -> 1 | AA28: 0.08333333333 | AB28: 0.3333333333 | AD28: 0 | AE28: 0.5 | AF28: 0.1666666667 | AG28: 0.1666666667
A29: 2017-01-05 | B29: 65 | C29: ='W01'!P29 -> 0 | D29: ='W01'!Q29 -> 1 | E29: ='W02'!P29 -> 0 | F29: ='W02'!Q29 -> 0 | G29: ='W03'!P29 -> 0 | H29: ='W03'!Q29 -> 1 | I29: ='W04'!P29 -> 0 | J29: ='W04'!Q29 -> 0 | K29: ='W05'!P29 -> 0 | L29: ='W05'!Q29 -> 0 | M29: ='W06'!P29 -> 0 | N29: ='W06'!Q29 -> 0 | O29: ='W07'!P29 -> 1 | P29: ='W07'!Q29 -> 0 | Q29: ='W08'!P29 -> 0 | R29: ='W08'!Q29 -> 0 | S29: ='W09'!P29 -> 0 | T29: ='W09'!Q29 -> 0 | U29: ='W10'!P29 -> 0 | V29: ='W10'!Q29 -> 0 | W29: ='W11'!P29 -> 0 | X29: ='W11'!Q29 -> 1 | Y29: ='W12'!P29 -> 0 | Z29: ='W12'!Q29 -> 1 | AA29: 0.08333333333 | AB29: 0.3333333333 | AD29: 0.1666666667 | AE29: 0.5 | AF29: 0 | AG29: 0.1666666667
A30: 2017-01-06 | B30: 66 | C30: ='W01'!P30 -> 0 | D30: ='W01'!Q30 -> 1 | E30: ='W02'!P30 -> 0 | F30: ='W02'!Q30 -> 0 | G30: ='W03'!P30 -> 0 | H30: ='W03'!Q30 -> 1 | I30: ='W04'!P30 -> 0 | J30: ='W04'!Q30 -> 0 | K30: ='W05'!P30 -> 0 | L30: ='W05'!Q30 -> 0 | M30: ='W06'!P30 -> 0 | N30: ='W06'!Q30 -> 0 | O30: ='W07'!P30 -> 0 | P30: ='W07'!Q30 -> 0 | Q30: ='W08'!P30 -> 0 | R30: ='W08'!Q30 -> 0 | S30: ='W09'!P30 -> 0 | T30: ='W09'!Q30 -> 0 | U30: ='W10'!P30 -> 0 | V30: ='W10'!Q30 -> 0 | W30: ='W11'!P30 -> 0 | X30: ='W11'!Q30 -> 1 | Y30: ='W12'!P30 -> 0 | Z30: ='W12'!Q30 -> 0 | AA30: 0 | AB30: 0.25 | AD30: 0 | AE30: 0.5 | AF30: 0 | AG30: 0
A31: 2017-01-07 | B31: 67 | C31: ='W01'!P31 -> 0 | D31: ='W01'!Q31 -> 1 | E31: ='W02'!P31 -> 0 | F31: ='W02'!Q31 -> 0 | G31: ='W03'!P31 -> 0 | H31: ='W03'!Q31 -> 1 | I31: ='W04'!P31 -> 0 | J31: ='W04'!Q31 -> 0 | K31: ='W05'!P31 -> 0 | L31: ='W05'!Q31 -> 0 | M31: ='W06'!P31 -> 0 | N31: ='W06'!Q31 -> 0 | O31: ='W07'!P31 -> 0 | P31: ='W07'!Q31 -> 0 | Q31: ='W08'!P31 -> 0 | R31: ='W08'!Q31 -> 0 | S31: ='W09'!P31 -> 0 | T31: ='W09'!Q31 -> 0 | U31: ='W10'!P31 -> 0 | V31: ='W10'!Q31 -> 0 | W31: ='W11'!P31 -> 0 | X31: ='W11'!Q31 -> 1 | Y31: ='W12'!P31 -> 0 | Z31: ='W12'!Q31 -> 0 | AA31: 0 | AB31: 0.25 | AD31: 0 | AE31: 0.5 | AF31: 0 | AG31: 0
A32: 2017-01-08 | B32: 68 | C32: ='W01'!P32 -> 0 | D32: ='W01'!Q32 -> 1 | E32: ='W02'!P32 -> 0 | F32: ='W02'!Q32 -> 0 | G32: ='W03'!P32 -> 0 | H32: ='W03'!Q32 -> 1 | I32: ='W04'!P32 -> 0 | J32: ='W04'!Q32 -> 0 | K32: ='W05'!P32 -> 0 | L32: ='W05'!Q32 -> 0 | M32: ='W06'!P32 -> 0 | N32: ='W06'!Q32 -> 0 | O32: ='W07'!P32 -> 0 | P32: ='W07'!Q32 -> 0 | Q32: ='W08'!P32 -> 0 | R32: ='W08'!Q32 -> 0 | S32: ='W09'!P32 -> 0 | T32: ='W09'!Q32 -> 0 | U32: ='W10'!P32 -> 0 | V32: ='W10'!Q32 -> 0 | W32: ='W11'!P32 -> 0 | X32: ='W11'!Q32 -> 1 | Y32: ='W12'!P32 -> 0 | Z32: ='W12'!Q32 -> 0 | AA32: 0 | AB32: 0.25 | AD32: 0 | AE32: 0.5 | AF32: 0 | AG32: 0
A33: 2017-01-09 | B33: 69 | C33: ='W01'!P33 -> 0 | D33: ='W01'!Q33 -> 1 | E33: ='W02'!P33 -> 0 | F33: ='W02'!Q33 -> 0 | G33: ='W03'!P33 -> 0 | H33: ='W03'!Q33 -> 1 | I33: ='W04'!P33 -> 0 | J33: ='W04'!Q33 -> 0 | K33: ='W05'!P33 -> 0 | L33: ='W05'!Q33 -> 0 | M33: ='W06'!P33 -> 0 | N33: ='W06'!Q33 -> 0 | O33: ='W07'!P33 -> 0 | P33: ='W07'!Q33 -> 0 | Q33: ='W08'!P33 -> 0 | R33: ='W08'!Q33 -> 0 | S33: ='W09'!P33 -> 0 | T33: ='W09'!Q33 -> 0 | U33: ='W10'!P33 -> 0 | V33: ='W10'!Q33 -> 0 | W33: ='W11'!P33 -> 0 | X33: ='W11'!Q33 -> 1 | Y33: ='W12'!P33 -> 0 | Z33: ='W12'!Q33 -> 0 | AA33: 0 | AB33: 0.25 | AD33: 0 | AE33: 0.5 | AF33: 0 | AG33: 0
A34: 2017-01-10 | B34: 70 | C34: ='W01'!P34 -> 0 | D34: ='W01'!Q34 -> 1 | E34: ='W02'!P34 -> 0 | F34: ='W02'!Q34 -> 0 | G34: ='W03'!P34 -> 0 | H34: ='W03'!Q34 -> 1 | I34: ='W04'!P34 -> 0 | J34: ='W04'!Q34 -> 0 | K34: ='W05'!P34 -> 0 | L34: ='W05'!Q34 -> 0 | M34: ='W06'!P34 -> 0 | N34: ='W06'!Q34 -> 0 | O34: ='W07'!P34 -> 0 | P34: ='W07'!Q34 -> 0 | Q34: ='W08'!P34 -> 0 | R34: ='W08'!Q34 -> 0 | S34: ='W09'!P34 -> 0 | T34: ='W09'!Q34 -> 0 | U34: ='W10'!P34 -> 0 | V34: ='W10'!Q34 -> 0 | W34: ='W11'!P34 -> 0 | X34: ='W11'!Q34 -> 1 | Y34: ='W12'!P34 -> 0 | Z34: ='W12'!Q34 -> 0 | AA34: 0 | AB34: 0.25 | AD34: 0 | AE34: 0.5 | AF34: 0 | AG34: 0
A35: 2017-01-11 | B35: 71 | C35: ='W01'!P35 -> 0 | D35: ='W01'!Q35 -> 1 | E35: ='W02'!P35 -> 0 | F35: ='W02'!Q35 -> 0 | G35: ='W03'!P35 -> 0 | H35: ='W03'!Q35 -> 1 | I35: ='W04'!P35 -> 0 | J35: ='W04'!Q35 -> 0 | K35: ='W05'!P35 -> 0 | L35: ='W05'!Q35 -> 0 | M35: ='W06'!P35 -> 0 | N35: ='W06'!Q35 -> 0 | O35: ='W07'!P35 -> 0 | P35: ='W07'!Q35 -> 0 | Q35: ='W08'!P35 -> 0 | R35: ='W08'!Q35 -> 0 | S35: ='W09'!P35 -> 0 | T35: ='W09'!Q35 -> 0 | U35: ='W10'!P35 -> 0 | V35: ='W10'!Q35 -> 0 | W35: ='W11'!P35 -> 0 | X35: ='W11'!Q35 -> 1 | Y35: ='W12'!P35 -> 0 | Z35: ='W12'!Q35 -> 0 | AA35: 0 | AB35: 0.25 | AD35: 0 | AE35: 0.5 | AF35: 0 | AG35: 0
A36: 2017-01-12 | B36: 72 | C36: ='W01'!P36 -> 0 | D36: ='W01'!Q36 -> 0 | E36: ='W02'!P36 -> 0 | F36: ='W02'!Q36 -> 0 | G36: ='W03'!P36 -> 0 | H36: ='W03'!Q36 -> 1 | I36: ='W04'!P36 -> 0 | J36: ='W04'!Q36 -> 0 | K36: ='W05'!P36 -> 0 | L36: ='W05'!Q36 -> 0 | M36: ='W06'!P36 -> 0 | N36: ='W06'!Q36 -> 0 | O36: ='W07'!P36 -> 0 | P36: ='W07'!Q36 -> 0 | Q36: ='W08'!P36 -> 0 | R36: ='W08'!Q36 -> 0 | S36: ='W09'!P36 -> 0 | T36: ='W09'!Q36 -> 0 | U36: ='W10'!P36 -> 0 | V36: ='W10'!Q36 -> 0 | W36: ='W11'!P36 -> 0 | X36: ='W11'!Q36 -> 1 | Y36: ='W12'!P36 -> 0 | Z36: ='W12'!Q36 -> 0 | AA36: 0 | AB36: 0.1666666667 | AD36: 0 | AE36: 0.3333333333 | AF36: 0 | AG36: 0
A37: 2017-01-13 | B37: 73 | C37: ='W01'!P37 -> 0 | D37: ='W01'!Q37 -> 0 | E37: ='W02'!P37 -> 0 | F37: ='W02'!Q37 -> 0 | G37: ='W03'!P37 -> 0 | H37: ='W03'!Q37 -> 1 | I37: ='W04'!P37 -> 0 | J37: ='W04'!Q37 -> 0 | K37: ='W05'!P37 -> 0 | L37: ='W05'!Q37 -> 0 | M37: ='W06'!P37 -> 0 | N37: ='W06'!Q37 -> 0 | O37: ='W07'!P37 -> 0 | P37: ='W07'!Q37 -> 0 | Q37: ='W08'!P37 -> 0 | R37: ='W08'!Q37 -> 0 | S37: ='W09'!P37 -> 0 | T37: ='W09'!Q37 -> 0 | U37: ='W10'!P37 -> 0 | V37: ='W10'!Q37 -> 0 | W37: ='W11'!P37 -> 0 | X37: ='W11'!Q37 -> 1 | Y37: ='W12'!P37 -> 0 | Z37: ='W12'!Q37 -> 0 | AA37: 0 | AB37: 0.1666666667 | AD37: 0 | AE37: 0.3333333333 | AF37: 0 | AG37: 0
A38: 2017-01-14 | B38: 74 | C38: ='W01'!P38 -> 0 | D38: ='W01'!Q38 -> 0 | E38: ='W02'!P38 -> 0 | F38: ='W02'!Q38 -> 0 | G38: ='W03'!P38 -> 0 | H38: ='W03'!Q38 -> 1 | I38: ='W04'!P38 -> 0 | J38: ='W04'!Q38 -> 0 | K38: ='W05'!P38 -> 0 | L38: ='W05'!Q38 -> 0 | M38: ='W06'!P38 -> 0 | N38: ='W06'!Q38 -> 0 | O38: ='W07'!P38 -> 0 | P38: ='W07'!Q38 -> 0 | Q38: ='W08'!P38 -> 0 | R38: ='W08'!Q38 -> 0 | S38: ='W09'!P38 -> 0 | T38: ='W09'!Q38 -> 0 | U38: ='W10'!P38 -> 0 | V38: ='W10'!Q38 -> 0 | W38: ='W11'!P38 -> 0 | X38: ='W11'!Q38 -> 1 | Y38: ='W12'!P38 -> 0 | Z38: ='W12'!Q38 -> 0 | AA38: 0 | AB38: 0.1666666667 | AD38: 0 | AE38: 0.3333333333 | AF38: 0 | AG38: 0
A39: 2017-01-15 | B39: 75 | C39: ='W01'!P39 -> 0 | D39: ='W01'!Q39 -> 0 | E39: ='W02'!P39 -> 0 | F39: ='W02'!Q39 -> 0 | G39: ='W03'!P39 -> 0 | H39: ='W03'!Q39 -> 1 | I39: ='W04'!P39 -> 0 | J39: ='W04'!Q39 -> 0 | K39: ='W05'!P39 -> 0 | L39: ='W05'!Q39 -> 0 | M39: ='W06'!P39 -> 0 | N39: ='W06'!Q39 -> 0 | O39: ='W07'!P39 -> 0 | P39: ='W07'!Q39 -> 0 | Q39: ='W08'!P39 -> 0 | R39: ='W08'!Q39 -> 0 | S39: ='W09'!P39 -> 0 | T39: ='W09'!Q39 -> 0 | U39: ='W10'!P39 -> 0 | V39: ='W10'!Q39 -> 0 | W39: ='W11'!P39 -> 0 | X39: ='W11'!Q39 -> 1 | Y39: ='W12'!P39 -> 0 | Z39: ='W12'!Q39 -> 0 | AA39: 0 | AB39: 0.1666666667 | AD39: 0 | AE39: 0.3333333333 | AF39: 0 | AG39: 0
A40: 2017-01-16 | B40: 76 | C40: ='W01'!P40 -> 0 | D40: ='W01'!Q40 -> 0 | E40: ='W02'!P40 -> 0 | F40: ='W02'!Q40 -> 0 | G40: ='W03'!P40 -> 0 | H40: ='W03'!Q40 -> 1 | I40: ='W04'!P40 -> 0 | J40: ='W04'!Q40 -> 0 | K40: ='W05'!P40 -> 0 | L40: ='W05'!Q40 -> 0 | M40: ='W06'!P40 -> 0 | N40: ='W06'!Q40 -> 0 | O40: ='W07'!P40 -> 0 | P40: ='W07'!Q40 -> 0 | Q40: ='W08'!P40 -> 0 | R40: ='W08'!Q40 -> 0 | S40: ='W09'!P40 -> 1 | T40: ='W09'!Q40 -> 0 | U40: ='W10'!P40 -> 1 | V40: ='W10'!Q40 -> 0 | W40: ='W11'!P40 -> 0 | X40: ='W11'!Q40 -> 1 | Y40: ='W12'!P40 -> 0 | Z40: ='W12'!Q40 -> 0 | AA40: 0.1666666667 | AB40: 0.1666666667 | AC40: =Officer!O40 -> 0.1666666667 | AD40: 0.1666666667 | AE40: 0.3333333333 | AF40: 0.1666666667 | AG40: 0 | AH40: =Officer!P40 -> 0.1666666667 | AI40: =Officer!Q40 -> 0.1666666667
A41: 2017-01-17 | B41: 77 | C41: ='W01'!P41 -> 0 | D41: ='W01'!Q41 -> 0 | E41: ='W02'!P41 -> 0 | F41: ='W02'!Q41 -> 0 | G41: ='W03'!P41 -> 0 | H41: ='W03'!Q41 -> 1 | I41: ='W04'!P41 -> 0 | J41: ='W04'!Q41 -> 0 | K41: ='W05'!P41 -> 0 | L41: ='W05'!Q41 -> 0 | M41: ='W06'!P41 -> 0 | N41: ='W06'!Q41 -> 0 | O41: ='W07'!P41 -> 0 | P41: ='W07'!Q41 -> 0 | Q41: ='W08'!P41 -> 0 | R41: ='W08'!Q41 -> 0 | S41: ='W09'!P41 -> 0 | T41: ='W09'!Q41 -> 0 | U41: ='W10'!P41 -> 0 | V41: ='W10'!Q41 -> 0 | W41: ='W11'!P41 -> 0 | X41: ='W11'!Q41 -> 1 | Y41: ='W12'!P41 -> 0 | Z41: ='W12'!Q41 -> 0 | AA41: 0 | AB41: 0.1666666667 | AD41: 0 | AE41: 0.3333333333 | AF41: 0 | AG41: 0
A42: 2017-01-18 | B42: 78 | C42: ='W01'!P42 -> 0 | D42: ='W01'!Q42 -> 0 | E42: ='W02'!P42 -> 0 | F42: ='W02'!Q42 -> 0 | G42: ='W03'!P42 -> 0 | H42: ='W03'!Q42 -> 1 | I42: ='W04'!P42 -> 0 | J42: ='W04'!Q42 -> 0 | K42: ='W05'!P42 -> 0 | L42: ='W05'!Q42 -> 0 | M42: ='W06'!P42 -> 0 | N42: ='W06'!Q42 -> 0 | O42: ='W07'!P42 -> 0 | P42: ='W07'!Q42 -> 0 | Q42: ='W08'!P42 -> 0 | R42: ='W08'!Q42 -> 0 | S42: ='W09'!P42 -> 0 | T42: ='W09'!Q42 -> 0 | U42: ='W10'!P42 -> 0 | V42: ='W10'!Q42 -> 0 | W42: ='W11'!P42 -> 0 | X42: ='W11'!Q42 -> 1 | Y42: ='W12'!P42 -> 0 | Z42: ='W12'!Q42 -> 0 | AA42: 0 | AB42: 0.1666666667 | AD42: 0 | AE42: 0.3333333333 | AF42: 0 | AG42: 0
A43: 2017-01-19 | B43: 79 | C43: ='W01'!P43 -> 0 | D43: ='W01'!Q43 -> 0 | E43: ='W02'!P43 -> 0 | F43: ='W02'!Q43 -> 0 | G43: ='W03'!P43 -> 0 | H43: ='W03'!Q43 -> 1 | I43: ='W04'!P43 -> 0 | J43: ='W04'!Q43 -> 0 | K43: ='W05'!P43 -> 0 | L43: ='W05'!Q43 -> 0 | M43: ='W06'!P43 -> 0 | N43: ='W06'!Q43 -> 0 | O43: ='W07'!P43 -> 0 | P43: ='W07'!Q43 -> 0 | Q43: ='W08'!P43 -> 0 | R43: ='W08'!Q43 -> 0 | S43: ='W09'!P43 -> 0 | T43: ='W09'!Q43 -> 0 | U43: ='W10'!P43 -> 0 | V43: ='W10'!Q43 -> 0 | W43: ='W11'!P43 -> 0 | X43: ='W11'!Q43 -> 1 | Y43: ='W12'!P43 -> 0 | Z43: ='W12'!Q43 -> 0 | AA43: 0 | AB43: 0.1666666667 | AD43: 0 | AE43: 0.3333333333 | AF43: 0 | AG43: 0
A44: 2017-01-20 | B44: 80 | C44: ='W01'!P44 -> 0 | D44: ='W01'!Q44 -> 0 | E44: ='W02'!P44 -> 0 | F44: ='W02'!Q44 -> 0 | G44: ='W03'!P44 -> 0 | H44: ='W03'!Q44 -> 1 | I44: ='W04'!P44 -> 0 | J44: ='W04'!Q44 -> 0 | K44: ='W05'!P44 -> 0 | L44: ='W05'!Q44 -> 0 | M44: ='W06'!P44 -> 0 | N44: ='W06'!Q44 -> 0 | O44: ='W07'!P44 -> 0 | P44: ='W07'!Q44 -> 0 | Q44: ='W08'!P44 -> 0 | R44: ='W08'!Q44 -> 0 | S44: ='W09'!P44 -> 0 | T44: ='W09'!Q44 -> 0 | U44: ='W10'!P44 -> 0 | V44: ='W10'!Q44 -> 0 | W44: ='W11'!P44 -> 0 | X44: ='W11'!Q44 -> 1 | Y44: ='W12'!P44 -> 0 | Z44: ='W12'!Q44 -> 0 | AA44: 0 | AB44: 0.1666666667 | AD44: 0 | AE44: 0.3333333333 | AF44: 0 | AG44: 0
A45: 2017-01-21 | B45: 81 | C45: ='W01'!P45 -> 0 | D45: ='W01'!Q45 -> 0 | E45: ='W02'!P45 -> 0 | F45: ='W02'!Q45 -> 0 | G45: ='W03'!P45 -> 0 | H45: ='W03'!Q45 -> 1 | I45: ='W04'!P45 -> 0 | J45: ='W04'!Q45 -> 0 | K45: ='W05'!P45 -> 0 | L45: ='W05'!Q45 -> 0 | M45: ='W06'!P45 -> 0 | N45: ='W06'!Q45 -> 0 | O45: ='W07'!P45 -> 0 | P45: ='W07'!Q45 -> 0 | Q45: ='W08'!P45 -> 0 | R45: ='W08'!Q45 -> 0 | S45: ='W09'!P45 -> 0 | T45: ='W09'!Q45 -> 0 | U45: ='W10'!P45 -> 0 | V45: ='W10'!Q45 -> 0 | W45: ='W11'!P45 -> 0 | X45: ='W11'!Q45 -> 1 | Y45: ='W12'!P45 -> 0 | Z45: ='W12'!Q45 -> 0 | AA45: 0 | AB45: 0.1666666667 | AD45: 0 | AE45: 0.3333333333 | AF45: 0 | AG45: 0
A46: 2017-01-22 | B46: 82 | C46: ='W01'!P46 -> 0 | D46: ='W01'!Q46 -> 0 | E46: ='W02'!P46 -> 0 | F46: ='W02'!Q46 -> 0 | G46: ='W03'!P46 -> 0 | H46: ='W03'!Q46 -> 1 | I46: ='W04'!P46 -> 0 | J46: ='W04'!Q46 -> 0 | K46: ='W05'!P46 -> 0 | L46: ='W05'!Q46 -> 0 | M46: ='W06'!P46 -> 0 | N46: ='W06'!Q46 -> 0 | O46: ='W07'!P46 -> 0 | P46: ='W07'!Q46 -> 0 | Q46: ='W08'!P46 -> 0 | R46: ='W08'!Q46 -> 0 | S46: ='W09'!P46 -> 0 | T46: ='W09'!Q46 -> 0 | U46: ='W10'!P46 -> 0 | V46: ='W10'!Q46 -> 0 | W46: ='W11'!P46 -> 0 | X46: ='W11'!Q46 -> 1 | Y46: ='W12'!P46 -> 0 | Z46: ='W12'!Q46 -> 0 | AA46: 0 | AB46: 0.1666666667 | AD46: 0 | AE46: 0.3333333333 | AF46: 0 | AG46: 0
A47: 2017-01-23 | B47: 83 | C47: ='W01'!P47 -> 0 | D47: ='W01'!Q47 -> 0 | E47: ='W02'!P47 -> 0 | F47: ='W02'!Q47 -> 0 | G47: ='W03'!P47 -> 1 | H47: ='W03'!Q47 -> 1 | I47: ='W04'!P47 -> 0 | J47: ='W04'!Q47 -> 0 | K47: ='W05'!P47 -> 0 | L47: ='W05'!Q47 -> 0 | M47: ='W06'!P47 -> 1 | N47: ='W06'!Q47 -> 0 | O47: ='W07'!P47 -> 0 | P47: ='W07'!Q47 -> 0 | Q47: ='W08'!P47 -> 0 | R47: ='W08'!Q47 -> 0 | S47: ='W09'!P47 -> 0 | T47: ='W09'!Q47 -> 0 | U47: ='W10'!P47 -> 0 | V47: ='W10'!Q47 -> 0 | W47: ='W11'!P47 -> 0 | X47: ='W11'!Q47 -> 1 | Y47: ='W12'!P47 -> 0 | Z47: ='W12'!Q47 -> 0 | AA47: 0.1666666667 | AB47: 0.1666666667 | AC47: =Officer!O47 -> 0.5 | AD47: 0.1666666667 | AE47: 0.3333333333 | AF47: 0.1666666667 | AG47: 0 | AH47: =Officer!P47 -> 0.3333333333 | AI47: =Officer!Q47 -> 0.6666666667
A48: 2017-01-24 | B48: 84 | C48: ='W01'!P48 -> 0 | D48: ='W01'!Q48 -> 0 | E48: ='W02'!P48 -> 1 | F48: ='W02'!Q48 -> 0 | G48: ='W03'!P48 -> 0 | H48: ='W03'!Q48 -> 1 | I48: ='W04'!P48 -> 0 | J48: ='W04'!Q48 -> 0 | K48: ='W05'!P48 -> 0 | L48: ='W05'!Q48 -> 0 | M48: ='W06'!P48 -> 1 | N48: ='W06'!Q48 -> 0 | O48: ='W07'!P48 -> 0 | P48: ='W07'!Q48 -> 0 | Q48: ='W08'!P48 -> 0 | R48: ='W08'!Q48 -> 0 | S48: ='W09'!P48 -> 0 | T48: ='W09'!Q48 -> 0 | U48: ='W10'!P48 -> 1 | V48: ='W10'!Q48 -> 0 | W48: ='W11'!P48 -> 0 | X48: ='W11'!Q48 -> 1 | Y48: ='W12'!P48 -> 0 | Z48: ='W12'!Q48 -> 0 | AA48: 0.25 | AB48: 0.1666666667 | AD48: 0 | AE48: 0.3333333333 | AF48: 0.5 | AG48: 0
A49: 2017-01-25 | B49: 85 | C49: ='W01'!P49 -> 0 | D49: ='W01'!Q49 -> 0 | E49: ='W02'!P49 -> 0 | F49: ='W02'!Q49 -> 0 | G49: ='W03'!P49 -> 0 | H49: ='W03'!Q49 -> 1 | I49: ='W04'!P49 -> 0 | J49: ='W04'!Q49 -> 0 | K49: ='W05'!P49 -> 0 | L49: ='W05'!Q49 -> 0 | M49: ='W06'!P49 -> 0 | N49: ='W06'!Q49 -> 0 | O49: ='W07'!P49 -> 0 | P49: ='W07'!Q49 -> 0 | Q49: ='W08'!P49 -> 0 | R49: ='W08'!Q49 -> 0 | S49: ='W09'!P49 -> 0 | T49: ='W09'!Q49 -> 0 | U49: ='W10'!P49 -> 0 | V49: ='W10'!Q49 -> 0 | W49: ='W11'!P49 -> 0 | X49: ='W11'!Q49 -> 1 | Y49: ='W12'!P49 -> 1 | Z49: ='W12'!Q49 -> 0 | AA49: 0.08333333333 | AB49: 0.1666666667 | AD49: 0 | AE49: 0.3333333333 | AF49: 0.1666666667 | AG49: 0
A50: 2017-01-26 | B50: 86 | C50: ='W01'!P50 -> 0 | D50: ='W01'!Q50 -> 0 | E50: ='W02'!P50 -> 0 | F50: ='W02'!Q50 -> 0 | G50: ='W03'!P50 -> 0 | H50: ='W03'!Q50 -> 1 | I50: ='W04'!P50 -> 0 | J50: ='W04'!Q50 -> 0 | K50: ='W05'!P50 -> 0 | L50: ='W05'!Q50 -> 0 | M50: ='W06'!P50 -> 0 | N50: ='W06'!Q50 -> 0 | O50: ='W07'!P50 -> 0 | P50: ='W07'!Q50 -> 0 | Q50: ='W08'!P50 -> 0 | R50: ='W08'!Q50 -> 0 | S50: ='W09'!P50 -> 0 | T50: ='W09'!Q50 -> 0 | U50: ='W10'!P50 -> 0 | V50: ='W10'!Q50 -> 0 | W50: ='W11'!P50 -> 0 | X50: ='W11'!Q50 -> 1 | Y50: ='W12'!P50 -> 0 | Z50: ='W12'!Q50 -> 0 | AA50: 0 | AB50: 0.1666666667 | AD50: 0 | AE50: 0.3333333333 | AF50: 0 | AG50: 0
A51: 2017-01-27 | B51: 87 | C51: ='W01'!P51 -> 0 | D51: ='W01'!Q51 -> 0 | E51: ='W02'!P51 -> 1 | F51: ='W02'!Q51 -> 1 | G51: ='W03'!P51 -> 0 | H51: ='W03'!Q51 -> 1 | I51: ='W04'!P51 -> 0 | J51: ='W04'!Q51 -> 0 | K51: ='W05'!P51 -> 0 | L51: ='W05'!Q51 -> 0 | M51: ='W06'!P51 -> 1 | N51: ='W06'!Q51 -> 0 | O51: ='W07'!P51 -> 0 | P51: ='W07'!Q51 -> 0 | Q51: ='W08'!P51 -> 1 | R51: ='W08'!Q51 -> 0 | S51: ='W09'!P51 -> 0 | T51: ='W09'!Q51 -> 0 | U51: ='W10'!P51 -> 1 | V51: ='W10'!Q51 -> 0 | W51: ='W11'!P51 -> 0 | X51: ='W11'!Q51 -> 1 | Y51: ='W12'!P51 -> 0 | Z51: ='W12'!Q51 -> 0 | AA51: 0.3333333333 | AB51: 0.25 | AD51: 0 | AE51: 0.3333333333 | AF51: 0.6666666667 | AG51: 0.1666666667
A52: 2017-01-28 | B52: 88 | C52: ='W01'!P52 -> 0 | D52: ='W01'!Q52 -> 0 | E52: ='W02'!P52 -> 0 | F52: ='W02'!Q52 -> 1 | G52: ='W03'!P52 -> 0 | H52: ='W03'!Q52 -> 1 | I52: ='W04'!P52 -> 0 | J52: ='W04'!Q52 -> 0 | K52: ='W05'!P52 -> 0 | L52: ='W05'!Q52 -> 0 | M52: ='W06'!P52 -> 0 | N52: ='W06'!Q52 -> 0 | O52: ='W07'!P52 -> 1 | P52: ='W07'!Q52 -> 0 | Q52: ='W08'!P52 -> 0 | R52: ='W08'!Q52 -> 0 | S52: ='W09'!P52 -> 0 | T52: ='W09'!Q52 -> 1 | U52: ='W10'!P52 -> 0 | V52: ='W10'!Q52 -> 0 | W52: ='W11'!P52 -> 0 | X52: ='W11'!Q52 -> 1 | Y52: ='W12'!P52 -> 0 | Z52: ='W12'!Q52 -> 0 | AA52: 0.08333333333 | AB52: 0.3333333333 | AD52: 0.1666666667 | AE52: 0.5 | AF52: 0 | AG52: 0.1666666667
A53: 2017-01-29 | B53: 89 | C53: ='W01'!P53 -> 0 | D53: ='W01'!Q53 -> 0 | E53: ='W02'!P53 -> 0 | F53: ='W02'!Q53 -> 1 | G53: ='W03'!P53 -> 0 | H53: ='W03'!Q53 -> 1 | I53: ='W04'!P53 -> 0 | J53: ='W04'!Q53 -> 0 | K53: ='W05'!P53 -> 0 | L53: ='W05'!Q53 -> 0 | M53: ='W06'!P53 -> 1 | N53: ='W06'!Q53 -> 0 | O53: ='W07'!P53 -> 0 | P53: ='W07'!Q53 -> 0 | Q53: ='W08'!P53 -> 0 | R53: ='W08'!Q53 -> 0 | S53: ='W09'!P53 -> 0 | T53: ='W09'!Q53 -> 1 | U53: ='W10'!P53 -> 0 | V53: ='W10'!Q53 -> 0 | W53: ='W11'!P53 -> 0 | X53: ='W11'!Q53 -> 1 | Y53: ='W12'!P53 -> 0 | Z53: ='W12'!Q53 -> 0 | AA53: 0.08333333333 | AB53: 0.3333333333 | AD53: 0 | AE53: 0.5 | AF53: 0.1666666667 | AG53: 0.1666666667
A54: 2017-01-30 | B54: 90 | C54: ='W01'!P54 -> 0 | D54: ='W01'!Q54 -> 0 | E54: ='W02'!P54 -> 0 | F54: ='W02'!Q54 -> 1 | G54: ='W03'!P54 -> 0 | H54: ='W03'!Q54 -> 1 | I54: ='W04'!P54 -> 0 | J54: ='W04'!Q54 -> 0 | K54: ='W05'!P54 -> 0 | L54: ='W05'!Q54 -> 0 | M54: ='W06'!P54 -> 1 | N54: ='W06'!Q54 -> 0 | O54: ='W07'!P54 -> 0 | P54: ='W07'!Q54 -> 0 | Q54: ='W08'!P54 -> 1 | R54: ='W08'!Q54 -> 0 | S54: ='W09'!P54 -> 0 | T54: ='W09'!Q54 -> 1 | U54: ='W10'!P54 -> 1 | V54: ='W10'!Q54 -> 0 | W54: ='W11'!P54 -> 0 | X54: ='W11'!Q54 -> 1 | Y54: ='W12'!P54 -> 1 | Z54: ='W12'!Q54 -> 0 | AA54: 0.3333333333 | AB54: 0.3333333333 | AC54: =Officer!O54 -> 0.25 | AD54: 0 | AE54: 0.5 | AF54: 0.6666666667 | AG54: 0.1666666667 | AH54: =Officer!P54 -> 0 | AI54: =Officer!Q54 -> 0.5
A55: 2017-01-31 | B55: 91 | C55: ='W01'!P55 -> 0 | D55: ='W01'!Q55 -> 0 | E55: ='W02'!P55 -> 0 | F55: ='W02'!Q55 -> 1 | G55: ='W03'!P55 -> 0 | H55: ='W03'!Q55 -> 1 | I55: ='W04'!P55 -> 0 | J55: ='W04'!Q55 -> 0 | K55: ='W05'!P55 -> 0 | L55: ='W05'!Q55 -> 0 | M55: ='W06'!P55 -> 1 | N55: ='W06'!Q55 -> 0 | O55: ='W07'!P55 -> 0 | P55: ='W07'!Q55 -> 0 | Q55: ='W08'!P55 -> 1 | R55: ='W08'!Q55 -> 0 | S55: ='W09'!P55 -> 0 | T55: ='W09'!Q55 -> 1 | U55: ='W10'!P55 -> 0 | V55: ='W10'!Q55 -> 0 | W55: ='W11'!P55 -> 0 | X55: ='W11'!Q55 -> 1 | Y55: ='W12'!P55 -> 1 | Z55: ='W12'!Q55 -> 0 | AA55: 0.25 | AB55: 0.3333333333 | AD55: 0 | AE55: 0.5 | AF55: 0.5 | AG55: 0.1666666667
A56: 2017-02-01 | B56: 92 | C56: ='W01'!P56 -> 0 | D56: ='W01'!Q56 -> 0 | E56: ='W02'!P56 -> 0 | F56: ='W02'!Q56 -> 1 | G56: ='W03'!P56 -> 0 | H56: ='W03'!Q56 -> 1 | I56: ='W04'!P56 -> 0 | J56: ='W04'!Q56 -> 0 | K56: ='W05'!P56 -> 0 | L56: ='W05'!Q56 -> 0 | M56: ='W06'!P56 -> 2 | N56: ='W06'!Q56 -> 0 | O56: ='W07'!P56 -> 0 | P56: ='W07'!Q56 -> 0 | Q56: ='W08'!P56 -> 1 | R56: ='W08'!Q56 -> 0 | S56: ='W09'!P56 -> 0 | T56: ='W09'!Q56 -> 1 | U56: ='W10'!P56 -> 1 | V56: ='W10'!Q56 -> 0 | W56: ='W11'!P56 -> 0 | X56: ='W11'!Q56 -> 1 | Y56: ='W12'!P56 -> 0 | Z56: ='W12'!Q56 -> 0 | AA56: 0.3333333333 | AB56: 0.3333333333 | AD56: 0 | AE56: 0.5 | AF56: 0.6666666667 | AG56: 0.1666666667
A57: 2017-02-02 | B57: 93 | C57: ='W01'!P57 -> 0 | D57: ='W01'!Q57 -> 0 | E57: ='W02'!P57 -> 0 | F57: ='W02'!Q57 -> 1 | G57: ='W03'!P57 -> 0 | H57: ='W03'!Q57 -> 1 | I57: ='W04'!P57 -> 0 | J57: ='W04'!Q57 -> 0 | K57: ='W05'!P57 -> 0 | L57: ='W05'!Q57 -> 0 | M57: ='W06'!P57 -> 0 | N57: ='W06'!Q57 -> 0 | O57: ='W07'!P57 -> 0 | P57: ='W07'!Q57 -> 1 | Q57: ='W08'!P57 -> 0 | R57: ='W08'!Q57 -> 0 | S57: ='W09'!P57 -> 0 | T57: ='W09'!Q57 -> 1 | U57: ='W10'!P57 -> 1 | V57: ='W10'!Q57 -> 0 | W57: ='W11'!P57 -> 0 | X57: ='W11'!Q57 -> 1 | Y57: ='W12'!P57 -> 0 | Z57: ='W12'!Q57 -> 0 | AA57: 0.08333333333 | AB57: 0.4166666667 | AD57: 0 | AE57: 0.6666666667 | AF57: 0.1666666667 | AG57: 0.1666666667
A58: 2017-02-03 | B58: 94 | C58: ='W01'!P58 -> 0 | D58: ='W01'!Q58 -> 0 | E58: ='W02'!P58 -> 0 | F58: ='W02'!Q58 -> 0 | G58: ='W03'!P58 -> 1 | H58: ='W03'!Q58 -> 1 | I58: ='W04'!P58 -> 1 | J58: ='W04'!Q58 -> 0 | K58: ='W05'!P58 -> 0 | L58: ='W05'!Q58 -> 0 | M58: ='W06'!P58 -> 2 | N58: ='W06'!Q58 -> 0 | O58: ='W07'!P58 -> 0 | P58: ='W07'!Q58 -> 1 | Q58: ='W08'!P58 -> 0 | R58: ='W08'!Q58 -> 0 | S58: ='W09'!P58 -> 0 | T58: ='W09'!Q58 -> 1 | U58: ='W10'!P58 -> 0 | V58: ='W10'!Q58 -> 0 | W58: ='W11'!P58 -> 0 | X58: ='W11'!Q58 -> 1 | Y58: ='W12'!P58 -> 0 | Z58: ='W12'!Q58 -> 0 | AA58: 0.3333333333 | AB58: 0.3333333333 | AD58: 0.1666666667 | AE58: 0.6666666667 | AF58: 0.5 | AG58: 0
A59: 2017-02-04 | B59: 95 | C59: ='W01'!P59 -> 0 | D59: ='W01'!Q59 -> 0 | E59: ='W02'!P59 -> 0 | F59: ='W02'!Q59 -> 0 | G59: ='W03'!P59 -> 0 | H59: ='W03'!Q59 -> 1 | I59: ='W04'!P59 -> 0 | J59: ='W04'!Q59 -> 0 | K59: ='W05'!P59 -> 0 | L59: ='W05'!Q59 -> 0 | M59: ='W06'!P59 -> 2 | N59: ='W06'!Q59 -> 0 | O59: ='W07'!P59 -> 0 | P59: ='W07'!Q59 -> 1 | Q59: ='W08'!P59 -> 0 | R59: ='W08'!Q59 -> 0 | S59: ='W09'!P59 -> 0 | T59: ='W09'!Q59 -> 1 | U59: ='W10'!P59 -> 1 | V59: ='W10'!Q59 -> 0 | W59: ='W11'!P59 -> 0 | X59: ='W11'!Q59 -> 1 | Y59: ='W12'!P59 -> 0 | Z59: ='W12'!Q59 -> 0 | AA59: 0.25 | AB59: 0.3333333333 | AD59: 0 | AE59: 0.6666666667 | AF59: 0.5 | AG59: 0
A60: 2017-02-05 | B60: 96 | C60: ='W01'!P60 -> 0 | D60: ='W01'!Q60 -> 0 | E60: ='W02'!P60 -> 0 | F60: ='W02'!Q60 -> 0 | G60: ='W03'!P60 -> 0 | H60: ='W03'!Q60 -> 1 | I60: ='W04'!P60 -> 0 | J60: ='W04'!Q60 -> 0 | K60: ='W05'!P60 -> 0 | L60: ='W05'!Q60 -> 0 | M60: ='W06'!P60 -> 2 | N60: ='W06'!Q60 -> 0 | O60: ='W07'!P60 -> 1 | P60: ='W07'!Q60 -> 1 | Q60: ='W08'!P60 -> 0 | R60: ='W08'!Q60 -> 0 | S60: ='W09'!P60 -> 0 | T60: ='W09'!Q60 -> 1 | U60: ='W10'!P60 -> 0 | V60: ='W10'!Q60 -> 0 | W60: ='W11'!P60 -> 0 | X60: ='W11'!Q60 -> 1 | Y60: ='W12'!P60 -> 0 | Z60: ='W12'!Q60 -> 0 | AA60: 0.25 | AB60: 0.3333333333 | AD60: 0.1666666667 | AE60: 0.6666666667 | AF60: 0.3333333333 | AG60: 0
A61: 2017-02-06 | B61: 97 | C61: ='W01'!P61 -> 0 | D61: ='W01'!Q61 -> 0 | E61: ='W02'!P61 -> 0 | F61: ='W02'!Q61 -> 1 | G61: ='W03'!P61 -> 0 | H61: ='W03'!Q61 -> 1 | I61: ='W04'!P61 -> 0 | J61: ='W04'!Q61 -> 0 | K61: ='W05'!P61 -> 0 | L61: ='W05'!Q61 -> 0 | M61: ='W06'!P61 -> 1 | N61: ='W06'!Q61 -> 0 | O61: ='W07'!P61 -> 0 | P61: ='W07'!Q61 -> 1 | Q61: ='W08'!P61 -> 0 | R61: ='W08'!Q61 -> 0 | S61: ='W09'!P61 -> 0 | T61: ='W09'!Q61 -> 1 | U61: ='W10'!P61 -> 0 | V61: ='W10'!Q61 -> 0 | W61: ='W11'!P61 -> 0 | X61: ='W11'!Q61 -> 1 | Y61: ='W12'!P61 -> 1 | Z61: ='W12'!Q61 -> 0 | AA61: 0.1666666667 | AB61: 0.4166666667 | AC61: =Officer!O61 -> 0.2916666667 | AD61: 0 | AE61: 0.6666666667 | AF61: 0.3333333333 | AG61: 0.1666666667 | AH61: =Officer!P61 -> 0 | AI61: =Officer!Q61 -> 0.5833333333
A62: 2017-02-07 | B62: 98 | C62: ='W01'!P62 -> 0 | D62: ='W01'!Q62 -> 0 | E62: ='W02'!P62 -> 0 | F62: ='W02'!Q62 -> 1 | G62: ='W03'!P62 -> 0 | H62: ='W03'!Q62 -> 1 | I62: ='W04'!P62 -> 0 | J62: ='W04'!Q62 -> 0 | K62: ='W05'!P62 -> 0 | L62: ='W05'!Q62 -> 0 | M62: ='W06'!P62 -> 1 | N62: ='W06'!Q62 -> 0 | O62: ='W07'!P62 -> 0 | P62: ='W07'!Q62 -> 1 | Q62: ='W08'!P62 -> 0 | R62: ='W08'!Q62 -> 0 | S62: ='W09'!P62 -> 1 | T62: ='W09'!Q62 -> 1 | U62: ='W10'!P62 -> 0 | V62: ='W10'!Q62 -> 0 | W62: ='W11'!P62 -> 0 | X62: ='W11'!Q62 -> 1 | Y62: ='W12'!P62 -> 0 | Z62: ='W12'!Q62 -> 0 | AA62: 0.1666666667 | AB62: 0.4166666667 | AD62: 0.1666666667 | AE62: 0.6666666667 | AF62: 0.1666666667 | AG62: 0.1666666667
A63: 2017-02-08 | B63: 99 | C63: ='W01'!P63 -> 0 | D63: ='W01'!Q63 -> 0 | E63: ='W02'!P63 -> 0 | F63: ='W02'!Q63 -> 1 | G63: ='W03'!P63 -> 0 | H63: ='W03'!Q63 -> 1 | I63: ='W04'!P63 -> 0 | J63: ='W04'!Q63 -> 0 | K63: ='W05'!P63 -> 0 | L63: ='W05'!Q63 -> 0 | M63: ='W06'!P63 -> 1 | N63: ='W06'!Q63 -> 0 | O63: ='W07'!P63 -> 0 | P63: ='W07'!Q63 -> 1 | Q63: ='W08'!P63 -> 0 | R63: ='W08'!Q63 -> 0 | S63: ='W09'!P63 -> 0 | T63: ='W09'!Q63 -> 1 | U63: ='W10'!P63 -> 0 | V63: ='W10'!Q63 -> 0 | W63: ='W11'!P63 -> 0 | X63: ='W11'!Q63 -> 1 | Y63: ='W12'!P63 -> 0 | Z63: ='W12'!Q63 -> 0 | AA63: 0.08333333333 | AB63: 0.4166666667 | AD63: 0 | AE63: 0.6666666667 | AF63: 0.1666666667 | AG63: 0.1666666667
A64: 2017-02-09 | B64: 100 | C64: ='W01'!P64 -> 1 | D64: ='W01'!Q64 -> 0 | E64: ='W02'!P64 -> 0 | F64: ='W02'!Q64 -> 1 | G64: ='W03'!P64 -> 0 | H64: ='W03'!Q64 -> 1 | I64: ='W04'!P64 -> 0 | J64: ='W04'!Q64 -> 0 | K64: ='W05'!P64 -> 0 | L64: ='W05'!Q64 -> 0 | M64: ='W06'!P64 -> 0 | N64: ='W06'!Q64 -> 0 | O64: ='W07'!P64 -> 0 | P64: ='W07'!Q64 -> 1 | Q64: ='W08'!P64 -> 0 | R64: ='W08'!Q64 -> 0 | S64: ='W09'!P64 -> 0 | T64: ='W09'!Q64 -> 1 | U64: ='W10'!P64 -> 0 | V64: ='W10'!Q64 -> 0 | W64: ='W11'!P64 -> 0 | X64: ='W11'!Q64 -> 1 | Y64: ='W12'!P64 -> 0 | Z64: ='W12'!Q64 -> 0 | AA64: 0.08333333333 | AB64: 0.4166666667 | AD64: 0.1666666667 | AE64: 0.6666666667 | AF64: 0 | AG64: 0.1666666667
A65: 2017-02-10 | B65: 101 | C65: ='W01'!P65 -> 0 | D65: ='W01'!Q65 -> 0 | E65: ='W02'!P65 -> 1 | F65: ='W02'!Q65 -> 1 | G65: ='W03'!P65 -> 0 | H65: ='W03'!Q65 -> 1 | I65: ='W04'!P65 -> 0 | J65: ='W04'!Q65 -> 0 | K65: ='W05'!P65 -> 0 | L65: ='W05'!Q65 -> 0 | M65: ='W06'!P65 -> 0 | N65: ='W06'!Q65 -> 0 | O65: ='W07'!P65 -> 0 | P65: ='W07'!Q65 -> 0 | Q65: ='W08'!P65 -> 0 | R65: ='W08'!Q65 -> 0 | S65: ='W09'!P65 -> 0 | T65: ='W09'!Q65 -> 1 | U65: ='W10'!P65 -> 0 | V65: ='W10'!Q65 -> 0 | W65: ='W11'!P65 -> 0 | X65: ='W11'!Q65 -> 1 | Y65: ='W12'!P65 -> 0 | Z65: ='W12'!Q65 -> 0 | AA65: 0.08333333333 | AB65: 0.3333333333 | AD65: 0 | AE65: 0.5 | AF65: 0.1666666667 | AG65: 0.1666666667
A66: 2017-02-11 | B66: 102 | C66: ='W01'!P66 -> 0 | D66: ='W01'!Q66 -> 0 | E66: ='W02'!P66 -> 1 | F66: ='W02'!Q66 -> 1 | G66: ='W03'!P66 -> 0 | H66: ='W03'!Q66 -> 1 | I66: ='W04'!P66 -> 0 | J66: ='W04'!Q66 -> 0 | K66: ='W05'!P66 -> 0 | L66: ='W05'!Q66 -> 0 | M66: ='W06'!P66 -> 0 | N66: ='W06'!Q66 -> 0 | O66: ='W07'!P66 -> 0 | P66: ='W07'!Q66 -> 1 | Q66: ='W08'!P66 -> 0 | R66: ='W08'!Q66 -> 0 | S66: ='W09'!P66 -> 0 | T66: ='W09'!Q66 -> 1 | U66: ='W10'!P66 -> 0 | V66: ='W10'!Q66 -> 0 | W66: ='W11'!P66 -> 0 | X66: ='W11'!Q66 -> 1 | Y66: ='W12'!P66 -> 0 | Z66: ='W12'!Q66 -> 0 | AA66: 0.08333333333 | AB66: 0.4166666667 | AD66: 0 | AE66: 0.6666666667 | AF66: 0.1666666667 | AG66: 0.1666666667
A67: 2017-02-12 | B67: 103 | C67: ='W01'!P67 -> 0 | D67: ='W01'!Q67 -> 0 | E67: ='W02'!P67 -> 1 | F67: ='W02'!Q67 -> 1 | G67: ='W03'!P67 -> 0 | H67: ='W03'!Q67 -> 1 | I67: ='W04'!P67 -> 0 | J67: ='W04'!Q67 -> 0 | K67: ='W05'!P67 -> 1 | L67: ='W05'!Q67 -> 0 | M67: ='W06'!P67 -> 1 | N67: ='W06'!Q67 -> 0 | O67: ='W07'!P67 -> 0 | P67: ='W07'!Q67 -> 1 | Q67: ='W08'!P67 -> 0 | R67: ='W08'!Q67 -> 0 | S67: ='W09'!P67 -> 0 | T67: ='W09'!Q67 -> 1 | U67: ='W10'!P67 -> 0 | V67: ='W10'!Q67 -> 0 | W67: ='W11'!P67 -> 0 | X67: ='W11'!Q67 -> 1 | Y67: ='W12'!P67 -> 0 | Z67: ='W12'!Q67 -> 0 | AA67: 0.25 | AB67: 0.4166666667 | AD67: 0.1666666667 | AE67: 0.6666666667 | AF67: 0.3333333333 | AG67: 0.1666666667
A68: 2017-02-13 | B68: 104 | C68: ='W01'!P68 -> 0 | D68: ='W01'!Q68 -> 0 | E68: ='W02'!P68 -> 1 | F68: ='W02'!Q68 -> 1 | G68: ='W03'!P68 -> 0 | H68: ='W03'!Q68 -> 1 | I68: ='W04'!P68 -> 0 | J68: ='W04'!Q68 -> 0 | K68: ='W05'!P68 -> 0 | L68: ='W05'!Q68 -> 0 | M68: ='W06'!P68 -> 2 | N68: ='W06'!Q68 -> 0 | O68: ='W07'!P68 -> 0 | P68: ='W07'!Q68 -> 1 | Q68: ='W08'!P68 -> 1 | R68: ='W08'!Q68 -> 0 | S68: ='W09'!P68 -> 0 | T68: ='W09'!Q68 -> 1 | U68: ='W10'!P68 -> 1 | V68: ='W10'!Q68 -> 0 | W68: ='W11'!P68 -> 0 | X68: ='W11'!Q68 -> 1 | Y68: ='W12'!P68 -> 1 | Z68: ='W12'!Q68 -> 0 | AA68: 0.5 | AB68: 0.4166666667 | AC68: =Officer!O68 -> 0.6666666667 | AD68: 0 | AE68: 0.6666666667 | AF68: 1 | AG68: 0.1666666667 | AH68: =Officer!P68 -> 0 | AI68: =Officer!Q68 -> 1.333333333
A69: 2017-02-14 | B69: 105 | C69: ='W01'!P69 -> 0 | D69: ='W01'!Q69 -> 0 | E69: ='W02'!P69 -> 1 | F69: ='W02'!Q69 -> 1 | G69: ='W03'!P69 -> 1 | H69: ='W03'!Q69 -> 1 | I69: ='W04'!P69 -> 1 | J69: ='W04'!Q69 -> 0 | K69: ='W05'!P69 -> 0 | L69: ='W05'!Q69 -> 0 | M69: ='W06'!P69 -> 1 | N69: ='W06'!Q69 -> 0 | O69: ='W07'!P69 -> 0 | P69: ='W07'!Q69 -> 1 | Q69: ='W08'!P69 -> 1 | R69: ='W08'!Q69 -> 0 | S69: ='W09'!P69 -> 1 | T69: ='W09'!Q69 -> 1 | U69: ='W10'!P69 -> 1 | V69: ='W10'!Q69 -> 0 | W69: ='W11'!P69 -> 0 | X69: ='W11'!Q69 -> 1 | Y69: ='W12'!P69 -> 0 | Z69: ='W12'!Q69 -> 0 | AA69: 0.5833333333 | AB69: 0.4166666667 | AD69: 0.3333333333 | AE69: 0.6666666667 | AF69: 0.8333333333 | AG69: 0.1666666667
A70: 2017-02-15 | B70: 106 | C70: ='W01'!P70 -> 0 | D70: ='W01'!Q70 -> 0 | E70: ='W02'!P70 -> 1 | F70: ='W02'!Q70 -> 1 | G70: ='W03'!P70 -> 0 | H70: ='W03'!Q70 -> 1 | I70: ='W04'!P70 -> 0 | J70: ='W04'!Q70 -> 0 | K70: ='W05'!P70 -> 0 | L70: ='W05'!Q70 -> 0 | M70: ='W06'!P70 -> 0 | N70: ='W06'!Q70 -> 0 | O70: ='W07'!P70 -> 0 | P70: ='W07'!Q70 -> 1 | Q70: ='W08'!P70 -> 0 | R70: ='W08'!Q70 -> 0 | S70: ='W09'!P70 -> 0 | T70: ='W09'!Q70 -> 1 | U70: ='W10'!P70 -> 1 | V70: ='W10'!Q70 -> 0 | W70: ='W11'!P70 -> 0 | X70: ='W11'!Q70 -> 1 | Y70: ='W12'!P70 -> 1 | Z70: ='W12'!Q70 -> 0 | AA70: =AVERAGE(C70,E70,G70,I70,K70,M70,O70,Q70,S70,U70,W70,Y70) -> 0.25 | AB70: =AVERAGE(D70,F70,H70,J70,L70,N70,P70,R70,T70,V70,X70,Z70) -> 0.4166666667 | AD70: =AVERAGE(C70,G70,K70,O70,S70,W70) -> 0 | AE70: =AVERAGE(D70,H70,L70,P70,T70,X70) -> 0.6666666667 | AF70: =AVERAGE(E70,I70,M70,Q70,U70,Y70) -> 0.5 | AG70: =AVERAGE(F70,J70,N70,R70,V70,Z70) -> 0.1666666667
A71: 2017-02-16 | B71: 107 | C71: ='W01'!P71 -> 0 | D71: ='W01'!Q71 -> 0 | E71: ='W02'!P71 -> 0 | F71: ='W02'!Q71 -> 1 | G71: ='W03'!P71 -> 0 | H71: ='W03'!Q71 -> 1 | I71: ='W04'!P71 -> 0 | J71: ='W04'!Q71 -> 0 | K71: ='W05'!P71 -> 0 | L71: ='W05'!Q71 -> 0 | M71: ='W06'!P71 -> 1 | N71: ='W06'!Q71 -> 0 | O71: ='W07'!P71 -> 0 | P71: ='W07'!Q71 -> 1 | Q71: ='W08'!P71 -> 1 | R71: ='W08'!Q71 -> 0 | S71: ='W09'!P71 -> 0 | T71: ='W09'!Q71 -> 1 | U71: ='W10'!P71 -> 1 | V71: ='W10'!Q71 -> 0 | W71: ='W11'!P71 -> 0 | X71: ='W11'!Q71 -> 1 | Y71: ='W12'!P71 -> 0 | Z71: ='W12'!Q71 -> 0 | AA71: 0.25 | AB71: 0.4166666667 | AD71: 0 | AE71: 0.6666666667 | AF71: 0.5 | AG71: 0.1666666667
A72: 2017-02-17 | B72: 108 | C72: ='W01'!P72 -> 0 | D72: ='W01'!Q72 -> 0 | E72: ='W02'!P72 -> 1 | F72: ='W02'!Q72 -> 1 | G72: ='W03'!P72 -> 0 | H72: ='W03'!Q72 -> 1 | I72: ='W04'!P72 -> 0 | J72: ='W04'!Q72 -> 0 | K72: ='W05'!P72 -> 0 | L72: ='W05'!Q72 -> 0 | M72: ='W06'!P72 -> 0 | N72: ='W06'!Q72 -> 0 | O72: ='W07'!P72 -> 0 | P72: ='W07'!Q72 -> 1 | Q72: ='W08'!P72 -> 0 | R72: ='W08'!Q72 -> 0 | S72: ='W09'!P72 -> 0 | T72: ='W09'!Q72 -> 1 | U72: ='W10'!P72 -> 1 | V72: ='W10'!Q72 -> 0 | W72: ='W11'!P72 -> 0 | X72: ='W11'!Q72 -> 1 | Y72: ='W12'!P72 -> 0 | Z72: ='W12'!Q72 -> 0 | AA72: 0.1666666667 | AB72: 0.4166666667 | AD72: 0 | AE72: 0.6666666667 | AF72: 0.3333333333 | AG72: 0.1666666667
A73: 2017-02-18 | B73: 109 | C73: ='W01'!P73 -> 0 | D73: ='W01'!Q73 -> 0 | E73: ='W02'!P73 -> 0 | F73: ='W02'!Q73 -> 1 | G73: ='W03'!P73 -> 0 | H73: ='W03'!Q73 -> 1 | I73: ='W04'!P73 -> 1 | J73: ='W04'!Q73 -> 0 | K73: ='W05'!P73 -> 0 | L73: ='W05'!Q73 -> 0 | M73: ='W06'!P73 -> 0 | N73: ='W06'!Q73 -> 0 | O73: ='W07'!P73 -> 0 | P73: ='W07'!Q73 -> 0 | Q73: ='W08'!P73 -> 0 | R73: ='W08'!Q73 -> 0 | S73: ='W09'!P73 -> 0 | T73: ='W09'!Q73 -> 1 | U73: ='W10'!P73 -> 1 | V73: ='W10'!Q73 -> 0 | W73: ='W11'!P73 -> 0 | X73: ='W11'!Q73 -> 1 | Y73: ='W12'!P73 -> 0 | Z73: ='W12'!Q73 -> 0 | AA73: 0.1666666667 | AB73: 0.3333333333 | AD73: 0 | AE73: 0.5 | AF73: 0.3333333333 | AG73: 0.1666666667
A74: 2017-02-19 | B74: 110 | C74: ='W01'!P74 -> 0 | D74: ='W01'!Q74 -> 0 | E74: ='W02'!P74 -> 1 | F74: ='W02'!Q74 -> 1 | G74: ='W03'!P74 -> 0 | H74: ='W03'!Q74 -> 1 | I74: ='W04'!P74 -> 0 | J74: ='W04'!Q74 -> 0 | K74: ='W05'!P74 -> 0 | L74: ='W05'!Q74 -> 0 | M74: ='W06'!P74 -> 0 | N74: ='W06'!Q74 -> 0 | O74: ='W07'!P74 -> 0 | P74: ='W07'!Q74 -> 0 | Q74: ='W08'!P74 -> 1 | R74: ='W08'!Q74 -> 0 | S74: ='W09'!P74 -> 0 | T74: ='W09'!Q74 -> 1 | U74: ='W10'!P74 -> 1 | V74: ='W10'!Q74 -> 0 | W74: ='W11'!P74 -> 0 | X74: ='W11'!Q74 -> 1 | Y74: ='W12'!P74 -> 1 | Z74: ='W12'!Q74 -> 0 | AA74: 0.3333333333 | AB74: 0.3333333333 | AD74: 0 | AE74: 0.5 | AF74: 0.6666666667 | AG74: 0.1666666667
A75: 2017-02-20 | B75: 111 | C75: ='W01'!P75 -> 0 | D75: ='W01'!Q75 -> 0 | E75: ='W02'!P75 -> 1 | F75: ='W02'!Q75 -> 1 | G75: ='W03'!P75 -> 0 | H75: ='W03'!Q75 -> 1 | I75: ='W04'!P75 -> 1 | J75: ='W04'!Q75 -> 0 | K75: ='W05'!P75 -> 0 | L75: ='W05'!Q75 -> 0 | M75: ='W06'!P75 -> 1 | N75: ='W06'!Q75 -> 0 | O75: ='W07'!P75 -> 0 | P75: ='W07'!Q75 -> 1 | Q75: ='W08'!P75 -> 1 | R75: ='W08'!Q75 -> 0 | S75: ='W09'!P75 -> 0 | T75: ='W09'!Q75 -> 1 | U75: ='W10'!P75 -> 1 | V75: ='W10'!Q75 -> 0 | W75: ='W11'!P75 -> 0 | X75: ='W11'!Q75 -> 1 | Y75: ='W12'!P75 -> 1 | Z75: ='W12'!Q75 -> 0 | AA75: 0.5 | AB75: 0.4166666667 | AC75: =Officer!O75 -> 1.166666667 | AD75: 0 | AE75: 0.6666666667 | AF75: 1 | AG75: 0.1666666667 | AH75: =Officer!P75 -> 0.3333333333 | AI75: =Officer!Q75 -> 2
A76: 2017-02-21 | B76: 112 | C76: ='W01'!P76 -> 0 | D76: ='W01'!Q76 -> 0 | E76: ='W02'!P76 -> 0 | F76: ='W02'!Q76 -> 1 | G76: ='W03'!P76 -> 0 | H76: ='W03'!Q76 -> 1 | I76: ='W04'!P76 -> 0 | J76: ='W04'!Q76 -> 0 | K76: ='W05'!P76 -> 0 | L76: ='W05'!Q76 -> 0 | M76: ='W06'!P76 -> 1 | N76: ='W06'!Q76 -> 0 | O76: ='W07'!P76 -> 0 | P76: ='W07'!Q76 -> 1 | Q76: ='W08'!P76 -> 0 | R76: ='W08'!Q76 -> 0 | S76: ='W09'!P76 -> 0 | T76: ='W09'!Q76 -> 1 | U76: ='W10'!P76 -> 1 | V76: ='W10'!Q76 -> 0 | W76: ='W11'!P76 -> 0 | X76: ='W11'!Q76 -> 1 | Y76: ='W12'!P76 -> 2 | Z76: ='W12'!Q76 -> 0 | AA76: 0.3333333333 | AB76: 0.4166666667 | AD76: 0 | AE76: 0.6666666667 | AF76: 0.6666666667 | AG76: 0.1666666667
A77: 2017-02-22 | B77: 113 | C77: ='W01'!P77 -> 0 | D77: ='W01'!Q77 -> 0 | E77: ='W02'!P77 -> 1 | F77: ='W02'!Q77 -> 1 | G77: ='W03'!P77 -> 1 | H77: ='W03'!Q77 -> 1 | I77: ='W04'!P77 -> 0 | J77: ='W04'!Q77 -> 0 | K77: ='W05'!P77 -> 0 | L77: ='W05'!Q77 -> 0 | M77: ='W06'!P77 -> 1 | N77: ='W06'!Q77 -> 0 | O77: ='W07'!P77 -> 0 | P77: ='W07'!Q77 -> 0 | Q77: ='W08'!P77 -> 1 | R77: ='W08'!Q77 -> 0 | S77: ='W09'!P77 -> 0 | T77: ='W09'!Q77 -> 1 | U77: ='W10'!P77 -> 1 | V77: ='W10'!Q77 -> 0 | W77: ='W11'!P77 -> 0 | X77: ='W11'!Q77 -> 1 | Y77: ='W12'!P77 -> 2 | Z77: ='W12'!Q77 -> 0 | AA77: 0.5833333333 | AB77: 0.3333333333 | AD77: 0.1666666667 | AE77: 0.5 | AF77: 1 | AG77: 0.1666666667
A78: 2017-02-23 | B78: 114 | C78: ='W01'!P78 -> 0 | D78: ='W01'!Q78 -> 0 | E78: ='W02'!P78 -> 1 | F78: ='W02'!Q78 -> 1 | G78: ='W03'!P78 -> 0 | H78: ='W03'!Q78 -> 1 | I78: ='W04'!P78 -> 0 | J78: ='W04'!Q78 -> 0 | K78: ='W05'!P78 -> 0 | L78: ='W05'!Q78 -> 0 | M78: ='W06'!P78 -> 1 | N78: ='W06'!Q78 -> 0 | O78: ='W07'!P78 -> 1 | P78: ='W07'!Q78 -> 0 | Q78: ='W08'!P78 -> 1 | R78: ='W08'!Q78 -> 0 | S78: ='W09'!P78 -> 0 | T78: ='W09'!Q78 -> 1 | U78: ='W10'!P78 -> 1 | V78: ='W10'!Q78 -> 0 | W78: ='W11'!P78 -> 0 | X78: ='W11'!Q78 -> 1 | Y78: ='W12'!P78 -> 2 | Z78: ='W12'!Q78 -> 0 | AA78: 0.5833333333 | AB78: 0.3333333333 | AD78: 0.1666666667 | AE78: 0.5 | AF78: 1 | AG78: 0.1666666667
A79: 2017-02-24 | B79: 115 | C79: ='W01'!P79 -> 0 | D79: ='W01'!Q79 -> 0 | E79: ='W02'!P79 -> 1 | F79: ='W02'!Q79 -> 1 | G79: ='W03'!P79 -> 0 | H79: ='W03'!Q79 -> 1 | I79: ='W04'!P79 -> 1 | J79: ='W04'!Q79 -> 0 | K79: ='W05'!P79 -> 0 | L79: ='W05'!Q79 -> 0 | M79: ='W06'!P79 -> 0 | N79: ='W06'!Q79 -> 0 | O79: ='W07'!P79 -> 0 | P79: ='W07'!Q79 -> 0 | Q79: ='W08'!P79 -> 0 | R79: ='W08'!Q79 -> 0 | S79: ='W09'!P79 -> 0 | T79: ='W09'!Q79 -> 1 | U79: ='W10'!P79 -> 1 | V79: ='W10'!Q79 -> 0 | W79: ='W11'!P79 -> 0 | X79: ='W11'!Q79 -> 1 | Y79: ='W12'!P79 -> 2 | Z79: ='W12'!Q79 -> 0 | AA79: 0.4166666667 | AB79: 0.3333333333 | AD79: 0 | AE79: 0.5 | AF79: 0.8333333333 | AG79: 0.1666666667
A80: 2017-02-25 | B80: 116 | C80: ='W01'!P80 -> 0 | D80: ='W01'!Q80 -> 0 | E80: ='W02'!P80 -> 1 | F80: ='W02'!Q80 -> 1 | G80: ='W03'!P80 -> 0 | H80: ='W03'!Q80 -> 1 | I80: ='W04'!P80 -> 0 | J80: ='W04'!Q80 -> 0 | K80: ='W05'!P80 -> 0 | L80: ='W05'!Q80 -> 0 | M80: ='W06'!P80 -> 0 | N80: ='W06'!Q80 -> 0 | O80: ='W07'!P80 -> 0 | P80: ='W07'!Q80 -> 0 | Q80: ='W08'!P80 -> 0 | R80: ='W08'!Q80 -> 0 | S80: ='W09'!P80 -> 0 | T80: ='W09'!Q80 -> 1 | U80: ='W10'!P80 -> 1 | V80: ='W10'!Q80 -> 0 | W80: ='W11'!P80 -> 0 | X80: ='W11'!Q80 -> 1 | Y80: ='W12'!P80 -> 1 | Z80: ='W12'!Q80 -> 0 | AA80: 0.25 | AB80: 0.3333333333 | AD80: 0 | AE80: 0.5 | AF80: 0.5 | AG80: 0.1666666667
A81: 2017-02-26 | B81: 117 | C81: ='W01'!P81 -> 0 | D81: ='W01'!Q81 -> 0 | E81: ='W02'!P81 -> 1 | F81: ='W02'!Q81 -> 1 | G81: ='W03'!P81 -> 0 | H81: ='W03'!Q81 -> 1 | I81: ='W04'!P81 -> 1 | J81: ='W04'!Q81 -> 0 | K81: ='W05'!P81 -> 0 | L81: ='W05'!Q81 -> 0 | M81: ='W06'!P81 -> 1 | N81: ='W06'!Q81 -> 0 | O81: ='W07'!P81 -> 0 | P81: ='W07'!Q81 -> 0 | Q81: ='W08'!P81 -> 0 | R81: ='W08'!Q81 -> 0 | S81: ='W09'!P81 -> 0 | T81: ='W09'!Q81 -> 1 | U81: ='W10'!P81 -> 1 | V81: ='W10'!Q81 -> 0 | W81: ='W11'!P81 -> 0 | X81: ='W11'!Q81 -> 1 | Y81: ='W12'!P81 -> 1 | Z81: ='W12'!Q81 -> 0 | AA81: 0.4166666667 | AB81: 0.3333333333 | AD81: 0 | AE81: 0.5 | AF81: 0.8333333333 | AG81: 0.1666666667
A82: 2017-02-27 | B82: 118 | C82: ='W01'!P82 -> 0 | D82: ='W01'!Q82 -> 0 | E82: ='W02'!P82 -> 1 | F82: ='W02'!Q82 -> 1 | G82: ='W03'!P82 -> 0 | H82: ='W03'!Q82 -> 1 | I82: ='W04'!P82 -> 0 | J82: ='W04'!Q82 -> 0 | K82: ='W05'!P82 -> 0 | L82: ='W05'!Q82 -> 0 | M82: ='W06'!P82 -> 1 | N82: ='W06'!Q82 -> 0 | O82: ='W07'!P82 -> 0 | P82: ='W07'!Q82 -> 0 | Q82: ='W08'!P82 -> 0 | R82: ='W08'!Q82 -> 0 | S82: ='W09'!P82 -> 0 | T82: ='W09'!Q82 -> 1 | U82: ='W10'!P82 -> 0 | V82: ='W10'!Q82 -> 0 | W82: ='W11'!P82 -> 0 | X82: ='W11'!Q82 -> 1 | Y82: ='W12'!P82 -> 0 | Z82: ='W12'!Q82 -> 0 | AA82: 0.1666666667 | AB82: 0.3333333333 | AC82: =Officer!O82 -> 0.3333333333 | AD82: 0 | AE82: 0.5 | AF82: 0.3333333333 | AG82: 0.1666666667 | AH82: =Officer!P82 -> 0 | AI82: =Officer!Q82 -> 0.6666666667
A83: 2017-02-28 | B83: 119 | C83: ='W01'!P83 -> 0 | D83: ='W01'!Q83 -> 0 | E83: ='W02'!P83 -> 1 | F83: ='W02'!Q83 -> 1 | G83: ='W03'!P83 -> 0 | H83: ='W03'!Q83 -> 1 | I83: ='W04'!P83 -> 0 | J83: ='W04'!Q83 -> 0 | K83: ='W05'!P83 -> 0 | L83: ='W05'!Q83 -> 0 | M83: ='W06'!P83 -> 1 | N83: ='W06'!Q83 -> 0 | O83: ='W07'!P83 -> 0 | P83: ='W07'!Q83 -> 0 | Q83: ='W08'!P83 -> 0 | R83: ='W08'!Q83 -> 0 | S83: ='W09'!P83 -> 0 | T83: ='W09'!Q83 -> 1 | U83: ='W10'!P83 -> 0 | V83: ='W10'!Q83 -> 0 | W83: ='W11'!P83 -> 1 | X83: ='W11'!Q83 -> 1 | Y83: ='W12'!P83 -> 1 | Z83: ='W12'!Q83 -> 0 | AA83: 0.3333333333 | AB83: 0.3333333333 | AD83: 0.1666666667 | AE83: 0.5 | AF83: 0.5 | AG83: 0.1666666667
A84: 2017-03-01 | B84: 120 | C84: ='W01'!P84 -> 0 | D84: ='W01'!Q84 -> 0 | E84: ='W02'!P84 -> 1 | F84: ='W02'!Q84 -> 1 | G84: ='W03'!P84 -> 0 | H84: ='W03'!Q84 -> 1 | I84: ='W04'!P84 -> 0 | J84: ='W04'!Q84 -> 0 | K84: ='W05'!P84 -> 0 | L84: ='W05'!Q84 -> 0 | M84: ='W06'!P84 -> 1 | N84: ='W06'!Q84 -> 0 | O84: ='W07'!P84 -> 0 | P84: ='W07'!Q84 -> 0 | Q84: ='W08'!P84 -> 0 | R84: ='W08'!Q84 -> 0 | S84: ='W09'!P84 -> 0 | T84: ='W09'!Q84 -> 1 | U84: ='W10'!P84 -> 0 | V84: ='W10'!Q84 -> 0 | W84: ='W11'!P84 -> 0 | X84: ='W11'!Q84 -> 1 | Y84: ='W12'!P84 -> 1 | Z84: ='W12'!Q84 -> 0 | AA84: =AVERAGE(C84,E84,G84,I84,K84,M84,O84,Q84,S84,U84,W84,Y84) -> 0.25 | AB84: =AVERAGE(D84,F84,H84,J84,L84,N84,P84,R84,T84,V84,X84,Z84) -> 0.3333333333 | AD84: =AVERAGE(C84,G84,K84,O84,S84,W84) -> 0 | AE84: =AVERAGE(D84,H84,L84,P84,T84,X84) -> 0.5 | AF84: =AVERAGE(E84,I84,M84,Q84,U84,Y84) -> 0.5 | AG84: =AVERAGE(F84,J84,N84,R84,V84,Z84) -> 0.1666666667
A85: 2017-03-02 | B85: 121 | C85: ='W01'!P85 -> 0 | D85: ='W01'!Q85 -> 0 | E85: ='W02'!P85 -> 1 | F85: ='W02'!Q85 -> 1 | G85: ='W03'!P85 -> 0 | H85: ='W03'!Q85 -> 1 | I85: ='W04'!P85 -> 0 | J85: ='W04'!Q85 -> 0 | K85: ='W05'!P85 -> 0 | L85: ='W05'!Q85 -> 0 | M85: ='W06'!P85 -> 1 | N85: ='W06'!Q85 -> 0 | O85: ='W07'!P85 -> 0 | P85: ='W07'!Q85 -> 0 | Q85: ='W08'!P85 -> 0 | R85: ='W08'!Q85 -> 0 | S85: ='W09'!P85 -> 0 | T85: ='W09'!Q85 -> 1 | U85: ='W10'!P85 -> 0 | V85: ='W10'!Q85 -> 0 | W85: ='W11'!P85 -> 1 | X85: ='W11'!Q85 -> 1 | Y85: ='W12'!P85 -> 0 | Z85: ='W12'!Q85 -> 0 | AA85: 0.25 | AB85: 0.3333333333 | AD85: 0.1666666667 | AE85: 0.5 | AF85: 0.3333333333 | AG85: 0.1666666667
A86: 2017-03-03 | B86: 122 | C86: ='W01'!P86 -> 0 | D86: ='W01'!Q86 -> 0 | E86: ='W02'!P86 -> 1 | F86: ='W02'!Q86 -> 1 | G86: ='W03'!P86 -> 0 | H86: ='W03'!Q86 -> 1 | I86: ='W04'!P86 -> 0 | J86: ='W04'!Q86 -> 0 | K86: ='W05'!P86 -> 0 | L86: ='W05'!Q86 -> 0 | M86: ='W06'!P86 -> 0 | N86: ='W06'!Q86 -> 0 | O86: ='W07'!P86 -> 0 | P86: ='W07'!Q86 -> 0 | Q86: ='W08'!P86 -> 0 | R86: ='W08'!Q86 -> 0 | S86: ='W09'!P86 -> 0 | T86: ='W09'!Q86 -> 1 | U86: ='W10'!P86 -> 1 | V86: ='W10'!Q86 -> 0 | W86: ='W11'!P86 -> 0 | X86: ='W11'!Q86 -> 1 | Y86: ='W12'!P86 -> 0 | Z86: ='W12'!Q86 -> 0 | AA86: 0.1666666667 | AB86: 0.3333333333 | AD86: 0 | AE86: 0.5 | AF86: 0.3333333333 | AG86: 0.1666666667
A87: 2017-03-04 | B87: 123 | C87: ='W01'!P87 -> 0 | D87: ='W01'!Q87 -> 0 | E87: ='W02'!P87 -> 1 | F87: ='W02'!Q87 -> 1 | G87: ='W03'!P87 -> 0 | H87: ='W03'!Q87 -> 1 | I87: ='W04'!P87 -> 0 | J87: ='W04'!Q87 -> 0 | K87: ='W05'!P87 -> 0 | L87: ='W05'!Q87 -> 0 | M87: ='W06'!P87 -> 1 | N87: ='W06'!Q87 -> 0 | O87: ='W07'!P87 -> 0 | P87: ='W07'!Q87 -> 0 | Q87: ='W08'!P87 -> 0 | R87: ='W08'!Q87 -> 0 | S87: ='W09'!P87 -> 0 | T87: ='W09'!Q87 -> 1 | U87: ='W10'!P87 -> 1 | V87: ='W10'!Q87 -> 0 | W87: ='W11'!P87 -> 0 | X87: ='W11'!Q87 -> 1 | Y87: ='W12'!P87 -> 1 | Z87: ='W12'!Q87 -> 0 | AA87: 0.3333333333 | AB87: 0.3333333333 | AD87: 0 | AE87: 0.5 | AF87: 0.6666666667 | AG87: 0.1666666667
A88: 2017-03-05 | B88: 124 | C88: ='W01'!P88 -> 0 | D88: ='W01'!Q88 -> 0 | E88: ='W02'!P88 -> 1 | F88: ='W02'!Q88 -> 1 | G88: ='W03'!P88 -> 0 | H88: ='W03'!Q88 -> 1 | I88: ='W04'!P88 -> 0 | J88: ='W04'!Q88 -> 0 | K88: ='W05'!P88 -> 0 | L88: ='W05'!Q88 -> 1 | M88: ='W06'!P88 -> 0 | N88: ='W06'!Q88 -> 0 | O88: ='W07'!P88 -> 0 | P88: ='W07'!Q88 -> 0 | Q88: ='W08'!P88 -> 1 | R88: ='W08'!Q88 -> 0 | S88: ='W09'!P88 -> 0 | T88: ='W09'!Q88 -> 1 | U88: ='W10'!P88 -> 1 | V88: ='W10'!Q88 -> 0 | W88: ='W11'!P88 -> 0 | X88: ='W11'!Q88 -> 1 | Y88: ='W12'!P88 -> 1 | Z88: ='W12'!Q88 -> 0 | AA88: 0.3333333333 | AB88: 0.4166666667 | AD88: 0 | AE88: 0.6666666667 | AF88: 0.6666666667 | AG88: 0.1666666667
A89: 2017-03-06 | B89: 125 | C89: ='W01'!P89 -> 0 | D89: ='W01'!Q89 -> 0 | E89: ='W02'!P89 -> 1 | F89: ='W02'!Q89 -> 1 | G89: ='W03'!P89 -> 0 | H89: ='W03'!Q89 -> 1 | I89: ='W04'!P89 -> 0 | J89: ='W04'!Q89 -> 0 | K89: ='W05'!P89 -> 0 | L89: ='W05'!Q89 -> 1 | M89: ='W06'!P89 -> 1 | N89: ='W06'!Q89 -> 0 | O89: ='W07'!P89 -> 0 | P89: ='W07'!Q89 -> 0 | Q89: ='W08'!P89 -> 1 | R89: ='W08'!Q89 -> 0 | S89: ='W09'!P89 -> 0 | T89: ='W09'!Q89 -> 1 | U89: ='W10'!P89 -> 0 | V89: ='W10'!Q89 -> 0 | W89: ='W11'!P89 -> 0 | X89: ='W11'!Q89 -> 1 | Y89: ='W12'!P89 -> 1 | Z89: ='W12'!Q89 -> 0 | AA89: 0.3333333333 | AB89: 0.4166666667 | AC89: =Officer!O89 -> 0.5833333333 | AD89: 0 | AE89: 0.6666666667 | AF89: 0.6666666667 | AG89: 0.1666666667 | AH89: =Officer!P89 -> 0 | AI89: =Officer!Q89 -> 1.166666667
A90: 2017-03-07 | B90: 126 | C90: ='W01'!P90 -> 0 | D90: ='W01'!Q90 -> 0 | E90: ='W02'!P90 -> 1 | F90: ='W02'!Q90 -> 1 | G90: ='W03'!P90 -> 0 | H90: ='W03'!Q90 -> 1 | I90: ='W04'!P90 -> 0 | J90: ='W04'!Q90 -> 0 | K90: ='W05'!P90 -> 0 | L90: ='W05'!Q90 -> 1 | M90: ='W06'!P90 -> 1 | N90: ='W06'!Q90 -> 0 | O90: ='W07'!P90 -> 0 | P90: ='W07'!Q90 -> 0 | Q90: ='W08'!P90 -> 0 | R90: ='W08'!Q90 -> 0 | S90: ='W09'!P90 -> 0 | T90: ='W09'!Q90 -> 1 | U90: ='W10'!P90 -> 0 | V90: ='W10'!Q90 -> 0 | W90: ='W11'!P90 -> 0 | X90: ='W11'!Q90 -> 1 | Y90: ='W12'!P90 -> 1 | Z90: ='W12'!Q90 -> 0 | AA90: 0.25 | AB90: 0.4166666667 | AD90: 0 | AE90: 0.6666666667 | AF90: 0.5 | AG90: 0.1666666667
A91: 2017-03-08 | B91: 127 | C91: ='W01'!P91 -> 0 | D91: ='W01'!Q91 -> 0 | E91: ='W02'!P91 -> 1 | F91: ='W02'!Q91 -> 1 | G91: ='W03'!P91 -> 0 | H91: ='W03'!Q91 -> 1 | I91: ='W04'!P91 -> 0 | J91: ='W04'!Q91 -> 0 | K91: ='W05'!P91 -> 0 | L91: ='W05'!Q91 -> 1 | M91: ='W06'!P91 -> 1 | N91: ='W06'!Q91 -> 0 | O91: ='W07'!P91 -> 0 | P91: ='W07'!Q91 -> 0 | Q91: ='W08'!P91 -> 1 | R91: ='W08'!Q91 -> 0 | S91: ='W09'!P91 -> 0 | T91: ='W09'!Q91 -> 1 | U91: ='W10'!P91 -> 0 | V91: ='W10'!Q91 -> 0 | W91: ='W11'!P91 -> 0 | X91: ='W11'!Q91 -> 1 | Y91: ='W12'!P91 -> 1 | Z91: ='W12'!Q91 -> 0 | AA91: 0.3333333333 | AB91: 0.4166666667 | AD91: 0 | AE91: 0.6666666667 | AF91: 0.6666666667 | AG91: 0.1666666667
A92: 2017-03-09 | B92: 128 | C92: ='W01'!P92 -> 0 | D92: ='W01'!Q92 -> 0 | E92: ='W02'!P92 -> 1 | F92: ='W02'!Q92 -> 1 | G92: ='W03'!P92 -> 0 | H92: ='W03'!Q92 -> 0 | I92: ='W04'!P92 -> 0 | J92: ='W04'!Q92 -> 0 | K92: ='W05'!P92 -> 0 | L92: ='W05'!Q92 -> 0 | M92: ='W06'!P92 -> 0 | N92: ='W06'!Q92 -> 0 | O92: ='W07'!P92 -> 0 | P92: ='W07'!Q92 -> 0 | Q92: ='W08'!P92 -> 0 | R92: ='W08'!Q92 -> 0 | S92: ='W09'!P92 -> 0 | T92: ='W09'!Q92 -> 1 | U92: ='W10'!P92 -> 1 | V92: ='W10'!Q92 -> 0 | W92: ='W11'!P92 -> 0 | X92: ='W11'!Q92 -> 1 | Y92: ='W12'!P92 -> 2 | Z92: ='W12'!Q92 -> 0 | AA92: 0.3333333333 | AB92: 0.25 | AD92: 0 | AE92: 0.3333333333 | AF92: 0.6666666667 | AG92: 0.1666666667
A93: 2017-03-10 | B93: 129 | C93: ='W01'!P93 -> 0 | D93: ='W01'!Q93 -> 0 | E93: ='W02'!P93 -> 0 | F93: ='W02'!Q93 -> 1 | G93: ='W03'!P93 -> 0 | H93: ='W03'!Q93 -> 0 | I93: ='W04'!P93 -> 0 | J93: ='W04'!Q93 -> 0 | K93: ='W05'!P93 -> 0 | L93: ='W05'!Q93 -> 1 | M93: ='W06'!P93 -> 0 | N93: ='W06'!Q93 -> 0 | O93: ='W07'!P93 -> 0 | P93: ='W07'!Q93 -> 0 | Q93: ='W08'!P93 -> 0 | R93: ='W08'!Q93 -> 0 | S93: ='W09'!P93 -> 0 | T93: ='W09'!Q93 -> 1 | U93: ='W10'!P93 -> 0 | V93: ='W10'!Q93 -> 0 | W93: ='W11'!P93 -> 0 | X93: ='W11'!Q93 -> 1 | Y93: ='W12'!P93 -> 2 | Z93: ='W12'!Q93 -> 0 | AA93: 0.1666666667 | AB93: 0.3333333333 | AD93: 0 | AE93: 0.5 | AF93: 0.3333333333 | AG93: 0.1666666667
A94: 2017-03-11 | B94: 130
A95: 2017-03-12 | B95: 131
A96: 2017-03-13 | B96: 132 | C96: ='W01'!P96 -> 0 | D96: ='W01'!Q96 -> 0 | E96: ='W02'!P96 -> 0 | F96: ='W02'!Q96 -> 1 | G96: ='W03'!P96 -> 0 | H96: ='W03'!Q96 -> 0 | I96: ='W04'!P96 -> 0 | J96: ='W04'!Q96 -> 0 | K96: ='W05'!P96 -> 0 | L96: ='W05'!Q96 -> 1 | M96: ='W06'!P96 -> 0 | N96: ='W06'!Q96 -> 0 | O96: ='W07'!P96 -> 0 | P96: ='W07'!Q96 -> 0 | Q96: ='W08'!P96 -> 0 | R96: ='W08'!Q96 -> 0 | S96: ='W09'!P96 -> 0 | T96: ='W09'!Q96 -> 0 | U96: ='W10'!P96 -> 1 | V96: ='W10'!Q96 -> 0 | W96: ='W11'!P96 -> 0 | X96: ='W11'!Q96 -> 1 | Y96: ='W12'!P96 -> 2 | Z96: ='W12'!Q96 -> 0 | AA96: 0.25 | AB96: 0.25 | AC96: =Officer!O96 -> 0.3333333333 | AD96: 0 | AE96: 0.3333333333 | AF96: 0.5 | AG96: 0.1666666667 | AH96: =Officer!P96 -> 0 | AI96: =Officer!Q96 -> 0.6666666667
A97: 2017-03-14 | B97: 133
A98: 2017-03-15 | B98: 134 | C98: ='W01'!P98 -> 0 | D98: ='W01'!Q98 -> 0 | E98: ='W02'!P98 -> 0 | F98: ='W02'!Q98 -> 1 | G98: ='W03'!P98 -> 0 | H98: ='W03'!Q98 -> 0 | I98: ='W04'!P98 -> 0 | J98: ='W04'!Q98 -> 0 | K98: ='W05'!P98 -> 0 | L98: ='W05'!Q98 -> 1 | M98: ='W06'!P98 -> 0 | N98: ='W06'!Q98 -> 0 | O98: ='W07'!P98 -> 0 | P98: ='W07'!Q98 -> 0 | Q98: ='W08'!P98 -> 0 | R98: ='W08'!Q98 -> 0 | S98: ='W09'!P98 -> 0 | T98: ='W09'!Q98 -> 0 | U98: ='W10'!P98 -> 0 | V98: ='W10'!Q98 -> 0 | W98: ='W11'!P98 -> 0 | X98: ='W11'!Q98 -> 1 | Y98: ='W12'!P98 -> 0 | Z98: ='W12'!Q98 -> 0 | AA98: 0 | AB98: 0.25 | AD98: 0 | AE98: 0.3333333333 | AF98: 0 | AG98: 0.1666666667
A99: 2017-03-16 | B99: 135
A100: 2017-03-17 | B100: 136 | C100: ='W01'!P100 -> 0 | D100: ='W01'!Q100 -> 0 | E100: ='W02'!P100 -> 0 | F100: ='W02'!Q100 -> 0 | G100: ='W03'!P100 -> 0 | H100: ='W03'!Q100 -> 0 | I100: ='W04'!P100 -> 0 | J100: ='W04'!Q100 -> 0 | K100: ='W05'!P100 -> 0 | L100: ='W05'!Q100 -> 0 | M100: ='W06'!P100 -> 0 | N100: ='W06'!Q100 -> 0 | O100: ='W07'!P100 -> 0 | P100: ='W07'!Q100 -> 0 | Q100: ='W08'!P100 -> 0 | R100: ='W08'!Q100 -> 0 | S100: ='W09'!P100 -> 0 | T100: ='W09'!Q100 -> 0 | U100: ='W10'!P100 -> 0 | V100: ='W10'!Q100 -> 0 | W100: ='W11'!P100 -> 0 | X100: ='W11'!Q100 -> 0 | Y100: ='W12'!P100 -> 0 | Z100: ='W12'!Q100 -> 0 | AA100: =AVERAGE(C100,E100,G100,I100,K100,M100,O100,Q100,S100,U100,W100,Y100) -> 0 | AB100: =AVERAGE(D100,F100,H100,J100,L100,N100,P100,R100,T100,V100,X100,Z100) -> 0 | AD100: =AVERAGE(C100,G100,K100,O100,S100,W100) -> 0 | AE100: =AVERAGE(D100,H100,L100,P100,T100,X100) -> 0 | AF100: =AVERAGE(E100,I100,M100,Q100,U100,Y100) -> 0 | AG100: =AVERAGE(F100,J100,N100,R100,V100,Z100) -> 0
